Workbook

Sheet WB! Status
A1: What'sBest!® 19.0.1.1 (Mar 25, 2024) - Lib.:15.0.6099.155 - 64-bit - Status Report -
A2: - WBPX5-199560 Avista Corp - 64-bit -
A4: DATE GENERATED: | B4: 2024-08-28T08:14:27 | C4: 45532.34337
A7: MODEL INFORMATION:
A9: CLASSIFICATION DATA Current Capacity Limits
A10: --------------------------------------------------------
A11: Total Cells 3009614
A12: Numerics 2986678
A13: Adjustables 13123 Unlimited
A14: Continuous 9107
A15: Free 0
A16: Integers/Binaries 79/3937 Unlimited
A17: Constants 2713186
A18: Formulas 260369
A19: Strings 0
A20: Constraints 22936 Unlimited
A21: Nonlinears/Quadratics 0/0 Unlimited
A22: Coefficients 1059277
A24: Minimum coefficient value: 1.2e-08 on Res_MWh!IK100
A25: Minimum coefficient in formula: NEI!AZ22
A26: Maximum coefficient value: 8526000 on <RHS>
A27: Maximum coefficient in formula: JP Storage!C10
A29: MODEL TYPE: | B29: Mixed Integer / Linear (Mixed Integer Linear Program)
A31: SOLUTION STATUS: | B31: GLOBALLY OPTIMAL TO TOLERANCES
... 29 more rows

Sheet README
B2: Notice
B3: This Model is Provided “As Is”
B4: For Informational Purposes Only
B5: Inputs are Subject to Change at Any Time and May Impact Results
B6: Natural Gas Selection is for Informational Purposes Only, Actual Gas Selection will be in the Gas IRP
B8: Version
B9: G&E_1.0
B11: Model Design Date
B12: 2024-08-27
B14: Scenario
B15: All information is draft and subject to change
B16: EE is fixed from corrected EE study
B17: includes adjustment to energy efficiency to remove line losses from input file
B18: includes fix to model to include line losses on the peak hours
B20: Deterministic High Natural Gas Price Data- Not resolved
B21: Baseline Portfolio

Sheet Results_Summary
AA1: State Totals w/ Shared Resource Selection
A2: Nameplate MW | C2: 2026 | D2: 2027 | E2: 2028 | F2: 2029 | G2: 2030 | H2: 2031 | I2: 2032 | J2: 2033 | K2: 2034 | L2: 2035 | M2: 2036 | N2: 2037 | O2: 2038 | P2: 2039 | Q2: 2040 | R2: 2041 | S2: 2042 | T2: 2043 | U2: 2044 | V2: 2045 | AA2: 2026 | AB2: 2027 | AC2: 2028 | AD2: 2029 | AE2: 2030 | AF2: 2031 | AG2: 2032 | AH2: 2033 | AI2: 2034 | AJ2: 2035 | AK2: 2036 | AL2: 2037 | AM2: 2038 | AN2: 2039 | AO2: 2040 | AP2: 2041 | AQ2: 2042 | AR2: 2043 | AS2: 2044 | AT2: 2045
A3: Coyote Springs 2 | C3: =Selection!AT4 -> 1 | D3: =Selection!AU4 -> 1 | E3: =Selection!AV4 -> 1 | F3: =Selection!AW4 -> 1 | G3: =Selection!AX4 -> 1 | H3: =Selection!AY4 -> 1 | I3: =Selection!AZ4 -> 1 | J3: =Selection!BA4 -> 1 | K3: =Selection!BB4 -> 1 | L3: =Selection!BC4 -> 1 | M3: =Selection!BD4 -> 1 | N3: =Selection!BE4 -> 1 | O3: =Selection!BF4 -> 1 | P3: =Selection!BG4 -> 1 | Q3: =Selection!BH4 -> 1 | R3: =Selection!BI4 -> 1 | S3: =Selection!BJ4 -> 1 | T3: =Selection!BK4 -> 1 | U3: =Selection!BL4 -> 1 | V3: =Selection!BM4 -> 1
A4: Lancaster | C4: =Selection!AT5 -> 1 | D4: =Selection!AU5 -> 1 | E4: =Selection!AV5 -> 1 | F4: =Selection!AW5 -> 1 | G4: =Selection!AX5 -> 1 | H4: =Selection!AY5 -> 1 | I4: =Selection!AZ5 -> 1 | J4: =Selection!BA5 -> 1 | K4: =Selection!BB5 -> 1 | L4: =Selection!BC5 -> 1 | M4: =Selection!BD5 -> 1 | N4: =Selection!BE5 -> 1 | O4: =Selection!BF5 -> 1 | P4: =Selection!BG5 -> 1 | Q4: =Selection!BH5 -> 1 | R4: =Selection!BI5 -> 1 | S4: =Selection!BJ5 -> 0 | T4: =Selection!BK5 -> 0 | U4: =Selection!BL5 -> 0 | V4: =Selection!BM5 -> 0
A5: Colstrip (3) | C5: =Selection!AT6 -> 0 | D5: =Selection!AU6 -> 0 | E5: =Selection!AV6 -> 0 | F5: =Selection!AW6 -> 0 | G5: =Selection!AX6 -> 0 | H5: =Selection!AY6 -> 0 | I5: =Selection!AZ6 -> 0 | J5: =Selection!BA6 -> 0 | K5: =Selection!BB6 -> 0 | L5: =Selection!BC6 -> 0 | M5: =Selection!BD6 -> 0 | N5: =Selection!BE6 -> 0 | O5: =Selection!BF6 -> 0 | P5: =Selection!BG6 -> 0 | Q5: =Selection!BH6 -> 0 | R5: =Selection!BI6 -> 0 | S5: =Selection!BJ6 -> 0 | T5: =Selection!BK6 -> 0 | U5: =Selection!BL6 -> 0 | V5: =Selection!BM6 -> 0
A6: Colstrip (4) | C6: =Selection!AT7 -> 0 | D6: =Selection!AU7 -> 0 | E6: =Selection!AV7 -> 0 | F6: =Selection!AW7 -> 0 | G6: =Selection!AX7 -> 0 | H6: =Selection!AY7 -> 0 | I6: =Selection!AZ7 -> 0 | J6: =Selection!BA7 -> 0 | K6: =Selection!BB7 -> 0 | L6: =Selection!BC7 -> 0 | M6: =Selection!BD7 -> 0 | N6: =Selection!BE7 -> 0 | O6: =Selection!BF7 -> 0 | P6: =Selection!BG7 -> 0 | Q6: =Selection!BH7 -> 0 | R6: =Selection!BI7 -> 0 | S6: =Selection!BJ7 -> 0 | T6: =Selection!BK7 -> 0 | U6: =Selection!BL7 -> 0 | V6: =Selection!BM7 -> 0
A7: Kettle Falls | C7: =Selection!AT8 -> 1 | D7: =Selection!AU8 -> 1 | E7: =Selection!AV8 -> 1 | F7: =Selection!AW8 -> 1 | G7: =Selection!AX8 -> 1 | H7: =Selection!AY8 -> 1 | I7: =Selection!AZ8 -> 1 | J7: =Selection!BA8 -> 1 | K7: =Selection!BB8 -> 1 | L7: =Selection!BC8 -> 1 | M7: =Selection!BD8 -> 1 | N7: =Selection!BE8 -> 1 | O7: =Selection!BF8 -> 1 | P7: =Selection!BG8 -> 1 | Q7: =Selection!BH8 -> 1 | R7: =Selection!BI8 -> 1 | S7: =Selection!BJ8 -> 1 | T7: =Selection!BK8 -> 1 | U7: =Selection!BL8 -> 1 | V7: =Selection!BM8 -> 1
A8: Kettle Falls CT | C8: =Selection!AT9 -> 1 | D8: =Selection!AU9 -> 1 | E8: =Selection!AV9 -> 1 | F8: =Selection!AW9 -> 1 | G8: =Selection!AX9 -> 1 | H8: =Selection!AY9 -> 1 | I8: =Selection!AZ9 -> 1 | J8: =Selection!BA9 -> 1 | K8: =Selection!BB9 -> 1 | L8: =Selection!BC9 -> 1 | M8: =Selection!BD9 -> 1 | N8: =Selection!BE9 -> 1 | O8: =Selection!BF9 -> 1 | P8: =Selection!BG9 -> 1 | Q8: =Selection!BH9 -> 0 | R8: =Selection!BI9 -> 0 | S8: =Selection!BJ9 -> 0 | T8: =Selection!BK9 -> 0 | U8: =Selection!BL9 -> 0 | V8: =Selection!BM9 -> 0
A9: Boulder Park 1-6 | C9: =Selection!AT10 -> 1 | D9: =Selection!AU10 -> 1 | E9: =Selection!AV10 -> 1 | F9: =Selection!AW10 -> 1 | G9: =Selection!AX10 -> 1 | H9: =Selection!AY10 -> 1 | I9: =Selection!AZ10 -> 1 | J9: =Selection!BA10 -> 1 | K9: =Selection!BB10 -> 1 | L9: =Selection!BC10 -> 1 | M9: =Selection!BD10 -> 1 | N9: =Selection!BE10 -> 1 | O9: =Selection!BF10 -> 1 | P9: =Selection!BG10 -> 1 | Q9: =Selection!BH10 -> 0 | R9: =Selection!BI10 -> 0 | S9: =Selection!BJ10 -> 0 | T9: =Selection!BK10 -> 0 | U9: =Selection!BL10 -> 0 | V9: =Selection!BM10 -> 0
A10: Rathdrum 1 | C10: =Selection!AT11 -> 1 | D10: =Selection!AU11 -> 1 | E10: =Selection!AV11 -> 1 | F10: =Selection!AW11 -> 1 | G10: =Selection!AX11 -> 1 | H10: =Selection!AY11 -> 1 | I10: =Selection!AZ11 -> 1 | J10: =Selection!BA11 -> 1 | K10: =Selection!BB11 -> 1 | L10: =Selection!BC11 -> 1 | M10: =Selection!BD11 -> 1 | N10: =Selection!BE11 -> 1 | O10: =Selection!BF11 -> 1 | P10: =Selection!BG11 -> 1 | Q10: =Selection!BH11 -> 1 | R10: =Selection!BI11 -> 1 | S10: =Selection!BJ11 -> 1 | T10: =Selection!BK11 -> 1 | U10: =Selection!BL11 -> 1 | V10: =Selection!BM11 -> 0
A11: Rathdrum 2 | C11: =Selection!AT12 -> 1 | D11: =Selection!AU12 -> 1 | E11: =Selection!AV12 -> 1 | F11: =Selection!AW12 -> 1 | G11: =Selection!AX12 -> 1 | H11: =Selection!AY12 -> 1 | I11: =Selection!AZ12 -> 1 | J11: =Selection!BA12 -> 1 | K11: =Selection!BB12 -> 1 | L11: =Selection!BC12 -> 1 | M11: =Selection!BD12 -> 1 | N11: =Selection!BE12 -> 1 | O11: =Selection!BF12 -> 1 | P11: =Selection!BG12 -> 1 | Q11: =Selection!BH12 -> 1 | R11: =Selection!BI12 -> 1 | S11: =Selection!BJ12 -> 1 | T11: =Selection!BK12 -> 1 | U11: =Selection!BL12 -> 1 | V11: =Selection!BM12 -> 0
A12: Northeast A&B | C12: =Selection!AT13 -> 1 | D12: =Selection!AU13 -> 1 | E12: =Selection!AV13 -> 1 | F12: =Selection!AW13 -> 1 | G12: =Selection!AX13 -> 0 | H12: =Selection!AY13 -> 0 | I12: =Selection!AZ13 -> 0 | J12: =Selection!BA13 -> 0 | K12: =Selection!BB13 -> 0 | L12: =Selection!BC13 -> 0 | M12: =Selection!BD13 -> 0 | N12: =Selection!BE13 -> 0 | O12: =Selection!BF13 -> 0 | P12: =Selection!BG13 -> 0 | Q12: =Selection!BH13 -> 0 | R12: =Selection!BI13 -> 0 | S12: =Selection!BJ13 -> 0 | T12: =Selection!BK13 -> 0 | U12: =Selection!BL13 -> 0 | V12: =Selection!BM13 -> 0
A14: Shared System Resource
A15: Mrkt/Trans | C15: =SUMIF(Selection!$A$99:$A$165,$A15,Selection!AT$99:AT$165) -> 39.39536553 | D15: =SUMIF(Selection!$A$99:$A$165,$A15,Selection!AU$99:AU$165) -> 3.767639948 | E15: =SUMIF(Selection!$A$99:$A$165,$A15,Selection!AV$99:AV$165) -> 9.671672619 | F15: =SUMIF(Selection!$A$99:$A$165,$A15,Selection!AW$99:AW$165) -> 0 | G15: =SUMIF(Selection!$A$99:$A$165,$A15,Selection!AX$99:AX$165) -> 0 | H15: =SUMIF(Selection!$A$99:$A$165,$A15,Selection!AY$99:AY$165) -> 0 | I15: =SUMIF(Selection!$A$99:$A$165,$A15,Selection!AZ$99:AZ$165) -> 0 | J15: =SUMIF(Selection!$A$99:$A$165,$A15,Selection!BA$99:BA$165) -> 300 | K15: =SUMIF(Selection!$A$99:$A$165,$A15,Selection!BB$99:BB$165) -> 0 | L15: =SUMIF(Selection!$A$99:$A$165,$A15,Selection!BC$99:BC$165) -> 0 | M15: =SUMIF(Selection!$A$99:$A$165,$A15,Selection!BD$99:BD$165) -> 0 | N15: =SUMIF(Selection!$A$99:$A$165,$A15,Selection!BE$99:BE$165) -> 0 | O15: =SUMIF(Selection!$A$99:$A$165,$A15,Selection!BF$99:BF$165) -> 0 | P15: =SUMIF(Selection!$A$99:$A$165,$A15,Selection!BG$99:BG$165) -> 0 | Q15: =SUMIF(Selection!$A$99:$A$165,$A15,Selection!BH$99:BH$165) -> 0 | R15: =SUMIF(Selection!$A$99:$A$165,$A15,Selection!BI$99:BI$165) -> 0 | S15: =SUMIF(Selection!$A$99:$A$165,$A15,Selection!BJ$99:BJ$165) -> 0 | T15: =SUMIF(Selection!$A$99:$A$165,$A15,Selection!BK$99:BK$165) -> 0 | U15: =SUMIF(Selection!$A$99:$A$165,$A15,Selection!BL$99:BL$165) -> 0 | V15: =SUMIF(Selection!$A$99:$A$165,$A15,Selection!BM$99:BM$165) -> 0
A16: Natural Gas | C16: =SUMIF(Selection!$A$99:$A$165,$A16,Selection!AT$99:AT$165) -> 0 | D16: =SUMIF(Selection!$A$99:$A$165,$A16,Selection!AU$99:AU$165) -> 0 | E16: =SUMIF(Selection!$A$99:$A$165,$A16,Selection!AV$99:AV$165) -> 0 | F16: =SUMIF(Selection!$A$99:$A$165,$A16,Selection!AW$99:AW$165) -> 0 | G16: =SUMIF(Selection!$A$99:$A$165,$A16,Selection!AX$99:AX$165) -> 0 | H16: =SUMIF(Selection!$A$99:$A$165,$A16,Selection!AY$99:AY$165) -> 0 | I16: =SUMIF(Selection!$A$99:$A$165,$A16,Selection!AZ$99:AZ$165) -> 0 | J16: =SUMIF(Selection!$A$99:$A$165,$A16,Selection!BA$99:BA$165) -> 0 | K16: =SUMIF(Selection!$A$99:$A$165,$A16,Selection!BB$99:BB$165) -> 0 | L16: =SUMIF(Selection!$A$99:$A$165,$A16,Selection!BC$99:BC$165) -> 0 | M16: =SUMIF(Selection!$A$99:$A$165,$A16,Selection!BD$99:BD$165) -> 0 | N16: =SUMIF(Selection!$A$99:$A$165,$A16,Selection!BE$99:BE$165) -> 0 | O16: =SUMIF(Selection!$A$99:$A$165,$A16,Selection!BF$99:BF$165) -> 102.9195542 | P16: =SUMIF(Selection!$A$99:$A$165,$A16,Selection!BG$99:BG$165) -> 0 | Q16: =SUMIF(Selection!$A$99:$A$165,$A16,Selection!BH$99:BH$165) -> 97.08044576 | R16: =SUMIF(Selection!$A$99:$A$165,$A16,Selection!BI$99:BI$165) -> 0 | S16: =SUMIF(Selection!$A$99:$A$165,$A16,Selection!BJ$99:BJ$165) -> 389.2295104 | T16: =SUMIF(Selection!$A$99:$A$165,$A16,Selection!BK$99:BK$165) -> 0 | U16: =SUMIF(Selection!$A$99:$A$165,$A16,Selection!BL$99:BL$165) -> 90.2475 | V16: =SUMIF(Selection!$A$99:$A$165,$A16,Selection!BM$99:BM$165) -> 121.1373039
A17: Solar | C17: =SUMIF(Selection!$A$99:$A$165,$A17,Selection!AT$99:AT$165) -> 0 | D17: =SUMIF(Selection!$A$99:$A$165,$A17,Selection!AU$99:AU$165) -> 0 | E17: =SUMIF(Selection!$A$99:$A$165,$A17,Selection!AV$99:AV$165) -> 0 | F17: =SUMIF(Selection!$A$99:$A$165,$A17,Selection!AW$99:AW$165) -> 0 | G17: =SUMIF(Selection!$A$99:$A$165,$A17,Selection!AX$99:AX$165) -> 0 | H17: =SUMIF(Selection!$A$99:$A$165,$A17,Selection!AY$99:AY$165) -> 0 | I17: =SUMIF(Selection!$A$99:$A$165,$A17,Selection!AZ$99:AZ$165) -> 0 | J17: =SUMIF(Selection!$A$99:$A$165,$A17,Selection!BA$99:BA$165) -> 0 | K17: =SUMIF(Selection!$A$99:$A$165,$A17,Selection!BB$99:BB$165) -> 0 | L17: =SUMIF(Selection!$A$99:$A$165,$A17,Selection!BC$99:BC$165) -> 0 | M17: =SUMIF(Selection!$A$99:$A$165,$A17,Selection!BD$99:BD$165) -> 0 | N17: =SUMIF(Selection!$A$99:$A$165,$A17,Selection!BE$99:BE$165) -> 0 | O17: =SUMIF(Selection!$A$99:$A$165,$A17,Selection!BF$99:BF$165) -> 0 | P17: =SUMIF(Selection!$A$99:$A$165,$A17,Selection!BG$99:BG$165) -> 0 | Q17: =SUMIF(Selection!$A$99:$A$165,$A17,Selection!BH$99:BH$165) -> 0 | R17: =SUMIF(Selection!$A$99:$A$165,$A17,Selection!BI$99:BI$165) -> 0 | S17: =SUMIF(Selection!$A$99:$A$165,$A17,Selection!BJ$99:BJ$165) -> 0 | T17: =SUMIF(Selection!$A$99:$A$165,$A17,Selection!BK$99:BK$165) -> 0 | U17: =SUMIF(Selection!$A$99:$A$165,$A17,Selection!BL$99:BL$165) -> 0 | V17: =SUMIF(Selection!$A$99:$A$165,$A17,Selection!BM$99:BM$165) -> 0
A18: Wind | C18: =SUMIF(Selection!$A$99:$A$165,$A18,Selection!AT$99:AT$165) -> 0 | D18: =SUMIF(Selection!$A$99:$A$165,$A18,Selection!AU$99:AU$165) -> 0 | E18: =SUMIF(Selection!$A$99:$A$165,$A18,Selection!AV$99:AV$165) -> 0 | F18: =SUMIF(Selection!$A$99:$A$165,$A18,Selection!AW$99:AW$165) -> 100 | G18: =SUMIF(Selection!$A$99:$A$165,$A18,Selection!AX$99:AX$165) -> 0 | H18: =SUMIF(Selection!$A$99:$A$165,$A18,Selection!AY$99:AY$165) -> 0 | I18: =SUMIF(Selection!$A$99:$A$165,$A18,Selection!AZ$99:AZ$165) -> 0 | J18: =SUMIF(Selection!$A$99:$A$165,$A18,Selection!BA$99:BA$165) -> 0 | K18: =SUMIF(Selection!$A$99:$A$165,$A18,Selection!BB$99:BB$165) -> 0 | L18: =SUMIF(Selection!$A$99:$A$165,$A18,Selection!BC$99:BC$165) -> 0 | M18: =SUMIF(Selection!$A$99:$A$165,$A18,Selection!BD$99:BD$165) -> 0 | N18: =SUMIF(Selection!$A$99:$A$165,$A18,Selection!BE$99:BE$165) -> 0 | O18: =SUMIF(Selection!$A$99:$A$165,$A18,Selection!BF$99:BF$165) -> 0 | P18: =SUMIF(Selection!$A$99:$A$165,$A18,Selection!BG$99:BG$165) -> 0 | Q18: =SUMIF(Selection!$A$99:$A$165,$A18,Selection!BH$99:BH$165) -> 0 | R18: =SUMIF(Selection!$A$99:$A$165,$A18,Selection!BI$99:BI$165) -> 0 | S18: =SUMIF(Selection!$A$99:$A$165,$A18,Selection!BJ$99:BJ$165) -> 0 | T18: =SUMIF(Selection!$A$99:$A$165,$A18,Selection!BK$99:BK$165) -> 0 | U18: =SUMIF(Selection!$A$99:$A$165,$A18,Selection!BL$99:BL$165) -> 0 | V18: =SUMIF(Selection!$A$99:$A$165,$A18,Selection!BM$99:BM$165) -> 0
A19: Storage | C19: =SUMIF(Selection!$A$99:$A$165,$A19,Selection!AT$99:AT$165) -> 0 | D19: =SUMIF(Selection!$A$99:$A$165,$A19,Selection!AU$99:AU$165) -> 0 | E19: =SUMIF(Selection!$A$99:$A$165,$A19,Selection!AV$99:AV$165) -> 0 | F19: =SUMIF(Selection!$A$99:$A$165,$A19,Selection!AW$99:AW$165) -> 0 | G19: =SUMIF(Selection!$A$99:$A$165,$A19,Selection!AX$99:AX$165) -> 0 | H19: =SUMIF(Selection!$A$99:$A$165,$A19,Selection!AY$99:AY$165) -> 0 | I19: =SUMIF(Selection!$A$99:$A$165,$A19,Selection!AZ$99:AZ$165) -> 2 | J19: =SUMIF(Selection!$A$99:$A$165,$A19,Selection!BA$99:BA$165) -> 0 | K19: =SUMIF(Selection!$A$99:$A$165,$A19,Selection!BB$99:BB$165) -> 0 | L19: =SUMIF(Selection!$A$99:$A$165,$A19,Selection!BC$99:BC$165) -> 0 | M19: =SUMIF(Selection!$A$99:$A$165,$A19,Selection!BD$99:BD$165) -> 0 | N19: =SUMIF(Selection!$A$99:$A$165,$A19,Selection!BE$99:BE$165) -> 0 | O19: =SUMIF(Selection!$A$99:$A$165,$A19,Selection!BF$99:BF$165) -> 0 | P19: =SUMIF(Selection!$A$99:$A$165,$A19,Selection!BG$99:BG$165) -> 0 | Q19: =SUMIF(Selection!$A$99:$A$165,$A19,Selection!BH$99:BH$165) -> 0 | R19: =SUMIF(Selection!$A$99:$A$165,$A19,Selection!BI$99:BI$165) -> 0 | S19: =SUMIF(Selection!$A$99:$A$165,$A19,Selection!BJ$99:BJ$165) -> 0 | T19: =SUMIF(Selection!$A$99:$A$165,$A19,Selection!BK$99:BK$165) -> 0 | U19: =SUMIF(Selection!$A$99:$A$165,$A19,Selection!BL$99:BL$165) -> 0 | V19: =SUMIF(Selection!$A$99:$A$165,$A19,Selection!BM$99:BM$165) -> 0
A20: PtoG | C20: =SUMIF(Selection!$A$99:$A$165,$A20,Selection!AT$99:AT$165) -> 0 | D20: =SUMIF(Selection!$A$99:$A$165,$A20,Selection!AU$99:AU$165) -> 0 | E20: =SUMIF(Selection!$A$99:$A$165,$A20,Selection!AV$99:AV$165) -> 0 | F20: =SUMIF(Selection!$A$99:$A$165,$A20,Selection!AW$99:AW$165) -> 0 | G20: =SUMIF(Selection!$A$99:$A$165,$A20,Selection!AX$99:AX$165) -> 0 | H20: =SUMIF(Selection!$A$99:$A$165,$A20,Selection!AY$99:AY$165) -> 0 | I20: =SUMIF(Selection!$A$99:$A$165,$A20,Selection!AZ$99:AZ$165) -> 0 | J20: =SUMIF(Selection!$A$99:$A$165,$A20,Selection!BA$99:BA$165) -> 0 | K20: =SUMIF(Selection!$A$99:$A$165,$A20,Selection!BB$99:BB$165) -> 0 | L20: =SUMIF(Selection!$A$99:$A$165,$A20,Selection!BC$99:BC$165) -> 0 | M20: =SUMIF(Selection!$A$99:$A$165,$A20,Selection!BD$99:BD$165) -> 0 | N20: =SUMIF(Selection!$A$99:$A$165,$A20,Selection!BE$99:BE$165) -> 0 | O20: =SUMIF(Selection!$A$99:$A$165,$A20,Selection!BF$99:BF$165) -> 0 | P20: =SUMIF(Selection!$A$99:$A$165,$A20,Selection!BG$99:BG$165) -> 0 | Q20: =SUMIF(Selection!$A$99:$A$165,$A20,Selection!BH$99:BH$165) -> 0 | R20: =SUMIF(Selection!$A$99:$A$165,$A20,Selection!BI$99:BI$165) -> 0 | S20: =SUMIF(Selection!$A$99:$A$165,$A20,Selection!BJ$99:BJ$165) -> 0 | T20: =SUMIF(Selection!$A$99:$A$165,$A20,Selection!BK$99:BK$165) -> 0 | U20: =SUMIF(Selection!$A$99:$A$165,$A20,Selection!BL$99:BL$165) -> 0 | V20: =SUMIF(Selection!$A$99:$A$165,$A20,Selection!BM$99:BM$165) -> 90.2475
A21: Nuclear | C21: =SUMIF(Selection!$A$99:$A$165,$A21,Selection!AT$99:AT$165) -> 0 | D21: =SUMIF(Selection!$A$99:$A$165,$A21,Selection!AU$99:AU$165) -> 0 | E21: =SUMIF(Selection!$A$99:$A$165,$A21,Selection!AV$99:AV$165) -> 0 | F21: =SUMIF(Selection!$A$99:$A$165,$A21,Selection!AW$99:AW$165) -> 0 | G21: =SUMIF(Selection!$A$99:$A$165,$A21,Selection!AX$99:AX$165) -> 0 | H21: =SUMIF(Selection!$A$99:$A$165,$A21,Selection!AY$99:AY$165) -> 0 | I21: =SUMIF(Selection!$A$99:$A$165,$A21,Selection!AZ$99:AZ$165) -> 0 | J21: =SUMIF(Selection!$A$99:$A$165,$A21,Selection!BA$99:BA$165) -> 0 | K21: =SUMIF(Selection!$A$99:$A$165,$A21,Selection!BB$99:BB$165) -> 0 | L21: =SUMIF(Selection!$A$99:$A$165,$A21,Selection!BC$99:BC$165) -> 0 | M21: =SUMIF(Selection!$A$99:$A$165,$A21,Selection!BD$99:BD$165) -> 0 | N21: =SUMIF(Selection!$A$99:$A$165,$A21,Selection!BE$99:BE$165) -> 0 | O21: =SUMIF(Selection!$A$99:$A$165,$A21,Selection!BF$99:BF$165) -> 0 | P21: =SUMIF(Selection!$A$99:$A$165,$A21,Selection!BG$99:BG$165) -> 0 | Q21: =SUMIF(Selection!$A$99:$A$165,$A21,Selection!BH$99:BH$165) -> 0 | R21: =SUMIF(Selection!$A$99:$A$165,$A21,Selection!BI$99:BI$165) -> 0 | S21: =SUMIF(Selection!$A$99:$A$165,$A21,Selection!BJ$99:BJ$165) -> 0 | T21: =SUMIF(Selection!$A$99:$A$165,$A21,Selection!BK$99:BK$165) -> 0 | U21: =SUMIF(Selection!$A$99:$A$165,$A21,Selection!BL$99:BL$165) -> 0 | V21: =SUMIF(Selection!$A$99:$A$165,$A21,Selection!BM$99:BM$165) -> 0
A22: Geothermal | C22: =SUMIF(Selection!$A$99:$A$165,$A22,Selection!AT$99:AT$165) -> 0 | D22: =SUMIF(Selection!$A$99:$A$165,$A22,Selection!AU$99:AU$165) -> 0 | E22: =SUMIF(Selection!$A$99:$A$165,$A22,Selection!AV$99:AV$165) -> 0 | F22: =SUMIF(Selection!$A$99:$A$165,$A22,Selection!AW$99:AW$165) -> 0 | G22: =SUMIF(Selection!$A$99:$A$165,$A22,Selection!AX$99:AX$165) -> 0 | H22: =SUMIF(Selection!$A$99:$A$165,$A22,Selection!AY$99:AY$165) -> 0 | I22: =SUMIF(Selection!$A$99:$A$165,$A22,Selection!AZ$99:AZ$165) -> 0 | J22: =SUMIF(Selection!$A$99:$A$165,$A22,Selection!BA$99:BA$165) -> 0 | K22: =SUMIF(Selection!$A$99:$A$165,$A22,Selection!BB$99:BB$165) -> 0 | L22: =SUMIF(Selection!$A$99:$A$165,$A22,Selection!BC$99:BC$165) -> 0 | M22: =SUMIF(Selection!$A$99:$A$165,$A22,Selection!BD$99:BD$165) -> 0 | N22: =SUMIF(Selection!$A$99:$A$165,$A22,Selection!BE$99:BE$165) -> 0 | O22: =SUMIF(Selection!$A$99:$A$165,$A22,Selection!BF$99:BF$165) -> 0 | P22: =SUMIF(Selection!$A$99:$A$165,$A22,Selection!BG$99:BG$165) -> 0 | Q22: =SUMIF(Selection!$A$99:$A$165,$A22,Selection!BH$99:BH$165) -> 0 | R22: =SUMIF(Selection!$A$99:$A$165,$A22,Selection!BI$99:BI$165) -> 0 | S22: =SUMIF(Selection!$A$99:$A$165,$A22,Selection!BJ$99:BJ$165) -> 0 | T22: =SUMIF(Selection!$A$99:$A$165,$A22,Selection!BK$99:BK$165) -> 0 | U22: =SUMIF(Selection!$A$99:$A$165,$A22,Selection!BL$99:BL$165) -> 0 | V22: =SUMIF(Selection!$A$99:$A$165,$A22,Selection!BM$99:BM$165) -> 0
A23: Biomass | C23: =SUMIF(Selection!$A$99:$A$165,$A23,Selection!AT$99:AT$165) -> 0 | D23: =SUMIF(Selection!$A$99:$A$165,$A23,Selection!AU$99:AU$165) -> 0 | E23: =SUMIF(Selection!$A$99:$A$165,$A23,Selection!AV$99:AV$165) -> 0 | F23: =SUMIF(Selection!$A$99:$A$165,$A23,Selection!AW$99:AW$165) -> 0 | G23: =SUMIF(Selection!$A$99:$A$165,$A23,Selection!AX$99:AX$165) -> 0 | H23: =SUMIF(Selection!$A$99:$A$165,$A23,Selection!AY$99:AY$165) -> 0 | I23: =SUMIF(Selection!$A$99:$A$165,$A23,Selection!AZ$99:AZ$165) -> 0 | J23: =SUMIF(Selection!$A$99:$A$165,$A23,Selection!BA$99:BA$165) -> 0 | K23: =SUMIF(Selection!$A$99:$A$165,$A23,Selection!BB$99:BB$165) -> 0 | L23: =SUMIF(Selection!$A$99:$A$165,$A23,Selection!BC$99:BC$165) -> 0 | M23: =SUMIF(Selection!$A$99:$A$165,$A23,Selection!BD$99:BD$165) -> 0 | N23: =SUMIF(Selection!$A$99:$A$165,$A23,Selection!BE$99:BE$165) -> 0 | O23: =SUMIF(Selection!$A$99:$A$165,$A23,Selection!BF$99:BF$165) -> 0 | P23: =SUMIF(Selection!$A$99:$A$165,$A23,Selection!BG$99:BG$165) -> 0 | Q23: =SUMIF(Selection!$A$99:$A$165,$A23,Selection!BH$99:BH$165) -> 0 | R23: =SUMIF(Selection!$A$99:$A$165,$A23,Selection!BI$99:BI$165) -> 0 | S23: =SUMIF(Selection!$A$99:$A$165,$A23,Selection!BJ$99:BJ$165) -> 0 | T23: =SUMIF(Selection!$A$99:$A$165,$A23,Selection!BK$99:BK$165) -> 0 | U23: =SUMIF(Selection!$A$99:$A$165,$A23,Selection!BL$99:BL$165) -> 0 | V23: =SUMIF(Selection!$A$99:$A$165,$A23,Selection!BM$99:BM$165) -> 0
A24: RNG | C24: =SUMIF(Selection!$A$99:$A$165,$A24,Selection!AT$99:AT$165) -> 0 | D24: =SUMIF(Selection!$A$99:$A$165,$A24,Selection!AU$99:AU$165) -> 0 | E24: =SUMIF(Selection!$A$99:$A$165,$A24,Selection!AV$99:AV$165) -> 0 | F24: =SUMIF(Selection!$A$99:$A$165,$A24,Selection!AW$99:AW$165) -> 0 | G24: =SUMIF(Selection!$A$99:$A$165,$A24,Selection!AX$99:AX$165) -> 0 | H24: =SUMIF(Selection!$A$99:$A$165,$A24,Selection!AY$99:AY$165) -> 0 | I24: =SUMIF(Selection!$A$99:$A$165,$A24,Selection!AZ$99:AZ$165) -> 0 | J24: =SUMIF(Selection!$A$99:$A$165,$A24,Selection!BA$99:BA$165) -> 0 | K24: =SUMIF(Selection!$A$99:$A$165,$A24,Selection!BB$99:BB$165) -> 0 | L24: =SUMIF(Selection!$A$99:$A$165,$A24,Selection!BC$99:BC$165) -> 0 | M24: =SUMIF(Selection!$A$99:$A$165,$A24,Selection!BD$99:BD$165) -> 0 | N24: =SUMIF(Selection!$A$99:$A$165,$A24,Selection!BE$99:BE$165) -> 0 | O24: =SUMIF(Selection!$A$99:$A$165,$A24,Selection!BF$99:BF$165) -> 0 | P24: =SUMIF(Selection!$A$99:$A$165,$A24,Selection!BG$99:BG$165) -> 0 | Q24: =SUMIF(Selection!$A$99:$A$165,$A24,Selection!BH$99:BH$165) -> 0 | R24: =SUMIF(Selection!$A$99:$A$165,$A24,Selection!BI$99:BI$165) -> 0 | S24: =SUMIF(Selection!$A$99:$A$165,$A24,Selection!BJ$99:BJ$165) -> 0 | T24: =SUMIF(Selection!$A$99:$A$165,$A24,Selection!BK$99:BK$165) -> 0 | U24: =SUMIF(Selection!$A$99:$A$165,$A24,Selection!BL$99:BL$165) -> 0 | V24: =SUMIF(Selection!$A$99:$A$165,$A24,Selection!BM$99:BM$165) -> 0
A25: DR | C25: 0 | D25: 0 | E25: 0 | F25: 0 | G25: 0 | H25: 0 | I25: 0 | J25: 0 | K25: 0 | L25: 0 | M25: 0 | N25: 0 | O25: 0 | P25: 0 | Q25: 0 | R25: 0 | S25: 0 | T25: 0 | U25: 0 | V25: 0
A27: Washington
A28: Mrkt/Trans | C28: =SUMIF(Selection!$A$99:$A$165,$A28,Selection!D$99:D$165) -> 0 | D28: =SUMIF(Selection!$A$99:$A$165,$A28,Selection!E$99:E$165) -> 0 | E28: =SUMIF(Selection!$A$99:$A$165,$A28,Selection!F$99:F$165) -> 0 | F28: =SUMIF(Selection!$A$99:$A$165,$A28,Selection!G$99:G$165) -> 0 | G28: =SUMIF(Selection!$A$99:$A$165,$A28,Selection!H$99:H$165) -> 0 | H28: =SUMIF(Selection!$A$99:$A$165,$A28,Selection!I$99:I$165) -> 0 | I28: =SUMIF(Selection!$A$99:$A$165,$A28,Selection!J$99:J$165) -> 0 | J28: =SUMIF(Selection!$A$99:$A$165,$A28,Selection!K$99:K$165) -> 0 | K28: =SUMIF(Selection!$A$99:$A$165,$A28,Selection!L$99:L$165) -> 0 | L28: =SUMIF(Selection!$A$99:$A$165,$A28,Selection!M$99:M$165) -> 0 | M28: =SUMIF(Selection!$A$99:$A$165,$A28,Selection!N$99:N$165) -> 0 | N28: =SUMIF(Selection!$A$99:$A$165,$A28,Selection!O$99:O$165) -> 0 | O28: =SUMIF(Selection!$A$99:$A$165,$A28,Selection!P$99:P$165) -> 0 | P28: =SUMIF(Selection!$A$99:$A$165,$A28,Selection!Q$99:Q$165) -> 0 | Q28: =SUMIF(Selection!$A$99:$A$165,$A28,Selection!R$99:R$165) -> 0 | R28: =SUMIF(Selection!$A$99:$A$165,$A28,Selection!S$99:S$165) -> 0 | S28: =SUMIF(Selection!$A$99:$A$165,$A28,Selection!T$99:T$165) -> 0 | T28: =SUMIF(Selection!$A$99:$A$165,$A28,Selection!U$99:U$165) -> 0 | U28: =SUMIF(Selection!$A$99:$A$165,$A28,Selection!V$99:V$165) -> 0 | V28: =SUMIF(Selection!$A$99:$A$165,$A28,Selection!W$99:W$165) -> 0 | AA28: =C28+(C15*G_A!G$9) -> 25.79985592 | AB28: =D28+(D15*G_A!H$9) -> 2.47377869 | AC28: =E28+(E15*G_A!I$9) -> 6.367357788 | AD28: =F28+(F15*G_A!J$9) -> 0 | AE28: =G28+(G15*G_A!K$9) -> 0 | AF28: =H28+(H15*G_A!L$9) -> 0 | AG28: =I28+(I15*G_A!M$9) -> 0 | AH28: =J28+(J15*G_A!N$9) -> 198.3557671 | AI28: =K28+(K15*G_A!O$9) -> 0 | AJ28: =L28+(L15*G_A!P$9) -> 0 | AK28: =M28+(M15*G_A!Q$9) -> 0 | AL28: =N28+(N15*G_A!R$9) -> 0 | AM28: =O28+(O15*G_A!S$9) -> 0 | AN28: =P28+(P15*G_A!T$9) -> 0 | AO28: =Q28+(Q15*G_A!U$9) -> 0 | AP28: =R28+(R15*G_A!V$9) -> 0 | AQ28: =S28+(S15*G_A!W$9) -> 0 | AR28: =T28+(T15*G_A!X$9) -> 0 | AS28: =U28+(U15*G_A!Y$9) -> 0 | AT28: =V28+(V15*G_A!Z$9) -> 0
A29: Natural Gas | C29: =SUMIF(Selection!$A$99:$A$165,$A29,Selection!D$99:D$165) -> 0 | D29: =SUMIF(Selection!$A$99:$A$165,$A29,Selection!E$99:E$165) -> 0 | E29: =SUMIF(Selection!$A$99:$A$165,$A29,Selection!F$99:F$165) -> 0 | F29: =SUMIF(Selection!$A$99:$A$165,$A29,Selection!G$99:G$165) -> 0 | G29: =SUMIF(Selection!$A$99:$A$165,$A29,Selection!H$99:H$165) -> 0 | H29: =SUMIF(Selection!$A$99:$A$165,$A29,Selection!I$99:I$165) -> 0 | I29: =SUMIF(Selection!$A$99:$A$165,$A29,Selection!J$99:J$165) -> 0 | J29: =SUMIF(Selection!$A$99:$A$165,$A29,Selection!K$99:K$165) -> 0 | K29: =SUMIF(Selection!$A$99:$A$165,$A29,Selection!L$99:L$165) -> 0 | L29: =SUMIF(Selection!$A$99:$A$165,$A29,Selection!M$99:M$165) -> 0 | M29: =SUMIF(Selection!$A$99:$A$165,$A29,Selection!N$99:N$165) -> 0 | N29: =SUMIF(Selection!$A$99:$A$165,$A29,Selection!O$99:O$165) -> 0 | O29: =SUMIF(Selection!$A$99:$A$165,$A29,Selection!P$99:P$165) -> 0 | P29: =SUMIF(Selection!$A$99:$A$165,$A29,Selection!Q$99:Q$165) -> 0 | Q29: =SUMIF(Selection!$A$99:$A$165,$A29,Selection!R$99:R$165) -> 0 | R29: =SUMIF(Selection!$A$99:$A$165,$A29,Selection!S$99:S$165) -> 0 | S29: =SUMIF(Selection!$A$99:$A$165,$A29,Selection!T$99:T$165) -> 0 | T29: =SUMIF(Selection!$A$99:$A$165,$A29,Selection!U$99:U$165) -> 0 | U29: =SUMIF(Selection!$A$99:$A$165,$A29,Selection!V$99:V$165) -> 0 | V29: =SUMIF(Selection!$A$99:$A$165,$A29,Selection!W$99:W$165) -> 0 | AA29: =C29+(C16*G_A!G$9) -> 0 | AB29: =D29+(D16*G_A!H$9) -> 0 | AC29: =E29+(E16*G_A!I$9) -> 0 | AD29: =F29+(F16*G_A!J$9) -> 0 | AE29: =G29+(G16*G_A!K$9) -> 0 | AF29: =H29+(H16*G_A!L$9) -> 0 | AG29: =I29+(I16*G_A!M$9) -> 0 | AH29: =J29+(J16*G_A!N$9) -> 0 | AI29: =K29+(K16*G_A!O$9) -> 0 | AJ29: =L29+(L16*G_A!P$9) -> 0 | AK29: =M29+(M16*G_A!Q$9) -> 0 | AL29: =N29+(N16*G_A!R$9) -> 0 | AM29: =O29+(O16*G_A!S$9) -> 69.101167 | AN29: =P29+(P16*G_A!T$9) -> 0 | AO29: =Q29+(Q16*G_A!U$9) -> 65.69119686 | AP29: =R29+(R16*G_A!V$9) -> 0 | AQ29: =S29+(S16*G_A!W$9) -> 264.9237061 | AR29: =T29+(T16*G_A!X$9) -> 0 | AS29: =U29+(U16*G_A!Y$9) -> 61.78244593 | AT29: =V29+(V16*G_A!Z$9) -> 82.95976239
A30: Solar | C30: =SUMIF(Selection!$A$99:$A$165,$A30,Selection!D$99:D$165) -> 0 | D30: =SUMIF(Selection!$A$99:$A$165,$A30,Selection!E$99:E$165) -> 0 | E30: =SUMIF(Selection!$A$99:$A$165,$A30,Selection!F$99:F$165) -> 0 | F30: =SUMIF(Selection!$A$99:$A$165,$A30,Selection!G$99:G$165) -> 0 | G30: =SUMIF(Selection!$A$99:$A$165,$A30,Selection!H$99:H$165) -> 0 | H30: =SUMIF(Selection!$A$99:$A$165,$A30,Selection!I$99:I$165) -> 0 | I30: =SUMIF(Selection!$A$99:$A$165,$A30,Selection!J$99:J$165) -> 0 | J30: =SUMIF(Selection!$A$99:$A$165,$A30,Selection!K$99:K$165) -> 0 | K30: =SUMIF(Selection!$A$99:$A$165,$A30,Selection!L$99:L$165) -> 0 | L30: =SUMIF(Selection!$A$99:$A$165,$A30,Selection!M$99:M$165) -> 0 | M30: =SUMIF(Selection!$A$99:$A$165,$A30,Selection!N$99:N$165) -> 0 | N30: =SUMIF(Selection!$A$99:$A$165,$A30,Selection!O$99:O$165) -> 0 | O30: =SUMIF(Selection!$A$99:$A$165,$A30,Selection!P$99:P$165) -> 0 | P30: =SUMIF(Selection!$A$99:$A$165,$A30,Selection!Q$99:Q$165) -> 0 | Q30: =SUMIF(Selection!$A$99:$A$165,$A30,Selection!R$99:R$165) -> 0 | R30: =SUMIF(Selection!$A$99:$A$165,$A30,Selection!S$99:S$165) -> 0 | S30: =SUMIF(Selection!$A$99:$A$165,$A30,Selection!T$99:T$165) -> 0 | T30: =SUMIF(Selection!$A$99:$A$165,$A30,Selection!U$99:U$165) -> 0 | U30: =SUMIF(Selection!$A$99:$A$165,$A30,Selection!V$99:V$165) -> 0 | V30: =SUMIF(Selection!$A$99:$A$165,$A30,Selection!W$99:W$165) -> 0 | AA30: =C30+(C17*G_A!G$9) -> 0 | AB30: =D30+(D17*G_A!H$9) -> 0 | AC30: =E30+(E17*G_A!I$9) -> 0 | AD30: =F30+(F17*G_A!J$9) -> 0 | AE30: =G30+(G17*G_A!K$9) -> 0 | AF30: =H30+(H17*G_A!L$9) -> 0 | AG30: =I30+(I17*G_A!M$9) -> 0 | AH30: =J30+(J17*G_A!N$9) -> 0 | AI30: =K30+(K17*G_A!O$9) -> 0 | AJ30: =L30+(L17*G_A!P$9) -> 0 | AK30: =M30+(M17*G_A!Q$9) -> 0 | AL30: =N30+(N17*G_A!R$9) -> 0 | AM30: =O30+(O17*G_A!S$9) -> 0 | AN30: =P30+(P17*G_A!T$9) -> 0 | AO30: =Q30+(Q17*G_A!U$9) -> 0 | AP30: =R30+(R17*G_A!V$9) -> 0 | AQ30: =S30+(S17*G_A!W$9) -> 0 | AR30: =T30+(T17*G_A!X$9) -> 0 | AS30: =U30+(U17*G_A!Y$9) -> 0 | AT30: =V30+(V17*G_A!Z$9) -> 0
A31: Wind | C31: =SUMIF(Selection!$A$99:$A$165,$A31,Selection!D$99:D$165) -> 0 | D31: =SUMIF(Selection!$A$99:$A$165,$A31,Selection!E$99:E$165) -> 0 | E31: =SUMIF(Selection!$A$99:$A$165,$A31,Selection!F$99:F$165) -> 0 | F31: =SUMIF(Selection!$A$99:$A$165,$A31,Selection!G$99:G$165) -> 0 | G31: =SUMIF(Selection!$A$99:$A$165,$A31,Selection!H$99:H$165) -> 0 | H31: =SUMIF(Selection!$A$99:$A$165,$A31,Selection!I$99:I$165) -> 200 | I31: =SUMIF(Selection!$A$99:$A$165,$A31,Selection!J$99:J$165) -> 100 | J31: =SUMIF(Selection!$A$99:$A$165,$A31,Selection!K$99:K$165) -> 0 | K31: =SUMIF(Selection!$A$99:$A$165,$A31,Selection!L$99:L$165) -> 0 | L31: =SUMIF(Selection!$A$99:$A$165,$A31,Selection!M$99:M$165) -> 0 | M31: =SUMIF(Selection!$A$99:$A$165,$A31,Selection!N$99:N$165) -> 0 | N31: =SUMIF(Selection!$A$99:$A$165,$A31,Selection!O$99:O$165) -> 0 | O31: =SUMIF(Selection!$A$99:$A$165,$A31,Selection!P$99:P$165) -> 0 | P31: =SUMIF(Selection!$A$99:$A$165,$A31,Selection!Q$99:Q$165) -> 0 | Q31: =SUMIF(Selection!$A$99:$A$165,$A31,Selection!R$99:R$165) -> 0 | R31: =SUMIF(Selection!$A$99:$A$165,$A31,Selection!S$99:S$165) -> 0 | S31: =SUMIF(Selection!$A$99:$A$165,$A31,Selection!T$99:T$165) -> 0 | T31: =SUMIF(Selection!$A$99:$A$165,$A31,Selection!U$99:U$165) -> 0 | U31: =SUMIF(Selection!$A$99:$A$165,$A31,Selection!V$99:V$165) -> 0 | V31: =SUMIF(Selection!$A$99:$A$165,$A31,Selection!W$99:W$165) -> 0 | AA31: =C31+(C18*G_A!G$9) -> 0 | AB31: =D31+(D18*G_A!H$9) -> 0 | AC31: =E31+(E18*G_A!I$9) -> 0 | AD31: =F31+(F18*G_A!J$9) -> 65.83554294 | AE31: =G31+(G18*G_A!K$9) -> 0 | AF31: =H31+(H18*G_A!L$9) -> 200 | AG31: =I31+(I18*G_A!M$9) -> 100 | AH31: =J31+(J18*G_A!N$9) -> 0 | AI31: =K31+(K18*G_A!O$9) -> 0 | AJ31: =L31+(L18*G_A!P$9) -> 0 | AK31: =M31+(M18*G_A!Q$9) -> 0 | AL31: =N31+(N18*G_A!R$9) -> 0 | AM31: =O31+(O18*G_A!S$9) -> 0 | AN31: =P31+(P18*G_A!T$9) -> 0 | AO31: =Q31+(Q18*G_A!U$9) -> 0 | AP31: =R31+(R18*G_A!V$9) -> 0 | AQ31: =S31+(S18*G_A!W$9) -> 0 | AR31: =T31+(T18*G_A!X$9) -> 0 | AS31: =U31+(U18*G_A!Y$9) -> 0 | AT31: =V31+(V18*G_A!Z$9) -> 0
... 30 more rows

Sheet CBI
A2: CBI # | B2: CBI Name | C2: Item | D2: Unit | E2: 2016 | F2: 2017 | G2: 2018 | H2: 2019 | I2: 2020 | J2: 2021 | K2: 2022 | L2: 2023 | M2: 2024 | N2: 2025 | O2: 2026 | P2: 2027 | Q2: 2028 | R2: 2029 | S2: 2030 | T2: 2031 | U2: 2032 | V2: 2033 | W2: 2034 | X2: 2035 | Y2: 2036 | Z2: 2037 | AA2: 2038 | AB2: 2039 | AC2: 2040 | AD2: 2041 | AE2: 2042 | AF2: 2043 | AG2: 2044 | AH2: 2045
A3: 2a | B3: Energy Burden | C3: Number of Customers with Energy Burden | D3: # | O3: ='Energy Burden'!EW$4 -> 37798.4826 | P3: ='Energy Burden'!EX$4 -> 41195.36544 | Q3: ='Energy Burden'!EY$4 -> 38488.94459 | R3: ='Energy Burden'!EZ$4 -> 38964.30474 | S3: ='Energy Burden'!FA$4 -> 37153.09177 | T3: ='Energy Burden'!FB$4 -> 35117.52726 | U3: ='Energy Burden'!FC$4 -> 35557.60467 | V3: ='Energy Burden'!FD$4 -> 36003.19692 | W3: ='Energy Burden'!FE$4 -> 36442.51084 | X3: ='Energy Burden'!FF$4 -> 36899.19235 | Y3: ='Energy Burden'!FG$4 -> 36735.28041 | Z3: ='Energy Burden'!FH$4 -> 36033.50782 | AA3: ='Energy Burden'!FI$4 -> 36485.06389 | AB3: ='Energy Burden'!FJ$4 -> 36942.27866 | AC3: ='Energy Burden'!FK$4 -> 36905.10195 | AD3: ='Energy Burden'!FL$4 -> 37301.24843 | AE3: ='Energy Burden'!FM$4 -> 37835.85453 | AF3: ='Energy Burden'!FN$4 -> 38241.99189 | AG3: ='Energy Burden'!FO$4 -> 38721.22371 | AH3: ='Energy Burden'!FP$4 -> 59202.5044
A4: 2b | B4: Energy Burden | C4: Percent of Customer with Excess Energy Burden | D4: Percent | O4: ='Energy Burden'!EW$6 -> 0.1699485242 | P4: ='Energy Burden'!EX$6 -> 0.1829291107 | Q4: ='Energy Burden'!EY$6 -> 0.1687959012 | R4: ='Energy Burden'!EZ$6 -> 0.1687657279 | S4: ='Energy Burden'!FA$6 -> 0.1589292072 | T4: ='Energy Burden'!FB$6 -> 0.1483624909 | U4: ='Energy Burden'!FC$6 -> 0.1483624909 | V4: ='Energy Burden'!FD$6 -> 0.1483624909 | W4: ='Energy Burden'!FE$6 -> 0.1483142135 | X4: ='Energy Burden'!FF$6 -> 0.1483142135 | Y4: ='Energy Burden'!FG$6 -> 0.1458279273 | Z4: ='Energy Burden'!FH$6 -> 0.1412717475 | AA4: ='Energy Burden'!FI$6 -> 0.1412717475 | AB4: ='Energy Burden'!FJ$6 -> 0.1412717475 | AC4: ='Energy Burden'!FK$6 -> 0.1393828941 | AD4: ='Energy Burden'!FL$6 -> 0.1391354724 | AE4: ='Energy Burden'!FM$6 -> 0.1393828941 | AF4: ='Energy Burden'!FN$6 -> 0.1391354724 | AG4: ='Energy Burden'!FO$6 -> 0.1391354724 | AH4: ='Energy Burden'!FP$6 -> 0.2100972186
A5: 2c | B5: Energy Burden | C5: Average excess burden per household | D5: $ | O5: ='Energy Burden'!EW$5 -> 980.971183 | P5: ='Energy Burden'!EX$5 -> 960.128904 | Q5: ='Energy Burden'!EY$5 -> 1061.573639 | R5: ='Energy Burden'!EZ$5 -> 1098.694587 | S5: ='Energy Burden'!FA$5 -> 1145.574254 | T5: ='Energy Burden'!FB$5 -> 1259.364348 | U5: ='Energy Burden'!FC$5 -> 1308.636729 | V5: ='Energy Burden'!FD$5 -> 1340.154138 | W5: ='Energy Burden'!FE$5 -> 1346.821506 | X5: ='Energy Burden'!FF$5 -> 1339.707877 | Y5: ='Energy Burden'!FG$5 -> 1398.099598 | Z5: ='Energy Burden'!FH$5 -> 1442.100177 | AA5: ='Energy Burden'!FI$5 -> 1531.980843 | AB5: ='Energy Burden'!FJ$5 -> 1574.770748 | AC5: ='Energy Burden'!FK$5 -> 1637.997664 | AD5: ='Energy Burden'!FL$5 -> 1656.673607 | AE5: ='Energy Burden'!FM$5 -> 1768.437619 | AF5: ='Energy Burden'!FN$5 -> 1853.260645 | AG5: ='Energy Burden'!FO$5 -> 1851.269395 | AH5: ='Energy Burden'!FP$5 -> 1830.15139
B7: DER Gen | C7: Great Northern | D7: MWh | E7: 0 | F7: 0 | G7: 0 | H7: 0 | I7: 0 | J7: 100.569 | L7: =J7 -> 100.569 | M7: =L7*0.995 -> 100.066155 | N7: 99.56582423 | O7: 99.0679951 | P7: 98.57265513 | Q7: 98.07979185 | R7: 97.58939289 | S7: 97.10144593 | T7: 96.6159387 | U7: 96.13285901 | V7: 95.65219471 | W7: 95.17393374 | X7: 94.69806407 | Y7: 94.22457375 | Z7: 93.75345088 | AA7: 93.28468363 | AB7: 92.81826021 | AC7: 92.35416891 | AD7: 91.89239806 | AE7: 91.43293607 | AF7: 90.97577139 | AG7: 90.52089253 | AH7: 90.06828807
B8: DER Gen | C8: Boulder Park Solar | D8: MWh | E8: 196.17152 | F8: 521.87004 | G8: 539.32164 | H8: 556.20931 | I8: 540.31473 | J8: 535.65707 | L8: =AVERAGE(F8:J8) -> 538.674558 | M8: =L8*0.995 -> 535.9811852 | N8: 533.3012793 | O8: 530.6347729 | P8: 527.981599 | Q8: 525.341691 | R8: 522.7149826 | S8: 520.1014077 | T8: 517.5009006 | U8: 514.9133961 | V8: 512.3388291 | W8: 509.777135 | X8: 507.2282493 | Y8: 504.6921081 | Z8: 502.1686475 | AA8: 499.6578043 | AB8: 497.1595153 | AC8: 494.6737177 | AD8: 492.2003491 | AE8: 489.7393474 | AF8: 487.2906506 | AG8: 484.8541974 | AH8: 482.4299264
B9: DER Gen | C9: PURPA | D9: MWh | E9: 20683.74834 | F9: 18428.68819 | G9: 16644.39831 | H9: 16383.29287 | I9: 20149.58491 | J9: 14413.20254 | L9: =AVERAGE(E9:J9) -> 17783.81919 | M9: =L9 -> 17783.81919 | N9: 17783.81919 | O9: 17783.81919 | P9: 17783.81919 | Q9: 17783.81919 | R9: 17783.81919 | S9: 17783.81919 | T9: 17783.81919 | U9: 17783.81919 | V9: 17783.81919 | W9: 17783.81919 | X9: 17783.81919 | Y9: 17783.81919 | Z9: 17783.81919 | AA9: 17783.81919 | AB9: 17783.81919 | AC9: 17783.81919 | AD9: 17783.81919 | AE9: 17783.81919 | AF9: 17783.81919 | AG9: 17783.81919 | AH9: 17783.81919
B10: DER Gen | C10: Spokane County Digester | D10: MWh | E10: 991.76 | F10: 1190.48 | G10: 1271.44 | H10: 1239.81104 | I10: 1132.35992 | J10: 1123 | L10: =AVERAGE(E10:J10) -> 1158.141827 | M10: =L10 -> 1158.141827 | N10: 1158.141827 | O10: 1158.141827 | P10: 1158.141827 | Q10: 1158.141827 | R10: 1158.141827 | S10: 1158.141827 | T10: 1158.141827 | U10: 1158.141827 | V10: 1158.141827 | W10: 1158.141827 | X10: 1158.141827 | Y10: 1158.141827 | Z10: 1158.141827 | AA10: 1158.141827 | AB10: 1158.141827 | AC10: 1158.141827 | AD10: 1158.141827 | AE10: 1158.141827 | AF10: 1158.141827 | AG10: 1158.141827 | AH10: 1158.141827
B11: DER Gen | C11: Customer Net Meter | D11: MWh | E11: 0 | F11: 0 | G11: 0 | H11: 0 | I11: 0 | J11: 0 | O11: 9363.555656 | P11: 19773.32039 | Q11: 32578.30547 | R11: 46379.32464 | S11: 62400.58387 | T11: 70818.18567 | U11: 76856.13461 | V11: 78402.95688 | W11: 80564.37232 | X11: 81906.11353 | Y11: 83632.97903 | Z11: 83698.79202 | AA11: 85564.08828 | AB11: 85844.29721 | AC11: 86131.26254 | AD11: 87762.25508 | AE11: 88083.6807 | AF11: 88178.53288 | AG11: 91282.87371 | AH11: 91924.8734
B12: DER Gen | C12: Selected Resources | D12: MWh | E12: 0 | F12: 0 | G12: 0 | H12: 0 | I12: 0 | J12: 0 | O12: =Res_MWh!IK$104+Res_MWh!IK$106+Res_MWh!IK$110+Res_MWh!IK$111 -> 0 | P12: =Res_MWh!IL$104+Res_MWh!IL$106+Res_MWh!IL$110+Res_MWh!IL$111 -> 0 | Q12: =Res_MWh!IM$104+Res_MWh!IM$106+Res_MWh!IM$110+Res_MWh!IM$111 -> 0 | R12: =Res_MWh!IN$104+Res_MWh!IN$106+Res_MWh!IN$110+Res_MWh!IN$111 -> 0 | S12: =Res_MWh!IO$104+Res_MWh!IO$106+Res_MWh!IO$110+Res_MWh!IO$111 -> 0 | T12: =Res_MWh!IP$104+Res_MWh!IP$106+Res_MWh!IP$110+Res_MWh!IP$111 -> 0 | U12: =Res_MWh!IQ$104+Res_MWh!IQ$106+Res_MWh!IQ$110+Res_MWh!IQ$111 -> 0 | V12: =Res_MWh!IR$104+Res_MWh!IR$106+Res_MWh!IR$110+Res_MWh!IR$111 -> 0 | W12: =Res_MWh!IS$104+Res_MWh!IS$106+Res_MWh!IS$110+Res_MWh!IS$111 -> 0 | X12: =Res_MWh!IT$104+Res_MWh!IT$106+Res_MWh!IT$110+Res_MWh!IT$111 -> 0 | Y12: =Res_MWh!IU$104+Res_MWh!IU$106+Res_MWh!IU$110+Res_MWh!IU$111 -> 0 | Z12: =Res_MWh!IV$104+Res_MWh!IV$106+Res_MWh!IV$110+Res_MWh!IV$111 -> 0 | AA12: =Res_MWh!IW$104+Res_MWh!IW$106+Res_MWh!IW$110+Res_MWh!IW$111 -> 0 | AB12: =Res_MWh!IX$104+Res_MWh!IX$106+Res_MWh!IX$110+Res_MWh!IX$111 -> 0 | AC12: =Res_MWh!IY$104+Res_MWh!IY$106+Res_MWh!IY$110+Res_MWh!IY$111 -> 0 | AD12: =Res_MWh!IZ$104+Res_MWh!IZ$106+Res_MWh!IZ$110+Res_MWh!IZ$111 -> 0 | AE12: =Res_MWh!JA$104+Res_MWh!JA$106+Res_MWh!JA$110+Res_MWh!JA$111 -> 0 | AF12: =Res_MWh!JB$104+Res_MWh!JB$106+Res_MWh!JB$110+Res_MWh!JB$111 -> 0 | AG12: =Res_MWh!JC$104+Res_MWh!JC$106+Res_MWh!JC$110+Res_MWh!JC$111 -> 0 | AH12: =Res_MWh!JD$104+Res_MWh!JD$106+Res_MWh!JD$110+Res_MWh!JD$111 -> 0
A13: 5a | B13: DER Gen | C13: Total MWh of DER <5 MW | D13: MWh | E13: =SUM(E7:E12) -> 21871.67986 | F13: =SUM(F7:F12) -> 20141.03823 | G13: 18455.15995 | H13: 18179.31322 | I13: 21822.25956 | J13: 16172.42861 | L13: 19581.20458 | M13: 19578.00836 | N13: 19574.82812 | O13: =SUM(O7:O12) -> 28935.21944 | P13: 39341.83566 | Q13: 52143.68797 | R13: 65941.59004 | S13: 81959.74774 | T13: 90374.26353 | U13: 96409.14188 | V13: 97952.90893 | W13: 100111.2844 | X13: 101450.0009 | Y13: 103173.8567 | Z13: 103236.6751 | AA13: 105098.9918 | AB13: 105376.236 | AC13: 105660.2514 | AD13: 107288.3088 | AE13: 107606.814 | AF13: 107698.7603 | AG13: 110800.2098 | AH13: 111439.3326
B15: DER Storage | C15: Existing storage/EAG | O15: =1.328+1.1 -> 2.428 | P15: =1.328+1.1 -> 2.428 | Q15: 2.428 | R15: 2.428 | S15: 2.428 | T15: 2.428 | U15: 2.428 | V15: 2.428 | W15: 2.428 | X15: 2.428 | Y15: 2.428 | Z15: 2.428 | AA15: 2.428 | AB15: 2.428 | AC15: 2.428 | AD15: 2.428 | AE15: 2.428 | AF15: 2.428 | AG15: 2.428 | AH15: 2.428
B16: DER Storage | C16: Selected Resources | O16: =((Selection!D$179+Selection!D$181+Selection!D$186+Selection!D$194)*4)+(Selection!D$195*8) -> 0 | P16: =((Selection!E$179+Selection!E$181+Selection!E$186+Selection!E$194)*4)+(Selection!E$195*8) -> 0 | Q16: =((Selection!F$179+Selection!F$181+Selection!F$186+Selection!F$194)*4)+(Selection!F$195*8) -> 0 | R16: =((Selection!G$179+Selection!G$181+Selection!G$186+Selection!G$194)*4)+(Selection!G$195*8) -> 0 | S16: =((Selection!H$179+Selection!H$181+Selection!H$186+Selection!H$194)*4)+(Selection!H$195*8) -> 0 | T16: =((Selection!I$179+Selection!I$181+Selection!I$186+Selection!I$194)*4)+(Selection!I$195*8) -> 0 | U16: =((Selection!J$179+Selection!J$181+Selection!J$186+Selection!J$194)*4)+(Selection!J$195*8) -> 0 | V16: =((Selection!K$179+Selection!K$181+Selection!K$186+Selection!K$194)*4)+(Selection!K$195*8) -> 0 | W16: =((Selection!L$179+Selection!L$181+Selection!L$186+Selection!L$194)*4)+(Selection!L$195*8) -> 0 | X16: =((Selection!M$179+Selection!M$181+Selection!M$186+Selection!M$194)*4)+(Selection!M$195*8) -> 0 | Y16: =((Selection!N$179+Selection!N$181+Selection!N$186+Selection!N$194)*4)+(Selection!N$195*8) -> 0 | Z16: =((Selection!O$179+Selection!O$181+Selection!O$186+Selection!O$194)*4)+(Selection!O$195*8) -> 0 | AA16: =((Selection!P$179+Selection!P$181+Selection!P$186+Selection!P$194)*4)+(Selection!P$195*8) -> 0 | AB16: =((Selection!Q$179+Selection!Q$181+Selection!Q$186+Selection!Q$194)*4)+(Selection!Q$195*8) -> 0 | AC16: =((Selection!R$179+Selection!R$181+Selection!R$186+Selection!R$194)*4)+(Selection!R$195*8) -> 0 | AD16: =((Selection!S$179+Selection!S$181+Selection!S$186+Selection!S$194)*4)+(Selection!S$195*8) -> 0 | AE16: =((Selection!T$179+Selection!T$181+Selection!T$186+Selection!T$194)*4)+(Selection!T$195*8) -> 0 | AF16: =((Selection!U$179+Selection!U$181+Selection!U$186+Selection!U$194)*4)+(Selection!U$195*8) -> 0 | AG16: =((Selection!V$179+Selection!V$181+Selection!V$186+Selection!V$194)*4)+(Selection!V$195*8) -> 0 | AH16: =((Selection!W$179+Selection!W$181+Selection!W$186+Selection!W$194)*4)+(Selection!W$195*8) -> 0
A17: 5b | B17: DER Storage | C17: Total of MWh of DER energy storage < 5 MW | D17: MWh Capability | E17: =SUM(E15:E16) -> 0 | F17: =SUM(F15:F16) -> 0 | G17: 0 | H17: 0 | I17: 0 | J17: 0 | L17: 0 | M17: 0 | N17: 0 | O17: 2.428 | P17: 2.428 | Q17: 2.428 | R17: 2.428 | S17: 2.428 | T17: 2.428 | U17: 2.428 | V17: 2.428 | W17: 2.428 | X17: 2.428 | Y17: 2.428 | Z17: 2.428 | AA17: 2.428 | AB17: 2.428 | AC17: 2.428 | AD17: 2.428 | AE17: 2.428 | AF17: 2.428 | AG17: 2.428 | AH17: 2.428
C19: Low Income EE Values | X19: =X22/10*1000 -> 1205.926413 | AH19: =(AH22-X22)/10*1000 -> 1242.033423
C20: Low Income EE from target | D20: GWH | O20: 4.4479 | P20: 9.6978 | Q20: 16.3565 | R20: 24.426 | S20: 29.3183 | T20: 38.217 | U20: 48.0899 | V20: 58.1404 | W20: 68.2329 | X20: 77.3602 | Y20: 85.0595 | Z20: 90.9557 | AA20: 96.1131 | AB20: 99.5008 | AC20: 103.3714 | AD20: 106.2976 | AE20: 108.0327 | AF20: 110.5997 | AG20: 113.0327 | AH20: 113.3883
C21: Low Income EE from simulation | D21: GWH | O21: =EE_Selection!M19 -> 5.451410629 | P21: =EE_Selection!N19 -> 11.74316132 | Q21: =EE_Selection!O19 -> 19.45542157 | R21: =EE_Selection!P19 -> 28.56682862 | S21: =EE_Selection!Q19 -> 34.89362928 | T21: =EE_Selection!R19 -> 45.05651728 | U21: =EE_Selection!S19 -> 56.20837063 | V21: =EE_Selection!T19 -> 67.54124905 | W21: =EE_Selection!U19 -> 78.97873283 | X21: =EE_Selection!V19 -> 89.41946413 | Y21: =EE_Selection!W19 -> 98.45413351 | Z21: =EE_Selection!X19 -> 105.683976 | AA21: =EE_Selection!Y19 -> 112.1785157 | AB21: =EE_Selection!Z19 -> 116.8890805 | AC21: =EE_Selection!AA19 -> 122.2167003 | AD21: =EE_Selection!AB19 -> 126.4199506 | AE21: =EE_Selection!AC19 -> 129.3252833 | AF21: =EE_Selection!AD19 -> 133.2177121 | AG21: =EE_Selection!AE19 -> 136.7927415 | AH21: =EE_Selection!AF19 -> 137.8678984
C22: Incremental EE from Named Community Fund | D22: GWH | O22: =O21-O20 -> 1.003510629 | P22: =P21-P20 -> 2.045361323 | Q22: 3.09892157 | R22: 4.140828616 | S22: =S21-S20 -> 5.575329277 | T22: 6.839517283 | U22: 8.118470631 | V22: 9.40084905 | W22: 10.74583283 | X22: =X21-X20 -> 12.05926413 | Y22: 13.39463351 | Z22: 14.72827603 | AA22: 16.06541566 | AB22: 17.38828052 | AC22: 18.84530028 | AD22: 20.1223506 | AE22: 21.29258335 | AF22: 22.61801208 | AG22: 23.76004151 | AH22: 24.47959836
X23: =EE_Selection!V4/(EE_Selection!V4-X22) -> 1.033845539 | AH23: =EE_Selection!AF4/(EE_Selection!AF4-AH22) -> 1.039715948
C24: Low Income EE Investment | D24: Millions $ | O24: =EE_Selection!BX12 -> 12.75658191 | P24: =EE_Selection!BY12 -> 14.74844092 | Q24: =EE_Selection!BZ12 -> 17.59195246 | R24: =EE_Selection!CA12 -> 20.03583926 | S24: =EE_Selection!CB12 -> 19.65395626 | T24: =EE_Selection!CC12 -> 24.54199192 | U24: =EE_Selection!CD12 -> 26.09247121 | V24: =EE_Selection!CE12 -> 26.32656636 | W24: =EE_Selection!CF12 -> 24.69082195 | X24: =EE_Selection!CG12 -> 21.43598951 | Y24: =EE_Selection!CH12 -> 18.11947464 | Z24: =EE_Selection!CI12 -> 14.24275823 | AA24: =EE_Selection!CJ12 -> 10.81539009 | AB24: =EE_Selection!CK12 -> 8.783831635 | AC24: =EE_Selection!CL12 -> 7.380044262 | AD24: =EE_Selection!CM12 -> 6.432401431 | AE24: =EE_Selection!CN12 -> 6.607154641 | AF24: =EE_Selection!CO12 -> 6.007311384 | AG24: =EE_Selection!CP12 -> 5.347607344 | AH24: =EE_Selection!CQ12 -> 5.666065831
C25: Low Income EE Investment (Cost Effectiveness Test) | D25: Millions $ | O25: 10.75647746 | P25: 12.67080092 | Q25: 15.41702869 | R25: 17.83723118 | S25: 17.04416437 | T25: 21.8544266 | U25: 23.34570655 | V25: 23.4052289 | W25: 21.57872984 | X25: 18.13373346 | Y25: 14.55712007 | Z25: 10.40526762 | AA25: 6.978380493 | AB25: 4.690429613 | AC25: 3.149775958 | AD25: 2.491291904 | AE25: 2.491561034 | AF25: 1.902368547 | AG25: 1.812228902 | AH25: 2.158963442
C26: Incremental EE Investment | D26: Millions $ | O26: =O24-O25 -> 2.000104445 | P26: =P24-P25 -> 2.077640003 | Q26: =Q24-Q25 -> 2.174923768 | R26: =R24-R25 -> 2.198608085 | S26: 2.609791893 | T26: 2.687565316 | U26: 2.746764655 | V26: 2.921337464 | W26: 3.11209211 | X26: 3.302256051 | Y26: 3.562354563 | Z26: 3.837490611 | AA26: 3.837009601 | AB26: 4.093402022 | AC26: 4.230268304 | AD26: 3.941109527 | AE26: 4.115593607 | AF26: 4.104942838 | AG26: 3.535378442 | AH26: 3.507102389
A27: 1 | B27: on/off | C27: NCF Investment | D27: Millions $ | O27: 2 | P27: =O27*1.03 -> 2.06 | Q27: 2.1218 | R27: 2.185454 | S27: 2.25101762 | T27: =S27*1.03 -> 2.318548149 | U27: 2.388104593 | V27: 2.459747731 | W27: 2.533540163 | X27: 2.609546368 | Y27: 2.687832759 | Z27: 2.768467741 | AA27: 2.851521774 | AB27: 2.937067427 | AC27: 3.02517945 | AD27: 3.115934833 | AE27: 3.209412878 | AF27: 3.305695265 | AG27: 3.404866122 | AH27: 3.507012106
O28: =[1]!WB(O24,">=",(O25+O27)*$A$27) -> >= | P28: =[1]!WB(P24,">=",(P25+P27)*$A$27) -> >= | Q28: =[1]!WB(Q24,">=",(Q25+Q27)*$A$27) -> >= | R28: >= | S28: =[1]!WB(S24,">=",(S25+S27)*$A$27) -> >= | T28: =[1]!WB(T24,">=",(T25+T27)*$A$27) -> >= | U28: =[1]!WB(U24,">=",(U25+U27)*$A$27) -> >= | V28: =[1]!WB(V24,">=",(V25+V27)*$A$27) -> >= | W28: =[1]!WB(W24,">=",(W25+W27)*$A$27) -> >= | X28: =[1]!WB(X24,">=",(X25+X27)*$A$27) -> >= | Y28: =[1]!WB(Y24,">=",(Y25+Y27)*$A$27) -> >= | Z28: =[1]!WB(Z24,">=",(Z25+Z27)*$A$27) -> >= | AA28: =[1]!WB(AA24,">=",(AA25+AA27)*$A$27) -> >= | AB28: =[1]!WB(AB24,">=",(AB25+AB27)*$A$27) -> >= | AC28: =[1]!WB(AC24,">=",(AC25+AC27)*$A$27) -> >= | AD28: =[1]!WB(AD24,">=",(AD25+AD27)*$A$27) -> >= | AE28: =[1]!WB(AE24,">=",(AE25+AE27)*$A$27) -> >= | AF28: =[1]!WB(AF24,">=",(AF25+AF27)*$A$27) -> >= | AG28: =[1]!WB(AG24,">=",(AG25+AG27)*$A$27) -> >= | AH28: =[1]!WB(AH24,">=",(AH25+AH27)*$A$27) -> >=
C31: Low Income (EE NEI) | D31: Millions $ | O31: =EE_Selection!M$3126 -> 1.506355233 | P31: =EE_Selection!N$3126 -> 3.316792326 | Q31: =EE_Selection!O$3126 -> 5.49418131 | R31: =EE_Selection!P$3126 -> 7.994795783 | S31: =EE_Selection!Q$3126 -> 10.85612314 | T31: =EE_Selection!R$3126 -> 14.07852608 | U31: =EE_Selection!S$3126 -> 17.63168882 | V31: =EE_Selection!T$3126 -> 21.18605733 | W31: =EE_Selection!U$3126 -> 24.70082465 | X31: =EE_Selection!V$3126 -> 27.75211608 | Y31: =EE_Selection!W$3126 -> 30.16830184 | Z31: =EE_Selection!X$3126 -> 31.78656417 | AA31: =EE_Selection!Y$3126 -> 33.09859663 | AB31: =EE_Selection!Z$3126 -> 33.72246852 | AC31: =EE_Selection!AA$3126 -> 34.53365029 | AD31: =EE_Selection!AB$3126 -> 35.05372345 | AE31: =EE_Selection!AC$3126 -> 35.1047794 | AF31: =EE_Selection!AD$3126 -> 35.61785135 | AG31: =EE_Selection!AE$3126 -> 36.18131573 | AH31: =EE_Selection!AF$3126 -> 35.80436567
... 31 more rows

Sheet Position Summary
A2: PRIOR TO RESOURCE ACQUISITION (Includes transfers)
B3: Washington | O3: Idaho | AB3: System | AO3: Check
A4: Capacity | B4: 1 | C4: 2 | D4: 3 | E4: 4 | F4: 5 | G4: 6 | H4: 7 | I4: 8 | J4: 9 | K4: 10 | L4: 11 | M4: 12 | O4: 1 | P4: 2 | Q4: 3 | R4: 4 | S4: 5 | T4: 6 | U4: 7 | V4: 8 | W4: 9 | X4: 10 | Y4: 11 | Z4: 12 | AB4: 1 | AC4: 2 | AD4: 3 | AE4: 4 | AF4: 5 | AG4: 6 | AH4: 7 | AI4: 8 | AJ4: 9 | AK4: 10 | AL4: 11 | AM4: 12 | AO4: 1 | AP4: 2 | AQ4: 3 | AR4: 4 | AS4: 5 | AT4: 6 | AU4: 7 | AV4: 8 | AW4: 9 | AX4: 10 | AY4: 11 | AZ4: 12
A5: 2026 | B5: =HLOOKUP($A5&"_"&IF(B$4<10,"0"&B$4,B$4),WA_LR!$C$3:$IH$51,47,FALSE) -> 33.35823367 | C5: =HLOOKUP($A5&"_"&IF(C$4<10,"0"&C$4,C$4),WA_LR!$C$3:$IH$51,47,FALSE) -> 126.5405069 | D5: =HLOOKUP($A5&"_"&IF(D$4<10,"0"&D$4,D$4),WA_LR!$C$3:$IH$51,47,FALSE) -> 247.3535014 | E5: =HLOOKUP($A5&"_"&IF(E$4<10,"0"&E$4,E$4),WA_LR!$C$3:$IH$51,47,FALSE) -> 305.663162 | F5: =HLOOKUP($A5&"_"&IF(F$4<10,"0"&F$4,F$4),WA_LR!$C$3:$IH$51,47,FALSE) -> 226.1287145 | G5: =HLOOKUP($A5&"_"&IF(G$4<10,"0"&G$4,G$4),WA_LR!$C$3:$IH$51,47,FALSE) -> 148.2780438 | H5: =HLOOKUP($A5&"_"&IF(H$4<10,"0"&H$4,H$4),WA_LR!$C$3:$IH$51,47,FALSE) -> 61.34768758 | I5: =HLOOKUP($A5&"_"&IF(I$4<10,"0"&I$4,I$4),WA_LR!$C$3:$IH$51,47,FALSE) -> 15.36340862 | J5: =HLOOKUP($A5&"_"&IF(J$4<10,"0"&J$4,J$4),WA_LR!$C$3:$IH$51,47,FALSE) -> 206.3658857 | K5: =HLOOKUP($A5&"_"&IF(K$4<10,"0"&K$4,K$4),WA_LR!$C$3:$IH$51,47,FALSE) -> 206.002718 | L5: =HLOOKUP($A5&"_"&IF(L$4<10,"0"&L$4,L$4),WA_LR!$C$3:$IH$51,47,FALSE) -> 155.9200051 | M5: =HLOOKUP($A5&"_"&IF(M$4<10,"0"&M$4,M$4),WA_LR!$C$3:$IH$51,47,FALSE) -> 65.55345166 | O5: =HLOOKUP($A5&"_"&IF(O$4<10,"0"&O$4,O$4),ID_LR!$C$3:$IH$51,47,FALSE) -> -73.29471428 | P5: =HLOOKUP($A5&"_"&IF(P$4<10,"0"&P$4,P$4),ID_LR!$C$3:$IH$51,47,FALSE) -> -18.48872679 | Q5: =HLOOKUP($A5&"_"&IF(Q$4<10,"0"&Q$4,Q$4),ID_LR!$C$3:$IH$51,47,FALSE) -> 40.35217615 | R5: =HLOOKUP($A5&"_"&IF(R$4<10,"0"&R$4,R$4),ID_LR!$C$3:$IH$51,47,FALSE) -> 63.5532357 | S5: =HLOOKUP($A5&"_"&IF(S$4<10,"0"&S$4,S$4),ID_LR!$C$3:$IH$51,47,FALSE) -> 16.75572057 | T5: =HLOOKUP($A5&"_"&IF(T$4<10,"0"&T$4,T$4),ID_LR!$C$3:$IH$51,47,FALSE) -> -12.21658106 | U5: =HLOOKUP($A5&"_"&IF(U$4<10,"0"&U$4,U$4),ID_LR!$C$3:$IH$51,47,FALSE) -> -52.41469654 | V5: =HLOOKUP($A5&"_"&IF(V$4<10,"0"&V$4,V$4),ID_LR!$C$3:$IH$51,47,FALSE) -> -37.72399231 | W5: =HLOOKUP($A5&"_"&IF(W$4<10,"0"&W$4,W$4),ID_LR!$C$3:$IH$51,47,FALSE) -> 64.77011511 | X5: =HLOOKUP($A5&"_"&IF(X$4<10,"0"&X$4,X$4),ID_LR!$C$3:$IH$51,47,FALSE) -> 40.97569288 | Y5: =HLOOKUP($A5&"_"&IF(Y$4<10,"0"&Y$4,Y$4),ID_LR!$C$3:$IH$51,47,FALSE) -> -3.049094624 | Z5: =HLOOKUP($A5&"_"&IF(Z$4<10,"0"&Z$4,Z$4),ID_LR!$C$3:$IH$51,47,FALSE) -> -61.63820573 | AB5: =HLOOKUP($A5&"_"&IF(AB$4<10,"0"&AB$4,AB$4),System_LR!$C$3:$IH$51,47,FALSE) -> -39.9364806 | AC5: =HLOOKUP($A5&"_"&IF(AC$4<10,"0"&AC$4,AC$4),System_LR!$C$3:$IH$51,47,FALSE) -> 108.0517801 | AD5: =HLOOKUP($A5&"_"&IF(AD$4<10,"0"&AD$4,AD$4),System_LR!$C$3:$IH$51,47,FALSE) -> 287.7056776 | AE5: =HLOOKUP($A5&"_"&IF(AE$4<10,"0"&AE$4,AE$4),System_LR!$C$3:$IH$51,47,FALSE) -> 369.2163977 | AF5: =HLOOKUP($A5&"_"&IF(AF$4<10,"0"&AF$4,AF$4),System_LR!$C$3:$IH$51,47,FALSE) -> 242.884435 | AG5: =HLOOKUP($A5&"_"&IF(AG$4<10,"0"&AG$4,AG$4),System_LR!$C$3:$IH$51,47,FALSE) -> 136.0614628 | AH5: =HLOOKUP($A5&"_"&IF(AH$4<10,"0"&AH$4,AH$4),System_LR!$C$3:$IH$51,47,FALSE) -> 8.932991036 | AI5: =HLOOKUP($A5&"_"&IF(AI$4<10,"0"&AI$4,AI$4),System_LR!$C$3:$IH$51,47,FALSE) -> -22.36058369 | AJ5: =HLOOKUP($A5&"_"&IF(AJ$4<10,"0"&AJ$4,AJ$4),System_LR!$C$3:$IH$51,47,FALSE) -> 271.1360008 | AK5: =HLOOKUP($A5&"_"&IF(AK$4<10,"0"&AK$4,AK$4),System_LR!$C$3:$IH$51,47,FALSE) -> 246.9784109 | AL5: =HLOOKUP($A5&"_"&IF(AL$4<10,"0"&AL$4,AL$4),System_LR!$C$3:$IH$51,47,FALSE) -> 152.8709105 | AM5: =HLOOKUP($A5&"_"&IF(AM$4<10,"0"&AM$4,AM$4),System_LR!$C$3:$IH$51,47,FALSE) -> 3.915245931 | AO5: =B5+O5-AB5 -> -6.821210263e-13 | AP5: =C5+P5-AC5 -> -1.136868377e-13 | AQ5: =D5+Q5-AD5 -> 0 | AR5: =E5+R5-AE5 -> 5.684341886e-13 | AS5: =F5+S5-AF5 -> -7.958078641e-13 | AT5: =G5+T5-AG5 -> -3.410605132e-13 | AU5: =H5+U5-AH5 -> -1.136868377e-13 | AV5: =I5+V5-AI5 -> -4.547473509e-13 | AW5: =J5+W5-AJ5 -> -4.547473509e-13 | AX5: =K5+X5-AK5 -> 0 | AY5: =L5+Y5-AL5 -> -4.547473509e-13 | AZ5: =M5+Z5-AM5 -> -5.684341886e-13
A6: 2027 | B6: =HLOOKUP($A6&"_"&IF(B$4<10,"0"&B$4,B$4),WA_LR!$C$3:$IH$51,47,FALSE) -> 26.27272725 | C6: =HLOOKUP($A6&"_"&IF(C$4<10,"0"&C$4,C$4),WA_LR!$C$3:$IH$51,47,FALSE) -> 120.9769142 | D6: =HLOOKUP($A6&"_"&IF(D$4<10,"0"&D$4,D$4),WA_LR!$C$3:$IH$51,47,FALSE) -> 247.6830782 | E6: =HLOOKUP($A6&"_"&IF(E$4<10,"0"&E$4,E$4),WA_LR!$C$3:$IH$51,47,FALSE) -> 315.9954856 | F6: =HLOOKUP($A6&"_"&IF(F$4<10,"0"&F$4,F$4),WA_LR!$C$3:$IH$51,47,FALSE) -> 238.1511013 | G6: =HLOOKUP($A6&"_"&IF(G$4<10,"0"&G$4,G$4),WA_LR!$C$3:$IH$51,47,FALSE) -> 158.4671676 | H6: =HLOOKUP($A6&"_"&IF(H$4<10,"0"&H$4,H$4),WA_LR!$C$3:$IH$51,47,FALSE) -> 67.60243948 | I6: =HLOOKUP($A6&"_"&IF(I$4<10,"0"&I$4,I$4),WA_LR!$C$3:$IH$51,47,FALSE) -> 20.96006932 | J6: =HLOOKUP($A6&"_"&IF(J$4<10,"0"&J$4,J$4),WA_LR!$C$3:$IH$51,47,FALSE) -> 213.0848217 | K6: =HLOOKUP($A6&"_"&IF(K$4<10,"0"&K$4,K$4),WA_LR!$C$3:$IH$51,47,FALSE) -> 208.7257408 | L6: =HLOOKUP($A6&"_"&IF(L$4<10,"0"&L$4,L$4),WA_LR!$C$3:$IH$51,47,FALSE) -> 153.6180641 | M6: =HLOOKUP($A6&"_"&IF(M$4<10,"0"&M$4,M$4),WA_LR!$C$3:$IH$51,47,FALSE) -> 61.73793609 | O6: =HLOOKUP($A6&"_"&IF(O$4<10,"0"&O$4,O$4),ID_LR!$C$3:$IH$51,47,FALSE) -> -29.27122797 | P6: =HLOOKUP($A6&"_"&IF(P$4<10,"0"&P$4,P$4),ID_LR!$C$3:$IH$51,47,FALSE) -> 24.83587877 | Q6: =HLOOKUP($A6&"_"&IF(Q$4<10,"0"&Q$4,Q$4),ID_LR!$C$3:$IH$51,47,FALSE) -> 84.82850102 | R6: =HLOOKUP($A6&"_"&IF(R$4<10,"0"&R$4,R$4),ID_LR!$C$3:$IH$51,47,FALSE) -> 112.710321 | S6: =HLOOKUP($A6&"_"&IF(S$4<10,"0"&S$4,S$4),ID_LR!$C$3:$IH$51,47,FALSE) -> 68.10992771 | T6: =HLOOKUP($A6&"_"&IF(T$4<10,"0"&T$4,T$4),ID_LR!$C$3:$IH$51,47,FALSE) -> 39.19565871 | U6: =HLOOKUP($A6&"_"&IF(U$4<10,"0"&U$4,U$4),ID_LR!$C$3:$IH$51,47,FALSE) -> -2.50419174 | V6: =HLOOKUP($A6&"_"&IF(V$4<10,"0"&V$4,V$4),ID_LR!$C$3:$IH$51,47,FALSE) -> 11.94802911 | W6: =HLOOKUP($A6&"_"&IF(W$4<10,"0"&W$4,W$4),ID_LR!$C$3:$IH$51,47,FALSE) -> 113.6312235 | X6: =HLOOKUP($A6&"_"&IF(X$4<10,"0"&X$4,X$4),ID_LR!$C$3:$IH$51,47,FALSE) -> 87.65422157 | Y6: =HLOOKUP($A6&"_"&IF(Y$4<10,"0"&Y$4,Y$4),ID_LR!$C$3:$IH$51,47,FALSE) -> 40.86231978 | Z6: =HLOOKUP($A6&"_"&IF(Z$4<10,"0"&Z$4,Z$4),ID_LR!$C$3:$IH$51,47,FALSE) -> -17.83323724 | AB6: =HLOOKUP($A6&"_"&IF(AB$4<10,"0"&AB$4,AB$4),System_LR!$C$3:$IH$51,47,FALSE) -> -2.998500725 | AC6: =HLOOKUP($A6&"_"&IF(AC$4<10,"0"&AC$4,AC$4),System_LR!$C$3:$IH$51,47,FALSE) -> 145.812793 | AD6: =HLOOKUP($A6&"_"&IF(AD$4<10,"0"&AD$4,AD$4),System_LR!$C$3:$IH$51,47,FALSE) -> 332.5115793 | AE6: =HLOOKUP($A6&"_"&IF(AE$4<10,"0"&AE$4,AE$4),System_LR!$C$3:$IH$51,47,FALSE) -> 428.7058066 | AF6: =HLOOKUP($A6&"_"&IF(AF$4<10,"0"&AF$4,AF$4),System_LR!$C$3:$IH$51,47,FALSE) -> 306.261029 | AG6: =HLOOKUP($A6&"_"&IF(AG$4<10,"0"&AG$4,AG$4),System_LR!$C$3:$IH$51,47,FALSE) -> 197.6628263 | AH6: =HLOOKUP($A6&"_"&IF(AH$4<10,"0"&AH$4,AH$4),System_LR!$C$3:$IH$51,47,FALSE) -> 65.09824774 | AI6: =HLOOKUP($A6&"_"&IF(AI$4<10,"0"&AI$4,AI$4),System_LR!$C$3:$IH$51,47,FALSE) -> 32.90809842 | AJ6: =HLOOKUP($A6&"_"&IF(AJ$4<10,"0"&AJ$4,AJ$4),System_LR!$C$3:$IH$51,47,FALSE) -> 326.7160452 | AK6: =HLOOKUP($A6&"_"&IF(AK$4<10,"0"&AK$4,AK$4),System_LR!$C$3:$IH$51,47,FALSE) -> 296.3799623 | AL6: =HLOOKUP($A6&"_"&IF(AL$4<10,"0"&AL$4,AL$4),System_LR!$C$3:$IH$51,47,FALSE) -> 194.4803838 | AM6: =HLOOKUP($A6&"_"&IF(AM$4<10,"0"&AM$4,AM$4),System_LR!$C$3:$IH$51,47,FALSE) -> 43.90469885 | AO6: =B6+O6-AB6 -> -2.273736754e-13 | AP6: -4.547473509e-13 | AQ6: 5.684341886e-13 | AR6: 0 | AS6: -1.023181539e-12 | AT6: -7.958078641e-13 | AU6: -6.821210263e-13 | AV6: -1.023181539e-12 | AW6: 0 | AX6: 0 | AY6: -4.547473509e-13 | AZ6: 0
A7: 2028 | B7: =HLOOKUP($A7&"_"&IF(B$4<10,"0"&B$4,B$4),WA_LR!$C$3:$IH$51,47,FALSE) -> 27.03628496 | C7: =HLOOKUP($A7&"_"&IF(C$4<10,"0"&C$4,C$4),WA_LR!$C$3:$IH$51,47,FALSE) -> 117.6960872 | D7: =HLOOKUP($A7&"_"&IF(D$4<10,"0"&D$4,D$4),WA_LR!$C$3:$IH$51,47,FALSE) -> 243.1054495 | E7: =HLOOKUP($A7&"_"&IF(E$4<10,"0"&E$4,E$4),WA_LR!$C$3:$IH$51,47,FALSE) -> 314.3206015 | F7: =HLOOKUP($A7&"_"&IF(F$4<10,"0"&F$4,F$4),WA_LR!$C$3:$IH$51,47,FALSE) -> 237.4993222 | G7: =HLOOKUP($A7&"_"&IF(G$4<10,"0"&G$4,G$4),WA_LR!$C$3:$IH$51,47,FALSE) -> 154.4213059 | H7: =HLOOKUP($A7&"_"&IF(H$4<10,"0"&H$4,H$4),WA_LR!$C$3:$IH$51,47,FALSE) -> 54.75340302 | I7: =HLOOKUP($A7&"_"&IF(I$4<10,"0"&I$4,I$4),WA_LR!$C$3:$IH$51,47,FALSE) -> 16.6722781 | J7: =HLOOKUP($A7&"_"&IF(J$4<10,"0"&J$4,J$4),WA_LR!$C$3:$IH$51,47,FALSE) -> 206.1477381 | K7: =HLOOKUP($A7&"_"&IF(K$4<10,"0"&K$4,K$4),WA_LR!$C$3:$IH$51,47,FALSE) -> 206.5956079 | L7: =HLOOKUP($A7&"_"&IF(L$4<10,"0"&L$4,L$4),WA_LR!$C$3:$IH$51,47,FALSE) -> 151.408674 | M7: =HLOOKUP($A7&"_"&IF(M$4<10,"0"&M$4,M$4),WA_LR!$C$3:$IH$51,47,FALSE) -> 58.60231278 | O7: =HLOOKUP($A7&"_"&IF(O$4<10,"0"&O$4,O$4),ID_LR!$C$3:$IH$51,47,FALSE) -> -29.25121722 | P7: =HLOOKUP($A7&"_"&IF(P$4<10,"0"&P$4,P$4),ID_LR!$C$3:$IH$51,47,FALSE) -> 22.22624609 | Q7: =HLOOKUP($A7&"_"&IF(Q$4<10,"0"&Q$4,Q$4),ID_LR!$C$3:$IH$51,47,FALSE) -> 80.88763482 | R7: =HLOOKUP($A7&"_"&IF(R$4<10,"0"&R$4,R$4),ID_LR!$C$3:$IH$51,47,FALSE) -> 109.5026532 | S7: =HLOOKUP($A7&"_"&IF(S$4<10,"0"&S$4,S$4),ID_LR!$C$3:$IH$51,47,FALSE) -> 67.24424191 | T7: =HLOOKUP($A7&"_"&IF(T$4<10,"0"&T$4,T$4),ID_LR!$C$3:$IH$51,47,FALSE) -> 37.58114232 | U7: =HLOOKUP($A7&"_"&IF(U$4<10,"0"&U$4,U$4),ID_LR!$C$3:$IH$51,47,FALSE) -> -7.335885848 | V7: =HLOOKUP($A7&"_"&IF(V$4<10,"0"&V$4,V$4),ID_LR!$C$3:$IH$51,47,FALSE) -> 10.19029149 | W7: =HLOOKUP($A7&"_"&IF(W$4<10,"0"&W$4,W$4),ID_LR!$C$3:$IH$51,47,FALSE) -> 109.0022223 | X7: =HLOOKUP($A7&"_"&IF(X$4<10,"0"&X$4,X$4),ID_LR!$C$3:$IH$51,47,FALSE) -> 85.04362187 | Y7: =HLOOKUP($A7&"_"&IF(Y$4<10,"0"&Y$4,Y$4),ID_LR!$C$3:$IH$51,47,FALSE) -> 37.65626731 | Z7: =HLOOKUP($A7&"_"&IF(Z$4<10,"0"&Z$4,Z$4),ID_LR!$C$3:$IH$51,47,FALSE) -> -21.28385357 | AB7: =HLOOKUP($A7&"_"&IF(AB$4<10,"0"&AB$4,AB$4),System_LR!$C$3:$IH$51,47,FALSE) -> -2.21493226 | AC7: =HLOOKUP($A7&"_"&IF(AC$4<10,"0"&AC$4,AC$4),System_LR!$C$3:$IH$51,47,FALSE) -> 139.9223332 | AD7: =HLOOKUP($A7&"_"&IF(AD$4<10,"0"&AD$4,AD$4),System_LR!$C$3:$IH$51,47,FALSE) -> 323.9930843 | AE7: =HLOOKUP($A7&"_"&IF(AE$4<10,"0"&AE$4,AE$4),System_LR!$C$3:$IH$51,47,FALSE) -> 423.8232547 | AF7: =HLOOKUP($A7&"_"&IF(AF$4<10,"0"&AF$4,AF$4),System_LR!$C$3:$IH$51,47,FALSE) -> 304.7435641 | AG7: =HLOOKUP($A7&"_"&IF(AG$4<10,"0"&AG$4,AG$4),System_LR!$C$3:$IH$51,47,FALSE) -> 192.0024482 | AH7: =HLOOKUP($A7&"_"&IF(AH$4<10,"0"&AH$4,AH$4),System_LR!$C$3:$IH$51,47,FALSE) -> 47.41751717 | AI7: =HLOOKUP($A7&"_"&IF(AI$4<10,"0"&AI$4,AI$4),System_LR!$C$3:$IH$51,47,FALSE) -> 26.8625696 | AJ7: =HLOOKUP($A7&"_"&IF(AJ$4<10,"0"&AJ$4,AJ$4),System_LR!$C$3:$IH$51,47,FALSE) -> 315.1499604 | AK7: =HLOOKUP($A7&"_"&IF(AK$4<10,"0"&AK$4,AK$4),System_LR!$C$3:$IH$51,47,FALSE) -> 291.6392297 | AL7: =HLOOKUP($A7&"_"&IF(AL$4<10,"0"&AL$4,AL$4),System_LR!$C$3:$IH$51,47,FALSE) -> 189.0649413 | AM7: =HLOOKUP($A7&"_"&IF(AM$4<10,"0"&AM$4,AM$4),System_LR!$C$3:$IH$51,47,FALSE) -> 37.31845921 | AO7: -3.410605132e-13 | AP7: 0 | AQ7: 4.547473509e-13 | AR7: =E7+R7-AE7 -> 0 | AS7: 0 | AT7: 0 | AU7: 1.136868377e-13 | AV7: -1.136868377e-13 | AW7: 0 | AX7: 0 | AY7: 0 | AZ7: -1.136868377e-13
A8: 2029 | B8: =HLOOKUP($A8&"_"&IF(B$4<10,"0"&B$4,B$4),WA_LR!$C$3:$IH$51,47,FALSE) -> 42.78385084 | C8: =HLOOKUP($A8&"_"&IF(C$4<10,"0"&C$4,C$4),WA_LR!$C$3:$IH$51,47,FALSE) -> 140.7577869 | D8: =HLOOKUP($A8&"_"&IF(D$4<10,"0"&D$4,D$4),WA_LR!$C$3:$IH$51,47,FALSE) -> 260.5454426 | E8: =HLOOKUP($A8&"_"&IF(E$4<10,"0"&E$4,E$4),WA_LR!$C$3:$IH$51,47,FALSE) -> 327.147357 | F8: =HLOOKUP($A8&"_"&IF(F$4<10,"0"&F$4,F$4),WA_LR!$C$3:$IH$51,47,FALSE) -> 248.8160844 | G8: =HLOOKUP($A8&"_"&IF(G$4<10,"0"&G$4,G$4),WA_LR!$C$3:$IH$51,47,FALSE) -> 164.8092561 | H8: =HLOOKUP($A8&"_"&IF(H$4<10,"0"&H$4,H$4),WA_LR!$C$3:$IH$51,47,FALSE) -> 77.14326222 | I8: =HLOOKUP($A8&"_"&IF(I$4<10,"0"&I$4,I$4),WA_LR!$C$3:$IH$51,47,FALSE) -> 39.82976144 | J8: =HLOOKUP($A8&"_"&IF(J$4<10,"0"&J$4,J$4),WA_LR!$C$3:$IH$51,47,FALSE) -> 229.7330169 | K8: =HLOOKUP($A8&"_"&IF(K$4<10,"0"&K$4,K$4),WA_LR!$C$3:$IH$51,47,FALSE) -> 222.3070162 | L8: =HLOOKUP($A8&"_"&IF(L$4<10,"0"&L$4,L$4),WA_LR!$C$3:$IH$51,47,FALSE) -> 168.3509284 | M8: =HLOOKUP($A8&"_"&IF(M$4<10,"0"&M$4,M$4),WA_LR!$C$3:$IH$51,47,FALSE) -> 82.05454162 | O8: =HLOOKUP($A8&"_"&IF(O$4<10,"0"&O$4,O$4),ID_LR!$C$3:$IH$51,47,FALSE) -> -41.0721133 | P8: =HLOOKUP($A8&"_"&IF(P$4<10,"0"&P$4,P$4),ID_LR!$C$3:$IH$51,47,FALSE) -> 15.83245188 | Q8: =HLOOKUP($A8&"_"&IF(Q$4<10,"0"&Q$4,Q$4),ID_LR!$C$3:$IH$51,47,FALSE) -> 72.9485531 | R8: =HLOOKUP($A8&"_"&IF(R$4<10,"0"&R$4,R$4),ID_LR!$C$3:$IH$51,47,FALSE) -> 100.8850975 | S8: =HLOOKUP($A8&"_"&IF(S$4<10,"0"&S$4,S$4),ID_LR!$C$3:$IH$51,47,FALSE) -> 59.94660129 | T8: =HLOOKUP($A8&"_"&IF(T$4<10,"0"&T$4,T$4),ID_LR!$C$3:$IH$51,47,FALSE) -> 26.50312268 | U8: =HLOOKUP($A8&"_"&IF(U$4<10,"0"&U$4,U$4),ID_LR!$C$3:$IH$51,47,FALSE) -> -14.08316595 | V8: =HLOOKUP($A8&"_"&IF(V$4<10,"0"&V$4,V$4),ID_LR!$C$3:$IH$51,47,FALSE) -> 4.108955094 | W8: =HLOOKUP($A8&"_"&IF(W$4<10,"0"&W$4,W$4),ID_LR!$C$3:$IH$51,47,FALSE) -> 106.776894 | X8: =HLOOKUP($A8&"_"&IF(X$4<10,"0"&X$4,X$4),ID_LR!$C$3:$IH$51,47,FALSE) -> 78.25949549 | Y8: =HLOOKUP($A8&"_"&IF(Y$4<10,"0"&Y$4,Y$4),ID_LR!$C$3:$IH$51,47,FALSE) -> 28.89696316 | Z8: =HLOOKUP($A8&"_"&IF(Z$4<10,"0"&Z$4,Z$4),ID_LR!$C$3:$IH$51,47,FALSE) -> -28.68222874 | AB8: =HLOOKUP($A8&"_"&IF(AB$4<10,"0"&AB$4,AB$4),System_LR!$C$3:$IH$51,47,FALSE) -> 1.711737536 | AC8: =HLOOKUP($A8&"_"&IF(AC$4<10,"0"&AC$4,AC$4),System_LR!$C$3:$IH$51,47,FALSE) -> 156.5902388 | AD8: =HLOOKUP($A8&"_"&IF(AD$4<10,"0"&AD$4,AD$4),System_LR!$C$3:$IH$51,47,FALSE) -> 333.4939957 | AE8: =HLOOKUP($A8&"_"&IF(AE$4<10,"0"&AE$4,AE$4),System_LR!$C$3:$IH$51,47,FALSE) -> 428.0324545 | AF8: =HLOOKUP($A8&"_"&IF(AF$4<10,"0"&AF$4,AF$4),System_LR!$C$3:$IH$51,47,FALSE) -> 308.7626857 | AG8: =HLOOKUP($A8&"_"&IF(AG$4<10,"0"&AG$4,AG$4),System_LR!$C$3:$IH$51,47,FALSE) -> 191.3123788 | AH8: =HLOOKUP($A8&"_"&IF(AH$4<10,"0"&AH$4,AH$4),System_LR!$C$3:$IH$51,47,FALSE) -> 63.06009627 | AI8: =HLOOKUP($A8&"_"&IF(AI$4<10,"0"&AI$4,AI$4),System_LR!$C$3:$IH$51,47,FALSE) -> 43.93871654 | AJ8: =HLOOKUP($A8&"_"&IF(AJ$4<10,"0"&AJ$4,AJ$4),System_LR!$C$3:$IH$51,47,FALSE) -> 336.5099109 | AK8: =HLOOKUP($A8&"_"&IF(AK$4<10,"0"&AK$4,AK$4),System_LR!$C$3:$IH$51,47,FALSE) -> 300.5665117 | AL8: =HLOOKUP($A8&"_"&IF(AL$4<10,"0"&AL$4,AL$4),System_LR!$C$3:$IH$51,47,FALSE) -> 197.2478916 | AM8: =HLOOKUP($A8&"_"&IF(AM$4<10,"0"&AM$4,AM$4),System_LR!$C$3:$IH$51,47,FALSE) -> 53.37231288 | AO8: 1.136868377e-13 | AP8: 0 | AQ8: 0 | AR8: -4.547473509e-13 | AS8: -7.958078641e-13 | AT8: -5.684341886e-13 | AU8: 1.136868377e-13 | AV8: -9.094947018e-13 | AW8: -5.684341886e-13 | AX8: 0 | AY8: -5.684341886e-13 | AZ8: 2.273736754e-13
A9: 2030 | B9: =HLOOKUP($A9&"_"&IF(B$4<10,"0"&B$4,B$4),WA_LR!$C$3:$IH$51,47,FALSE) -> 3.623143315 | C9: =HLOOKUP($A9&"_"&IF(C$4<10,"0"&C$4,C$4),WA_LR!$C$3:$IH$51,47,FALSE) -> 95.20773272 | D9: =HLOOKUP($A9&"_"&IF(D$4<10,"0"&D$4,D$4),WA_LR!$C$3:$IH$51,47,FALSE) -> 215.2321967 | E9: =HLOOKUP($A9&"_"&IF(E$4<10,"0"&E$4,E$4),WA_LR!$C$3:$IH$51,47,FALSE) -> 280.177075 | F9: =HLOOKUP($A9&"_"&IF(F$4<10,"0"&F$4,F$4),WA_LR!$C$3:$IH$51,47,FALSE) -> 219.7620192 | G9: =HLOOKUP($A9&"_"&IF(G$4<10,"0"&G$4,G$4),WA_LR!$C$3:$IH$51,47,FALSE) -> 122.8960918 | H9: =HLOOKUP($A9&"_"&IF(H$4<10,"0"&H$4,H$4),WA_LR!$C$3:$IH$51,47,FALSE) -> 31.87633156 | I9: =HLOOKUP($A9&"_"&IF(I$4<10,"0"&I$4,I$4),WA_LR!$C$3:$IH$51,47,FALSE) -> -12.78839124 | J9: =HLOOKUP($A9&"_"&IF(J$4<10,"0"&J$4,J$4),WA_LR!$C$3:$IH$51,47,FALSE) -> 180.434034 | K9: =HLOOKUP($A9&"_"&IF(K$4<10,"0"&K$4,K$4),WA_LR!$C$3:$IH$51,47,FALSE) -> 185.3382458 | L9: =HLOOKUP($A9&"_"&IF(L$4<10,"0"&L$4,L$4),WA_LR!$C$3:$IH$51,47,FALSE) -> 123.3822157 | M9: =HLOOKUP($A9&"_"&IF(M$4<10,"0"&M$4,M$4),WA_LR!$C$3:$IH$51,47,FALSE) -> 35.77704299 | O9: =HLOOKUP($A9&"_"&IF(O$4<10,"0"&O$4,O$4),ID_LR!$C$3:$IH$51,47,FALSE) -> -58.86067385 | P9: =HLOOKUP($A9&"_"&IF(P$4<10,"0"&P$4,P$4),ID_LR!$C$3:$IH$51,47,FALSE) -> -5.608281939 | Q9: =HLOOKUP($A9&"_"&IF(Q$4<10,"0"&Q$4,Q$4),ID_LR!$C$3:$IH$51,47,FALSE) -> 51.36878493 | R9: =HLOOKUP($A9&"_"&IF(R$4<10,"0"&R$4,R$4),ID_LR!$C$3:$IH$51,47,FALSE) -> 78.15483082 | S9: =HLOOKUP($A9&"_"&IF(S$4<10,"0"&S$4,S$4),ID_LR!$C$3:$IH$51,47,FALSE) -> 46.51358652 | T9: =HLOOKUP($A9&"_"&IF(T$4<10,"0"&T$4,T$4),ID_LR!$C$3:$IH$51,47,FALSE) -> 6.850830099 | U9: =HLOOKUP($A9&"_"&IF(U$4<10,"0"&U$4,U$4),ID_LR!$C$3:$IH$51,47,FALSE) -> -35.27572588 | V9: =HLOOKUP($A9&"_"&IF(V$4<10,"0"&V$4,V$4),ID_LR!$C$3:$IH$51,47,FALSE) -> -20.50167439 | W9: =HLOOKUP($A9&"_"&IF(W$4<10,"0"&W$4,W$4),ID_LR!$C$3:$IH$51,47,FALSE) -> 83.21482749 | X9: =HLOOKUP($A9&"_"&IF(X$4<10,"0"&X$4,X$4),ID_LR!$C$3:$IH$51,47,FALSE) -> 60.72600775 | Y9: =HLOOKUP($A9&"_"&IF(Y$4<10,"0"&Y$4,Y$4),ID_LR!$C$3:$IH$51,47,FALSE) -> 7.638416663 | Z9: =HLOOKUP($A9&"_"&IF(Z$4<10,"0"&Z$4,Z$4),ID_LR!$C$3:$IH$51,47,FALSE) -> -50.28448404 | AB9: =HLOOKUP($A9&"_"&IF(AB$4<10,"0"&AB$4,AB$4),System_LR!$C$3:$IH$51,47,FALSE) -> -55.23753053 | AC9: =HLOOKUP($A9&"_"&IF(AC$4<10,"0"&AC$4,AC$4),System_LR!$C$3:$IH$51,47,FALSE) -> 89.59945078 | AD9: =HLOOKUP($A9&"_"&IF(AD$4<10,"0"&AD$4,AD$4),System_LR!$C$3:$IH$51,47,FALSE) -> 266.6009817 | AE9: =HLOOKUP($A9&"_"&IF(AE$4<10,"0"&AE$4,AE$4),System_LR!$C$3:$IH$51,47,FALSE) -> 358.3319058 | AF9: =HLOOKUP($A9&"_"&IF(AF$4<10,"0"&AF$4,AF$4),System_LR!$C$3:$IH$51,47,FALSE) -> 266.2756058 | AG9: =HLOOKUP($A9&"_"&IF(AG$4<10,"0"&AG$4,AG$4),System_LR!$C$3:$IH$51,47,FALSE) -> 129.7469219 | AH9: =HLOOKUP($A9&"_"&IF(AH$4<10,"0"&AH$4,AH$4),System_LR!$C$3:$IH$51,47,FALSE) -> -3.399394318 | AI9: =HLOOKUP($A9&"_"&IF(AI$4<10,"0"&AI$4,AI$4),System_LR!$C$3:$IH$51,47,FALSE) -> -33.29006563 | AJ9: =HLOOKUP($A9&"_"&IF(AJ$4<10,"0"&AJ$4,AJ$4),System_LR!$C$3:$IH$51,47,FALSE) -> 263.6488615 | AK9: =HLOOKUP($A9&"_"&IF(AK$4<10,"0"&AK$4,AK$4),System_LR!$C$3:$IH$51,47,FALSE) -> 246.0642535 | AL9: =HLOOKUP($A9&"_"&IF(AL$4<10,"0"&AL$4,AL$4),System_LR!$C$3:$IH$51,47,FALSE) -> 131.0206324 | AM9: =HLOOKUP($A9&"_"&IF(AM$4<10,"0"&AM$4,AM$4),System_LR!$C$3:$IH$51,47,FALSE) -> -14.50744106 | AO9: 1.136868377e-13 | AP9: 1.136868377e-13 | AQ9: 0 | AR9: 4.547473509e-13 | AS9: 0 | AT9: -3.410605132e-13 | AU9: 0 | AV9: -6.821210263e-13 | AW9: 0 | AX9: -7.958078641e-13 | AY9: 3.410605132e-13 | AZ9: 4.547473509e-13
A10: 2031 | B10: =HLOOKUP($A10&"_"&IF(B$4<10,"0"&B$4,B$4),WA_LR!$C$3:$IH$51,47,FALSE) -> 1.475770215 | C10: =HLOOKUP($A10&"_"&IF(C$4<10,"0"&C$4,C$4),WA_LR!$C$3:$IH$51,47,FALSE) -> 94.76037572 | D10: =HLOOKUP($A10&"_"&IF(D$4<10,"0"&D$4,D$4),WA_LR!$C$3:$IH$51,47,FALSE) -> 218.0292141 | E10: =HLOOKUP($A10&"_"&IF(E$4<10,"0"&E$4,E$4),WA_LR!$C$3:$IH$51,47,FALSE) -> 283.0998636 | F10: =HLOOKUP($A10&"_"&IF(F$4<10,"0"&F$4,F$4),WA_LR!$C$3:$IH$51,47,FALSE) -> 220.748397 | G10: =HLOOKUP($A10&"_"&IF(G$4<10,"0"&G$4,G$4),WA_LR!$C$3:$IH$51,47,FALSE) -> 119.7256133 | H10: =HLOOKUP($A10&"_"&IF(H$4<10,"0"&H$4,H$4),WA_LR!$C$3:$IH$51,47,FALSE) -> 29.03739453 | I10: =HLOOKUP($A10&"_"&IF(I$4<10,"0"&I$4,I$4),WA_LR!$C$3:$IH$51,47,FALSE) -> -14.7120737 | J10: =HLOOKUP($A10&"_"&IF(J$4<10,"0"&J$4,J$4),WA_LR!$C$3:$IH$51,47,FALSE) -> 190.3888358 | K10: =HLOOKUP($A10&"_"&IF(K$4<10,"0"&K$4,K$4),WA_LR!$C$3:$IH$51,47,FALSE) -> 186.5528186 | L10: =HLOOKUP($A10&"_"&IF(L$4<10,"0"&L$4,L$4),WA_LR!$C$3:$IH$51,47,FALSE) -> 125.9664326 | M10: =HLOOKUP($A10&"_"&IF(M$4<10,"0"&M$4,M$4),WA_LR!$C$3:$IH$51,47,FALSE) -> 38.65849701 | O10: =HLOOKUP($A10&"_"&IF(O$4<10,"0"&O$4,O$4),ID_LR!$C$3:$IH$51,47,FALSE) -> -63.5014553 | P10: =HLOOKUP($A10&"_"&IF(P$4<10,"0"&P$4,P$4),ID_LR!$C$3:$IH$51,47,FALSE) -> -9.194968049 | Q10: =HLOOKUP($A10&"_"&IF(Q$4<10,"0"&Q$4,Q$4),ID_LR!$C$3:$IH$51,47,FALSE) -> 49.60075318 | R10: =HLOOKUP($A10&"_"&IF(R$4<10,"0"&R$4,R$4),ID_LR!$C$3:$IH$51,47,FALSE) -> 76.64500176 | S10: =HLOOKUP($A10&"_"&IF(S$4<10,"0"&S$4,S$4),ID_LR!$C$3:$IH$51,47,FALSE) -> 44.52091548 | T10: =HLOOKUP($A10&"_"&IF(T$4<10,"0"&T$4,T$4),ID_LR!$C$3:$IH$51,47,FALSE) -> 2.197580574 | U10: =HLOOKUP($A10&"_"&IF(U$4<10,"0"&U$4,U$4),ID_LR!$C$3:$IH$51,47,FALSE) -> -40.00674905 | V10: =HLOOKUP($A10&"_"&IF(V$4<10,"0"&V$4,V$4),ID_LR!$C$3:$IH$51,47,FALSE) -> -24.62222705 | W10: =HLOOKUP($A10&"_"&IF(W$4<10,"0"&W$4,W$4),ID_LR!$C$3:$IH$51,47,FALSE) -> 85.34586023 | X10: =HLOOKUP($A10&"_"&IF(X$4<10,"0"&X$4,X$4),ID_LR!$C$3:$IH$51,47,FALSE) -> 58.43034651 | Y10: =HLOOKUP($A10&"_"&IF(Y$4<10,"0"&Y$4,Y$4),ID_LR!$C$3:$IH$51,47,FALSE) -> 5.789860984 | Z10: =HLOOKUP($A10&"_"&IF(Z$4<10,"0"&Z$4,Z$4),ID_LR!$C$3:$IH$51,47,FALSE) -> -52.16865719 | AB10: =HLOOKUP($A10&"_"&IF(AB$4<10,"0"&AB$4,AB$4),System_LR!$C$3:$IH$51,47,FALSE) -> -62.02568508 | AC10: =HLOOKUP($A10&"_"&IF(AC$4<10,"0"&AC$4,AC$4),System_LR!$C$3:$IH$51,47,FALSE) -> 85.56540767 | AD10: =HLOOKUP($A10&"_"&IF(AD$4<10,"0"&AD$4,AD$4),System_LR!$C$3:$IH$51,47,FALSE) -> 267.6299673 | AE10: =HLOOKUP($A10&"_"&IF(AE$4<10,"0"&AE$4,AE$4),System_LR!$C$3:$IH$51,47,FALSE) -> 359.7448654 | AF10: =HLOOKUP($A10&"_"&IF(AF$4<10,"0"&AF$4,AF$4),System_LR!$C$3:$IH$51,47,FALSE) -> 265.2693124 | AG10: =HLOOKUP($A10&"_"&IF(AG$4<10,"0"&AG$4,AG$4),System_LR!$C$3:$IH$51,47,FALSE) -> 121.9231939 | AH10: =HLOOKUP($A10&"_"&IF(AH$4<10,"0"&AH$4,AH$4),System_LR!$C$3:$IH$51,47,FALSE) -> -10.96935452 | AI10: =HLOOKUP($A10&"_"&IF(AI$4<10,"0"&AI$4,AI$4),System_LR!$C$3:$IH$51,47,FALSE) -> -39.33430075 | AJ10: =HLOOKUP($A10&"_"&IF(AJ$4<10,"0"&AJ$4,AJ$4),System_LR!$C$3:$IH$51,47,FALSE) -> 275.734696 | AK10: =HLOOKUP($A10&"_"&IF(AK$4<10,"0"&AK$4,AK$4),System_LR!$C$3:$IH$51,47,FALSE) -> 244.9831651 | AL10: =HLOOKUP($A10&"_"&IF(AL$4<10,"0"&AL$4,AL$4),System_LR!$C$3:$IH$51,47,FALSE) -> 131.7562936 | AM10: =HLOOKUP($A10&"_"&IF(AM$4<10,"0"&AM$4,AM$4),System_LR!$C$3:$IH$51,47,FALSE) -> -13.51016018 | AO10: 2.273736754e-13 | AP10: 1.136868377e-13 | AQ10: 0 | AR10: 0 | AS10: -7.958078641e-13 | AT10: -7.958078641e-13 | AU10: -5.684341886e-13 | AV10: -6.821210263e-13 | AW10: 0 | AX10: -6.821210263e-13 | AY10: 0 | AZ10: 3.410605132e-13
A11: 2032 | B11: =HLOOKUP($A11&"_"&IF(B$4<10,"0"&B$4,B$4),WA_LR!$C$3:$IH$51,47,FALSE) -> -4.916308438 | C11: =HLOOKUP($A11&"_"&IF(C$4<10,"0"&C$4,C$4),WA_LR!$C$3:$IH$51,47,FALSE) -> 89.31426905 | D11: =HLOOKUP($A11&"_"&IF(D$4<10,"0"&D$4,D$4),WA_LR!$C$3:$IH$51,47,FALSE) -> 209.442759 | E11: =HLOOKUP($A11&"_"&IF(E$4<10,"0"&E$4,E$4),WA_LR!$C$3:$IH$51,47,FALSE) -> 276.8727007 | F11: =HLOOKUP($A11&"_"&IF(F$4<10,"0"&F$4,F$4),WA_LR!$C$3:$IH$51,47,FALSE) -> 219.7932617 | G11: =HLOOKUP($A11&"_"&IF(G$4<10,"0"&G$4,G$4),WA_LR!$C$3:$IH$51,47,FALSE) -> 104.2870543 | H11: =HLOOKUP($A11&"_"&IF(H$4<10,"0"&H$4,H$4),WA_LR!$C$3:$IH$51,47,FALSE) -> 24.91101546 | I11: =HLOOKUP($A11&"_"&IF(I$4<10,"0"&I$4,I$4),WA_LR!$C$3:$IH$51,47,FALSE) -> -22.34211975 | J11: =HLOOKUP($A11&"_"&IF(J$4<10,"0"&J$4,J$4),WA_LR!$C$3:$IH$51,47,FALSE) -> 177.1817191 | K11: =HLOOKUP($A11&"_"&IF(K$4<10,"0"&K$4,K$4),WA_LR!$C$3:$IH$51,47,FALSE) -> 179.5755872 | L11: =HLOOKUP($A11&"_"&IF(L$4<10,"0"&L$4,L$4),WA_LR!$C$3:$IH$51,47,FALSE) -> 116.6843064 | M11: =HLOOKUP($A11&"_"&IF(M$4<10,"0"&M$4,M$4),WA_LR!$C$3:$IH$51,47,FALSE) -> 29.27898581 | O11: =HLOOKUP($A11&"_"&IF(O$4<10,"0"&O$4,O$4),ID_LR!$C$3:$IH$51,47,FALSE) -> -66.47922439 | P11: =HLOOKUP($A11&"_"&IF(P$4<10,"0"&P$4,P$4),ID_LR!$C$3:$IH$51,47,FALSE) -> -11.87932558 | Q11: =HLOOKUP($A11&"_"&IF(Q$4<10,"0"&Q$4,Q$4),ID_LR!$C$3:$IH$51,47,FALSE) -> 44.95540899 | R11: =HLOOKUP($A11&"_"&IF(R$4<10,"0"&R$4,R$4),ID_LR!$C$3:$IH$51,47,FALSE) -> 73.07275935 | S11: =HLOOKUP($A11&"_"&IF(S$4<10,"0"&S$4,S$4),ID_LR!$C$3:$IH$51,47,FALSE) -> 44.05556571 | T11: =HLOOKUP($A11&"_"&IF(T$4<10,"0"&T$4,T$4),ID_LR!$C$3:$IH$51,47,FALSE) -> -5.53742046 | U11: =HLOOKUP($A11&"_"&IF(U$4<10,"0"&U$4,U$4),ID_LR!$C$3:$IH$51,47,FALSE) -> -41.71132374 | V11: =HLOOKUP($A11&"_"&IF(V$4<10,"0"&V$4,V$4),ID_LR!$C$3:$IH$51,47,FALSE) -> -28.03409321 | W11: =HLOOKUP($A11&"_"&IF(W$4<10,"0"&W$4,W$4),ID_LR!$C$3:$IH$51,47,FALSE) -> 78.63761931 | X11: =HLOOKUP($A11&"_"&IF(X$4<10,"0"&X$4,X$4),ID_LR!$C$3:$IH$51,47,FALSE) -> 54.72120031 | Y11: =HLOOKUP($A11&"_"&IF(Y$4<10,"0"&Y$4,Y$4),ID_LR!$C$3:$IH$51,47,FALSE) -> 0.9492378402 | Z11: =HLOOKUP($A11&"_"&IF(Z$4<10,"0"&Z$4,Z$4),ID_LR!$C$3:$IH$51,47,FALSE) -> -56.86267947 | AB11: =HLOOKUP($A11&"_"&IF(AB$4<10,"0"&AB$4,AB$4),System_LR!$C$3:$IH$51,47,FALSE) -> -71.39553283 | AC11: =HLOOKUP($A11&"_"&IF(AC$4<10,"0"&AC$4,AC$4),System_LR!$C$3:$IH$51,47,FALSE) -> 77.43494347 | AD11: =HLOOKUP($A11&"_"&IF(AD$4<10,"0"&AD$4,AD$4),System_LR!$C$3:$IH$51,47,FALSE) -> 254.398168 | AE11: =HLOOKUP($A11&"_"&IF(AE$4<10,"0"&AE$4,AE$4),System_LR!$C$3:$IH$51,47,FALSE) -> 349.9454601 | AF11: =HLOOKUP($A11&"_"&IF(AF$4<10,"0"&AF$4,AF$4),System_LR!$C$3:$IH$51,47,FALSE) -> 263.8488275 | AG11: =HLOOKUP($A11&"_"&IF(AG$4<10,"0"&AG$4,AG$4),System_LR!$C$3:$IH$51,47,FALSE) -> 98.74963381 | AH11: =HLOOKUP($A11&"_"&IF(AH$4<10,"0"&AH$4,AH$4),System_LR!$C$3:$IH$51,47,FALSE) -> -16.80030828 | AI11: =HLOOKUP($A11&"_"&IF(AI$4<10,"0"&AI$4,AI$4),System_LR!$C$3:$IH$51,47,FALSE) -> -50.37621295 | AJ11: =HLOOKUP($A11&"_"&IF(AJ$4<10,"0"&AJ$4,AJ$4),System_LR!$C$3:$IH$51,47,FALSE) -> 255.8193384 | AK11: =HLOOKUP($A11&"_"&IF(AK$4<10,"0"&AK$4,AK$4),System_LR!$C$3:$IH$51,47,FALSE) -> 234.2967875 | AL11: =HLOOKUP($A11&"_"&IF(AL$4<10,"0"&AL$4,AL$4),System_LR!$C$3:$IH$51,47,FALSE) -> 117.6335442 | AM11: =HLOOKUP($A11&"_"&IF(AM$4<10,"0"&AM$4,AM$4),System_LR!$C$3:$IH$51,47,FALSE) -> -27.58369366 | AO11: 0 | AP11: -1.136868377e-13 | AQ11: 2.273736754e-13 | AR11: -4.547473509e-13 | AS11: 0 | AT11: -2.273736754e-13 | AU11: -2.273736754e-13 | AV11: -5.684341886e-13 | AW11: 6.821210263e-13 | AX11: 0 | AY11: -3.410605132e-13 | AZ11: 1.136868377e-13
A12: 2033 | B12: =HLOOKUP($A12&"_"&IF(B$4<10,"0"&B$4,B$4),WA_LR!$C$3:$IH$51,47,FALSE) -> -28.27832425 | C12: =HLOOKUP($A12&"_"&IF(C$4<10,"0"&C$4,C$4),WA_LR!$C$3:$IH$51,47,FALSE) -> 65.23822834 | D12: =HLOOKUP($A12&"_"&IF(D$4<10,"0"&D$4,D$4),WA_LR!$C$3:$IH$51,47,FALSE) -> 186.6035162 | E12: =HLOOKUP($A12&"_"&IF(E$4<10,"0"&E$4,E$4),WA_LR!$C$3:$IH$51,47,FALSE) -> 256.1788588 | F12: =HLOOKUP($A12&"_"&IF(F$4<10,"0"&F$4,F$4),WA_LR!$C$3:$IH$51,47,FALSE) -> 198.8533503 | G12: =HLOOKUP($A12&"_"&IF(G$4<10,"0"&G$4,G$4),WA_LR!$C$3:$IH$51,47,FALSE) -> 112.1498597 | H12: =HLOOKUP($A12&"_"&IF(H$4<10,"0"&H$4,H$4),WA_LR!$C$3:$IH$51,47,FALSE) -> 19.18264571 | I12: =HLOOKUP($A12&"_"&IF(I$4<10,"0"&I$4,I$4),WA_LR!$C$3:$IH$51,47,FALSE) -> -27.77737034 | J12: =HLOOKUP($A12&"_"&IF(J$4<10,"0"&J$4,J$4),WA_LR!$C$3:$IH$51,47,FALSE) -> 178.4123262 | K12: =HLOOKUP($A12&"_"&IF(K$4<10,"0"&K$4,K$4),WA_LR!$C$3:$IH$51,47,FALSE) -> 159.9838352 | L12: =HLOOKUP($A12&"_"&IF(L$4<10,"0"&L$4,L$4),WA_LR!$C$3:$IH$51,47,FALSE) -> 92.13120952 | M12: =HLOOKUP($A12&"_"&IF(M$4<10,"0"&M$4,M$4),WA_LR!$C$3:$IH$51,47,FALSE) -> 1.979384245 | O12: =HLOOKUP($A12&"_"&IF(O$4<10,"0"&O$4,O$4),ID_LR!$C$3:$IH$51,47,FALSE) -> -78.62713068 | P12: =HLOOKUP($A12&"_"&IF(P$4<10,"0"&P$4,P$4),ID_LR!$C$3:$IH$51,47,FALSE) -> -24.57238336 | Q12: =HLOOKUP($A12&"_"&IF(Q$4<10,"0"&Q$4,Q$4),ID_LR!$C$3:$IH$51,47,FALSE) -> 32.53653598 | R12: =HLOOKUP($A12&"_"&IF(R$4<10,"0"&R$4,R$4),ID_LR!$C$3:$IH$51,47,FALSE) -> 61.4689756 | S12: =HLOOKUP($A12&"_"&IF(S$4<10,"0"&S$4,S$4),ID_LR!$C$3:$IH$51,47,FALSE) -> 32.79403557 | T12: =HLOOKUP($A12&"_"&IF(T$4<10,"0"&T$4,T$4),ID_LR!$C$3:$IH$51,47,FALSE) -> -1.352573458 | U12: =HLOOKUP($A12&"_"&IF(U$4<10,"0"&U$4,U$4),ID_LR!$C$3:$IH$51,47,FALSE) -> -44.40260684 | V12: =HLOOKUP($A12&"_"&IF(V$4<10,"0"&V$4,V$4),ID_LR!$C$3:$IH$51,47,FALSE) -> -30.48374379 | W12: =HLOOKUP($A12&"_"&IF(W$4<10,"0"&W$4,W$4),ID_LR!$C$3:$IH$51,47,FALSE) -> 78.93209786 | X12: =HLOOKUP($A12&"_"&IF(X$4<10,"0"&X$4,X$4),ID_LR!$C$3:$IH$51,47,FALSE) -> 44.35711772 | Y12: =HLOOKUP($A12&"_"&IF(Y$4<10,"0"&Y$4,Y$4),ID_LR!$C$3:$IH$51,47,FALSE) -> -12.18361956 | Z12: =HLOOKUP($A12&"_"&IF(Z$4<10,"0"&Z$4,Z$4),ID_LR!$C$3:$IH$51,47,FALSE) -> -71.32908294 | AB12: =HLOOKUP($A12&"_"&IF(AB$4<10,"0"&AB$4,AB$4),System_LR!$C$3:$IH$51,47,FALSE) -> -106.9054549 | AC12: =HLOOKUP($A12&"_"&IF(AC$4<10,"0"&AC$4,AC$4),System_LR!$C$3:$IH$51,47,FALSE) -> 40.66584499 | AD12: =HLOOKUP($A12&"_"&IF(AD$4<10,"0"&AD$4,AD$4),System_LR!$C$3:$IH$51,47,FALSE) -> 219.1400522 | AE12: =HLOOKUP($A12&"_"&IF(AE$4<10,"0"&AE$4,AE$4),System_LR!$C$3:$IH$51,47,FALSE) -> 317.6478344 | AF12: =HLOOKUP($A12&"_"&IF(AF$4<10,"0"&AF$4,AF$4),System_LR!$C$3:$IH$51,47,FALSE) -> 231.6473859 | AG12: =HLOOKUP($A12&"_"&IF(AG$4<10,"0"&AG$4,AG$4),System_LR!$C$3:$IH$51,47,FALSE) -> 110.7972862 | AH12: =HLOOKUP($A12&"_"&IF(AH$4<10,"0"&AH$4,AH$4),System_LR!$C$3:$IH$51,47,FALSE) -> -25.21996113 | AI12: =HLOOKUP($A12&"_"&IF(AI$4<10,"0"&AI$4,AI$4),System_LR!$C$3:$IH$51,47,FALSE) -> -58.26111414 | AJ12: =HLOOKUP($A12&"_"&IF(AJ$4<10,"0"&AJ$4,AJ$4),System_LR!$C$3:$IH$51,47,FALSE) -> 257.3444241 | AK12: =HLOOKUP($A12&"_"&IF(AK$4<10,"0"&AK$4,AK$4),System_LR!$C$3:$IH$51,47,FALSE) -> 204.3409529 | AL12: =HLOOKUP($A12&"_"&IF(AL$4<10,"0"&AL$4,AL$4),System_LR!$C$3:$IH$51,47,FALSE) -> 79.94758997 | AM12: =HLOOKUP($A12&"_"&IF(AM$4<10,"0"&AM$4,AM$4),System_LR!$C$3:$IH$51,47,FALSE) -> -69.34969869 | AO12: 2.273736754e-13 | AP12: -2.273736754e-13 | AQ12: 3.410605132e-13 | AR12: 0 | AS12: 0 | AT12: 1.136868377e-13 | AU12: 3.410605132e-13 | AV12: -5.684341886e-13 | AW12: 0 | AX12: 0 | AY12: -1.136868377e-13 | AZ12: 4.547473509e-13
A13: 2034 | B13: =HLOOKUP($A13&"_"&IF(B$4<10,"0"&B$4,B$4),WA_LR!$C$3:$IH$51,47,FALSE) -> -109.9575401 | C13: =HLOOKUP($A13&"_"&IF(C$4<10,"0"&C$4,C$4),WA_LR!$C$3:$IH$51,47,FALSE) -> -11.7895919 | D13: =HLOOKUP($A13&"_"&IF(D$4<10,"0"&D$4,D$4),WA_LR!$C$3:$IH$51,47,FALSE) -> 111.5785023 | E13: =HLOOKUP($A13&"_"&IF(E$4<10,"0"&E$4,E$4),WA_LR!$C$3:$IH$51,47,FALSE) -> 186.0228063 | F13: =HLOOKUP($A13&"_"&IF(F$4<10,"0"&F$4,F$4),WA_LR!$C$3:$IH$51,47,FALSE) -> 136.1551946 | G13: =HLOOKUP($A13&"_"&IF(G$4<10,"0"&G$4,G$4),WA_LR!$C$3:$IH$51,47,FALSE) -> 48.12696468 | H13: =HLOOKUP($A13&"_"&IF(H$4<10,"0"&H$4,H$4),WA_LR!$C$3:$IH$51,47,FALSE) -> -41.56156736 | I13: =HLOOKUP($A13&"_"&IF(I$4<10,"0"&I$4,I$4),WA_LR!$C$3:$IH$51,47,FALSE) -> -88.73065939 | J13: =HLOOKUP($A13&"_"&IF(J$4<10,"0"&J$4,J$4),WA_LR!$C$3:$IH$51,47,FALSE) -> 113.2875624 | K13: =HLOOKUP($A13&"_"&IF(K$4<10,"0"&K$4,K$4),WA_LR!$C$3:$IH$51,47,FALSE) -> 90.61479242 | L13: =HLOOKUP($A13&"_"&IF(L$4<10,"0"&L$4,L$4),WA_LR!$C$3:$IH$51,47,FALSE) -> 23.05053364 | M13: =HLOOKUP($A13&"_"&IF(M$4<10,"0"&M$4,M$4),WA_LR!$C$3:$IH$51,47,FALSE) -> -73.23962778 | O13: =HLOOKUP($A13&"_"&IF(O$4<10,"0"&O$4,O$4),ID_LR!$C$3:$IH$51,47,FALSE) -> -120.4496635 | P13: =HLOOKUP($A13&"_"&IF(P$4<10,"0"&P$4,P$4),ID_LR!$C$3:$IH$51,47,FALSE) -> -64.25994028 | Q13: =HLOOKUP($A13&"_"&IF(Q$4<10,"0"&Q$4,Q$4),ID_LR!$C$3:$IH$51,47,FALSE) -> -6.662391528 | R13: =HLOOKUP($A13&"_"&IF(R$4<10,"0"&R$4,R$4),ID_LR!$C$3:$IH$51,47,FALSE) -> 24.36295021 | S13: =HLOOKUP($A13&"_"&IF(S$4<10,"0"&S$4,S$4),ID_LR!$C$3:$IH$51,47,FALSE) -> 0.1249173685 | T13: =HLOOKUP($A13&"_"&IF(T$4<10,"0"&T$4,T$4),ID_LR!$C$3:$IH$51,47,FALSE) -> -34.07151511 | U13: =HLOOKUP($A13&"_"&IF(U$4<10,"0"&U$4,U$4),ID_LR!$C$3:$IH$51,47,FALSE) -> -75.09427105 | V13: =HLOOKUP($A13&"_"&IF(V$4<10,"0"&V$4,V$4),ID_LR!$C$3:$IH$51,47,FALSE) -> -60.9763399 | W13: =HLOOKUP($A13&"_"&IF(W$4<10,"0"&W$4,W$4),ID_LR!$C$3:$IH$51,47,FALSE) -> 45.47053893 | X13: =HLOOKUP($A13&"_"&IF(X$4<10,"0"&X$4,X$4),ID_LR!$C$3:$IH$51,47,FALSE) -> 8.515431056 | Y13: =HLOOKUP($A13&"_"&IF(Y$4<10,"0"&Y$4,Y$4),ID_LR!$C$3:$IH$51,47,FALSE) -> -47.95295192 | Z13: =HLOOKUP($A13&"_"&IF(Z$4<10,"0"&Z$4,Z$4),ID_LR!$C$3:$IH$51,47,FALSE) -> -110.0369413 | AB13: =HLOOKUP($A13&"_"&IF(AB$4<10,"0"&AB$4,AB$4),System_LR!$C$3:$IH$51,47,FALSE) -> -230.4072035 | AC13: =HLOOKUP($A13&"_"&IF(AC$4<10,"0"&AC$4,AC$4),System_LR!$C$3:$IH$51,47,FALSE) -> -76.04953218 | AD13: =HLOOKUP($A13&"_"&IF(AD$4<10,"0"&AD$4,AD$4),System_LR!$C$3:$IH$51,47,FALSE) -> 104.9161107 | AE13: =HLOOKUP($A13&"_"&IF(AE$4<10,"0"&AE$4,AE$4),System_LR!$C$3:$IH$51,47,FALSE) -> 210.3857565 | AF13: =HLOOKUP($A13&"_"&IF(AF$4<10,"0"&AF$4,AF$4),System_LR!$C$3:$IH$51,47,FALSE) -> 136.2801119 | AG13: =HLOOKUP($A13&"_"&IF(AG$4<10,"0"&AG$4,AG$4),System_LR!$C$3:$IH$51,47,FALSE) -> 14.05544958 | AH13: =HLOOKUP($A13&"_"&IF(AH$4<10,"0"&AH$4,AH$4),System_LR!$C$3:$IH$51,47,FALSE) -> -116.6558384 | AI13: =HLOOKUP($A13&"_"&IF(AI$4<10,"0"&AI$4,AI$4),System_LR!$C$3:$IH$51,47,FALSE) -> -149.7069993 | AJ13: =HLOOKUP($A13&"_"&IF(AJ$4<10,"0"&AJ$4,AJ$4),System_LR!$C$3:$IH$51,47,FALSE) -> 158.7581014 | AK13: =HLOOKUP($A13&"_"&IF(AK$4<10,"0"&AK$4,AK$4),System_LR!$C$3:$IH$51,47,FALSE) -> 99.13022347 | AL13: =HLOOKUP($A13&"_"&IF(AL$4<10,"0"&AL$4,AL$4),System_LR!$C$3:$IH$51,47,FALSE) -> -24.90241828 | AM13: =HLOOKUP($A13&"_"&IF(AM$4<10,"0"&AM$4,AM$4),System_LR!$C$3:$IH$51,47,FALSE) -> -183.276569 | AO13: 4.547473509e-13 | AP13: 2.273736754e-13 | AQ13: 2.273736754e-13 | AR13: 4.547473509e-13 | AS13: 3.410605132e-13 | AT13: -3.410605132e-13 | AU13: 3.410605132e-13 | AV13: -2.273736754e-13 | AW13: 6.821210263e-13 | AX13: -5.684341886e-13 | AY13: -2.273736754e-13 | AZ13: 2.273736754e-13
A14: 2035 | B14: =HLOOKUP($A14&"_"&IF(B$4<10,"0"&B$4,B$4),WA_LR!$C$3:$IH$51,47,FALSE) -> -107.2454618 | C14: =HLOOKUP($A14&"_"&IF(C$4<10,"0"&C$4,C$4),WA_LR!$C$3:$IH$51,47,FALSE) -> -11.87399599 | D14: =HLOOKUP($A14&"_"&IF(D$4<10,"0"&D$4,D$4),WA_LR!$C$3:$IH$51,47,FALSE) -> 109.9282551 | E14: =HLOOKUP($A14&"_"&IF(E$4<10,"0"&E$4,E$4),WA_LR!$C$3:$IH$51,47,FALSE) -> 184.9749538 | F14: =HLOOKUP($A14&"_"&IF(F$4<10,"0"&F$4,F$4),WA_LR!$C$3:$IH$51,47,FALSE) -> 132.2061062 | G14: =HLOOKUP($A14&"_"&IF(G$4<10,"0"&G$4,G$4),WA_LR!$C$3:$IH$51,47,FALSE) -> 60.14866269 | H14: =HLOOKUP($A14&"_"&IF(H$4<10,"0"&H$4,H$4),WA_LR!$C$3:$IH$51,47,FALSE) -> -49.6433185 | I14: =HLOOKUP($A14&"_"&IF(I$4<10,"0"&I$4,I$4),WA_LR!$C$3:$IH$51,47,FALSE) -> -92.89304367 | J14: =HLOOKUP($A14&"_"&IF(J$4<10,"0"&J$4,J$4),WA_LR!$C$3:$IH$51,47,FALSE) -> 108.7024295 | K14: =HLOOKUP($A14&"_"&IF(K$4<10,"0"&K$4,K$4),WA_LR!$C$3:$IH$51,47,FALSE) -> 90.19658534 | L14: =HLOOKUP($A14&"_"&IF(L$4<10,"0"&L$4,L$4),WA_LR!$C$3:$IH$51,47,FALSE) -> 23.46527993 | M14: =HLOOKUP($A14&"_"&IF(M$4<10,"0"&M$4,M$4),WA_LR!$C$3:$IH$51,47,FALSE) -> -73.41133009 | O14: =HLOOKUP($A14&"_"&IF(O$4<10,"0"&O$4,O$4),ID_LR!$C$3:$IH$51,47,FALSE) -> -117.9199616 | P14: =HLOOKUP($A14&"_"&IF(P$4<10,"0"&P$4,P$4),ID_LR!$C$3:$IH$51,47,FALSE) -> -63.69540416 | Q14: =HLOOKUP($A14&"_"&IF(Q$4<10,"0"&Q$4,Q$4),ID_LR!$C$3:$IH$51,47,FALSE) -> -7.462703169 | R14: =HLOOKUP($A14&"_"&IF(R$4<10,"0"&R$4,R$4),ID_LR!$C$3:$IH$51,47,FALSE) -> 23.54549355 | S14: =HLOOKUP($A14&"_"&IF(S$4<10,"0"&S$4,S$4),ID_LR!$C$3:$IH$51,47,FALSE) -> -1.935783266 | T14: =HLOOKUP($A14&"_"&IF(T$4<10,"0"&T$4,T$4),ID_LR!$C$3:$IH$51,47,FALSE) -> -27.56492889 | U14: =HLOOKUP($A14&"_"&IF(U$4<10,"0"&U$4,U$4),ID_LR!$C$3:$IH$51,47,FALSE) -> -78.44615895 | V14: =HLOOKUP($A14&"_"&IF(V$4<10,"0"&V$4,V$4),ID_LR!$C$3:$IH$51,47,FALSE) -> -62.26627358 | W14: =HLOOKUP($A14&"_"&IF(W$4<10,"0"&W$4,W$4),ID_LR!$C$3:$IH$51,47,FALSE) -> 42.99365571 | X14: =HLOOKUP($A14&"_"&IF(X$4<10,"0"&X$4,X$4),ID_LR!$C$3:$IH$51,47,FALSE) -> 8.247135649 | Y14: =HLOOKUP($A14&"_"&IF(Y$4<10,"0"&Y$4,Y$4),ID_LR!$C$3:$IH$51,47,FALSE) -> -47.29518561 | Z14: =HLOOKUP($A14&"_"&IF(Z$4<10,"0"&Z$4,Z$4),ID_LR!$C$3:$IH$51,47,FALSE) -> -109.1533365 | AB14: =HLOOKUP($A14&"_"&IF(AB$4<10,"0"&AB$4,AB$4),System_LR!$C$3:$IH$51,47,FALSE) -> -225.1654234 | AC14: =HLOOKUP($A14&"_"&IF(AC$4<10,"0"&AC$4,AC$4),System_LR!$C$3:$IH$51,47,FALSE) -> -75.56940015 | AD14: =HLOOKUP($A14&"_"&IF(AD$4<10,"0"&AD$4,AD$4),System_LR!$C$3:$IH$51,47,FALSE) -> 102.4655519 | AE14: =HLOOKUP($A14&"_"&IF(AE$4<10,"0"&AE$4,AE$4),System_LR!$C$3:$IH$51,47,FALSE) -> 208.5204474 | AF14: =HLOOKUP($A14&"_"&IF(AF$4<10,"0"&AF$4,AF$4),System_LR!$C$3:$IH$51,47,FALSE) -> 130.270323 | AG14: =HLOOKUP($A14&"_"&IF(AG$4<10,"0"&AG$4,AG$4),System_LR!$C$3:$IH$51,47,FALSE) -> 32.5837338 | AH14: =HLOOKUP($A14&"_"&IF(AH$4<10,"0"&AH$4,AH$4),System_LR!$C$3:$IH$51,47,FALSE) -> -128.0894774 | AI14: =HLOOKUP($A14&"_"&IF(AI$4<10,"0"&AI$4,AI$4),System_LR!$C$3:$IH$51,47,FALSE) -> -155.1593173 | AJ14: =HLOOKUP($A14&"_"&IF(AJ$4<10,"0"&AJ$4,AJ$4),System_LR!$C$3:$IH$51,47,FALSE) -> 151.6960852 | AK14: =HLOOKUP($A14&"_"&IF(AK$4<10,"0"&AK$4,AK$4),System_LR!$C$3:$IH$51,47,FALSE) -> 98.44372099 | AL14: =HLOOKUP($A14&"_"&IF(AL$4<10,"0"&AL$4,AL$4),System_LR!$C$3:$IH$51,47,FALSE) -> -23.82990568 | AM14: =HLOOKUP($A14&"_"&IF(AM$4<10,"0"&AM$4,AM$4),System_LR!$C$3:$IH$51,47,FALSE) -> -182.5646666 | AO14: -7.958078641e-13 | AP14: -2.273736754e-13 | AQ14: -2.273736754e-13 | AR14: -4.547473509e-13 | AS14: 2.273736754e-13 | AT14: -1.136868377e-13 | AU14: 3.410605132e-13 | AV14: 0 | AW14: 0 | AX14: 1.136868377e-13 | AY14: -2.273736754e-13 | AZ14: -4.547473509e-13
A15: 2036 | B15: =HLOOKUP($A15&"_"&IF(B$4<10,"0"&B$4,B$4),WA_LR!$C$3:$IH$51,47,FALSE) -> -115.2534174 | C15: =HLOOKUP($A15&"_"&IF(C$4<10,"0"&C$4,C$4),WA_LR!$C$3:$IH$51,47,FALSE) -> -17.03537522 | D15: =HLOOKUP($A15&"_"&IF(D$4<10,"0"&D$4,D$4),WA_LR!$C$3:$IH$51,47,FALSE) -> 107.6375578 | E15: =HLOOKUP($A15&"_"&IF(E$4<10,"0"&E$4,E$4),WA_LR!$C$3:$IH$51,47,FALSE) -> 179.7991394 | F15: =HLOOKUP($A15&"_"&IF(F$4<10,"0"&F$4,F$4),WA_LR!$C$3:$IH$51,47,FALSE) -> 129.3053871 | G15: =HLOOKUP($A15&"_"&IF(G$4<10,"0"&G$4,G$4),WA_LR!$C$3:$IH$51,47,FALSE) -> 44.66634055 | H15: =HLOOKUP($A15&"_"&IF(H$4<10,"0"&H$4,H$4),WA_LR!$C$3:$IH$51,47,FALSE) -> -52.71992035 | I15: =HLOOKUP($A15&"_"&IF(I$4<10,"0"&I$4,I$4),WA_LR!$C$3:$IH$51,47,FALSE) -> -97.80965597 | J15: =HLOOKUP($A15&"_"&IF(J$4<10,"0"&J$4,J$4),WA_LR!$C$3:$IH$51,47,FALSE) -> 99.18921841 | K15: =HLOOKUP($A15&"_"&IF(K$4<10,"0"&K$4,K$4),WA_LR!$C$3:$IH$51,47,FALSE) -> 84.78537654 | L15: =HLOOKUP($A15&"_"&IF(L$4<10,"0"&L$4,L$4),WA_LR!$C$3:$IH$51,47,FALSE) -> 15.70251121 | M15: =HLOOKUP($A15&"_"&IF(M$4<10,"0"&M$4,M$4),WA_LR!$C$3:$IH$51,47,FALSE) -> -79.50493125 | O15: =HLOOKUP($A15&"_"&IF(O$4<10,"0"&O$4,O$4),ID_LR!$C$3:$IH$51,47,FALSE) -> -120.8315127 | P15: =HLOOKUP($A15&"_"&IF(P$4<10,"0"&P$4,P$4),ID_LR!$C$3:$IH$51,47,FALSE) -> -65.5723395 | Q15: =HLOOKUP($A15&"_"&IF(Q$4<10,"0"&Q$4,Q$4),ID_LR!$C$3:$IH$51,47,FALSE) -> -8.396893545 | R15: =HLOOKUP($A15&"_"&IF(R$4<10,"0"&R$4,R$4),ID_LR!$C$3:$IH$51,47,FALSE) -> 20.74966043 | S15: =HLOOKUP($A15&"_"&IF(S$4<10,"0"&S$4,S$4),ID_LR!$C$3:$IH$51,47,FALSE) -> -3.286586119 | T15: =HLOOKUP($A15&"_"&IF(T$4<10,"0"&T$4,T$4),ID_LR!$C$3:$IH$51,47,FALSE) -> -34.86337109 | U15: =HLOOKUP($A15&"_"&IF(U$4<10,"0"&U$4,U$4),ID_LR!$C$3:$IH$51,47,FALSE) -> -79.05499672 | V15: =HLOOKUP($A15&"_"&IF(V$4<10,"0"&V$4,V$4),ID_LR!$C$3:$IH$51,47,FALSE) -> -63.74628408 | W15: =HLOOKUP($A15&"_"&IF(W$4<10,"0"&W$4,W$4),ID_LR!$C$3:$IH$51,47,FALSE) -> 38.34196423 | X15: =HLOOKUP($A15&"_"&IF(X$4<10,"0"&X$4,X$4),ID_LR!$C$3:$IH$51,47,FALSE) -> 5.650389904 | Y15: =HLOOKUP($A15&"_"&IF(Y$4<10,"0"&Y$4,Y$4),ID_LR!$C$3:$IH$51,47,FALSE) -> -50.7239426 | Z15: =HLOOKUP($A15&"_"&IF(Z$4<10,"0"&Z$4,Z$4),ID_LR!$C$3:$IH$51,47,FALSE) -> -111.2192703 | AB15: =HLOOKUP($A15&"_"&IF(AB$4<10,"0"&AB$4,AB$4),System_LR!$C$3:$IH$51,47,FALSE) -> -236.0849302 | AC15: =HLOOKUP($A15&"_"&IF(AC$4<10,"0"&AC$4,AC$4),System_LR!$C$3:$IH$51,47,FALSE) -> -82.60771472 | AD15: =HLOOKUP($A15&"_"&IF(AD$4<10,"0"&AD$4,AD$4),System_LR!$C$3:$IH$51,47,FALSE) -> 99.24066421 | AE15: =HLOOKUP($A15&"_"&IF(AE$4<10,"0"&AE$4,AE$4),System_LR!$C$3:$IH$51,47,FALSE) -> 200.5487998 | AF15: =HLOOKUP($A15&"_"&IF(AF$4<10,"0"&AF$4,AF$4),System_LR!$C$3:$IH$51,47,FALSE) -> 126.0188009 | AG15: =HLOOKUP($A15&"_"&IF(AG$4<10,"0"&AG$4,AG$4),System_LR!$C$3:$IH$51,47,FALSE) -> 9.802969457 | AH15: =HLOOKUP($A15&"_"&IF(AH$4<10,"0"&AH$4,AH$4),System_LR!$C$3:$IH$51,47,FALSE) -> -131.7749171 | AI15: =HLOOKUP($A15&"_"&IF(AI$4<10,"0"&AI$4,AI$4),System_LR!$C$3:$IH$51,47,FALSE) -> -161.55594 | AJ15: =HLOOKUP($A15&"_"&IF(AJ$4<10,"0"&AJ$4,AJ$4),System_LR!$C$3:$IH$51,47,FALSE) -> 137.5311826 | AK15: =HLOOKUP($A15&"_"&IF(AK$4<10,"0"&AK$4,AK$4),System_LR!$C$3:$IH$51,47,FALSE) -> 90.43576645 | AL15: =HLOOKUP($A15&"_"&IF(AL$4<10,"0"&AL$4,AL$4),System_LR!$C$3:$IH$51,47,FALSE) -> -35.02143138 | AM15: =HLOOKUP($A15&"_"&IF(AM$4<10,"0"&AM$4,AM$4),System_LR!$C$3:$IH$51,47,FALSE) -> -190.7242016 | AO15: -4.547473509e-13 | AP15: -4.547473509e-13 | AQ15: 0 | AR15: -7.958078641e-13 | AS15: 4.547473509e-13 | AT15: 5.684341886e-13 | AU15: 4.547473509e-13 | AV15: 3.410605132e-13 | AW15: 7.958078641e-13 | AX15: -3.410605132e-13 | AY15: 2.273736754e-13 | AZ15: 3.410605132e-13
A16: 2037 | B16: =HLOOKUP($A16&"_"&IF(B$4<10,"0"&B$4,B$4),WA_LR!$C$3:$IH$51,47,FALSE) -> -156.3370957 | C16: =HLOOKUP($A16&"_"&IF(C$4<10,"0"&C$4,C$4),WA_LR!$C$3:$IH$51,47,FALSE) -> -55.05243193 | D16: =HLOOKUP($A16&"_"&IF(D$4<10,"0"&D$4,D$4),WA_LR!$C$3:$IH$51,47,FALSE) -> 72.42639088 | E16: =HLOOKUP($A16&"_"&IF(E$4<10,"0"&E$4,E$4),WA_LR!$C$3:$IH$51,47,FALSE) -> 149.1899114 | F16: =HLOOKUP($A16&"_"&IF(F$4<10,"0"&F$4,F$4),WA_LR!$C$3:$IH$51,47,FALSE) -> 101.4404291 | G16: =HLOOKUP($A16&"_"&IF(G$4<10,"0"&G$4,G$4),WA_LR!$C$3:$IH$51,47,FALSE) -> 21.721652 | H16: =HLOOKUP($A16&"_"&IF(H$4<10,"0"&H$4,H$4),WA_LR!$C$3:$IH$51,47,FALSE) -> -82.04967112 | I16: =HLOOKUP($A16&"_"&IF(I$4<10,"0"&I$4,I$4),WA_LR!$C$3:$IH$51,47,FALSE) -> -129.3443113 | J16: =HLOOKUP($A16&"_"&IF(J$4<10,"0"&J$4,J$4),WA_LR!$C$3:$IH$51,47,FALSE) -> 87.19465547 | K16: =HLOOKUP($A16&"_"&IF(K$4<10,"0"&K$4,K$4),WA_LR!$C$3:$IH$51,47,FALSE) -> 54.59646276 | L16: =HLOOKUP($A16&"_"&IF(L$4<10,"0"&L$4,L$4),WA_LR!$C$3:$IH$51,47,FALSE) -> -17.76550987 | M16: =HLOOKUP($A16&"_"&IF(M$4<10,"0"&M$4,M$4),WA_LR!$C$3:$IH$51,47,FALSE) -> -116.4335472 | O16: =HLOOKUP($A16&"_"&IF(O$4<10,"0"&O$4,O$4),ID_LR!$C$3:$IH$51,47,FALSE) -> -140.6058497 | P16: =HLOOKUP($A16&"_"&IF(P$4<10,"0"&P$4,P$4),ID_LR!$C$3:$IH$51,47,FALSE) -> -84.23040248 | Q16: =HLOOKUP($A16&"_"&IF(Q$4<10,"0"&Q$4,Q$4),ID_LR!$C$3:$IH$51,47,FALSE) -> -26.41689386 | R16: =HLOOKUP($A16&"_"&IF(R$4<10,"0"&R$4,R$4),ID_LR!$C$3:$IH$51,47,FALSE) -> 4.468185654 | S16: =HLOOKUP($A16&"_"&IF(S$4<10,"0"&S$4,S$4),ID_LR!$C$3:$IH$51,47,FALSE) -> -17.57462158 | T16: =HLOOKUP($A16&"_"&IF(T$4<10,"0"&T$4,T$4),ID_LR!$C$3:$IH$51,47,FALSE) -> -45.8887366 | U16: =HLOOKUP($A16&"_"&IF(U$4<10,"0"&U$4,U$4),ID_LR!$C$3:$IH$51,47,FALSE) -> -92.81257655 | V16: =HLOOKUP($A16&"_"&IF(V$4<10,"0"&V$4,V$4),ID_LR!$C$3:$IH$51,47,FALSE) -> -77.97731127 | W16: =HLOOKUP($A16&"_"&IF(W$4<10,"0"&W$4,W$4),ID_LR!$C$3:$IH$51,47,FALSE) -> 32.32264826 | X16: =HLOOKUP($A16&"_"&IF(X$4<10,"0"&X$4,X$4),ID_LR!$C$3:$IH$51,47,FALSE) -> -9.375335479 | Y16: =HLOOKUP($A16&"_"&IF(Y$4<10,"0"&Y$4,Y$4),ID_LR!$C$3:$IH$51,47,FALSE) -> -67.39735795 | Z16: =HLOOKUP($A16&"_"&IF(Z$4<10,"0"&Z$4,Z$4),ID_LR!$C$3:$IH$51,47,FALSE) -> -129.2164569 | AB16: =HLOOKUP($A16&"_"&IF(AB$4<10,"0"&AB$4,AB$4),System_LR!$C$3:$IH$51,47,FALSE) -> -296.9429455 | AC16: =HLOOKUP($A16&"_"&IF(AC$4<10,"0"&AC$4,AC$4),System_LR!$C$3:$IH$51,47,FALSE) -> -139.2828344 | AD16: =HLOOKUP($A16&"_"&IF(AD$4<10,"0"&AD$4,AD$4),System_LR!$C$3:$IH$51,47,FALSE) -> 46.00949703 | AE16: =HLOOKUP($A16&"_"&IF(AE$4<10,"0"&AE$4,AE$4),System_LR!$C$3:$IH$51,47,FALSE) -> 153.6580971 | AF16: =HLOOKUP($A16&"_"&IF(AF$4<10,"0"&AF$4,AF$4),System_LR!$C$3:$IH$51,47,FALSE) -> 83.8658075 | AG16: =HLOOKUP($A16&"_"&IF(AG$4<10,"0"&AG$4,AG$4),System_LR!$C$3:$IH$51,47,FALSE) -> -24.1670846 | AH16: =HLOOKUP($A16&"_"&IF(AH$4<10,"0"&AH$4,AH$4),System_LR!$C$3:$IH$51,47,FALSE) -> -174.8622477 | AI16: =HLOOKUP($A16&"_"&IF(AI$4<10,"0"&AI$4,AI$4),System_LR!$C$3:$IH$51,47,FALSE) -> -207.3216225 | AJ16: =HLOOKUP($A16&"_"&IF(AJ$4<10,"0"&AJ$4,AJ$4),System_LR!$C$3:$IH$51,47,FALSE) -> 119.5173037 | AK16: =HLOOKUP($A16&"_"&IF(AK$4<10,"0"&AK$4,AK$4),System_LR!$C$3:$IH$51,47,FALSE) -> 45.22112728 | AL16: =HLOOKUP($A16&"_"&IF(AL$4<10,"0"&AL$4,AL$4),System_LR!$C$3:$IH$51,47,FALSE) -> -85.16286783 | AM16: =HLOOKUP($A16&"_"&IF(AM$4<10,"0"&AM$4,AM$4),System_LR!$C$3:$IH$51,47,FALSE) -> -245.650004 | AO16: -4.547473509e-13 | AP16: -6.821210263e-13 | AQ16: -1.136868377e-13 | AR16: -4.547473509e-13 | AS16: 3.410605132e-13 | AT16: 2.273736754e-13 | AU16: 6.821210263e-13 | AV16: -3.410605132e-13 | AW16: 1.136868377e-12 | AX16: -6.821210263e-13 | AY16: -3.410605132e-13 | AZ16: 2.273736754e-13
A17: 2038 | B17: =HLOOKUP($A17&"_"&IF(B$4<10,"0"&B$4,B$4),WA_LR!$C$3:$IH$51,47,FALSE) -> -202.7335216 | C17: =HLOOKUP($A17&"_"&IF(C$4<10,"0"&C$4,C$4),WA_LR!$C$3:$IH$51,47,FALSE) -> -96.85436692 | D17: =HLOOKUP($A17&"_"&IF(D$4<10,"0"&D$4,D$4),WA_LR!$C$3:$IH$51,47,FALSE) -> 33.11207949 | E17: =HLOOKUP($A17&"_"&IF(E$4<10,"0"&E$4,E$4),WA_LR!$C$3:$IH$51,47,FALSE) -> 115.3849635 | F17: =HLOOKUP($A17&"_"&IF(F$4<10,"0"&F$4,F$4),WA_LR!$C$3:$IH$51,47,FALSE) -> 69.53968835 | G17: =HLOOKUP($A17&"_"&IF(G$4<10,"0"&G$4,G$4),WA_LR!$C$3:$IH$51,47,FALSE) -> -20.89655854 | H17: =HLOOKUP($A17&"_"&IF(H$4<10,"0"&H$4,H$4),WA_LR!$C$3:$IH$51,47,FALSE) -> -122.5134176 | I17: =HLOOKUP($A17&"_"&IF(I$4<10,"0"&I$4,I$4),WA_LR!$C$3:$IH$51,47,FALSE) -> -164.1159502 | J17: =HLOOKUP($A17&"_"&IF(J$4<10,"0"&J$4,J$4),WA_LR!$C$3:$IH$51,47,FALSE) -> 52.62748621 | K17: =HLOOKUP($A17&"_"&IF(K$4<10,"0"&K$4,K$4),WA_LR!$C$3:$IH$51,47,FALSE) -> 17.68019447 | L17: =HLOOKUP($A17&"_"&IF(L$4<10,"0"&L$4,L$4),WA_LR!$C$3:$IH$51,47,FALSE) -> -61.54337554 | M17: =HLOOKUP($A17&"_"&IF(M$4<10,"0"&M$4,M$4),WA_LR!$C$3:$IH$51,47,FALSE) -> -164.1001365 | O17: =HLOOKUP($A17&"_"&IF(O$4<10,"0"&O$4,O$4),ID_LR!$C$3:$IH$51,47,FALSE) -> -162.6171658 | P17: =HLOOKUP($A17&"_"&IF(P$4<10,"0"&P$4,P$4),ID_LR!$C$3:$IH$51,47,FALSE) -> -104.4283476 | Q17: =HLOOKUP($A17&"_"&IF(Q$4<10,"0"&Q$4,Q$4),ID_LR!$C$3:$IH$51,47,FALSE) -> -46.26118928 | R17: =HLOOKUP($A17&"_"&IF(R$4<10,"0"&R$4,R$4),ID_LR!$C$3:$IH$51,47,FALSE) -> -13.28495469 | S17: =HLOOKUP($A17&"_"&IF(S$4<10,"0"&S$4,S$4),ID_LR!$C$3:$IH$51,47,FALSE) -> -33.72561359 | T17: =HLOOKUP($A17&"_"&IF(T$4<10,"0"&T$4,T$4),ID_LR!$C$3:$IH$51,47,FALSE) -> -66.45662891 | U17: =HLOOKUP($A17&"_"&IF(U$4<10,"0"&U$4,U$4),ID_LR!$C$3:$IH$51,47,FALSE) -> -111.8126794 | V17: =HLOOKUP($A17&"_"&IF(V$4<10,"0"&V$4,V$4),ID_LR!$C$3:$IH$51,47,FALSE) -> -93.47500352 | W17: =HLOOKUP($A17&"_"&IF(W$4<10,"0"&W$4,W$4),ID_LR!$C$3:$IH$51,47,FALSE) -> 15.59728642 | X17: =HLOOKUP($A17&"_"&IF(X$4<10,"0"&X$4,X$4),ID_LR!$C$3:$IH$51,47,FALSE) -> -27.50367418 | Y17: =HLOOKUP($A17&"_"&IF(Y$4<10,"0"&Y$4,Y$4),ID_LR!$C$3:$IH$51,47,FALSE) -> -89.01390927 | Z17: =HLOOKUP($A17&"_"&IF(Z$4<10,"0"&Z$4,Z$4),ID_LR!$C$3:$IH$51,47,FALSE) -> -152.3224704 | AB17: =HLOOKUP($A17&"_"&IF(AB$4<10,"0"&AB$4,AB$4),System_LR!$C$3:$IH$51,47,FALSE) -> -365.3506874 | AC17: =HLOOKUP($A17&"_"&IF(AC$4<10,"0"&AC$4,AC$4),System_LR!$C$3:$IH$51,47,FALSE) -> -201.2827145 | AD17: =HLOOKUP($A17&"_"&IF(AD$4<10,"0"&AD$4,AD$4),System_LR!$C$3:$IH$51,47,FALSE) -> -13.14910978 | AE17: =HLOOKUP($A17&"_"&IF(AE$4<10,"0"&AE$4,AE$4),System_LR!$C$3:$IH$51,47,FALSE) -> 102.1000088 | AF17: =HLOOKUP($A17&"_"&IF(AF$4<10,"0"&AF$4,AF$4),System_LR!$C$3:$IH$51,47,FALSE) -> 35.81407476 | AG17: =HLOOKUP($A17&"_"&IF(AG$4<10,"0"&AG$4,AG$4),System_LR!$C$3:$IH$51,47,FALSE) -> -87.35318744 | AH17: =HLOOKUP($A17&"_"&IF(AH$4<10,"0"&AH$4,AH$4),System_LR!$C$3:$IH$51,47,FALSE) -> -234.326097 | AI17: =HLOOKUP($A17&"_"&IF(AI$4<10,"0"&AI$4,AI$4),System_LR!$C$3:$IH$51,47,FALSE) -> -257.5909538 | AJ17: =HLOOKUP($A17&"_"&IF(AJ$4<10,"0"&AJ$4,AJ$4),System_LR!$C$3:$IH$51,47,FALSE) -> 68.22477263 | AK17: =HLOOKUP($A17&"_"&IF(AK$4<10,"0"&AK$4,AK$4),System_LR!$C$3:$IH$51,47,FALSE) -> -9.823479705 | AL17: =HLOOKUP($A17&"_"&IF(AL$4<10,"0"&AL$4,AL$4),System_LR!$C$3:$IH$51,47,FALSE) -> -150.5572848 | AM17: =HLOOKUP($A17&"_"&IF(AM$4<10,"0"&AM$4,AM$4),System_LR!$C$3:$IH$51,47,FALSE) -> -316.4226069 | AO17: -6.821210263e-13 | AP17: 0 | AQ17: -6.821210263e-13 | AR17: -7.958078641e-13 | AS17: 0 | AT17: 4.547473509e-13 | AU17: 9.094947018e-13 | AV17: 0 | AW17: 1.136868377e-13 | AX17: -2.273736754e-13 | AY17: 0 | AZ17: 0
A18: 2039 | B18: =HLOOKUP($A18&"_"&IF(B$4<10,"0"&B$4,B$4),WA_LR!$C$3:$IH$51,47,FALSE) -> -226.2978975 | C18: =HLOOKUP($A18&"_"&IF(C$4<10,"0"&C$4,C$4),WA_LR!$C$3:$IH$51,47,FALSE) -> -117.9554717 | D18: =HLOOKUP($A18&"_"&IF(D$4<10,"0"&D$4,D$4),WA_LR!$C$3:$IH$51,47,FALSE) -> 12.86775313 | E18: =HLOOKUP($A18&"_"&IF(E$4<10,"0"&E$4,E$4),WA_LR!$C$3:$IH$51,47,FALSE) -> 98.9679678 | F18: =HLOOKUP($A18&"_"&IF(F$4<10,"0"&F$4,F$4),WA_LR!$C$3:$IH$51,47,FALSE) -> 47.03854112 | G18: =HLOOKUP($A18&"_"&IF(G$4<10,"0"&G$4,G$4),WA_LR!$C$3:$IH$51,47,FALSE) -> -43.94278914 | H18: =HLOOKUP($A18&"_"&IF(H$4<10,"0"&H$4,H$4),WA_LR!$C$3:$IH$51,47,FALSE) -> -154.2079321 | I18: =HLOOKUP($A18&"_"&IF(I$4<10,"0"&I$4,I$4),WA_LR!$C$3:$IH$51,47,FALSE) -> -197.7654961 | J18: =HLOOKUP($A18&"_"&IF(J$4<10,"0"&J$4,J$4),WA_LR!$C$3:$IH$51,47,FALSE) -> 35.93004353 | K18: =HLOOKUP($A18&"_"&IF(K$4<10,"0"&K$4,K$4),WA_LR!$C$3:$IH$51,47,FALSE) -> -3.213916627 | L18: =HLOOKUP($A18&"_"&IF(L$4<10,"0"&L$4,L$4),WA_LR!$C$3:$IH$51,47,FALSE) -> -80.62720096 | M18: =HLOOKUP($A18&"_"&IF(M$4<10,"0"&M$4,M$4),WA_LR!$C$3:$IH$51,47,FALSE) -> -186.9645119 | O18: =HLOOKUP($A18&"_"&IF(O$4<10,"0"&O$4,O$4),ID_LR!$C$3:$IH$51,47,FALSE) -> -172.0804587 | P18: =HLOOKUP($A18&"_"&IF(P$4<10,"0"&P$4,P$4),ID_LR!$C$3:$IH$51,47,FALSE) -> -113.1981121 | Q18: =HLOOKUP($A18&"_"&IF(Q$4<10,"0"&Q$4,Q$4),ID_LR!$C$3:$IH$51,47,FALSE) -> -55.58833136 | R18: =HLOOKUP($A18&"_"&IF(R$4<10,"0"&R$4,R$4),ID_LR!$C$3:$IH$51,47,FALSE) -> -21.27210522 | S18: =HLOOKUP($A18&"_"&IF(S$4<10,"0"&S$4,S$4),ID_LR!$C$3:$IH$51,47,FALSE) -> -40.189456 | T18: =HLOOKUP($A18&"_"&IF(T$4<10,"0"&T$4,T$4),ID_LR!$C$3:$IH$51,47,FALSE) -> -72.48983216 | U18: =HLOOKUP($A18&"_"&IF(U$4<10,"0"&U$4,U$4),ID_LR!$C$3:$IH$51,47,FALSE) -> -122.5687344 | V18: =HLOOKUP($A18&"_"&IF(V$4<10,"0"&V$4,V$4),ID_LR!$C$3:$IH$51,47,FALSE) -> -105.2341974 | W18: =HLOOKUP($A18&"_"&IF(W$4<10,"0"&W$4,W$4),ID_LR!$C$3:$IH$51,47,FALSE) -> 9.312950325 | X18: =HLOOKUP($A18&"_"&IF(X$4<10,"0"&X$4,X$4),ID_LR!$C$3:$IH$51,47,FALSE) -> -35.43598629 | Y18: =HLOOKUP($A18&"_"&IF(Y$4<10,"0"&Y$4,Y$4),ID_LR!$C$3:$IH$51,47,FALSE) -> -97.12191092 | Z18: =HLOOKUP($A18&"_"&IF(Z$4<10,"0"&Z$4,Z$4),ID_LR!$C$3:$IH$51,47,FALSE) -> -161.4221441 | AB18: =HLOOKUP($A18&"_"&IF(AB$4<10,"0"&AB$4,AB$4),System_LR!$C$3:$IH$51,47,FALSE) -> -398.3783562 | AC18: =HLOOKUP($A18&"_"&IF(AC$4<10,"0"&AC$4,AC$4),System_LR!$C$3:$IH$51,47,FALSE) -> -231.1535837 | AD18: =HLOOKUP($A18&"_"&IF(AD$4<10,"0"&AD$4,AD$4),System_LR!$C$3:$IH$51,47,FALSE) -> -42.72057823 | AE18: =HLOOKUP($A18&"_"&IF(AE$4<10,"0"&AE$4,AE$4),System_LR!$C$3:$IH$51,47,FALSE) -> 77.69586257 | AF18: =HLOOKUP($A18&"_"&IF(AF$4<10,"0"&AF$4,AF$4),System_LR!$C$3:$IH$51,47,FALSE) -> 6.849085114 | AG18: =HLOOKUP($A18&"_"&IF(AG$4<10,"0"&AG$4,AG$4),System_LR!$C$3:$IH$51,47,FALSE) -> -116.4326213 | AH18: =HLOOKUP($A18&"_"&IF(AH$4<10,"0"&AH$4,AH$4),System_LR!$C$3:$IH$51,47,FALSE) -> -276.7766665 | AI18: =HLOOKUP($A18&"_"&IF(AI$4<10,"0"&AI$4,AI$4),System_LR!$C$3:$IH$51,47,FALSE) -> -302.9996935 | AJ18: =HLOOKUP($A18&"_"&IF(AJ$4<10,"0"&AJ$4,AJ$4),System_LR!$C$3:$IH$51,47,FALSE) -> 45.24299385 | AK18: =HLOOKUP($A18&"_"&IF(AK$4<10,"0"&AK$4,AK$4),System_LR!$C$3:$IH$51,47,FALSE) -> -38.64990292 | AL18: =HLOOKUP($A18&"_"&IF(AL$4<10,"0"&AL$4,AL$4),System_LR!$C$3:$IH$51,47,FALSE) -> -177.7491119 | AM18: =HLOOKUP($A18&"_"&IF(AM$4<10,"0"&AM$4,AM$4),System_LR!$C$3:$IH$51,47,FALSE) -> -348.386656 | AO18: -9.094947018e-13 | AP18: -7.958078641e-13 | AQ18: -3.410605132e-13 | AR18: -5.684341886e-13 | AS18: -3.410605132e-13 | AT18: -4.547473509e-13 | AU18: 0 | AV18: -4.547473509e-13 | AW18: 0 | AX18: -1.023181539e-12 | AY18: -9.094947018e-13 | AZ18: 0
A19: 2040 | B19: =HLOOKUP($A19&"_"&IF(B$4<10,"0"&B$4,B$4),WA_LR!$C$3:$IH$51,47,FALSE) -> -277.8087334 | C19: =HLOOKUP($A19&"_"&IF(C$4<10,"0"&C$4,C$4),WA_LR!$C$3:$IH$51,47,FALSE) -> -167.748531 | D19: =HLOOKUP($A19&"_"&IF(D$4<10,"0"&D$4,D$4),WA_LR!$C$3:$IH$51,47,FALSE) -> -31.10044699 | E19: =HLOOKUP($A19&"_"&IF(E$4<10,"0"&E$4,E$4),WA_LR!$C$3:$IH$51,47,FALSE) -> 59.70301224 | F19: =HLOOKUP($A19&"_"&IF(F$4<10,"0"&F$4,F$4),WA_LR!$C$3:$IH$51,47,FALSE) -> 14.91117252 | G19: =HLOOKUP($A19&"_"&IF(G$4<10,"0"&G$4,G$4),WA_LR!$C$3:$IH$51,47,FALSE) -> -93.66064299 | H19: =HLOOKUP($A19&"_"&IF(H$4<10,"0"&H$4,H$4),WA_LR!$C$3:$IH$51,47,FALSE) -> -199.9774395 | I19: =HLOOKUP($A19&"_"&IF(I$4<10,"0"&I$4,I$4),WA_LR!$C$3:$IH$51,47,FALSE) -> -247.9489934 | J19: =HLOOKUP($A19&"_"&IF(J$4<10,"0"&J$4,J$4),WA_LR!$C$3:$IH$51,47,FALSE) -> -6.6137497 | K19: =HLOOKUP($A19&"_"&IF(K$4<10,"0"&K$4,K$4),WA_LR!$C$3:$IH$51,47,FALSE) -> -42.45405478 | L19: =HLOOKUP($A19&"_"&IF(L$4<10,"0"&L$4,L$4),WA_LR!$C$3:$IH$51,47,FALSE) -> -126.7081065 | M19: =HLOOKUP($A19&"_"&IF(M$4<10,"0"&M$4,M$4),WA_LR!$C$3:$IH$51,47,FALSE) -> -234.4934103 | O19: =HLOOKUP($A19&"_"&IF(O$4<10,"0"&O$4,O$4),ID_LR!$C$3:$IH$51,47,FALSE) -> -194.7215552 | P19: =HLOOKUP($A19&"_"&IF(P$4<10,"0"&P$4,P$4),ID_LR!$C$3:$IH$51,47,FALSE) -> -135.7156025 | Q19: =HLOOKUP($A19&"_"&IF(Q$4<10,"0"&Q$4,Q$4),ID_LR!$C$3:$IH$51,47,FALSE) -> -76.24957424 | R19: =HLOOKUP($A19&"_"&IF(R$4<10,"0"&R$4,R$4),ID_LR!$C$3:$IH$51,47,FALSE) -> -40.38523299 | S19: =HLOOKUP($A19&"_"&IF(S$4<10,"0"&S$4,S$4),ID_LR!$C$3:$IH$51,47,FALSE) -> -55.52205247 | T19: =HLOOKUP($A19&"_"&IF(T$4<10,"0"&T$4,T$4),ID_LR!$C$3:$IH$51,47,FALSE) -> -95.40041304 | U19: =HLOOKUP($A19&"_"&IF(U$4<10,"0"&U$4,U$4),ID_LR!$C$3:$IH$51,47,FALSE) -> -142.8757098 | V19: =HLOOKUP($A19&"_"&IF(V$4<10,"0"&V$4,V$4),ID_LR!$C$3:$IH$51,47,FALSE) -> -127.0322232 | W19: =HLOOKUP($A19&"_"&IF(W$4<10,"0"&W$4,W$4),ID_LR!$C$3:$IH$51,47,FALSE) -> -10.58107822 | X19: =HLOOKUP($A19&"_"&IF(X$4<10,"0"&X$4,X$4),ID_LR!$C$3:$IH$51,47,FALSE) -> -53.72390647 | Y19: =HLOOKUP($A19&"_"&IF(Y$4<10,"0"&Y$4,Y$4),ID_LR!$C$3:$IH$51,47,FALSE) -> -118.2073534 | Z19: =HLOOKUP($A19&"_"&IF(Z$4<10,"0"&Z$4,Z$4),ID_LR!$C$3:$IH$51,47,FALSE) -> -182.4437294 | AB19: =HLOOKUP($A19&"_"&IF(AB$4<10,"0"&AB$4,AB$4),System_LR!$C$3:$IH$51,47,FALSE) -> -472.5302887 | AC19: =HLOOKUP($A19&"_"&IF(AC$4<10,"0"&AC$4,AC$4),System_LR!$C$3:$IH$51,47,FALSE) -> -303.4641335 | AD19: =HLOOKUP($A19&"_"&IF(AD$4<10,"0"&AD$4,AD$4),System_LR!$C$3:$IH$51,47,FALSE) -> -107.3500212 | AE19: =HLOOKUP($A19&"_"&IF(AE$4<10,"0"&AE$4,AE$4),System_LR!$C$3:$IH$51,47,FALSE) -> 19.31777925 | AF19: =HLOOKUP($A19&"_"&IF(AF$4<10,"0"&AF$4,AF$4),System_LR!$C$3:$IH$51,47,FALSE) -> -40.61087995 | AG19: =HLOOKUP($A19&"_"&IF(AG$4<10,"0"&AG$4,AG$4),System_LR!$C$3:$IH$51,47,FALSE) -> -189.061056 | AH19: =HLOOKUP($A19&"_"&IF(AH$4<10,"0"&AH$4,AH$4),System_LR!$C$3:$IH$51,47,FALSE) -> -342.8531493 | AI19: =HLOOKUP($A19&"_"&IF(AI$4<10,"0"&AI$4,AI$4),System_LR!$C$3:$IH$51,47,FALSE) -> -374.9812166 | AJ19: =HLOOKUP($A19&"_"&IF(AJ$4<10,"0"&AJ$4,AJ$4),System_LR!$C$3:$IH$51,47,FALSE) -> -17.19482792 | AK19: =HLOOKUP($A19&"_"&IF(AK$4<10,"0"&AK$4,AK$4),System_LR!$C$3:$IH$51,47,FALSE) -> -96.17796125 | AL19: =HLOOKUP($A19&"_"&IF(AL$4<10,"0"&AL$4,AL$4),System_LR!$C$3:$IH$51,47,FALSE) -> -244.9154599 | AM19: =HLOOKUP($A19&"_"&IF(AM$4<10,"0"&AM$4,AM$4),System_LR!$C$3:$IH$51,47,FALSE) -> -416.9371397 | AO19: -7.958078641e-13 | AP19: -1.023181539e-12 | AQ19: -3.410605132e-13 | AR19: -1.136868377e-13 | AS19: -6.821210263e-13 | AT19: -6.821210263e-13 | AU19: 5.684341886e-13 | AV19: -5.684341886e-13 | AW19: -4.547473509e-13 | AX19: 1.136868377e-13 | AY19: -3.410605132e-13 | AZ19: -1.023181539e-12
A20: 2041 | B20: =HLOOKUP($A20&"_"&IF(B$4<10,"0"&B$4,B$4),WA_LR!$C$3:$IH$51,47,FALSE) -> -314.8348876 | C20: =HLOOKUP($A20&"_"&IF(C$4<10,"0"&C$4,C$4),WA_LR!$C$3:$IH$51,47,FALSE) -> -201.2694862 | D20: =HLOOKUP($A20&"_"&IF(D$4<10,"0"&D$4,D$4),WA_LR!$C$3:$IH$51,47,FALSE) -> -65.31254599 | E20: =HLOOKUP($A20&"_"&IF(E$4<10,"0"&E$4,E$4),WA_LR!$C$3:$IH$51,47,FALSE) -> 28.49863954 | F20: =HLOOKUP($A20&"_"&IF(F$4<10,"0"&F$4,F$4),WA_LR!$C$3:$IH$51,47,FALSE) -> -6.558892839 | G20: =HLOOKUP($A20&"_"&IF(G$4<10,"0"&G$4,G$4),WA_LR!$C$3:$IH$51,47,FALSE) -> -99.94353608 | H20: =HLOOKUP($A20&"_"&IF(H$4<10,"0"&H$4,H$4),WA_LR!$C$3:$IH$51,47,FALSE) -> -227.0280367 | I20: =HLOOKUP($A20&"_"&IF(I$4<10,"0"&I$4,I$4),WA_LR!$C$3:$IH$51,47,FALSE) -> -276.3078776 | J20: =HLOOKUP($A20&"_"&IF(J$4<10,"0"&J$4,J$4),WA_LR!$C$3:$IH$51,47,FALSE) -> -38.71051501 | K20: =HLOOKUP($A20&"_"&IF(K$4<10,"0"&K$4,K$4),WA_LR!$C$3:$IH$51,47,FALSE) -> -71.1318812 | L20: =HLOOKUP($A20&"_"&IF(L$4<10,"0"&L$4,L$4),WA_LR!$C$3:$IH$51,47,FALSE) -> -157.9495566 | M20: =HLOOKUP($A20&"_"&IF(M$4<10,"0"&M$4,M$4),WA_LR!$C$3:$IH$51,47,FALSE) -> -274.0873716 | O20: =HLOOKUP($A20&"_"&IF(O$4<10,"0"&O$4,O$4),ID_LR!$C$3:$IH$51,47,FALSE) -> -210.4057169 | P20: =HLOOKUP($A20&"_"&IF(P$4<10,"0"&P$4,P$4),ID_LR!$C$3:$IH$51,47,FALSE) -> -150.1951409 | Q20: =HLOOKUP($A20&"_"&IF(Q$4<10,"0"&Q$4,Q$4),ID_LR!$C$3:$IH$51,47,FALSE) -> -91.75851572 | R20: =HLOOKUP($A20&"_"&IF(R$4<10,"0"&R$4,R$4),ID_LR!$C$3:$IH$51,47,FALSE) -> -55.02222206 | S20: =HLOOKUP($A20&"_"&IF(S$4<10,"0"&S$4,S$4),ID_LR!$C$3:$IH$51,47,FALSE) -> -65.29144241 | T20: =HLOOKUP($A20&"_"&IF(T$4<10,"0"&T$4,T$4),ID_LR!$C$3:$IH$51,47,FALSE) -> -97.21434639 | U20: =HLOOKUP($A20&"_"&IF(U$4<10,"0"&U$4,U$4),ID_LR!$C$3:$IH$51,47,FALSE) -> -154.0121599 | V20: =HLOOKUP($A20&"_"&IF(V$4<10,"0"&V$4,V$4),ID_LR!$C$3:$IH$51,47,FALSE) -> -138.3578277 | W20: =HLOOKUP($A20&"_"&IF(W$4<10,"0"&W$4,W$4),ID_LR!$C$3:$IH$51,47,FALSE) -> -24.85955462 | X20: =HLOOKUP($A20&"_"&IF(X$4<10,"0"&X$4,X$4),ID_LR!$C$3:$IH$51,47,FALSE) -> -66.46048316 | Y20: =HLOOKUP($A20&"_"&IF(Y$4<10,"0"&Y$4,Y$4),ID_LR!$C$3:$IH$51,47,FALSE) -> -131.897457 | Z20: =HLOOKUP($A20&"_"&IF(Z$4<10,"0"&Z$4,Z$4),ID_LR!$C$3:$IH$51,47,FALSE) -> -199.6844921 | AB20: =HLOOKUP($A20&"_"&IF(AB$4<10,"0"&AB$4,AB$4),System_LR!$C$3:$IH$51,47,FALSE) -> -525.2406045 | AC20: =HLOOKUP($A20&"_"&IF(AC$4<10,"0"&AC$4,AC$4),System_LR!$C$3:$IH$51,47,FALSE) -> -351.4646271 | AD20: =HLOOKUP($A20&"_"&IF(AD$4<10,"0"&AD$4,AD$4),System_LR!$C$3:$IH$51,47,FALSE) -> -157.0710617 | AE20: =HLOOKUP($A20&"_"&IF(AE$4<10,"0"&AE$4,AE$4),System_LR!$C$3:$IH$51,47,FALSE) -> -26.52358252 | AF20: =HLOOKUP($A20&"_"&IF(AF$4<10,"0"&AF$4,AF$4),System_LR!$C$3:$IH$51,47,FALSE) -> -71.85033525 | AG20: =HLOOKUP($A20&"_"&IF(AG$4<10,"0"&AG$4,AG$4),System_LR!$C$3:$IH$51,47,FALSE) -> -197.1578825 | AH20: =HLOOKUP($A20&"_"&IF(AH$4<10,"0"&AH$4,AH$4),System_LR!$C$3:$IH$51,47,FALSE) -> -381.0401965 | AI20: =HLOOKUP($A20&"_"&IF(AI$4<10,"0"&AI$4,AI$4),System_LR!$C$3:$IH$51,47,FALSE) -> -414.6657053 | AJ20: =HLOOKUP($A20&"_"&IF(AJ$4<10,"0"&AJ$4,AJ$4),System_LR!$C$3:$IH$51,47,FALSE) -> -63.57006963 | AK20: =HLOOKUP($A20&"_"&IF(AK$4<10,"0"&AK$4,AK$4),System_LR!$C$3:$IH$51,47,FALSE) -> -137.5923644 | AL20: =HLOOKUP($A20&"_"&IF(AL$4<10,"0"&AL$4,AL$4),System_LR!$C$3:$IH$51,47,FALSE) -> -289.8470137 | AM20: =HLOOKUP($A20&"_"&IF(AM$4<10,"0"&AM$4,AM$4),System_LR!$C$3:$IH$51,47,FALSE) -> -473.7718637 | AO20: 0 | AP20: -5.684341886e-13 | AQ20: -2.273736754e-13 | AR20: -3.410605132e-13 | AS20: 0 | AT20: 0 | AU20: 0 | AV20: 0 | AW20: 1.136868377e-13 | AX20: 0 | AY20: -9.094947018e-13 | AZ20: 0
A21: 2042 | B21: =HLOOKUP($A21&"_"&IF(B$4<10,"0"&B$4,B$4),WA_LR!$C$3:$IH$51,47,FALSE) -> -529.2851253 | C21: =HLOOKUP($A21&"_"&IF(C$4<10,"0"&C$4,C$4),WA_LR!$C$3:$IH$51,47,FALSE) -> -416.6459702 | D21: =HLOOKUP($A21&"_"&IF(D$4<10,"0"&D$4,D$4),WA_LR!$C$3:$IH$51,47,FALSE) -> -279.4711759 | E21: =HLOOKUP($A21&"_"&IF(E$4<10,"0"&E$4,E$4),WA_LR!$C$3:$IH$51,47,FALSE) -> -132.8624694 | F21: =HLOOKUP($A21&"_"&IF(F$4<10,"0"&F$4,F$4),WA_LR!$C$3:$IH$51,47,FALSE) -> -145.9065403 | G21: =HLOOKUP($A21&"_"&IF(G$4<10,"0"&G$4,G$4),WA_LR!$C$3:$IH$51,47,FALSE) -> -287.1560899 | H21: =HLOOKUP($A21&"_"&IF(H$4<10,"0"&H$4,H$4),WA_LR!$C$3:$IH$51,47,FALSE) -> -415.9898757 | I21: =HLOOKUP($A21&"_"&IF(I$4<10,"0"&I$4,I$4),WA_LR!$C$3:$IH$51,47,FALSE) -> -468.8045558 | J21: =HLOOKUP($A21&"_"&IF(J$4<10,"0"&J$4,J$4),WA_LR!$C$3:$IH$51,47,FALSE) -> -218.0768767 | K21: =HLOOKUP($A21&"_"&IF(K$4<10,"0"&K$4,K$4),WA_LR!$C$3:$IH$51,47,FALSE) -> -268.0831794 | L21: =HLOOKUP($A21&"_"&IF(L$4<10,"0"&L$4,L$4),WA_LR!$C$3:$IH$51,47,FALSE) -> -372.3425398 | M21: =HLOOKUP($A21&"_"&IF(M$4<10,"0"&M$4,M$4),WA_LR!$C$3:$IH$51,47,FALSE) -> -489.5710115 | O21: =HLOOKUP($A21&"_"&IF(O$4<10,"0"&O$4,O$4),ID_LR!$C$3:$IH$51,47,FALSE) -> -308.8828398 | P21: =HLOOKUP($A21&"_"&IF(P$4<10,"0"&P$4,P$4),ID_LR!$C$3:$IH$51,47,FALSE) -> -249.6441107 | Q21: =HLOOKUP($A21&"_"&IF(Q$4<10,"0"&Q$4,Q$4),ID_LR!$C$3:$IH$51,47,FALSE) -> -191.3271034 | R21: =HLOOKUP($A21&"_"&IF(R$4<10,"0"&R$4,R$4),ID_LR!$C$3:$IH$51,47,FALSE) -> -130.3477445 | S21: =HLOOKUP($A21&"_"&IF(S$4<10,"0"&S$4,S$4),ID_LR!$C$3:$IH$51,47,FALSE) -> -130.1134952 | T21: =HLOOKUP($A21&"_"&IF(T$4<10,"0"&T$4,T$4),ID_LR!$C$3:$IH$51,47,FALSE) -> -183.8042315 | U21: =HLOOKUP($A21&"_"&IF(U$4<10,"0"&U$4,U$4),ID_LR!$C$3:$IH$51,47,FALSE) -> -240.8559444 | V21: =HLOOKUP($A21&"_"&IF(V$4<10,"0"&V$4,V$4),ID_LR!$C$3:$IH$51,47,FALSE) -> -226.4155586 | W21: =HLOOKUP($A21&"_"&IF(W$4<10,"0"&W$4,W$4),ID_LR!$C$3:$IH$51,47,FALSE) -> -108.132858 | X21: =HLOOKUP($A21&"_"&IF(X$4<10,"0"&X$4,X$4),ID_LR!$C$3:$IH$51,47,FALSE) -> -157.8551353 | Y21: =HLOOKUP($A21&"_"&IF(Y$4<10,"0"&Y$4,Y$4),ID_LR!$C$3:$IH$51,47,FALSE) -> -231.1948351 | Z21: =HLOOKUP($A21&"_"&IF(Z$4<10,"0"&Z$4,Z$4),ID_LR!$C$3:$IH$51,47,FALSE) -> -298.9380664 | AB21: =HLOOKUP($A21&"_"&IF(AB$4<10,"0"&AB$4,AB$4),System_LR!$C$3:$IH$51,47,FALSE) -> -838.1679651 | AC21: =HLOOKUP($A21&"_"&IF(AC$4<10,"0"&AC$4,AC$4),System_LR!$C$3:$IH$51,47,FALSE) -> -666.2900809 | AD21: =HLOOKUP($A21&"_"&IF(AD$4<10,"0"&AD$4,AD$4),System_LR!$C$3:$IH$51,47,FALSE) -> -470.7982793 | AE21: =HLOOKUP($A21&"_"&IF(AE$4<10,"0"&AE$4,AE$4),System_LR!$C$3:$IH$51,47,FALSE) -> -263.2102139 | AF21: =HLOOKUP($A21&"_"&IF(AF$4<10,"0"&AF$4,AF$4),System_LR!$C$3:$IH$51,47,FALSE) -> -276.0200355 | AG21: =HLOOKUP($A21&"_"&IF(AG$4<10,"0"&AG$4,AG$4),System_LR!$C$3:$IH$51,47,FALSE) -> -470.9603214 | AH21: =HLOOKUP($A21&"_"&IF(AH$4<10,"0"&AH$4,AH$4),System_LR!$C$3:$IH$51,47,FALSE) -> -656.8458201 | AI21: =HLOOKUP($A21&"_"&IF(AI$4<10,"0"&AI$4,AI$4),System_LR!$C$3:$IH$51,47,FALSE) -> -695.2201144 | AJ21: =HLOOKUP($A21&"_"&IF(AJ$4<10,"0"&AJ$4,AJ$4),System_LR!$C$3:$IH$51,47,FALSE) -> -326.2097347 | AK21: =HLOOKUP($A21&"_"&IF(AK$4<10,"0"&AK$4,AK$4),System_LR!$C$3:$IH$51,47,FALSE) -> -425.9383147 | AL21: =HLOOKUP($A21&"_"&IF(AL$4<10,"0"&AL$4,AL$4),System_LR!$C$3:$IH$51,47,FALSE) -> -603.5373749 | AM21: =HLOOKUP($A21&"_"&IF(AM$4<10,"0"&AM$4,AM$4),System_LR!$C$3:$IH$51,47,FALSE) -> -788.5090779 | AO21: 0 | AP21: 0 | AQ21: 0 | AR21: 0 | AS21: 0 | AT21: 0 | AU21: 0 | AV21: 0 | AW21: 4.547473509e-13 | AX21: 0 | AY21: 0 | AZ21: 0
A22: 2043 | B22: =HLOOKUP($A22&"_"&IF(B$4<10,"0"&B$4,B$4),WA_LR!$C$3:$IH$51,47,FALSE) -> -580.1780341 | C22: =HLOOKUP($A22&"_"&IF(C$4<10,"0"&C$4,C$4),WA_LR!$C$3:$IH$51,47,FALSE) -> -465.8545479 | D22: =HLOOKUP($A22&"_"&IF(D$4<10,"0"&D$4,D$4),WA_LR!$C$3:$IH$51,47,FALSE) -> -326.2001606 | E22: =HLOOKUP($A22&"_"&IF(E$4<10,"0"&E$4,E$4),WA_LR!$C$3:$IH$51,47,FALSE) -> -175.016031 | F22: =HLOOKUP($A22&"_"&IF(F$4<10,"0"&F$4,F$4),WA_LR!$C$3:$IH$51,47,FALSE) -> -180.6873612 | G22: =HLOOKUP($A22&"_"&IF(G$4<10,"0"&G$4,G$4),WA_LR!$C$3:$IH$51,47,FALSE) -> -303.816414 | H22: =HLOOKUP($A22&"_"&IF(H$4<10,"0"&H$4,H$4),WA_LR!$C$3:$IH$51,47,FALSE) -> -436.3855406 | I22: =HLOOKUP($A22&"_"&IF(I$4<10,"0"&I$4,I$4),WA_LR!$C$3:$IH$51,47,FALSE) -> -488.4856825 | J22: =HLOOKUP($A22&"_"&IF(J$4<10,"0"&J$4,J$4),WA_LR!$C$3:$IH$51,47,FALSE) -> -247.0276523 | K22: =HLOOKUP($A22&"_"&IF(K$4<10,"0"&K$4,K$4),WA_LR!$C$3:$IH$51,47,FALSE) -> -307.1769857 | L22: =HLOOKUP($A22&"_"&IF(L$4<10,"0"&L$4,L$4),WA_LR!$C$3:$IH$51,47,FALSE) -> -415.2946461 | M22: =HLOOKUP($A22&"_"&IF(M$4<10,"0"&M$4,M$4),WA_LR!$C$3:$IH$51,47,FALSE) -> -538.6813406 | O22: =HLOOKUP($A22&"_"&IF(O$4<10,"0"&O$4,O$4),ID_LR!$C$3:$IH$51,47,FALSE) -> -329.8993669 | P22: =HLOOKUP($A22&"_"&IF(P$4<10,"0"&P$4,P$4),ID_LR!$C$3:$IH$51,47,FALSE) -> -270.2969136 | Q22: =HLOOKUP($A22&"_"&IF(Q$4<10,"0"&Q$4,Q$4),ID_LR!$C$3:$IH$51,47,FALSE) -> -211.5702937 | R22: =HLOOKUP($A22&"_"&IF(R$4<10,"0"&R$4,R$4),ID_LR!$C$3:$IH$51,47,FALSE) -> -149.3304805 | S22: =HLOOKUP($A22&"_"&IF(S$4<10,"0"&S$4,S$4),ID_LR!$C$3:$IH$51,47,FALSE) -> -145.4300151 | T22: =HLOOKUP($A22&"_"&IF(T$4<10,"0"&T$4,T$4),ID_LR!$C$3:$IH$51,47,FALSE) -> -189.7021535 | U22: =HLOOKUP($A22&"_"&IF(U$4<10,"0"&U$4,U$4),ID_LR!$C$3:$IH$51,47,FALSE) -> -247.8734476 | V22: =HLOOKUP($A22&"_"&IF(V$4<10,"0"&V$4,V$4),ID_LR!$C$3:$IH$51,47,FALSE) -> -232.8294282 | W22: =HLOOKUP($A22&"_"&IF(W$4<10,"0"&W$4,W$4),ID_LR!$C$3:$IH$51,47,FALSE) -> -119.9523727 | X22: =HLOOKUP($A22&"_"&IF(X$4<10,"0"&X$4,X$4),ID_LR!$C$3:$IH$51,47,FALSE) -> -174.2814382 | Y22: =HLOOKUP($A22&"_"&IF(Y$4<10,"0"&Y$4,Y$4),ID_LR!$C$3:$IH$51,47,FALSE) -> -249.2676583 | Z22: =HLOOKUP($A22&"_"&IF(Z$4<10,"0"&Z$4,Z$4),ID_LR!$C$3:$IH$51,47,FALSE) -> -319.4386544 | AB22: =HLOOKUP($A22&"_"&IF(AB$4<10,"0"&AB$4,AB$4),System_LR!$C$3:$IH$51,47,FALSE) -> -910.0774011 | AC22: =HLOOKUP($A22&"_"&IF(AC$4<10,"0"&AC$4,AC$4),System_LR!$C$3:$IH$51,47,FALSE) -> -736.1514615 | AD22: =HLOOKUP($A22&"_"&IF(AD$4<10,"0"&AD$4,AD$4),System_LR!$C$3:$IH$51,47,FALSE) -> -537.7704543 | AE22: =HLOOKUP($A22&"_"&IF(AE$4<10,"0"&AE$4,AE$4),System_LR!$C$3:$IH$51,47,FALSE) -> -324.3465115 | AF22: =HLOOKUP($A22&"_"&IF(AF$4<10,"0"&AF$4,AF$4),System_LR!$C$3:$IH$51,47,FALSE) -> -326.1173763 | AG22: =HLOOKUP($A22&"_"&IF(AG$4<10,"0"&AG$4,AG$4),System_LR!$C$3:$IH$51,47,FALSE) -> -493.5185675 | AH22: =HLOOKUP($A22&"_"&IF(AH$4<10,"0"&AH$4,AH$4),System_LR!$C$3:$IH$51,47,FALSE) -> -684.2589882 | AI22: =HLOOKUP($A22&"_"&IF(AI$4<10,"0"&AI$4,AI$4),System_LR!$C$3:$IH$51,47,FALSE) -> -721.3151107 | AJ22: =HLOOKUP($A22&"_"&IF(AJ$4<10,"0"&AJ$4,AJ$4),System_LR!$C$3:$IH$51,47,FALSE) -> -366.980025 | AK22: =HLOOKUP($A22&"_"&IF(AK$4<10,"0"&AK$4,AK$4),System_LR!$C$3:$IH$51,47,FALSE) -> -481.4584239 | AL22: =HLOOKUP($A22&"_"&IF(AL$4<10,"0"&AL$4,AL$4),System_LR!$C$3:$IH$51,47,FALSE) -> -664.5623044 | AM22: =HLOOKUP($A22&"_"&IF(AM$4<10,"0"&AM$4,AM$4),System_LR!$C$3:$IH$51,47,FALSE) -> -858.119995 | AO22: 0 | AP22: -1.136868377e-12 | AQ22: 0 | AR22: 0 | AS22: 0 | AT22: 0 | AU22: 0 | AV22: 0 | AW22: 0 | AX22: -4.547473509e-13 | AY22: 0 | AZ22: 0
A23: 2044 | B23: =HLOOKUP($A23&"_"&IF(B$4<10,"0"&B$4,B$4),WA_LR!$C$3:$IH$51,47,FALSE) -> -637.7850403 | C23: =HLOOKUP($A23&"_"&IF(C$4<10,"0"&C$4,C$4),WA_LR!$C$3:$IH$51,47,FALSE) -> -520.5755921 | D23: =HLOOKUP($A23&"_"&IF(D$4<10,"0"&D$4,D$4),WA_LR!$C$3:$IH$51,47,FALSE) -> -377.5355796 | E23: =HLOOKUP($A23&"_"&IF(E$4<10,"0"&E$4,E$4),WA_LR!$C$3:$IH$51,47,FALSE) -> -219.0088708 | F23: =HLOOKUP($A23&"_"&IF(F$4<10,"0"&F$4,F$4),WA_LR!$C$3:$IH$51,47,FALSE) -> -220.0518933 | G23: =HLOOKUP($A23&"_"&IF(G$4<10,"0"&G$4,G$4),WA_LR!$C$3:$IH$51,47,FALSE) -> -345.9704646 | H23: =HLOOKUP($A23&"_"&IF(H$4<10,"0"&H$4,H$4),WA_LR!$C$3:$IH$51,47,FALSE) -> -476.776197 | I23: =HLOOKUP($A23&"_"&IF(I$4<10,"0"&I$4,I$4),WA_LR!$C$3:$IH$51,47,FALSE) -> -535.8258555 | J23: =HLOOKUP($A23&"_"&IF(J$4<10,"0"&J$4,J$4),WA_LR!$C$3:$IH$51,47,FALSE) -> -276.0215472 | K23: =HLOOKUP($A23&"_"&IF(K$4<10,"0"&K$4,K$4),WA_LR!$C$3:$IH$51,47,FALSE) -> -353.9872377 | L23: =HLOOKUP($A23&"_"&IF(L$4<10,"0"&L$4,L$4),WA_LR!$C$3:$IH$51,47,FALSE) -> -468.3800328 | M23: =HLOOKUP($A23&"_"&IF(M$4<10,"0"&M$4,M$4),WA_LR!$C$3:$IH$51,47,FALSE) -> -592.825288 | O23: =HLOOKUP($A23&"_"&IF(O$4<10,"0"&O$4,O$4),ID_LR!$C$3:$IH$51,47,FALSE) -> -354.2054961 | P23: =HLOOKUP($A23&"_"&IF(P$4<10,"0"&P$4,P$4),ID_LR!$C$3:$IH$51,47,FALSE) -> -293.5399178 | Q23: =HLOOKUP($A23&"_"&IF(Q$4<10,"0"&Q$4,Q$4),ID_LR!$C$3:$IH$51,47,FALSE) -> -233.9976281 | R23: =HLOOKUP($A23&"_"&IF(R$4<10,"0"&R$4,R$4),ID_LR!$C$3:$IH$51,47,FALSE) -> -169.2032483 | S23: =HLOOKUP($A23&"_"&IF(S$4<10,"0"&S$4,S$4),ID_LR!$C$3:$IH$51,47,FALSE) -> -162.8116245 | T23: =HLOOKUP($A23&"_"&IF(T$4<10,"0"&T$4,T$4),ID_LR!$C$3:$IH$51,47,FALSE) -> -207.4310712 | U23: =HLOOKUP($A23&"_"&IF(U$4<10,"0"&U$4,U$4),ID_LR!$C$3:$IH$51,47,FALSE) -> -264.3069239 | V23: =HLOOKUP($A23&"_"&IF(V$4<10,"0"&V$4,V$4),ID_LR!$C$3:$IH$51,47,FALSE) -> -251.5848101 | W23: =HLOOKUP($A23&"_"&IF(W$4<10,"0"&W$4,W$4),ID_LR!$C$3:$IH$51,47,FALSE) -> -131.6103537 | X23: =HLOOKUP($A23&"_"&IF(X$4<10,"0"&X$4,X$4),ID_LR!$C$3:$IH$51,47,FALSE) -> -194.1195941 | Y23: =HLOOKUP($A23&"_"&IF(Y$4<10,"0"&Y$4,Y$4),ID_LR!$C$3:$IH$51,47,FALSE) -> -272.2063528 | Z23: =HLOOKUP($A23&"_"&IF(Z$4<10,"0"&Z$4,Z$4),ID_LR!$C$3:$IH$51,47,FALSE) -> -342.5083839 | AB23: =HLOOKUP($A23&"_"&IF(AB$4<10,"0"&AB$4,AB$4),System_LR!$C$3:$IH$51,47,FALSE) -> -991.9905363 | AC23: =HLOOKUP($A23&"_"&IF(AC$4<10,"0"&AC$4,AC$4),System_LR!$C$3:$IH$51,47,FALSE) -> -814.1155099 | AD23: =HLOOKUP($A23&"_"&IF(AD$4<10,"0"&AD$4,AD$4),System_LR!$C$3:$IH$51,47,FALSE) -> -611.5332077 | AE23: =HLOOKUP($A23&"_"&IF(AE$4<10,"0"&AE$4,AE$4),System_LR!$C$3:$IH$51,47,FALSE) -> -388.2121191 | AF23: =HLOOKUP($A23&"_"&IF(AF$4<10,"0"&AF$4,AF$4),System_LR!$C$3:$IH$51,47,FALSE) -> -382.8635178 | AG23: =HLOOKUP($A23&"_"&IF(AG$4<10,"0"&AG$4,AG$4),System_LR!$C$3:$IH$51,47,FALSE) -> -553.4015357 | AH23: =HLOOKUP($A23&"_"&IF(AH$4<10,"0"&AH$4,AH$4),System_LR!$C$3:$IH$51,47,FALSE) -> -741.0831209 | AI23: =HLOOKUP($A23&"_"&IF(AI$4<10,"0"&AI$4,AI$4),System_LR!$C$3:$IH$51,47,FALSE) -> -787.4106656 | AJ23: =HLOOKUP($A23&"_"&IF(AJ$4<10,"0"&AJ$4,AJ$4),System_LR!$C$3:$IH$51,47,FALSE) -> -407.6319009 | AK23: =HLOOKUP($A23&"_"&IF(AK$4<10,"0"&AK$4,AK$4),System_LR!$C$3:$IH$51,47,FALSE) -> -548.1068318 | AL23: =HLOOKUP($A23&"_"&IF(AL$4<10,"0"&AL$4,AL$4),System_LR!$C$3:$IH$51,47,FALSE) -> -740.5863856 | AM23: =HLOOKUP($A23&"_"&IF(AM$4<10,"0"&AM$4,AM$4),System_LR!$C$3:$IH$51,47,FALSE) -> -935.3336719 | AO23: 0 | AP23: 0 | AQ23: 0 | AR23: -6.821210263e-13 | AS23: 0 | AT23: 0 | AU23: 0 | AV23: 0 | AW23: 0 | AX23: 0 | AY23: 0 | AZ23: 0
A24: 2045 | B24: =HLOOKUP($A24&"_"&IF(B$4<10,"0"&B$4,B$4),WA_LR!$C$3:$IH$51,47,FALSE) -> -996.7283988 | C24: =HLOOKUP($A24&"_"&IF(C$4<10,"0"&C$4,C$4),WA_LR!$C$3:$IH$51,47,FALSE) -> -880.2983725 | D24: =HLOOKUP($A24&"_"&IF(D$4<10,"0"&D$4,D$4),WA_LR!$C$3:$IH$51,47,FALSE) -> -731.9368688 | E24: =HLOOKUP($A24&"_"&IF(E$4<10,"0"&E$4,E$4),WA_LR!$C$3:$IH$51,47,FALSE) -> -568.1102882 | F24: =HLOOKUP($A24&"_"&IF(F$4<10,"0"&F$4,F$4),WA_LR!$C$3:$IH$51,47,FALSE) -> -491.3071298 | G24: =HLOOKUP($A24&"_"&IF(G$4<10,"0"&G$4,G$4),WA_LR!$C$3:$IH$51,47,FALSE) -> -650.3556007 | H24: =HLOOKUP($A24&"_"&IF(H$4<10,"0"&H$4,H$4),WA_LR!$C$3:$IH$51,47,FALSE) -> -792.427356 | I24: =HLOOKUP($A24&"_"&IF(I$4<10,"0"&I$4,I$4),WA_LR!$C$3:$IH$51,47,FALSE) -> -844.6224916 | J24: =HLOOKUP($A24&"_"&IF(J$4<10,"0"&J$4,J$4),WA_LR!$C$3:$IH$51,47,FALSE) -> -584.0616849 | K24: =HLOOKUP($A24&"_"&IF(K$4<10,"0"&K$4,K$4),WA_LR!$C$3:$IH$51,47,FALSE) -> -682.9450845 | L24: =HLOOKUP($A24&"_"&IF(L$4<10,"0"&L$4,L$4),WA_LR!$C$3:$IH$51,47,FALSE) -> -822.6036222 | M24: =HLOOKUP($A24&"_"&IF(M$4<10,"0"&M$4,M$4),WA_LR!$C$3:$IH$51,47,FALSE) -> -959.2489555 | O24: =HLOOKUP($A24&"_"&IF(O$4<10,"0"&O$4,O$4),ID_LR!$C$3:$IH$51,47,FALSE) -> -294.4745605 | P24: =HLOOKUP($A24&"_"&IF(P$4<10,"0"&P$4,P$4),ID_LR!$C$3:$IH$51,47,FALSE) -> -234.3253005 | Q24: =HLOOKUP($A24&"_"&IF(Q$4<10,"0"&Q$4,Q$4),ID_LR!$C$3:$IH$51,47,FALSE) -> -172.5510924 | R24: =HLOOKUP($A24&"_"&IF(R$4<10,"0"&R$4,R$4),ID_LR!$C$3:$IH$51,47,FALSE) -> -105.7103806 | S24: =HLOOKUP($A24&"_"&IF(S$4<10,"0"&S$4,S$4),ID_LR!$C$3:$IH$51,47,FALSE) -> -82.46405842 | T24: =HLOOKUP($A24&"_"&IF(T$4<10,"0"&T$4,T$4),ID_LR!$C$3:$IH$51,47,FALSE) -> -141.8121815 | U24: =HLOOKUP($A24&"_"&IF(U$4<10,"0"&U$4,U$4),ID_LR!$C$3:$IH$51,47,FALSE) -> -203.6782468 | V24: =HLOOKUP($A24&"_"&IF(V$4<10,"0"&V$4,V$4),ID_LR!$C$3:$IH$51,47,FALSE) -> -187.4095599 | W24: =HLOOKUP($A24&"_"&IF(W$4<10,"0"&W$4,W$4),ID_LR!$C$3:$IH$51,47,FALSE) -> -67.54402303 | X24: =HLOOKUP($A24&"_"&IF(X$4<10,"0"&X$4,X$4),ID_LR!$C$3:$IH$51,47,FALSE) -> -130.3533739 | Y24: =HLOOKUP($A24&"_"&IF(Y$4<10,"0"&Y$4,Y$4),ID_LR!$C$3:$IH$51,47,FALSE) -> -210.618016 | Z24: =HLOOKUP($A24&"_"&IF(Z$4<10,"0"&Z$4,Z$4),ID_LR!$C$3:$IH$51,47,FALSE) -> -286.5389984 | AB24: =HLOOKUP($A24&"_"&IF(AB$4<10,"0"&AB$4,AB$4),System_LR!$C$3:$IH$51,47,FALSE) -> -1291.202959 | AC24: =HLOOKUP($A24&"_"&IF(AC$4<10,"0"&AC$4,AC$4),System_LR!$C$3:$IH$51,47,FALSE) -> -1114.623673 | AD24: =HLOOKUP($A24&"_"&IF(AD$4<10,"0"&AD$4,AD$4),System_LR!$C$3:$IH$51,47,FALSE) -> -904.4879612 | AE24: =HLOOKUP($A24&"_"&IF(AE$4<10,"0"&AE$4,AE$4),System_LR!$C$3:$IH$51,47,FALSE) -> -673.8206688 | AF24: =HLOOKUP($A24&"_"&IF(AF$4<10,"0"&AF$4,AF$4),System_LR!$C$3:$IH$51,47,FALSE) -> -573.7711882 | AG24: =HLOOKUP($A24&"_"&IF(AG$4<10,"0"&AG$4,AG$4),System_LR!$C$3:$IH$51,47,FALSE) -> -792.1677822 | AH24: =HLOOKUP($A24&"_"&IF(AH$4<10,"0"&AH$4,AH$4),System_LR!$C$3:$IH$51,47,FALSE) -> -996.1056027 | AI24: =HLOOKUP($A24&"_"&IF(AI$4<10,"0"&AI$4,AI$4),System_LR!$C$3:$IH$51,47,FALSE) -> -1032.032051 | AJ24: =HLOOKUP($A24&"_"&IF(AJ$4<10,"0"&AJ$4,AJ$4),System_LR!$C$3:$IH$51,47,FALSE) -> -651.605708 | AK24: =HLOOKUP($A24&"_"&IF(AK$4<10,"0"&AK$4,AK$4),System_LR!$C$3:$IH$51,47,FALSE) -> -813.2984584 | AL24: =HLOOKUP($A24&"_"&IF(AL$4<10,"0"&AL$4,AL$4),System_LR!$C$3:$IH$51,47,FALSE) -> -1033.221638 | AM24: =HLOOKUP($A24&"_"&IF(AM$4<10,"0"&AM$4,AM$4),System_LR!$C$3:$IH$51,47,FALSE) -> -1245.787954 | AO24: 0 | AP24: 0 | AQ24: 0 | AR24: 0 | AS24: 0 | AT24: 0 | AU24: 0 | AV24: 0 | AW24: 0 | AX24: 0 | AY24: 0 | AZ24: 0
A27: Energy | B27: 1 | C27: 2 | D27: 3 | E27: 4 | F27: 5 | G27: 6 | H27: 7 | I27: 8 | J27: 9 | K27: 10 | L27: 11 | M27: 12 | O27: 1 | P27: 2 | Q27: 3 | R27: 4 | S27: 5 | T27: 6 | U27: 7 | V27: 8 | W27: 9 | X27: 10 | Y27: 11 | Z27: 12 | AB27: 1 | AC27: 2 | AD27: 3 | AE27: 4 | AF27: 5 | AG27: 6 | AH27: 7 | AI27: 8 | AJ27: 9 | AK27: 10 | AL27: 11 | AM27: 12 | AO27: 1 | AP27: 2 | AQ27: 3 | AR27: 4 | AS27: 5 | AT27: 6 | AU27: 7 | AV27: 8 | AW27: 9 | AX27: 10 | AY27: 11 | AZ27: 12
A28: 2026 | B28: =HLOOKUP($A28&"_"&IF(B$4<10,"0"&B$4,B$4),WA_LR!$C$135:$IH$179,43,FALSE) -> 22.75020997 | C28: =HLOOKUP($A28&"_"&IF(C$4<10,"0"&C$4,C$4),WA_LR!$C$135:$IH$179,43,FALSE) -> 52.34652558 | D28: =HLOOKUP($A28&"_"&IF(D$4<10,"0"&D$4,D$4),WA_LR!$C$135:$IH$179,43,FALSE) -> 153.0677423 | E28: =HLOOKUP($A28&"_"&IF(E$4<10,"0"&E$4,E$4),WA_LR!$C$135:$IH$179,43,FALSE) -> 269.0684554 | F28: =HLOOKUP($A28&"_"&IF(F$4<10,"0"&F$4,F$4),WA_LR!$C$135:$IH$179,43,FALSE) -> 511.6789935 | G28: =HLOOKUP($A28&"_"&IF(G$4<10,"0"&G$4,G$4),WA_LR!$C$135:$IH$179,43,FALSE) -> 384.4820517 | H28: =HLOOKUP($A28&"_"&IF(H$4<10,"0"&H$4,H$4),WA_LR!$C$135:$IH$179,43,FALSE) -> 157.8824567 | I28: =HLOOKUP($A28&"_"&IF(I$4<10,"0"&I$4,I$4),WA_LR!$C$135:$IH$179,43,FALSE) -> 77.29451449 | J28: =HLOOKUP($A28&"_"&IF(J$4<10,"0"&J$4,J$4),WA_LR!$C$135:$IH$179,43,FALSE) -> 152.4003804 | K28: =HLOOKUP($A28&"_"&IF(K$4<10,"0"&K$4,K$4),WA_LR!$C$135:$IH$179,43,FALSE) -> 139.4303522 | L28: =HLOOKUP($A28&"_"&IF(L$4<10,"0"&L$4,L$4),WA_LR!$C$135:$IH$179,43,FALSE) -> 71.87669114 | M28: =HLOOKUP($A28&"_"&IF(M$4<10,"0"&M$4,M$4),WA_LR!$C$135:$IH$179,43,FALSE) -> 52.12506042 | O28: =HLOOKUP($A28&"_"&IF(O$4<10,"0"&O$4,O$4),ID_LR!$C$135:$IH$179,43,FALSE) -> -48.61194854 | P28: =HLOOKUP($A28&"_"&IF(P$4<10,"0"&P$4,P$4),ID_LR!$C$135:$IH$179,43,FALSE) -> -30.47221501 | Q28: =HLOOKUP($A28&"_"&IF(Q$4<10,"0"&Q$4,Q$4),ID_LR!$C$135:$IH$179,43,FALSE) -> 17.14659554 | R28: =HLOOKUP($A28&"_"&IF(R$4<10,"0"&R$4,R$4),ID_LR!$C$135:$IH$179,43,FALSE) -> 75.75814004 | S28: =HLOOKUP($A28&"_"&IF(S$4<10,"0"&S$4,S$4),ID_LR!$C$135:$IH$179,43,FALSE) -> 194.6125563 | T28: =HLOOKUP($A28&"_"&IF(T$4<10,"0"&T$4,T$4),ID_LR!$C$135:$IH$179,43,FALSE) -> 133.1529622 | U28: =HLOOKUP($A28&"_"&IF(U$4<10,"0"&U$4,U$4),ID_LR!$C$135:$IH$179,43,FALSE) -> 14.64606169 | V28: =HLOOKUP($A28&"_"&IF(V$4<10,"0"&V$4,V$4),ID_LR!$C$135:$IH$179,43,FALSE) -> -3.070955462 | W28: =HLOOKUP($A28&"_"&IF(W$4<10,"0"&W$4,W$4),ID_LR!$C$135:$IH$179,43,FALSE) -> 45.3472484 | X28: =HLOOKUP($A28&"_"&IF(X$4<10,"0"&X$4,X$4),ID_LR!$C$135:$IH$179,43,FALSE) -> 30.29745267 | Y28: =HLOOKUP($A28&"_"&IF(Y$4<10,"0"&Y$4,Y$4),ID_LR!$C$135:$IH$179,43,FALSE) -> -13.19624223 | Z28: =HLOOKUP($A28&"_"&IF(Z$4<10,"0"&Z$4,Z$4),ID_LR!$C$135:$IH$179,43,FALSE) -> -36.11708813 | AB28: =HLOOKUP($A28&"_"&IF(AB$4<10,"0"&AB$4,AB$4),System_LR!$C$134:$IH$178,43,FALSE) -> -25.86173857 | AC28: =HLOOKUP($A28&"_"&IF(AC$4<10,"0"&AC$4,AC$4),System_LR!$C$134:$IH$178,43,FALSE) -> 21.87431057 | AD28: =HLOOKUP($A28&"_"&IF(AD$4<10,"0"&AD$4,AD$4),System_LR!$C$134:$IH$178,43,FALSE) -> 170.2143379 | AE28: =HLOOKUP($A28&"_"&IF(AE$4<10,"0"&AE$4,AE$4),System_LR!$C$134:$IH$178,43,FALSE) -> 344.8265955 | AF28: =HLOOKUP($A28&"_"&IF(AF$4<10,"0"&AF$4,AF$4),System_LR!$C$134:$IH$178,43,FALSE) -> 706.2915498 | AG28: =HLOOKUP($A28&"_"&IF(AG$4<10,"0"&AG$4,AG$4),System_LR!$C$134:$IH$178,43,FALSE) -> 517.6350139 | AH28: =HLOOKUP($A28&"_"&IF(AH$4<10,"0"&AH$4,AH$4),System_LR!$C$134:$IH$178,43,FALSE) -> 172.5285184 | AI28: =HLOOKUP($A28&"_"&IF(AI$4<10,"0"&AI$4,AI$4),System_LR!$C$134:$IH$178,43,FALSE) -> 74.22355903 | AJ28: =HLOOKUP($A28&"_"&IF(AJ$4<10,"0"&AJ$4,AJ$4),System_LR!$C$134:$IH$178,43,FALSE) -> 197.7476288 | AK28: =HLOOKUP($A28&"_"&IF(AK$4<10,"0"&AK$4,AK$4),System_LR!$C$134:$IH$178,43,FALSE) -> 169.7278049 | AL28: =HLOOKUP($A28&"_"&IF(AL$4<10,"0"&AL$4,AL$4),System_LR!$C$134:$IH$178,43,FALSE) -> 58.6804489 | AM28: =HLOOKUP($A28&"_"&IF(AM$4<10,"0"&AM$4,AM$4),System_LR!$C$134:$IH$178,43,FALSE) -> 16.00797229 | AO28: =B28+O28-AB28 -> -5.684341886e-13 | AP28: =C28+P28-AC28 -> -2.273736754e-13 | AQ28: =D28+Q28-AD28 -> 0 | AR28: =E28+R28-AE28 -> 0 | AS28: =F28+S28-AF28 -> 0 | AT28: =G28+T28-AG28 -> 0 | AU28: =H28+U28-AH28 -> -4.547473509e-13 | AV28: =I28+V28-AI28 -> -6.252776075e-13 | AW28: =J28+W28-AJ28 -> 0 | AX28: =K28+X28-AK28 -> 0 | AY28: =L28+Y28-AL28 -> -1.136868377e-13 | AZ28: =M28+Z28-AM28 -> -3.410605132e-13
A29: 2027 | B29: =HLOOKUP($A29&"_"&IF(B$4<10,"0"&B$4,B$4),WA_LR!$C$135:$IH$179,43,FALSE) -> 4.267508241 | C29: =HLOOKUP($A29&"_"&IF(C$4<10,"0"&C$4,C$4),WA_LR!$C$135:$IH$179,43,FALSE) -> 37.02523085 | D29: =HLOOKUP($A29&"_"&IF(D$4<10,"0"&D$4,D$4),WA_LR!$C$135:$IH$179,43,FALSE) -> 140.3546531 | E29: =HLOOKUP($A29&"_"&IF(E$4<10,"0"&E$4,E$4),WA_LR!$C$135:$IH$179,43,FALSE) -> 257.0491507 | F29: =HLOOKUP($A29&"_"&IF(F$4<10,"0"&F$4,F$4),WA_LR!$C$135:$IH$179,43,FALSE) -> 512.6708069 | G29: =HLOOKUP($A29&"_"&IF(G$4<10,"0"&G$4,G$4),WA_LR!$C$135:$IH$179,43,FALSE) -> 379.192678 | H29: =HLOOKUP($A29&"_"&IF(H$4<10,"0"&H$4,H$4),WA_LR!$C$135:$IH$179,43,FALSE) -> 158.3188225 | I29: =HLOOKUP($A29&"_"&IF(I$4<10,"0"&I$4,I$4),WA_LR!$C$135:$IH$179,43,FALSE) -> 82.19771782 | J29: =HLOOKUP($A29&"_"&IF(J$4<10,"0"&J$4,J$4),WA_LR!$C$135:$IH$179,43,FALSE) -> 157.4235925 | K29: =HLOOKUP($A29&"_"&IF(K$4<10,"0"&K$4,K$4),WA_LR!$C$135:$IH$179,43,FALSE) -> 137.3828982 | L29: =HLOOKUP($A29&"_"&IF(L$4<10,"0"&L$4,L$4),WA_LR!$C$135:$IH$179,43,FALSE) -> 62.50156205 | M29: =HLOOKUP($A29&"_"&IF(M$4<10,"0"&M$4,M$4),WA_LR!$C$135:$IH$179,43,FALSE) -> 43.33624204 | O29: =HLOOKUP($A29&"_"&IF(O$4<10,"0"&O$4,O$4),ID_LR!$C$135:$IH$179,43,FALSE) -> -8.082005473 | P29: =HLOOKUP($A29&"_"&IF(P$4<10,"0"&P$4,P$4),ID_LR!$C$135:$IH$179,43,FALSE) -> 10.53739878 | Q29: =HLOOKUP($A29&"_"&IF(Q$4<10,"0"&Q$4,Q$4),ID_LR!$C$135:$IH$179,43,FALSE) -> 58.42722585 | R29: =HLOOKUP($A29&"_"&IF(R$4<10,"0"&R$4,R$4),ID_LR!$C$135:$IH$179,43,FALSE) -> 115.2016608 | S29: =HLOOKUP($A29&"_"&IF(S$4<10,"0"&S$4,S$4),ID_LR!$C$135:$IH$179,43,FALSE) -> 240.4682687 | T29: =HLOOKUP($A29&"_"&IF(T$4<10,"0"&T$4,T$4),ID_LR!$C$135:$IH$179,43,FALSE) -> 176.7579598 | U29: =HLOOKUP($A29&"_"&IF(U$4<10,"0"&U$4,U$4),ID_LR!$C$135:$IH$179,43,FALSE) -> 61.52855434 | V29: =HLOOKUP($A29&"_"&IF(V$4<10,"0"&V$4,V$4),ID_LR!$C$135:$IH$179,43,FALSE) -> 46.38572549 | W29: =HLOOKUP($A29&"_"&IF(W$4<10,"0"&W$4,W$4),ID_LR!$C$135:$IH$179,43,FALSE) -> 93.73790445 | X29: =HLOOKUP($A29&"_"&IF(X$4<10,"0"&X$4,X$4),ID_LR!$C$135:$IH$179,43,FALSE) -> 75.26589598 | Y29: =HLOOKUP($A29&"_"&IF(Y$4<10,"0"&Y$4,Y$4),ID_LR!$C$135:$IH$179,43,FALSE) -> 27.67492551 | Z29: =HLOOKUP($A29&"_"&IF(Z$4<10,"0"&Z$4,Z$4),ID_LR!$C$135:$IH$179,43,FALSE) -> 6.980903448 | AB29: =HLOOKUP($A29&"_"&IF(AB$4<10,"0"&AB$4,AB$4),System_LR!$C$134:$IH$178,43,FALSE) -> -3.814497232 | AC29: =HLOOKUP($A29&"_"&IF(AC$4<10,"0"&AC$4,AC$4),System_LR!$C$134:$IH$178,43,FALSE) -> 47.56262963 | AD29: =HLOOKUP($A29&"_"&IF(AD$4<10,"0"&AD$4,AD$4),System_LR!$C$134:$IH$178,43,FALSE) -> 198.7818789 | AE29: =HLOOKUP($A29&"_"&IF(AE$4<10,"0"&AE$4,AE$4),System_LR!$C$134:$IH$178,43,FALSE) -> 372.2508115 | AF29: =HLOOKUP($A29&"_"&IF(AF$4<10,"0"&AF$4,AF$4),System_LR!$C$134:$IH$178,43,FALSE) -> 753.1390756 | AG29: =HLOOKUP($A29&"_"&IF(AG$4<10,"0"&AG$4,AG$4),System_LR!$C$134:$IH$178,43,FALSE) -> 555.9506378 | AH29: =HLOOKUP($A29&"_"&IF(AH$4<10,"0"&AH$4,AH$4),System_LR!$C$134:$IH$178,43,FALSE) -> 219.8473768 | AI29: =HLOOKUP($A29&"_"&IF(AI$4<10,"0"&AI$4,AI$4),System_LR!$C$134:$IH$178,43,FALSE) -> 128.5834433 | AJ29: =HLOOKUP($A29&"_"&IF(AJ$4<10,"0"&AJ$4,AJ$4),System_LR!$C$134:$IH$178,43,FALSE) -> 251.161497 | AK29: =HLOOKUP($A29&"_"&IF(AK$4<10,"0"&AK$4,AK$4),System_LR!$C$134:$IH$178,43,FALSE) -> 212.6487942 | AL29: =HLOOKUP($A29&"_"&IF(AL$4<10,"0"&AL$4,AL$4),System_LR!$C$134:$IH$178,43,FALSE) -> 90.17648756 | AM29: =HLOOKUP($A29&"_"&IF(AM$4<10,"0"&AM$4,AM$4),System_LR!$C$134:$IH$178,43,FALSE) -> 50.31714549 | AO29: =B29+O29-AB29 -> 0 | AP29: -4.547473509e-13 | AQ29: -3.410605132e-13 | AR29: 0 | AS29: 0 | AT29: 0 | AU29: -6.821210263e-13 | AV29: 0 | AW29: -2.273736754e-13 | AX29: -2.842170943e-13 | AY29: -2.273736754e-13 | AZ29: -1.136868377e-13
A30: 2028 | B30: =HLOOKUP($A30&"_"&IF(B$4<10,"0"&B$4,B$4),WA_LR!$C$135:$IH$179,43,FALSE) -> -0.5613356597 | C30: =HLOOKUP($A30&"_"&IF(C$4<10,"0"&C$4,C$4),WA_LR!$C$135:$IH$179,43,FALSE) -> 62.29024965 | D30: =HLOOKUP($A30&"_"&IF(D$4<10,"0"&D$4,D$4),WA_LR!$C$135:$IH$179,43,FALSE) -> 140.2368945 | E30: =HLOOKUP($A30&"_"&IF(E$4<10,"0"&E$4,E$4),WA_LR!$C$135:$IH$179,43,FALSE) -> 252.353114 | F30: =HLOOKUP($A30&"_"&IF(F$4<10,"0"&F$4,F$4),WA_LR!$C$135:$IH$179,43,FALSE) -> 508.7584188 | G30: =HLOOKUP($A30&"_"&IF(G$4<10,"0"&G$4,G$4),WA_LR!$C$135:$IH$179,43,FALSE) -> 377.3246768 | H30: =HLOOKUP($A30&"_"&IF(H$4<10,"0"&H$4,H$4),WA_LR!$C$135:$IH$179,43,FALSE) -> 152.2221199 | I30: =HLOOKUP($A30&"_"&IF(I$4<10,"0"&I$4,I$4),WA_LR!$C$135:$IH$179,43,FALSE) -> 76.6278404 | J30: =HLOOKUP($A30&"_"&IF(J$4<10,"0"&J$4,J$4),WA_LR!$C$135:$IH$179,43,FALSE) -> 156.6425657 | K30: =HLOOKUP($A30&"_"&IF(K$4<10,"0"&K$4,K$4),WA_LR!$C$135:$IH$179,43,FALSE) -> 139.2411109 | L30: =HLOOKUP($A30&"_"&IF(L$4<10,"0"&L$4,L$4),WA_LR!$C$135:$IH$179,43,FALSE) -> 63.24572322 | M30: =HLOOKUP($A30&"_"&IF(M$4<10,"0"&M$4,M$4),WA_LR!$C$135:$IH$179,43,FALSE) -> 38.77677456 | O30: =HLOOKUP($A30&"_"&IF(O$4<10,"0"&O$4,O$4),ID_LR!$C$135:$IH$179,43,FALSE) -> -9.208012337 | P30: =HLOOKUP($A30&"_"&IF(P$4<10,"0"&P$4,P$4),ID_LR!$C$135:$IH$179,43,FALSE) -> 26.90689274 | Q30: =HLOOKUP($A30&"_"&IF(Q$4<10,"0"&Q$4,Q$4),ID_LR!$C$135:$IH$179,43,FALSE) -> 58.91627686 | R30: =HLOOKUP($A30&"_"&IF(R$4<10,"0"&R$4,R$4),ID_LR!$C$135:$IH$179,43,FALSE) -> 112.6642252 | S30: =HLOOKUP($A30&"_"&IF(S$4<10,"0"&S$4,S$4),ID_LR!$C$135:$IH$179,43,FALSE) -> 237.888562 | T30: =HLOOKUP($A30&"_"&IF(T$4<10,"0"&T$4,T$4),ID_LR!$C$135:$IH$179,43,FALSE) -> 176.0424031 | U30: =HLOOKUP($A30&"_"&IF(U$4<10,"0"&U$4,U$4),ID_LR!$C$135:$IH$179,43,FALSE) -> 61.18139724 | V30: =HLOOKUP($A30&"_"&IF(V$4<10,"0"&V$4,V$4),ID_LR!$C$135:$IH$179,43,FALSE) -> 45.95616751 | W30: =HLOOKUP($A30&"_"&IF(W$4<10,"0"&W$4,W$4),ID_LR!$C$135:$IH$179,43,FALSE) -> 95.1658866 | X30: =HLOOKUP($A30&"_"&IF(X$4<10,"0"&X$4,X$4),ID_LR!$C$135:$IH$179,43,FALSE) -> 77.79815101 | Y30: =HLOOKUP($A30&"_"&IF(Y$4<10,"0"&Y$4,Y$4),ID_LR!$C$135:$IH$179,43,FALSE) -> 30.14195774 | Z30: =HLOOKUP($A30&"_"&IF(Z$4<10,"0"&Z$4,Z$4),ID_LR!$C$135:$IH$179,43,FALSE) -> 5.796649178 | AB30: =HLOOKUP($A30&"_"&IF(AB$4<10,"0"&AB$4,AB$4),System_LR!$C$134:$IH$178,43,FALSE) -> -9.769347996 | AC30: =HLOOKUP($A30&"_"&IF(AC$4<10,"0"&AC$4,AC$4),System_LR!$C$134:$IH$178,43,FALSE) -> 89.19714239 | AD30: =HLOOKUP($A30&"_"&IF(AD$4<10,"0"&AD$4,AD$4),System_LR!$C$134:$IH$178,43,FALSE) -> 199.1531713 | AE30: =HLOOKUP($A30&"_"&IF(AE$4<10,"0"&AE$4,AE$4),System_LR!$C$134:$IH$178,43,FALSE) -> 365.0173393 | AF30: =HLOOKUP($A30&"_"&IF(AF$4<10,"0"&AF$4,AF$4),System_LR!$C$134:$IH$178,43,FALSE) -> 746.6469808 | AG30: =HLOOKUP($A30&"_"&IF(AG$4<10,"0"&AG$4,AG$4),System_LR!$C$134:$IH$178,43,FALSE) -> 553.3670799 | AH30: =HLOOKUP($A30&"_"&IF(AH$4<10,"0"&AH$4,AH$4),System_LR!$C$134:$IH$178,43,FALSE) -> 213.4035172 | AI30: =HLOOKUP($A30&"_"&IF(AI$4<10,"0"&AI$4,AI$4),System_LR!$C$134:$IH$178,43,FALSE) -> 122.5840079 | AJ30: =HLOOKUP($A30&"_"&IF(AJ$4<10,"0"&AJ$4,AJ$4),System_LR!$C$134:$IH$178,43,FALSE) -> 251.8084523 | AK30: =HLOOKUP($A30&"_"&IF(AK$4<10,"0"&AK$4,AK$4),System_LR!$C$134:$IH$178,43,FALSE) -> 217.0392619 | AL30: =HLOOKUP($A30&"_"&IF(AL$4<10,"0"&AL$4,AL$4),System_LR!$C$134:$IH$178,43,FALSE) -> 93.38768096 | AM30: =HLOOKUP($A30&"_"&IF(AM$4<10,"0"&AM$4,AM$4),System_LR!$C$134:$IH$178,43,FALSE) -> 44.57342374 | AO30: 1.136868377e-13 | AP30: -1.136868377e-13 | AQ30: 0 | AR30: 0 | AS30: 0 | AT30: 0 | AU30: -3.410605132e-13 | AV30: -3.97903932e-13 | AW30: -5.115907697e-13 | AX30: -2.842170943e-13 | AY30: -5.115907697e-13 | AZ30: -3.410605132e-13
A31: 2029 | B31: =HLOOKUP($A31&"_"&IF(B$4<10,"0"&B$4,B$4),WA_LR!$C$135:$IH$179,43,FALSE) -> 10.27450437 | C31: =HLOOKUP($A31&"_"&IF(C$4<10,"0"&C$4,C$4),WA_LR!$C$135:$IH$179,43,FALSE) -> 56.91172795 | D31: =HLOOKUP($A31&"_"&IF(D$4<10,"0"&D$4,D$4),WA_LR!$C$135:$IH$179,43,FALSE) -> 156.6663516 | E31: =HLOOKUP($A31&"_"&IF(E$4<10,"0"&E$4,E$4),WA_LR!$C$135:$IH$179,43,FALSE) -> 270.2547507 | F31: =HLOOKUP($A31&"_"&IF(F$4<10,"0"&F$4,F$4),WA_LR!$C$135:$IH$179,43,FALSE) -> 519.8176305 | G31: =HLOOKUP($A31&"_"&IF(G$4<10,"0"&G$4,G$4),WA_LR!$C$135:$IH$179,43,FALSE) -> 385.4968331 | H31: =HLOOKUP($A31&"_"&IF(H$4<10,"0"&H$4,H$4),WA_LR!$C$135:$IH$179,43,FALSE) -> 153.520024 | I31: =HLOOKUP($A31&"_"&IF(I$4<10,"0"&I$4,I$4),WA_LR!$C$135:$IH$179,43,FALSE) -> 73.76052425 | J31: =HLOOKUP($A31&"_"&IF(J$4<10,"0"&J$4,J$4),WA_LR!$C$135:$IH$179,43,FALSE) -> 158.9869121 | K31: =HLOOKUP($A31&"_"&IF(K$4<10,"0"&K$4,K$4),WA_LR!$C$135:$IH$179,43,FALSE) -> 144.5368724 | L31: =HLOOKUP($A31&"_"&IF(L$4<10,"0"&L$4,L$4),WA_LR!$C$135:$IH$179,43,FALSE) -> 68.81480554 | M31: =HLOOKUP($A31&"_"&IF(M$4<10,"0"&M$4,M$4),WA_LR!$C$135:$IH$179,43,FALSE) -> 49.90527196 | O31: =HLOOKUP($A31&"_"&IF(O$4<10,"0"&O$4,O$4),ID_LR!$C$135:$IH$179,43,FALSE) -> -3.664535303 | P31: =HLOOKUP($A31&"_"&IF(P$4<10,"0"&P$4,P$4),ID_LR!$C$135:$IH$179,43,FALSE) -> 24.04453462 | Q31: =HLOOKUP($A31&"_"&IF(Q$4<10,"0"&Q$4,Q$4),ID_LR!$C$135:$IH$179,43,FALSE) -> 67.4124308 | R31: =HLOOKUP($A31&"_"&IF(R$4<10,"0"&R$4,R$4),ID_LR!$C$135:$IH$179,43,FALSE) -> 121.8855803 | S31: =HLOOKUP($A31&"_"&IF(S$4<10,"0"&S$4,S$4),ID_LR!$C$135:$IH$179,43,FALSE) -> 243.6226515 | T31: =HLOOKUP($A31&"_"&IF(T$4<10,"0"&T$4,T$4),ID_LR!$C$135:$IH$179,43,FALSE) -> 180.3379364 | U31: =HLOOKUP($A31&"_"&IF(U$4<10,"0"&U$4,U$4),ID_LR!$C$135:$IH$179,43,FALSE) -> 61.89153922 | V31: =HLOOKUP($A31&"_"&IF(V$4<10,"0"&V$4,V$4),ID_LR!$C$135:$IH$179,43,FALSE) -> 44.65167185 | W31: =HLOOKUP($A31&"_"&IF(W$4<10,"0"&W$4,W$4),ID_LR!$C$135:$IH$179,43,FALSE) -> 96.55624535 | X31: =HLOOKUP($A31&"_"&IF(X$4<10,"0"&X$4,X$4),ID_LR!$C$135:$IH$179,43,FALSE) -> 80.61365868 | Y31: =HLOOKUP($A31&"_"&IF(Y$4<10,"0"&Y$4,Y$4),ID_LR!$C$135:$IH$179,43,FALSE) -> 32.97052239 | Z31: =HLOOKUP($A31&"_"&IF(Z$4<10,"0"&Z$4,Z$4),ID_LR!$C$135:$IH$179,43,FALSE) -> 11.48045877 | AB31: =HLOOKUP($A31&"_"&IF(AB$4<10,"0"&AB$4,AB$4),System_LR!$C$134:$IH$178,43,FALSE) -> 6.609969063 | AC31: =HLOOKUP($A31&"_"&IF(AC$4<10,"0"&AC$4,AC$4),System_LR!$C$134:$IH$178,43,FALSE) -> 80.95626258 | AD31: =HLOOKUP($A31&"_"&IF(AD$4<10,"0"&AD$4,AD$4),System_LR!$C$134:$IH$178,43,FALSE) -> 224.0787824 | AE31: =HLOOKUP($A31&"_"&IF(AE$4<10,"0"&AE$4,AE$4),System_LR!$C$134:$IH$178,43,FALSE) -> 392.140331 | AF31: =HLOOKUP($A31&"_"&IF(AF$4<10,"0"&AF$4,AF$4),System_LR!$C$134:$IH$178,43,FALSE) -> 763.4402821 | AG31: =HLOOKUP($A31&"_"&IF(AG$4<10,"0"&AG$4,AG$4),System_LR!$C$134:$IH$178,43,FALSE) -> 565.8347694 | AH31: =HLOOKUP($A31&"_"&IF(AH$4<10,"0"&AH$4,AH$4),System_LR!$C$134:$IH$178,43,FALSE) -> 215.4115632 | AI31: =HLOOKUP($A31&"_"&IF(AI$4<10,"0"&AI$4,AI$4),System_LR!$C$134:$IH$178,43,FALSE) -> 118.4121961 | AJ31: =HLOOKUP($A31&"_"&IF(AJ$4<10,"0"&AJ$4,AJ$4),System_LR!$C$134:$IH$178,43,FALSE) -> 255.5431574 | AK31: =HLOOKUP($A31&"_"&IF(AK$4<10,"0"&AK$4,AK$4),System_LR!$C$134:$IH$178,43,FALSE) -> 225.1505311 | AL31: =HLOOKUP($A31&"_"&IF(AL$4<10,"0"&AL$4,AL$4),System_LR!$C$134:$IH$178,43,FALSE) -> 101.7853279 | AM31: =HLOOKUP($A31&"_"&IF(AM$4<10,"0"&AM$4,AM$4),System_LR!$C$134:$IH$178,43,FALSE) -> 61.38573073 | AO31: -2.273736754e-13 | AP31: -1.136868377e-13 | AQ31: -2.842170943e-13 | AR31: 0 | AS31: 0 | AT31: 0 | AU31: -4.547473509e-13 | AV31: 0 | AW31: -4.547473509e-13 | AX31: 0 | AY31: -2.273736754e-13 | AZ31: 0
... 35 more rows

Sheet Financial Summary
A1: Key Financial & Other Results
B2: Nominal Dollars (Millions)
A4: 0.0651 | B4: Discount Rate
A5: 0.0286282296 | B5: WA Misc Adder
A6: 0.000525708 | B6: ID Misc Adder
A7: 0.0043 | B7: OR Misc Adder | E7: Washington- Direct Electric | Z7: Idaho- Direct Electric | AU7: System/Shared Data- Electric
B8: Time | E8: 2026 | F8: 2027 | G8: 2028 | H8: 2029 | I8: 2030 | J8: 2031 | K8: 2032 | L8: 2033 | M8: 2034 | N8: 2035 | O8: 2036 | P8: 2037 | Q8: 2038 | R8: 2039 | S8: 2040 | T8: 2041 | U8: 2042 | V8: 2043 | W8: 2044 | X8: 2045 | Z8: 2026 | AA8: 2027 | AB8: 2028 | AC8: 2029 | AD8: 2030 | AE8: 2031 | AF8: 2032 | AG8: 2033 | AH8: 2034 | AI8: 2035 | AJ8: 2036 | AK8: 2037 | AL8: 2038 | AM8: 2039 | AN8: 2040 | AO8: 2041 | AP8: 2042 | AQ8: 2043 | AR8: 2044 | AS8: 2045 | AU8: 2026 | AV8: 2027 | AW8: 2028 | AX8: 2029 | AY8: 2030 | AZ8: 2031 | BA8: 2032 | BB8: 2033 | BC8: 2034 | BD8: 2035 | BE8: 2036 | BF8: 2037 | BG8: 2038 | BH8: 2039 | BI8: 2040 | BJ8: 2041 | BK8: 2042 | BL8: 2043 | BM8: 2044 | BN8: 2045
B9: Retail Sales (GWh) | E9: =SUM('E_Clean Goals'!D10:O10)/1000 -> 6174.520147 | F9: =SUM('E_Clean Goals'!P10:AA10)/1000 -> 6202.659793 | G9: =SUM('E_Clean Goals'!AB10:AM10)/1000 -> 6230.537678 | H9: =SUM('E_Clean Goals'!AN10:AY10)/1000 -> 6205.173086 | I9: =SUM('E_Clean Goals'!AZ10:BK10)/1000 -> 6207.924849 | J9: =SUM('E_Clean Goals'!BL10:BW10)/1000 -> 6217.502319 | K9: =SUM('E_Clean Goals'!BX10:CI10)/1000 -> 6253.616438 | L9: =SUM('E_Clean Goals'!CJ10:CU10)/1000 -> 6296.803414 | M9: =SUM('E_Clean Goals'!CV10:DG10)/1000 -> 6372.589587 | N9: =SUM('E_Clean Goals'!DH10:DS10)/1000 -> 6457.035177 | O9: =SUM('E_Clean Goals'!DT10:EE10)/1000 -> 6552.195966 | P9: =SUM('E_Clean Goals'!EF10:EQ10)/1000 -> 6647.907757 | Q9: =SUM('E_Clean Goals'!ER10:FC10)/1000 -> 6779.652175 | R9: =SUM('E_Clean Goals'!FD10:FO10)/1000 -> 6892.623487 | S9: =SUM('E_Clean Goals'!FP10:GA10)/1000 -> 7049.792787 | T9: =SUM('E_Clean Goals'!GB10:GM10)/1000 -> 7182.2072 | U9: =SUM('E_Clean Goals'!GN10:GY10)/1000 -> 7294.309631 | V9: =SUM('E_Clean Goals'!GZ10:HK10)/1000 -> 7448.66224 | W9: =SUM('E_Clean Goals'!HL10:HW10)/1000 -> 7612.053771 | X9: =SUM('E_Clean Goals'!HX10:II10)/1000 -> 7689.317366 | Z9: =SUM('E_Clean Goals'!D113:O113)/1000 -> 3657.787222 | AA9: =SUM('E_Clean Goals'!P113:AA113)/1000 -> 3648.67666 | AB9: =SUM('E_Clean Goals'!AB113:AM113)/1000 -> 3639.182275 | AC9: =SUM('E_Clean Goals'!AN113:AY113)/1000 -> 3624.808849 | AD9: =SUM('E_Clean Goals'!AZ113:BK113)/1000 -> 3620.826595 | AE9: =SUM('E_Clean Goals'!BL113:BW113)/1000 -> 3617.68877 | AF9: =SUM('E_Clean Goals'!BX113:CI113)/1000 -> 3625.603656 | AG9: =SUM('E_Clean Goals'!CJ113:CU113)/1000 -> 3632.114465 | AH9: =SUM('E_Clean Goals'!CV113:DG113)/1000 -> 3644.896969 | AI9: =SUM('E_Clean Goals'!DH113:DS113)/1000 -> 3661.578305 | AJ9: =SUM('E_Clean Goals'!DT113:EE113)/1000 -> 3685.651308 | AK9: =SUM('E_Clean Goals'!EF113:EQ113)/1000 -> 3699.035022 | AL9: =SUM('E_Clean Goals'!ER113:FC113)/1000 -> 3725.889328 | AM9: =SUM('E_Clean Goals'!FD113:FO113)/1000 -> 3746.624414 | AN9: =SUM('E_Clean Goals'!FP113:GA113)/1000 -> 3778.87055 | AO9: =SUM('E_Clean Goals'!GB113:GM113)/1000 -> 3809.634497 | AP9: =SUM('E_Clean Goals'!GN113:GY113)/1000 -> 3832.658798 | AQ9: =SUM('E_Clean Goals'!GZ113:HK113)/1000 -> 3871.510412 | AR9: =SUM('E_Clean Goals'!HL113:HW113)/1000 -> 3919.207917 | AS9: =SUM('E_Clean Goals'!HX113:II113)/1000 -> 3949.60551 | AU9: =E9+Z9 -> 9832.307369 | AV9: 9851.336453 | AW9: 9869.719953 | AX9: 9829.981935 | AY9: 9828.751444 | AZ9: 9835.191089 | BA9: 9879.220094 | BB9: 9928.917879 | BC9: 10017.48656 | BD9: 10118.61348 | BE9: 10237.84727 | BF9: 10346.94278 | BG9: 10505.5415 | BH9: 10639.2479 | BI9: 10828.66334 | BJ9: 10991.8417 | BK9: 11126.96843 | BL9: 11320.17265 | BM9: 11531.26169 | BN9: 11638.92288
B10: Idaho Industrial Generation (GWh) | Z10: 385.8538046 | AA10: 387.76029 | AB10: 391.0558867 | AC10: 392.3589545 | AD10: 391.2769415 | AE10: 389.5533175 | AF10: 387.4083685 | AG10: 391.261638 | AH10: 391.2301276 | AI10: 391.9428468 | AJ10: 390.4102853 | AK10: 389.470685 | AL10: 391.3325645 | AM10: 392.2145713 | AN10: 391.7119414 | AO10: 391.1708773 | AP10: 391.7423547 | AQ10: 393.0679268 | AR10: 391.9381091 | AS10: 391.5688216
A11: Aurora | B11: Load Cost at Market Prices (No EE) | E11: =AVERAGE(Risk!B621:B920) -> 304.1940961 | F11: =AVERAGE(Risk!C621:C920) -> 297.9138231 | G11: =AVERAGE(Risk!D621:D920) -> 279.2471389 | H11: =AVERAGE(Risk!E621:E920) -> 287.9846949 | I11: =AVERAGE(Risk!F621:F920) -> 330.5408154 | J11: =AVERAGE(Risk!G621:G920) -> 374.7150204 | K11: =AVERAGE(Risk!H621:H920) -> 378.4687111 | L11: =AVERAGE(Risk!I621:I920) -> 389.7565249 | M11: =AVERAGE(Risk!J621:J920) -> 399.8554277 | N11: =AVERAGE(Risk!K621:K920) -> 403.1550137 | O11: =AVERAGE(Risk!L621:L920) -> 421.4628581 | P11: =AVERAGE(Risk!M621:M920) -> 438.0456992 | Q11: =AVERAGE(Risk!N621:N920) -> 449.803019 | R11: =AVERAGE(Risk!O621:O920) -> 456.3703137 | S11: =AVERAGE(Risk!P621:P920) -> 481.4776843 | T11: =AVERAGE(Risk!Q621:Q920) -> 499.9099892 | U11: =AVERAGE(Risk!R621:R920) -> 528.5211046 | V11: =AVERAGE(Risk!S621:S920) -> 533.4642698 | W11: =AVERAGE(Risk!T621:T920) -> 542.8591871 | X11: =AVERAGE(Risk!U621:U920) -> 571.5461088 | Z11: =AVERAGE(Risk!W621:W920) -> 179.0880572 | AA11: =AVERAGE(Risk!X621:X920) -> 173.8562068 | AB11: =AVERAGE(Risk!Y621:Y920) -> 161.507529 | AC11: =AVERAGE(Risk!Z621:Z920) -> 166.2141909 | AD11: =AVERAGE(Risk!AA621:AA920) -> 190.0539285 | AE11: =AVERAGE(Risk!AB621:AB920) -> 214.43571 | AF11: =AVERAGE(Risk!AC621:AC920) -> 215.3075075 | AG11: =AVERAGE(Risk!AD621:AD920) -> 220.1322133 | AH11: =AVERAGE(Risk!AE621:AE920) -> 223.4658304 | AI11: =AVERAGE(Risk!AF621:AF920) -> 223.0079379 | AJ11: =AVERAGE(Risk!AG621:AG920) -> 230.9821815 | AK11: =AVERAGE(Risk!AH621:AH920) -> 237.2912538 | AL11: =AVERAGE(Risk!AI621:AI920) -> 240.5740961 | AM11: =AVERAGE(Risk!AJ621:AJ920) -> 241.4066408 | AN11: =AVERAGE(Risk!AK621:AK920) -> 251.1193401 | AO11: =AVERAGE(Risk!AL621:AL920) -> 258.1095486 | AP11: =AVERAGE(Risk!AM621:AM920) -> 270.4517103 | AQ11: =AVERAGE(Risk!AN621:AN920) -> 270.2058671 | AR11: =AVERAGE(Risk!AO621:AO920) -> 272.5584944 | AS11: =AVERAGE(Risk!AP621:AP920) -> 286.3995785
B13: Energy Efficiency
B14: Optimization Cost | E14: =EE_Selection!BC4*G_A!G$10/100 -> 1.619209076 | F14: =EE_Selection!BD4*G_A!H$10/100 -> 3.61312167 | G14: =EE_Selection!BE4*G_A!I$10/100 -> 6.059962549 | H14: =EE_Selection!BF4*G_A!J$10/100 -> 8.974526117 | I14: =EE_Selection!BG4*G_A!K$10/100 -> 11.73894245 | J14: =EE_Selection!BH4*G_A!L$10/100 -> 15.42087544 | K14: =EE_Selection!BI4*G_A!M$10/100 -> 19.46030128 | L14: =EE_Selection!BJ4*G_A!N$10/100 -> 23.73320112 | M14: =EE_Selection!BK4*G_A!O$10/100 -> 28.05924184 | N14: =EE_Selection!BL4*G_A!P$10/100 -> 32.18509279 | O14: =EE_Selection!BM4*G_A!Q$10/100 -> 36.09987902 | P14: =EE_Selection!BN4*G_A!R$10/100 -> 39.66840381 | Q14: =EE_Selection!BO4*G_A!S$10/100 -> 42.92015182 | R14: =EE_Selection!BP4*G_A!T$10/100 -> 45.96633687 | S14: =EE_Selection!BQ4*G_A!U$10/100 -> 48.94207686 | T14: =EE_Selection!BR4*G_A!V$10/100 -> 51.81069782 | U14: =EE_Selection!BS4*G_A!W$10/100 -> 54.66671915 | V14: =EE_Selection!BT4*G_A!X$10/100 -> 57.50670288 | W14: =EE_Selection!BU4*G_A!Y$10/100 -> 60.25821912 | X14: =EE_Selection!BV4*G_A!Z$10/100 -> 63.05911482 | Z14: =EE_Selection!BX5*G_A!G$10/100 -> 0.005714113467 | AA14: =EE_Selection!BY5*G_A!H$10/100 -> 0.04114001844 | AB14: =EE_Selection!BZ5*G_A!I$10/100 -> 0.1239407133 | AC14: =EE_Selection!CA5*G_A!J$10/100 -> 0.2693396871 | AD14: =EE_Selection!CB5*G_A!K$10/100 -> 0.0735879375 | AE14: =EE_Selection!CC5*G_A!L$10/100 -> 0.1641266544 | AF14: =EE_Selection!CD5*G_A!M$10/100 -> 0.2923477205 | AG14: =EE_Selection!CE5*G_A!N$10/100 -> 0.450302147 | AH14: =EE_Selection!CF5*G_A!O$10/100 -> 0.6312543506 | AI14: =EE_Selection!CG5*G_A!P$10/100 -> 0.7798235746 | AJ14: =EE_Selection!CH5*G_A!Q$10/100 -> 0.9541598379 | AK14: =EE_Selection!CI5*G_A!R$10/100 -> 1.11432144 | AL14: =EE_Selection!CJ5*G_A!S$10/100 -> 1.259993008 | AM14: =EE_Selection!CK5*G_A!T$10/100 -> 1.388783487 | AN14: =EE_Selection!CL5*G_A!U$10/100 -> 1.509013732 | AO14: =EE_Selection!CM5*G_A!V$10/100 -> 1.630309424 | AP14: =EE_Selection!CN5*G_A!W$10/100 -> 1.74906686 | AQ14: =EE_Selection!CO5*G_A!X$10/100 -> 1.860729714 | AR14: =EE_Selection!CP5*G_A!Y$10/100 -> 1.96265604 | AS14: =EE_Selection!CQ5*G_A!Z$10/100 -> 2.057422771
B15: Market Value | E15: =-EE_Mrkt_Value!AA4 -> -1.430295532 | F15: =-EE_Mrkt_Value!AB4 -> -2.8410427 | G15: =-EE_Mrkt_Value!AC4 -> -4.195686899 | H15: =-EE_Mrkt_Value!AD4 -> -6.133342826 | I15: =-EE_Mrkt_Value!AE4 -> -8.758385271 | J15: =-EE_Mrkt_Value!AF4 -> -12.13177937 | K15: =-EE_Mrkt_Value!AG4 -> -14.76016629 | L15: =-EE_Mrkt_Value!AH4 -> -17.72424087 | M15: =-EE_Mrkt_Value!AI4 -> -20.70111724 | N15: =-EE_Mrkt_Value!AJ4 -> -22.92300871 | O15: =-EE_Mrkt_Value!AK4 -> -25.98472015 | P15: =-EE_Mrkt_Value!AL4 -> -28.72245023 | Q15: =-EE_Mrkt_Value!AM4 -> -30.93638076 | R15: =-EE_Mrkt_Value!AN4 -> -32.59702044 | S15: =-EE_Mrkt_Value!AO4 -> -35.77426883 | T15: =-EE_Mrkt_Value!AP4 -> -37.91343598 | U15: =-EE_Mrkt_Value!AQ4 -> -40.64884303 | V15: =-EE_Mrkt_Value!AR4 -> -41.531495 | W15: =-EE_Mrkt_Value!AS4 -> -42.73559939 | X15: =-EE_Mrkt_Value!AT4 -> -45.7241432 | Z15: =-EE_Mrkt_Value!AV4 -> -0.3698580748 | AA15: =-EE_Mrkt_Value!AW4 -> -0.7454395307 | AB15: =-EE_Mrkt_Value!AX4 -> -1.123710987 | AC15: =-EE_Mrkt_Value!AY4 -> -1.676119343 | AD15: =-EE_Mrkt_Value!AZ4 -> -2.301693409 | AE15: =-EE_Mrkt_Value!BA4 -> -3.160630557 | AF15: =-EE_Mrkt_Value!BB4 -> -3.915282667 | AG15: =-EE_Mrkt_Value!BC4 -> -4.771986098 | AH15: =-EE_Mrkt_Value!BD4 -> -5.623418204 | AI15: =-EE_Mrkt_Value!BE4 -> -6.270141341 | AJ15: =-EE_Mrkt_Value!BF4 -> -7.238525864 | AK15: =-EE_Mrkt_Value!BG4 -> -8.135370018 | AL15: =-EE_Mrkt_Value!BH4 -> -8.894663305 | AM15: =-EE_Mrkt_Value!BI4 -> -9.528792564 | AN15: =-EE_Mrkt_Value!BJ4 -> -10.54314364 | AO15: =-EE_Mrkt_Value!BK4 -> -11.29990579 | AP15: =-EE_Mrkt_Value!BL4 -> -12.26157409 | AQ15: =-EE_Mrkt_Value!BM4 -> -12.66069179 | AR15: =-EE_Mrkt_Value!BN4 -> -13.17501088 | AS15: =-EE_Mrkt_Value!BO4 -> -14.27372761
B16: T&D Adjustment | E16: =-(G_A!G$18*EE_Selection!CS$4*1000)/1000000 -> -0.1462223637 | F16: =-(G_A!H$18*EE_Selection!CT$4*1000)/1000000 -> -0.3013377021 | G16: =-(G_A!I$18*EE_Selection!CU$4*1000)/1000000 -> -0.4797340932 | H16: =-(G_A!J$18*EE_Selection!CV$4*1000)/1000000 -> -0.6816981081 | I16: =-(G_A!K$18*EE_Selection!CW$4*1000)/1000000 -> -0.8714895006 | J16: =-(G_A!L$18*EE_Selection!CX$4*1000)/1000000 -> -1.095826218 | K16: =-(G_A!M$18*EE_Selection!CY$4*1000)/1000000 -> -1.355852445 | L16: =-(G_A!N$18*EE_Selection!CZ$4*1000)/1000000 -> -1.623963296 | M16: =-(G_A!O$18*EE_Selection!DA$4*1000)/1000000 -> -1.902335744 | N16: =-(G_A!P$18*EE_Selection!DB$4*1000)/1000000 -> -2.163356025 | O16: =-(G_A!Q$18*EE_Selection!DC$4*1000)/1000000 -> -2.419388079 | P16: =-(G_A!R$18*EE_Selection!DD$4*1000)/1000000 -> -2.648645826 | Q16: =-(G_A!S$18*EE_Selection!DE$4*1000)/1000000 -> -2.868125128 | R16: =-(G_A!T$18*EE_Selection!DF$4*1000)/1000000 -> -3.054337418 | S16: =-(G_A!U$18*EE_Selection!DG$4*1000)/1000000 -> -3.256616063 | T16: =-(G_A!V$18*EE_Selection!DH$4*1000)/1000000 -> -3.431622055 | U16: =-(G_A!W$18*EE_Selection!DI$4*1000)/1000000 -> -3.571116786 | V16: =-(G_A!X$18*EE_Selection!DJ$4*1000)/1000000 -> -3.724496413 | W16: =-(G_A!Y$18*EE_Selection!DK$4*1000)/1000000 -> -3.870755498 | X16: =-(G_A!Z$18*EE_Selection!DL$4*1000)/1000000 -> -3.963250501 | Z16: =-(G_A!G$18*EE_Selection!CS$5*1000)/1000000 -> -0.03449374576 | AA16: =-(G_A!H$18*EE_Selection!CT$5*1000)/1000000 -> -0.07524840511 | AB16: =-(G_A!I$18*EE_Selection!CU$5*1000)/1000000 -> -0.1253865527 | AC16: =-(G_A!J$18*EE_Selection!CV$5*1000)/1000000 -> -0.1856317997 | AD16: =-(G_A!K$18*EE_Selection!CW$5*1000)/1000000 -> -0.2312816055 | AE16: =-(G_A!L$18*EE_Selection!CX$5*1000)/1000000 -> -0.294700458 | AF16: =-(G_A!M$18*EE_Selection!CY$5*1000)/1000000 -> -0.3748791027 | AG16: =-(G_A!N$18*EE_Selection!CZ$5*1000)/1000000 -> -0.4596246527 | AH16: =-(G_A!O$18*EE_Selection!DA$5*1000)/1000000 -> -0.5467915518 | AI16: =-(G_A!P$18*EE_Selection!DB$5*1000)/1000000 -> -0.6285637355 | AJ16: =-(G_A!Q$18*EE_Selection!DC$5*1000)/1000000 -> -0.7126352611 | AK16: =-(G_A!R$18*EE_Selection!DD$5*1000)/1000000 -> -0.787177006 | AL16: =-(G_A!S$18*EE_Selection!DE$5*1000)/1000000 -> -0.8579915918 | AM16: =-(G_A!T$18*EE_Selection!DF$5*1000)/1000000 -> -0.9198525922 | AN16: =-(G_A!U$18*EE_Selection!DG$5*1000)/1000000 -> -0.9839056159 | AO16: =-(G_A!V$18*EE_Selection!DH$5*1000)/1000000 -> -1.04285254 | AP16: =-(G_A!W$18*EE_Selection!DI$5*1000)/1000000 -> -1.091977591 | AQ16: =-(G_A!X$18*EE_Selection!DJ$5*1000)/1000000 -> -1.143848928 | AR16: =-(G_A!Y$18*EE_Selection!DK$5*1000)/1000000 -> -1.195245274 | AS16: =-(G_A!Z$18*EE_Selection!DL$5*1000)/1000000 -> -1.238161347
B17: Non-Energy Impacts | E17: =-SUMPRODUCT(EE_Selection!$EI$22:$EI$1510,EE_Selection!M$22:M$1510)*G_A!G$10/100 -> -1.864120712 | F17: =-SUMPRODUCT(EE_Selection!$EI$22:$EI$1510,EE_Selection!N$22:N$1510)*G_A!H$10/100 -> -4.052435224 | G17: =-SUMPRODUCT(EE_Selection!$EI$22:$EI$1510,EE_Selection!O$22:O$1510)*G_A!I$10/100 -> -6.663337061 | H17: =-SUMPRODUCT(EE_Selection!$EI$22:$EI$1510,EE_Selection!P$22:P$1510)*G_A!J$10/100 -> -9.657457976 | I17: =-SUMPRODUCT(EE_Selection!$EI$22:$EI$1510,EE_Selection!Q$22:Q$1510)*G_A!K$10/100 -> -13.02329136 | J17: =-SUMPRODUCT(EE_Selection!$EI$22:$EI$1510,EE_Selection!R$22:R$1510)*G_A!L$10/100 -> -16.66304006 | K17: =-SUMPRODUCT(EE_Selection!$EI$22:$EI$1510,EE_Selection!S$22:S$1510)*G_A!M$10/100 -> -20.85865184 | L17: =-SUMPRODUCT(EE_Selection!$EI$22:$EI$1510,EE_Selection!T$22:T$1510)*G_A!N$10/100 -> -25.1041982 | M17: =-SUMPRODUCT(EE_Selection!$EI$22:$EI$1510,EE_Selection!U$22:U$1510)*G_A!O$10/100 -> -29.35664524 | N17: =-SUMPRODUCT(EE_Selection!$EI$22:$EI$1510,EE_Selection!V$22:V$1510)*G_A!P$10/100 -> -33.052325 | O17: =-SUMPRODUCT(EE_Selection!$EI$22:$EI$1510,EE_Selection!W$22:W$1510)*G_A!Q$10/100 -> -36.25376948 | P17: =-SUMPRODUCT(EE_Selection!$EI$22:$EI$1510,EE_Selection!X$22:X$1510)*G_A!R$10/100 -> -38.65207862 | Q17: =-SUMPRODUCT(EE_Selection!$EI$22:$EI$1510,EE_Selection!Y$22:Y$1510)*G_A!S$10/100 -> -40.75190218 | R17: =-SUMPRODUCT(EE_Selection!$EI$22:$EI$1510,EE_Selection!Z$22:Z$1510)*G_A!T$10/100 -> -42.12072164 | S17: =-SUMPRODUCT(EE_Selection!$EI$22:$EI$1510,EE_Selection!AA$22:AA$1510)*G_A!U$10/100 -> -43.69845699 | T17: =-SUMPRODUCT(EE_Selection!$EI$22:$EI$1510,EE_Selection!AB$22:AB$1510)*G_A!V$10/100 -> -44.89635556 | U17: =-SUMPRODUCT(EE_Selection!$EI$22:$EI$1510,EE_Selection!AC$22:AC$1510)*G_A!W$10/100 -> -45.57002573 | V17: =-SUMPRODUCT(EE_Selection!$EI$22:$EI$1510,EE_Selection!AD$22:AD$1510)*G_A!X$10/100 -> -46.75407312 | W17: =-SUMPRODUCT(EE_Selection!$EI$22:$EI$1510,EE_Selection!AE$22:AE$1510)*G_A!Y$10/100 -> -48.0349663 | X17: =-SUMPRODUCT(EE_Selection!$EI$22:$EI$1510,EE_Selection!AF$22:AF$1510)*G_A!Z$10/100 -> -48.27795804 | Z17: 0 | AA17: 0 | AB17: 0 | AC17: 0 | AD17: 0 | AE17: 0 | AF17: 0 | AG17: 0 | AH17: 0 | AI17: 0 | AJ17: 0 | AK17: 0 | AL17: 0 | AM17: 0 | AN17: 0 | AO17: 0 | AP17: 0 | AQ17: 0 | AR17: 0 | AS17: 0
B18: Power Act Energy/T&D- 10% Adder | E18: =SUM(E15:E16)*0.1 -> -0.1576517895 | F18: -0.3142380402 | G18: -0.4675420992 | H18: -0.6815040934 | I18: -0.9629874772 | J18: -1.322760559 | K18: -1.611601873 | L18: -1.934820417 | M18: -2.260345299 | N18: -2.508636473 | O18: -2.840410823 | P18: -3.137109605 | Q18: -3.380450589 | R18: -3.565135786 | S18: -3.903088489 | T18: -4.134505803 | U18: -4.421995982 | V18: -4.525599141 | W18: -4.660635488 | X18: -4.96873937 | Z18: 0 | AA18: 0 | AB18: 0 | AC18: 0 | AD18: 0 | AE18: 0 | AF18: 0 | AG18: 0 | AH18: 0 | AI18: 0 | AJ18: 0 | AK18: 0 | AL18: 0 | AM18: 0 | AN18: 0 | AO18: 0 | AP18: 0 | AQ18: 0 | AR18: 0 | AS18: 0
B19: Capacity Power Act- 10% Adder | E19: =EE_Selection!CS$4*0.1*-G_A!G20/1000 -> -0.05971062336 | F19: =EE_Selection!CT$4*0.1*-G_A!H20/1000 -> -0.1230527368 | G19: =EE_Selection!CU$4*0.1*-G_A!I20/1000 -> -0.195901783 | H19: =EE_Selection!CV$4*0.1*-G_A!J20/1000 -> -0.2783747845 | I19: =EE_Selection!CW$4*0.1*-G_A!K20/1000 -> -0.3558770357 | J19: =EE_Selection!CX$4*0.1*-G_A!L20/1000 -> -0.4474860404 | K19: =EE_Selection!CY$4*0.1*-G_A!M20/1000 -> -0.5536690328 | L19: =EE_Selection!CZ$4*0.1*-G_A!N20/1000 -> -0.6631534211 | M19: =EE_Selection!DA$4*0.1*-G_A!O20/1000 -> -0.7768281833 | N19: =EE_Selection!DB$4*0.1*-G_A!P20/1000 -> -0.8834171021 | O19: =EE_Selection!DC$4*0.1*-G_A!Q20/1000 -> -0.9879690544 | P19: =EE_Selection!DD$4*0.1*-G_A!R20/1000 -> -1.081587586 | Q19: =EE_Selection!DE$4*0.1*-G_A!S20/1000 -> -1.171213041 | R19: =EE_Selection!DF$4*0.1*-G_A!T20/1000 -> -1.247253748 | S19: =EE_Selection!DG$4*0.1*-G_A!U20/1000 -> -1.329855231 | T19: =EE_Selection!DH$4*0.1*-G_A!V20/1000 -> -1.40131979 | U19: =EE_Selection!DI$4*0.1*-G_A!W20/1000 -> -1.458283152 | V19: =EE_Selection!DJ$4*0.1*-G_A!X20/1000 -> -1.520916479 | W19: =EE_Selection!DK$4*0.1*-G_A!Y20/1000 -> -1.580642098 | X19: =EE_Selection!DL$4*0.1*-G_A!Z20/1000 -> -1.618412889 | Z19: 0 | AA19: 0 | AB19: 0 | AC19: 0 | AD19: 0 | AE19: 0 | AF19: 0 | AG19: 0 | AH19: 0 | AI19: 0 | AJ19: 0 | AK19: 0 | AL19: 0 | AM19: 0 | AN19: 0 | AO19: 0 | AP19: 0 | AQ19: 0 | AR19: 0 | AS19: 0
B20: Energy Savings from DR Power Act Adder | E20: =-DR!C122/1000000*1.1 -> -0.006121214542 | F20: =-DR!D122/1000000*1.1 -> -0.01737534626 | G20: =-DR!E122/1000000*1.1 -> -0.02653563176 | H20: =-DR!F122/1000000*1.1 -> -0.0407237628 | I20: =-DR!G122/1000000*1.1 -> -0.05597337587 | J20: =-DR!H122/1000000*1.1 -> -0.08728124512 | K20: =-DR!I122/1000000*1.1 -> -0.1071338971 | L20: =-DR!J122/1000000*1.1 -> -0.1270557543 | M20: =-DR!K122/1000000*1.1 -> -0.135857214 | N20: =-DR!L122/1000000*1.1 -> -0.1796790533 | O20: =-DR!M122/1000000*1.1 -> -0.2196371898 | P20: =-DR!N122/1000000*1.1 -> -0.254346814 | Q20: =-DR!O122/1000000*1.1 -> -0.2709664679 | R20: =-DR!P122/1000000*1.1 -> -0.3287532961 | S20: =-DR!Q122/1000000*1.1 -> -0.5170736646 | T20: =-DR!R122/1000000*1.1 -> -0.5849946598 | U20: =-DR!S122/1000000*1.1 -> -0.7831159391 | V20: =-DR!T122/1000000*1.1 -> -0.9461101226 | W20: =-DR!U122/1000000*1.1 -> -0.785390378 | X20: =-DR!V122/1000000*1.1 -> -0.9135642985 | Z20: =-DR!AB122/1000000 -> 0 | AA20: =-DR!AC122/1000000 -> 0 | AB20: =-DR!AD122/1000000 -> 0 | AC20: =-DR!AE122/1000000 -> -0.0005168607922 | AD20: =-DR!AF122/1000000 -> -0.001702356472 | AE20: =-DR!AG122/1000000 -> -0.02063195685 | AF20: =-DR!AH122/1000000 -> -0.03282849256 | AG20: =-DR!AI122/1000000 -> -0.0489630211 | AH20: =-DR!AJ122/1000000 -> -0.05265826659 | AI20: =-DR!AK122/1000000 -> -0.08521098083 | AJ20: =-DR!AL122/1000000 -> -0.1323997481 | AK20: =-DR!AM122/1000000 -> -0.163685923 | AL20: =-DR!AN122/1000000 -> -0.1657576301 | AM20: =-DR!AO122/1000000 -> -0.1759680925 | AN20: =-DR!AP122/1000000 -> -0.2183347495 | AO20: =-DR!AQ122/1000000 -> -0.1925885794 | AP20: =-DR!AR122/1000000 -> -0.216712043 | AQ20: =-DR!AS122/1000000 -> -0.234480094 | AR20: =-DR!AT122/1000000 -> -0.1798169633 | AS20: =-DR!AU122/1000000 -> -0.209291504
B22: Existing/Committed Thermal Plant Capital Recovery
B23: Coyote Springs 2 | E23: =AU23*G_A!G$9 -> 10.68017621 | F23: =AV23*G_A!H$9 -> 10.3028062 | G23: =AW23*G_A!I$9 -> 9.945206373 | H23: =AX23*G_A!J$9 -> 9.572303175 | I23: =AY23*G_A!K$9 -> 9.209743266 | J23: =AZ23*G_A!L$9 -> 8.85165693 | K23: =BA23*G_A!M$9 -> 8.499352176 | L23: =BB23*G_A!N$9 -> 8.149701702 | M23: =BC23*G_A!O$9 -> 7.811431368 | N23: =BD23*G_A!P$9 -> 7.474158106 | O23: =BE23*G_A!Q$9 -> 7.133831035 | P23: =BF23*G_A!R$9 -> 6.797293938 | Q23: =BG23*G_A!S$9 -> 6.461260484 | R23: =BH23*G_A!T$9 -> 6.119899612 | S23: =BI23*G_A!U$9 -> 5.781615106 | T23: =BJ23*G_A!V$9 -> 5.431896075 | U23: =BK23*G_A!W$9 -> 4.674513336 | V23: =BL23*G_A!X$9 -> 0.01542797039 | W23: =BM23*G_A!Y$9 -> 0.00928155118 | X23: =BN23*G_A!Z$9 -> 0.003094983951 | Z23: =AU23*(1-G_A!G$9) -> 5.628032914 | AA23: =AV23*(1-G_A!H$9) -> 5.388680015 | AB23: =AW23*(1-G_A!I$9) -> 5.16102503 | AC23: =AX23*(1-G_A!J$9) -> 4.967416174 | AD23: =AY23*(1-G_A!K$9) -> 4.771103354 | AE23: =AZ23*(1-G_A!L$9) -> 4.573863129 | AF23: =BA23*(1-G_A!M$9) -> 4.375425293 | AG23: =BB23*(1-G_A!N$9) -> 4.176183987 | AH23: =BC23*(1-G_A!O$9) -> 3.970357396 | AI23: =BD23*(1-G_A!P$9) -> 3.768040263 | AJ23: =BE23*(1-G_A!Q$9) -> 3.568776939 | AK23: =BF23*(1-G_A!R$9) -> 3.365723639 | AL23: =BG23*(1-G_A!S$9) -> 3.162166698 | AM23: =BH23*(1-G_A!T$9) -> 2.963937174 | AN23: =BI23*(1-G_A!U$9) -> 2.762631285 | AO23: =BJ23*(1-G_A!V$9) -> 2.571426366 | AP23: =BK23*(1-G_A!W$9) -> 2.193345204 | AQ23: =BL23*(1-G_A!X$9) -> 0.007168461387 | AR23: =BM23*(1-G_A!Y$9) -> 0.004276293246 | AS23: =BN23*(1-G_A!Z$9) -> 0.001424291424 | AU23: 16.30820913 | AV23: 15.69148621 | AW23: 15.1062314 | AX23: 14.53971935 | AY23: 13.98084662 | AZ23: 13.42552006 | BA23: 12.87477747 | BB23: 12.32588569 | BC23: 11.78178876 | BD23: 11.24219837 | BE23: 10.70260797 | BF23: 10.16301758 | BG23: 9.623427182 | BH23: 9.083836786 | BI23: 8.544246391 | BJ23: 8.003322441 | BK23: 6.867858539 | BL23: 0.02259643178 | BM23: 0.01355784443 | BN23: 0.004519275375
B24: Colstrip 3 | E24: 6.000054634 | F24: 5.607486538 | G24: 5.215953325 | H24: 0.1271562719 | I24: 0.1122001538 | J24: 0.09872719079 | K24: 0.08632776326 | L24: 0.07432529992 | M24: 0.06551486563 | N24: 0.05981791124 | O24: 0.05412095686 | P24: 0.04842400247 | Q24: 0.04272704808 | R24: 0.0370300937 | S24: 0.03133313931 | T24: 0.02563618493 | U24: 0.01993923054 | V24: 0.01424227616 | W24: 0.008545321771 | X24: 0.002848422289 | Z24: 2.929392457 | AA24: 2.754183034 | AB24: 2.579511238 | AC24: 2.405350833 | AD24: 2.080024027 | AE24: 0.05130470171 | AF24: 0.04484374332 | AG24: 0.03858948936 | AH24: 0.03400436673 | AI24: 0.03104746058 | AJ24: 0.02809055444 | AK24: 0.0251336483 | AL24: 0.02217674215 | AM24: 0.01921983601 | AN24: 0.01626292986 | AO24: 0.01330602372 | AP24: 0.01034911757 | AQ24: 0.007392211431 | AR24: 0.004435305286 | AS24: 0.001478426107 | AU24: =E24+Z24 -> 8.929447091 | AV24: 8.361669572 | AW24: 7.795464564 | AX24: 2.532507105 | AY24: 2.192224181 | AZ24: 0.1500318925 | BA24: 0.1311715066 | BB24: 0.1129147893 | BC24: 0.09951923236 | BD24: 0.09086537183 | BE24: =O24+AJ24 -> 0.0822115113 | BF24: 0.07355765077 | BG24: 0.06490379024 | BH24: 0.05624992971 | BI24: 0.04759606918 | BJ24: 0.03894220865 | BK24: 0.03028834812 | BL24: 0.02163448759 | BM24: 0.01298062706 | BN24: 0.004326848396
B25: Colstrip 4 | E25: 6.806596975 | F25: 6.366853385 | G25: 5.928163255 | H25: 0.1092644801 | I25: 0.09758228939 | J25: 0.0866667398 | K25: 0.07639341001 | L25: 0.06678921206 | M25: 0.05955620276 | N25: 0.05437739456 | O25: 0.04919858637 | P25: 0.04401977817 | Q25: 0.03884096997 | R25: 0.03366216177 | S25: 0.02848335358 | T25: 0.02330454538 | U25: 0.01812573718 | V25: 0.01294692899 | W25: 0.007768120789 | X25: 0.002589358345 | Z25: 2.85615854 | AA25: 2.68001376 | AB25: 2.504416008 | AC25: 2.329400592 | AD25: 0.851277382 | AE25: 0.04498500378 | AF25: 0.03964000844 | AG25: 0.0346435083 | AH25: 0.03088497869 | AI25: 0.02819932212 | AJ25: 0.02551366555 | AK25: 0.02282800897 | AL25: 0.0201423524 | AM25: 0.01745669582 | AN25: 0.01477103925 | AO25: 0.01208538268 | AP25: 0.009399726102 | AQ25: 0.006714069528 | AR25: 0.004028412954 | AS25: 0.001342792334 | AU25: 9.662755515 | AV25: 9.046867145 | AW25: 8.432579263 | AX25: 2.438665072 | AY25: 0.9488596714 | AZ25: 0.1316517436 | BA25: 0.1160334184 | BB25: 0.1014327204 | BC25: 0.09044118146 | BD25: 0.08257671668 | BE25: 0.07471225191 | BF25: 0.06684778714 | BG25: 0.05898332237 | BH25: 0.0511188576 | BI25: 0.04325439283 | BJ25: 0.03538992806 | BK25: 0.02752546329 | BL25: 0.01966099851 | BM25: 0.01179653374 | BN25: 0.003932150679
B26: Kettle Falls | E26: =AU26*G_A!G$9 -> 5.932173689 | F26: =AV26*G_A!H$9 -> 5.744048547 | G26: =AW26*G_A!I$9 -> 5.557768862 | H26: =AX26*G_A!J$9 -> 5.358231134 | I26: =AY26*G_A!K$9 -> 5.163527917 | J26: =AZ26*G_A!L$9 -> 4.971818277 | K26: =BA26*G_A!M$9 -> 4.781735755 | L26: =BB26*G_A!N$9 -> 4.584156015 | M26: =BC26*G_A!O$9 -> 4.386051694 | N26: =BD26*G_A!P$9 -> 4.189106161 | O26: =BE26*G_A!Q$9 -> 3.990406772 | P26: =BF26*G_A!R$9 -> 3.793777277 | Q26: =BG26*G_A!S$9 -> 3.597364749 | R26: =BH26*G_A!T$9 -> 3.397918016 | S26: =BI26*G_A!U$9 -> 3.200101708 | T26: =BJ26*G_A!V$9 -> 2.996379025 | U26: =BK26*G_A!W$9 -> 2.790939023 | V26: =BL26*G_A!X$9 -> 2.585019553 | W26: =BM26*G_A!Y$9 -> 0.5375985157 | X26: =BN26*G_A!Z$9 -> 0.00971719366 | Z26: =AU26*(1-G_A!G$9) -> 3.126022278 | AA26: =AV26*(1-G_A!H$9) -> 3.004311545 | AB26: =AW26*(1-G_A!I$9) -> 2.884181899 | AC26: =AX26*(1-G_A!J$9) -> 2.780580965 | AD26: =AY26*(1-G_A!K$9) -> 2.674963314 | AE26: =AZ26*(1-G_A!L$9) -> 2.569057576 | AF26: =BA26*(1-G_A!M$9) -> 2.461614383 | AG26: =BB26*(1-G_A!N$9) -> 2.34907726 | AH26: =BC26*(1-G_A!O$9) -> 2.229321614 | AI26: =BD26*(1-G_A!P$9) -> 2.111906178 | AJ26: =BE26*(1-G_A!Q$9) -> 1.996244598 | AK26: =BF26*(1-G_A!R$9) -> 1.878513123 | AL26: =BG26*(1-G_A!S$9) -> 1.760564682 | AM26: =BH26*(1-G_A!T$9) -> 1.645650445 | AN26: =BI26*(1-G_A!U$9) -> 1.529105783 | AO26: =BJ26*(1-G_A!V$9) -> 1.418467497 | AP26: =BK26*(1-G_A!W$9) -> 1.30954653 | AQ26: =BL26*(1-G_A!X$9) -> 1.20110503 | AR26: =BM26*(1-G_A!Y$9) -> 0.2476880057 | AS26: =BN26*(1-G_A!Z$9) -> 0.004471789133 | AU26: 9.058195967 | AV26: 8.748360093 | AW26: 8.441950761 | AX26: 8.138812098 | AY26: 7.838491231 | AZ26: 7.540875853 | BA26: 7.243350138 | BB26: 6.933233274 | BC26: 6.615373308 | BD26: 6.301012339 | BE26: 5.986651369 | BF26: 5.6722904 | BG26: 5.35792943 | BH26: 5.043568461 | BI26: 4.729207492 | BJ26: 4.414846522 | BK26: 4.100485553 | BL26: 3.786124583 | BM26: 0.7852865214 | BN26: 0.01418898279
B27: Kettle Falls CT | E27: =AU27*G_A!G$9 -> 0.3766378499 | F27: =AV27*G_A!H$9 -> 0.3590938086 | G27: =AW27*G_A!I$9 -> 0.3415100294 | H27: =AX27*G_A!J$9 -> 0.3229630258 | I27: =AY27*G_A!K$9 -> 0.3045920373 | J27: =AZ27*G_A!L$9 -> 0.2861009618 | K27: =BA27*G_A!M$9 -> 0.2667661576 | L27: =BB27*G_A!N$9 -> 0.133000425 | M27: =BC27*G_A!O$9 -> 0.001129164447 | N27: =BD27*G_A!P$9 -> 0.0005783463776 | O27: =BE27*G_A!Q$9 -> 0.0001509716007 | P27: =BF27*G_A!R$9 -> 0 | Q27: =BG27*G_A!S$9 -> 0 | R27: =BH27*G_A!T$9 -> 0 | S27: =BI27*G_A!U$9 -> 0 | T27: =BJ27*G_A!V$9 -> 0 | U27: =BK27*G_A!W$9 -> 0 | V27: =BL27*G_A!X$9 -> 0 | W27: =BM27*G_A!Y$9 -> 0 | X27: =BN27*G_A!Z$9 -> 0 | Z27: =AU27*(1-G_A!G$9) -> 0.1984733373 | AA27: =AV27*(1-G_A!H$9) -> 0.1878169494 | AB27: =AW27*(1-G_A!I$9) -> 0.1772252624 | AC27: =AX27*(1-G_A!J$9) -> 0.1675972573 | AD27: =AY27*(1-G_A!K$9) -> 0.1577937678 | AE27: =AZ27*(1-G_A!L$9) -> 0.147835219 | AF27: =BA27*(1-G_A!M$9) -> 0.1373299246 | AG27: =BB27*(1-G_A!N$9) -> 0.06815393564 | AH27: =BC27*(1-G_A!O$9) -> 0.0005739263654 | AI27: =BD27*(1-G_A!P$9) -> 0.0002915689507 | AJ27: =BE27*(1-G_A!Q$9) -> 7.552519317e-05 | AK27: =BF27*(1-G_A!R$9) -> 0 | AL27: =BG27*(1-G_A!S$9) -> 0 | AM27: =BH27*(1-G_A!T$9) -> 0 | AN27: =BI27*(1-G_A!U$9) -> 0 | AO27: =BJ27*(1-G_A!V$9) -> 0 | AP27: =BK27*(1-G_A!W$9) -> 0 | AQ27: =BL27*(1-G_A!X$9) -> 0 | AR27: =BM27*(1-G_A!Y$9) -> 0 | AS27: =BN27*(1-G_A!Z$9) -> 0 | AU27: 0.5751111872 | AV27: 0.546910758 | AW27: 0.5187352918 | AX27: 0.4905602831 | AY27: 0.4623858051 | AZ27: 0.4339361808 | BA27: 0.4040960822 | BB27: 0.2011543607 | BC27: 0.001703090812 | BD27: 0.0008699153283 | BE27: 0.0002264967939 | BF27: 0 | BG27: 0 | BH27: 0 | BI27: 0 | BJ27: 0 | BK27: 0 | BL27: 0 | BM27: 0 | BN27: 0
B28: Boulder Park | E28: =AU28*G_A!G$9 -> 1.285425455 | F28: =AV28*G_A!H$9 -> 1.243659683 | G28: =AW28*G_A!I$9 -> 1.202217134 | H28: =AX28*G_A!J$9 -> 1.157651886 | I28: =AY28*G_A!K$9 -> 1.113779634 | J28: =AZ28*G_A!L$9 -> 1.070187131 | K28: =BA28*G_A!M$9 -> 1.026932581 | L28: =BB28*G_A!N$9 -> 0.9838488184 | M28: =BC28*G_A!O$9 -> 0.9419644557 | N28: =BD28*G_A!P$9 -> 0.9000468877 | O28: =BE28*G_A!Q$9 -> 0.8577546173 | P28: =BF28*G_A!R$9 -> 0.8159097975 | Q28: =BG28*G_A!S$9 -> 0.7741148714 | R28: =BH28*G_A!T$9 -> 0.7316704578 | S28: =BI28*G_A!U$9 -> 0.6895810556 | T28: =BJ28*G_A!V$9 -> 0.6454722046 | U28: =BK28*G_A!W$9 -> 0.1517581196 | V28: =BL28*G_A!X$9 -> 0.000463717352 | W28: =BM28*G_A!Y$9 -> 0.0002789802023 | X28: =BN28*G_A!Z$9 -> 9.302968716e-05 | Z28: =AU28*(1-G_A!G$9) -> 0.6773686714 | AA28: =AV28*(1-G_A!H$9) -> 0.6504717209 | AB28: =AW28*(1-G_A!I$9) -> 0.6238857685 | AC28: =AX28*(1-G_A!J$9) -> 0.6007476567 | AD28: =AY28*(1-G_A!K$9) -> 0.5769930383 | AE28: =AZ28*(1-G_A!L$9) -> 0.5529913212 | AF28: =BA28*(1-G_A!M$9) -> 0.5286599139 | AG28: =BB28*(1-G_A!N$9) -> 0.5041575546 | AH28: =BC28*(1-G_A!O$9) -> 0.4787772391 | AI28: =BD28*(1-G_A!P$9) -> 0.453751829 | AJ28: =BE28*(1-G_A!Q$9) -> 0.4291011214 | AK28: =BF28*(1-G_A!R$9) -> 0.4040029632 | AL28: =BG28*(1-G_A!S$9) -> 0.3788549112 | AM28: =BH28*(1-G_A!T$9) -> 0.3543563467 | AN28: =BI28*(1-G_A!U$9) -> 0.3295027709 | AO28: =BJ28*(1-G_A!V$9) -> 0.3055625922 | AP28: =BK28*(1-G_A!W$9) -> 0.07120697275 | AQ28: =BL28*(1-G_A!X$9) -> 0.0002154619077 | AR28: =BM28*(1-G_A!Y$9) -> 0.000128534674 | AS28: =BN28*(1-G_A!Z$9) -> 4.281165516e-05 | AU28: 1.962794127 | AV28: 1.894131404 | AW28: 1.826102903 | AX28: 1.758399543 | AY28: 1.690772673 | AZ28: 1.623178452 | BA28: 1.555592495 | BB28: 1.488006373 | BC28: 1.420741695 | BD28: 1.353798717 | BE28: 1.286855739 | BF28: 1.219912761 | BG28: 1.152969783 | BH28: 1.086026805 | BI28: 1.019083827 | BJ28: 0.9510347968 | BK28: 0.2229650924 | BL28: 0.0006791792597 | BM28: 0.0004075148763 | BN28: 0.0001358413423
B29: Rathdrum | E29: =AU29*G_A!G$9 -> 3.024673282 | F29: =AV29*G_A!H$9 -> 2.900190031 | G29: =AW29*G_A!I$9 -> 2.775504946 | H29: =AX29*G_A!J$9 -> 2.643093948 | I29: =AY29*G_A!K$9 -> 2.512267678 | J29: =AZ29*G_A!L$9 -> 2.382380236 | K29: =BA29*G_A!M$9 -> 2.253434796 | L29: =BB29*G_A!N$9 -> 2.124767815 | M29: =BC29*G_A!O$9 -> 1.998076871 | N29: =BD29*G_A!P$9 -> 1.808840952 | O29: =BE29*G_A!Q$9 -> 0 | P29: =BF29*G_A!R$9 -> 0 | Q29: =BG29*G_A!S$9 -> 0 | R29: =BH29*G_A!T$9 -> 0 | S29: =BI29*G_A!U$9 -> 0 | T29: =BJ29*G_A!V$9 -> 0 | U29: =BK29*G_A!W$9 -> 0 | V29: =BL29*G_A!X$9 -> 0 | W29: =BM29*G_A!Y$9 -> 0 | X29: =BN29*G_A!Z$9 -> 0 | Z29: =AU29*(1-G_A!G$9) -> 1.593883888 | AA29: =AV29*(1-G_A!H$9) -> 1.516887318 | AB29: =AW29*(1-G_A!I$9) -> 1.44033718 | AC29: =AX29*(1-G_A!J$9) -> 1.371597554 | AD29: =AY29*(1-G_A!K$9) -> 1.30147914 | AE29: =AZ29*(1-G_A!L$9) -> 1.231032925 | AF29: =BA29*(1-G_A!M$9) -> 1.160057308 | AG29: =BB29*(1-G_A!N$9) -> 1.088803204 | AH29: =BC29*(1-G_A!O$9) -> 1.015573064 | AI29: =BD29*(1-G_A!P$9) -> 0.9119134807 | AJ29: =BE29*(1-G_A!Q$9) -> 0 | AK29: =BF29*(1-G_A!R$9) -> 0 | AL29: =BG29*(1-G_A!S$9) -> 0 | AM29: =BH29*(1-G_A!T$9) -> 0 | AN29: =BI29*(1-G_A!U$9) -> 0 | AO29: =BJ29*(1-G_A!V$9) -> 0 | AP29: =BK29*(1-G_A!W$9) -> 0 | AQ29: =BL29*(1-G_A!X$9) -> 0 | AR29: =BM29*(1-G_A!Y$9) -> 0 | AS29: =BN29*(1-G_A!Z$9) -> 0 | AU29: 4.618557169 | AV29: 4.417077348 | AW29: 4.215842126 | AX29: 4.014691502 | AY29: 3.813746819 | AZ29: 3.613413161 | BA29: 3.413492104 | BB29: 3.213571019 | BC29: 3.013649935 | BD29: 2.720754432 | BE29: 0 | BF29: 0 | BG29: 0 | BH29: 0 | BI29: 0 | BJ29: 0 | BK29: 0 | BL29: 0 | BM29: 0 | BN29: 0
B30: Northeast | E30: =AU30*G_A!G$9 -> 0 | F30: =AV30*G_A!H$9 -> 0 | G30: =AW30*G_A!I$9 -> 0 | H30: =AX30*G_A!J$9 -> 0 | I30: =AY30*G_A!K$9 -> 0 | J30: =AZ30*G_A!L$9 -> 0 | K30: =BA30*G_A!M$9 -> 0 | L30: =BB30*G_A!N$9 -> 0 | M30: =BC30*G_A!O$9 -> 0 | N30: =BD30*G_A!P$9 -> 0 | O30: =BE30*G_A!Q$9 -> 0 | P30: =BF30*G_A!R$9 -> 0 | Q30: =BG30*G_A!S$9 -> 0 | R30: =BH30*G_A!T$9 -> 0 | S30: =BI30*G_A!U$9 -> 0 | T30: =BJ30*G_A!V$9 -> 0 | U30: =BK30*G_A!W$9 -> 0 | V30: =BL30*G_A!X$9 -> 0 | W30: =BM30*G_A!Y$9 -> 0 | X30: =BN30*G_A!Z$9 -> 0 | Z30: =AU30*(1-G_A!G$9) -> 0 | AA30: =AV30*(1-G_A!H$9) -> 0 | AB30: =AW30*(1-G_A!I$9) -> 0 | AC30: =AX30*(1-G_A!J$9) -> 0 | AD30: =AY30*(1-G_A!K$9) -> 0 | AE30: =AZ30*(1-G_A!L$9) -> 0 | AF30: =BA30*(1-G_A!M$9) -> 0 | AG30: =BB30*(1-G_A!N$9) -> 0 | AH30: =BC30*(1-G_A!O$9) -> 0 | AI30: =BD30*(1-G_A!P$9) -> 0 | AJ30: =BE30*(1-G_A!Q$9) -> 0 | AK30: =BF30*(1-G_A!R$9) -> 0 | AL30: =BG30*(1-G_A!S$9) -> 0 | AM30: =BH30*(1-G_A!T$9) -> 0 | AN30: =BI30*(1-G_A!U$9) -> 0 | AO30: =BJ30*(1-G_A!V$9) -> 0 | AP30: =BK30*(1-G_A!W$9) -> 0 | AQ30: =BL30*(1-G_A!X$9) -> 0 | AR30: =BM30*(1-G_A!Y$9) -> 0 | AS30: =BN30*(1-G_A!Z$9) -> 0 | AU30: 0 | AV30: 0 | AW30: 0 | AX30: 0 | AY30: 0 | AZ30: 0 | BA30: 0 | BB30: 0 | BC30: 0 | BD30: 0 | BE30: 0 | BF30: 0 | BG30: 0 | BH30: 0 | BI30: 0 | BJ30: 0 | BK30: 0 | BL30: 0 | BM30: 0 | BN30: 0
... 33 more rows

Sheet E_Clean Goals
B1: Chelan Canadian Entitlement Estimate | D1: 0.0436 | E1: 0.0505 | F1: 0.0538 | G1: 0.0421 | H1: 0.0395 | I1: 0.0389 | J1: 0.0451 | K1: 0.0531 | L1: 0.0742 | M1: 0.0701 | N1: 0.0564 | O1: 0.0519 | P1: 0.0436 | Q1: 0.0505 | R1: 0.0538 | S1: 0.0438 | T1: 0.0395 | U1: 0.0389 | V1: 0.0451 | W1: 0.0531 | X1: 0.0741 | Y1: 0.0701 | Z1: 0.0564 | AA1: 0.0519 | AB1: 0.0437 | AC1: 0.0505 | AD1: 0.0537 | AE1: 0.0456 | AF1: 0.0401 | AG1: 0.0394 | AH1: 0.0457 | AI1: 0.0538 | AJ1: 0.0741 | AK1: 0.07 | AL1: 0.0555 | AM1: 0.0518 | AN1: 0.0438 | AO1: 0.0491 | AP1: 0.0529 | AQ1: 0.0443 | AR1: 0.0402 | AS1: 0.0394 | AT1: 0.0451 | AU1: 0.0539 | AV1: 0.0741 | AW1: 0.0701 | AX1: 0.0556 | AY1: 0.0519 | AZ1: 0.0438 | BA1: 0.0491 | BB1: 0.0529 | BC1: 0.0443 | BD1: 0.0402 | BE1: 0.0394 | BF1: 0.0451 | BG1: 0.0539 | BH1: 0.0741 | BI1: 0.0697 | BJ1: 0.0553 | BK1: 0.0514 | BL1: 0.0438 | BM1: 0.0478 | BN1: 0.0527 | BO1: 0.0465 | BP1: 0.04 | BQ1: 0.0389 | BR1: 0.0451 | BS1: 0.0538 | BT1: 0.0738 | BU1: 0.0695 | BV1: 0.0553 | BW1: 0.0514 | BX1: 0.0431 | BY1: 0.0471 | BZ1: 0.0522 | CA1: 0.0443 | CB1: 0.0393 | CC1: 0.0384 | CD1: 0.0449 | CE1: 0.0532 | CF1: 0.0734 | CG1: 0.0692 | CH1: 0.0549 | CI1: 0.0503 | CJ1: 0.0427 | CK1: 0.0465 | CL1: 0.0511 | CM1: 0.0443 | CN1: 0.0391 | CO1: 0.0384 | CP1: 0.0449 | CQ1: 0.0532 | CR1: 0.0731 | CS1: 0.0689 | CT1: 0.0546 | CU1: 0.0493 | CV1: 0.0425 | CW1: 0.0457 | CX1: 0.0511 | CY1: 0.0443 | CZ1: 0.0391 | DA1: 0.0379 | DB1: 0.0449 | DC1: 0.0532 | DD1: 0.0731 | DE1: 0.0684 | DF1: 0.0547 | DG1: 0.0486 | DH1: 0.0423 | DI1: 0.0449 | DJ1: 0.0511 | DK1: 0.0435 | DL1: 0.0391 | DM1: 0.0375 | DN1: 0.0449 | DO1: 0.0532 | DP1: 0.0733 | DQ1: 0.0689 | DR1: 0.0547 | DS1: 0.0486 | DT1: 0.0421 | DU1: 0.0436 | DV1: 0.0499 | DW1: 0.0435 | DX1: 0.0391 | DY1: 0.0371 | DZ1: 0.0449 | EA1: 0.0532 | EB1: 0.0733 | EC1: 0.0689 | ED1: 0.0546 | EE1: 0.0493 | EF1: 0.042 | EG1: 0.0418 | EH1: 0.0499 | EI1: 0.0449 | EJ1: 0.0391 | EK1: 0.0374 | EL1: 0.0451 | EM1: 0.0532 | EN1: 0.0733 | EO1: 0.0689 | EP1: 0.0546 | EQ1: 0.0493 | ER1: 0.0418 | ES1: 0.0418 | ET1: 0.051 | EU1: 0.0451 | EV1: 0.0391 | EW1: 0.0374 | EX1: 0.0458 | EY1: 0.0532 | EZ1: 0.0733 | FA1: 0.0689 | FB1: 0.0546 | FC1: 0.0487 | FD1: 0.0414 | FE1: 0.0407 | FF1: 0.0507 | FG1: 0.0451 | FH1: 0.0391 | FI1: 0.0378 | FJ1: 0.0466 | FK1: 0.0539 | FL1: 0.0733 | FM1: 0.0689 | FN1: 0.054 | FO1: 0.0487 | FP1: 0.0412 | FQ1: 0.0407 | FR1: 0.0503 | FS1: 0.0451 | FT1: 0.0389 | FU1: 0.0378 | FV1: 0.0458 | FW1: 0.0539 | FX1: 0.0733 | FY1: 0.0681 | FZ1: 0.0533 | GA1: 0.0487 | GB1: 0.0406 | GC1: 0.0403 | GD1: 0.0497 | GE1: 0.0441 | GF1: 0.0379 | GG1: 0.0374 | GH1: 0.0451 | GI1: 0.0532 | GJ1: 0.0726 | GK1: 0.0677 | GL1: 0.053 | GM1: 0.0481 | GN1: 0.0401 | GO1: 0.0406 | GP1: 0.05 | GQ1: 0.0441 | GR1: 0.0379 | GS1: 0.0378 | GT1: 0.0459 | GU1: 0.0539 | GV1: 0.0733 | GW1: 0.0685 | GX1: 0.0524 | GY1: 0.0474 | GZ1: 0.0399 | HA1: 0.0406 | HB1: 0.0505 | HC1: 0.0451 | HD1: 0.0389 | HE1: 0.0382 | HF1: 0.0469 | HG1: 0.0548 | HH1: 0.0739 | HI1: 0.0674 | HJ1: 0.0519 | HK1: 0.0474 | HL1: 0.0401 | HM1: 0.0405 | HN1: 0.0505 | HO1: 0.0452 | HP1: 0.0389 | HQ1: 0.0379 | HR1: 0.0469 | HS1: 0.0555 | HT1: 0.074 | HU1: 0.0674 | HV1: 0.0519 | HW1: 0.0474 | HX1: 0.0401 | HY1: 0.04 | HZ1: 0.0502 | IA1: 0.0462 | IB1: 0.0389 | IC1: 0.0379 | ID1: 0.0475 | IE1: 0.0563 | IF1: 0.0743 | IG1: 0.0673 | IH1: 0.0518 | II1: 0.0471 | IL1: aMW | IM1: aMW | IN1: aMW | IO1: aMW | IP1: aMW | IQ1: aMW | IR1: aMW | IS1: aMW | IT1: aMW | IU1: aMW | IV1: aMW | IW1: aMW | IX1: aMW | IY1: aMW | IZ1: aMW | JA1: aMW | JB1: aMW | JC1: aMW | JD1: aMW | JE1: aMW
B2: Monthly Hours (excludes DST) | D2: 744 | E2: 672 | F2: 744 | G2: 720 | H2: 744 | I2: 720 | J2: 744 | K2: 744 | L2: 720 | M2: 744 | N2: 720 | O2: 744 | P2: =D2 -> 744 | Q2: 696 | R2: =F2 -> 744 | S2: 720 | T2: 744 | U2: 720 | V2: 744 | W2: 744 | X2: 720 | Y2: 744 | Z2: 720 | AA2: 744 | AB2: 744 | AC2: 696 | AD2: 744 | AE2: 720 | AF2: 744 | AG2: 720 | AH2: 744 | AI2: 744 | AJ2: 720 | AK2: 744 | AL2: 720 | AM2: 744 | AN2: 744 | AO2: 696 | AP2: 744 | AQ2: 720 | AR2: 744 | AS2: 720 | AT2: 744 | AU2: 744 | AV2: 720 | AW2: 744 | AX2: 720 | AY2: 744 | AZ2: 744 | BA2: 696 | BB2: 744 | BC2: 720 | BD2: 744 | BE2: 720 | BF2: 744 | BG2: 744 | BH2: 720 | BI2: 744 | BJ2: 720 | BK2: 744 | BL2: 744 | BM2: 696 | BN2: 744 | BO2: 720 | BP2: 744 | BQ2: 720 | BR2: 744 | BS2: 744 | BT2: 720 | BU2: 744 | BV2: 720 | BW2: 744 | BX2: 744 | BY2: 696 | BZ2: 744 | CA2: 720 | CB2: 744 | CC2: =BQ2 -> 720 | CD2: 744 | CE2: 744 | CF2: 720 | CG2: 744 | CH2: 720 | CI2: 744 | CJ2: 744 | CK2: 696 | CL2: 744 | CM2: 720 | CN2: 744 | CO2: 720 | CP2: 744 | CQ2: 744 | CR2: 720 | CS2: 744 | CT2: 720 | CU2: 744 | CV2: 744 | CW2: 696 | CX2: 744 | CY2: 720 | CZ2: 744 | DA2: 720 | DB2: 744 | DC2: 744 | DD2: 720 | DE2: 744 | DF2: 720 | DG2: 744 | DH2: 744 | DI2: 696 | DJ2: 744 | DK2: 720 | DL2: 744 | DM2: 720 | DN2: 744 | DO2: 744 | DP2: 720 | DQ2: 744 | DR2: 720 | DS2: 744 | DT2: 744 | DU2: 696 | DV2: 744 | DW2: 720 | DX2: 744 | DY2: 720 | DZ2: 744 | EA2: 744 | EB2: 720 | EC2: 744 | ED2: 720 | EE2: 744 | EF2: 744 | EG2: 696 | EH2: 744 | EI2: 720 | EJ2: 744 | EK2: 720 | EL2: 744 | EM2: 744 | EN2: 720 | EO2: =EC2 -> 744 | EP2: 720 | EQ2: 744 | ER2: 744 | ES2: 696 | ET2: 744 | EU2: 720 | EV2: 744 | EW2: 720 | EX2: 744 | EY2: 744 | EZ2: 720 | FA2: 744 | FB2: 720 | FC2: 744 | FD2: 744 | FE2: 696 | FF2: 744 | FG2: 720 | FH2: 744 | FI2: 720 | FJ2: 744 | FK2: 744 | FL2: 720 | FM2: 744 | FN2: 720 | FO2: 744 | FP2: 744 | FQ2: 696 | FR2: 744 | FS2: 720 | FT2: 744 | FU2: 720 | FV2: 744 | FW2: 744 | FX2: 720 | FY2: 744 | FZ2: 720 | GA2: 744 | GB2: 744 | GC2: 696 | GD2: 744 | GE2: 720 | GF2: 744 | GG2: 720 | GH2: 744 | GI2: 744 | GJ2: 720 | GK2: 744 | GL2: 720 | GM2: 744 | GN2: 744 | GO2: 696 | GP2: 744 | GQ2: 720 | GR2: 744 | GS2: 720 | GT2: 744 | GU2: 744 | GV2: 720 | GW2: 744 | GX2: 720 | GY2: 744 | GZ2: 744 | HA2: 696 | HB2: =GP2 -> 744 | HC2: 720 | HD2: 744 | HE2: 720 | HF2: 744 | HG2: 744 | HH2: 720 | HI2: 744 | HJ2: 720 | HK2: 744 | HL2: 744 | HM2: 696 | HN2: 744 | HO2: 720 | HP2: 744 | HQ2: 720 | HR2: 744 | HS2: 744 | HT2: 720 | HU2: 744 | HV2: 720 | HW2: 744 | HX2: 744 | HY2: 696 | HZ2: 744 | IA2: 720 | IB2: 744 | IC2: 720 | ID2: 744 | IE2: 744 | IF2: 720 | IG2: 744 | IH2: 720 | II2: 744 | IK2: WA New Clean | IL2: =SUM(IL42:IL63) -> 0 | IM2: 0 | IN2: 0 | IO2: 20.51860211 | IP2: 20.53058862 | IQ2: 82.88143376 | IR2: 114.2529607 | IS2: 114.10617 | IT2: 114.1629882 | IU2: 114.2197644 | IV2: 114.4788542 | IW2: 114.3442959 | IX2: 114.4248038 | IY2: 114.4965979 | IZ2: 114.7947299 | JA2: 114.6521828 | JB2: 114.712368 | JC2: 114.7786006 | JD2: 115.0420543 | JE2: 119.7966407
B3: PT Ratio | D3: =G_A!$G$9 -> 0.6548957111 | E3: =G_A!$G$9 -> 0.6548957111 | F3: =G_A!$G$9 -> 0.6548957111 | G3: =G_A!$G$9 -> 0.6548957111 | H3: =G_A!$G$9 -> 0.6548957111 | I3: =G_A!$G$9 -> 0.6548957111 | J3: =G_A!$G$9 -> 0.6548957111 | K3: =G_A!$G$9 -> 0.6548957111 | L3: =G_A!$G$9 -> 0.6548957111 | M3: =G_A!$G$9 -> 0.6548957111 | N3: =G_A!$G$9 -> 0.6548957111 | O3: =G_A!$G$9 -> 0.6548957111 | P3: =G_A!$H$9 -> 0.6565857471 | Q3: =G_A!$H$9 -> 0.6565857471 | R3: =G_A!$H$9 -> 0.6565857471 | S3: =G_A!$H$9 -> 0.6565857471 | T3: =G_A!$H$9 -> 0.6565857471 | U3: =G_A!$H$9 -> 0.6565857471 | V3: =G_A!$H$9 -> 0.6565857471 | W3: =G_A!$H$9 -> 0.6565857471 | X3: =G_A!$H$9 -> 0.6565857471 | Y3: =G_A!$H$9 -> 0.6565857471 | Z3: =G_A!$H$9 -> 0.6565857471 | AA3: =G_A!$H$9 -> 0.6565857471 | AB3: =G_A!$I$9 -> 0.6583512531 | AC3: =G_A!$I$9 -> 0.6583512531 | AD3: =G_A!$I$9 -> 0.6583512531 | AE3: =G_A!$I$9 -> 0.6583512531 | AF3: =G_A!$I$9 -> 0.6583512531 | AG3: =G_A!$I$9 -> 0.6583512531 | AH3: =G_A!$I$9 -> 0.6583512531 | AI3: =G_A!$I$9 -> 0.6583512531 | AJ3: =G_A!$I$9 -> 0.6583512531 | AK3: =G_A!$I$9 -> 0.6583512531 | AL3: =G_A!$I$9 -> 0.6583512531 | AM3: =G_A!$I$9 -> 0.6583512531 | AN3: =G_A!$J$9 -> 0.6583554294 | AO3: =G_A!$J$9 -> 0.6583554294 | AP3: =G_A!$J$9 -> 0.6583554294 | AQ3: =G_A!$J$9 -> 0.6583554294 | AR3: =G_A!$J$9 -> 0.6583554294 | AS3: =G_A!$J$9 -> 0.6583554294 | AT3: =G_A!$J$9 -> 0.6583554294 | AU3: =G_A!$J$9 -> 0.6583554294 | AV3: =G_A!$J$9 -> 0.6583554294 | AW3: =G_A!$J$9 -> 0.6583554294 | AX3: =G_A!$J$9 -> 0.6583554294 | AY3: =G_A!$J$9 -> 0.6583554294 | AZ3: =G_A!$K$9 -> 0.658740026 | BA3: =G_A!$K$9 -> 0.658740026 | BB3: =G_A!$K$9 -> 0.658740026 | BC3: =G_A!$K$9 -> 0.658740026 | BD3: =G_A!$K$9 -> 0.658740026 | BE3: =G_A!$K$9 -> 0.658740026 | BF3: =G_A!$K$9 -> 0.658740026 | BG3: =G_A!$K$9 -> 0.658740026 | BH3: =G_A!$K$9 -> 0.658740026 | BI3: =G_A!$K$9 -> 0.658740026 | BJ3: =G_A!$K$9 -> 0.658740026 | BK3: =G_A!$K$9 -> 0.658740026 | BL3: =G_A!$L$9 -> 0.6593157577 | BM3: =G_A!$L$9 -> 0.6593157577 | BN3: =G_A!$L$9 -> 0.6593157577 | BO3: =G_A!$L$9 -> 0.6593157577 | BP3: =G_A!$L$9 -> 0.6593157577 | BQ3: =G_A!$L$9 -> 0.6593157577 | BR3: =G_A!$L$9 -> 0.6593157577 | BS3: =G_A!$L$9 -> 0.6593157577 | BT3: =G_A!$L$9 -> 0.6593157577 | BU3: =G_A!$L$9 -> 0.6593157577 | BV3: =G_A!$L$9 -> 0.6593157577 | BW3: =G_A!$L$9 -> 0.6593157577 | BX3: =G_A!$M$9 -> 0.6601552685 | BY3: =G_A!$M$9 -> 0.6601552685 | BZ3: =G_A!$M$9 -> 0.6601552685 | CA3: =G_A!$M$9 -> 0.6601552685 | CB3: =G_A!$M$9 -> 0.6601552685 | CC3: =G_A!$M$9 -> 0.6601552685 | CD3: =G_A!$M$9 -> 0.6601552685 | CE3: =G_A!$M$9 -> 0.6601552685 | CF3: =G_A!$M$9 -> 0.6601552685 | CG3: =G_A!$M$9 -> 0.6601552685 | CH3: =G_A!$M$9 -> 0.6601552685 | CI3: =G_A!$M$9 -> 0.6601552685 | CJ3: =G_A!$N$9 -> 0.6611858902 | CK3: =G_A!$N$9 -> 0.6611858902 | CL3: =G_A!$N$9 -> 0.6611858902 | CM3: =G_A!$N$9 -> 0.6611858902 | CN3: =G_A!$N$9 -> 0.6611858902 | CO3: =G_A!$N$9 -> 0.6611858902 | CP3: =G_A!$N$9 -> 0.6611858902 | CQ3: =G_A!$N$9 -> 0.6611858902 | CR3: =G_A!$N$9 -> 0.6611858902 | CS3: =G_A!$N$9 -> 0.6611858902 | CT3: =G_A!$N$9 -> 0.6611858902 | CU3: =G_A!$N$9 -> 0.6611858902 | CV3: =G_A!$O$9 -> 0.6630089475 | CW3: =G_A!$O$9 -> 0.6630089475 | CX3: =G_A!$O$9 -> 0.6630089475 | CY3: =G_A!$O$9 -> 0.6630089475 | CZ3: =G_A!$O$9 -> 0.6630089475 | DA3: =G_A!$O$9 -> 0.6630089475 | DB3: =G_A!$O$9 -> 0.6630089475 | DC3: =G_A!$O$9 -> 0.6630089475 | DD3: =G_A!$O$9 -> 0.6630089475 | DE3: =G_A!$O$9 -> 0.6630089475 | DF3: =G_A!$O$9 -> 0.6630089475 | DG3: =G_A!$O$9 -> 0.6630089475 | DH3: =G_A!$P$9 -> 0.6648306551 | DI3: =G_A!$P$9 -> 0.6648306551 | DJ3: =G_A!$P$9 -> 0.6648306551 | DK3: =G_A!$P$9 -> 0.6648306551 | DL3: =G_A!$P$9 -> 0.6648306551 | DM3: =G_A!$P$9 -> 0.6648306551 | DN3: =G_A!$P$9 -> 0.6648306551 | DO3: =G_A!$P$9 -> 0.6648306551 | DP3: =G_A!$P$9 -> 0.6648306551 | DQ3: =G_A!$P$9 -> 0.6648306551 | DR3: =G_A!$P$9 -> 0.6648306551 | DS3: =G_A!$P$9 -> 0.6648306551 | DT3: =G_A!$Q$9 -> 0.6665507185 | DU3: =G_A!$Q$9 -> 0.6665507185 | DV3: =G_A!$Q$9 -> 0.6665507185 | DW3: =G_A!$Q$9 -> 0.6665507185 | DX3: =G_A!$Q$9 -> 0.6665507185 | DY3: =G_A!$Q$9 -> 0.6665507185 | DZ3: =G_A!$Q$9 -> 0.6665507185 | EA3: =G_A!$Q$9 -> 0.6665507185 | EB3: =G_A!$Q$9 -> 0.6665507185 | EC3: =G_A!$Q$9 -> 0.6665507185 | ED3: =G_A!$Q$9 -> 0.6665507185 | EE3: =G_A!$Q$9 -> 0.6665507185 | EF3: =G_A!$R$9 -> 0.6688263487 | EG3: =G_A!$R$9 -> 0.6688263487 | EH3: =G_A!$R$9 -> 0.6688263487 | EI3: =G_A!$R$9 -> 0.6688263487 | EJ3: =G_A!$R$9 -> 0.6688263487 | EK3: =G_A!$R$9 -> 0.6688263487 | EL3: =G_A!$R$9 -> 0.6688263487 | EM3: =G_A!$R$9 -> 0.6688263487 | EN3: =G_A!$R$9 -> 0.6688263487 | EO3: =G_A!$R$9 -> 0.6688263487 | EP3: =G_A!$R$9 -> 0.6688263487 | EQ3: =G_A!$R$9 -> 0.6688263487 | ER3: =G_A!$S$9 -> 0.6714095053 | ES3: =G_A!$S$9 -> 0.6714095053 | ET3: =G_A!$S$9 -> 0.6714095053 | EU3: =G_A!$S$9 -> 0.6714095053 | EV3: =G_A!$S$9 -> 0.6714095053 | EW3: =G_A!$S$9 -> 0.6714095053 | EX3: =G_A!$S$9 -> 0.6714095053 | EY3: =G_A!$S$9 -> 0.6714095053 | EZ3: =G_A!$S$9 -> 0.6714095053 | FA3: =G_A!$S$9 -> 0.6714095053 | FB3: =G_A!$S$9 -> 0.6714095053 | FC3: =G_A!$S$9 -> 0.6714095053 | FD3: =G_A!$T$9 -> 0.6737130748 | FE3: =G_A!$T$9 -> 0.6737130748 | FF3: =G_A!$T$9 -> 0.6737130748 | FG3: =G_A!$T$9 -> 0.6737130748 | FH3: =G_A!$T$9 -> 0.6737130748 | FI3: =G_A!$T$9 -> 0.6737130748 | FJ3: =G_A!$T$9 -> 0.6737130748 | FK3: =G_A!$T$9 -> 0.6737130748 | FL3: =G_A!$T$9 -> 0.6737130748 | FM3: =G_A!$T$9 -> 0.6737130748 | FN3: =G_A!$T$9 -> 0.6737130748 | FO3: =G_A!$T$9 -> 0.6737130748 | FP3: =G_A!$U$9 -> 0.6766676476 | FQ3: =G_A!$U$9 -> 0.6766676476 | FR3: =G_A!$U$9 -> 0.6766676476 | FS3: =G_A!$U$9 -> 0.6766676476 | FT3: =G_A!$U$9 -> 0.6766676476 | FU3: =G_A!$U$9 -> 0.6766676476 | FV3: =G_A!$U$9 -> 0.6766676476 | FW3: =G_A!$U$9 -> 0.6766676476 | FX3: =G_A!$U$9 -> 0.6766676476 | FY3: =G_A!$U$9 -> 0.6766676476 | FZ3: =G_A!$U$9 -> 0.6766676476 | GA3: =G_A!$U$9 -> 0.6766676476 | GB3: =G_A!$V$9 -> 0.6787051397 | GC3: =G_A!$V$9 -> 0.6787051397 | GD3: =G_A!$V$9 -> 0.6787051397 | GE3: =G_A!$V$9 -> 0.6787051397 | GF3: =G_A!$V$9 -> 0.6787051397 | GG3: =G_A!$V$9 -> 0.6787051397 | GH3: =G_A!$V$9 -> 0.6787051397 | GI3: =G_A!$V$9 -> 0.6787051397 | GJ3: =G_A!$V$9 -> 0.6787051397 | GK3: =G_A!$V$9 -> 0.6787051397 | GL3: =G_A!$V$9 -> 0.6787051397 | GM3: =G_A!$V$9 -> 0.6787051397 | GN3: =G_A!$W$9 -> 0.6806362288 | GO3: =G_A!$W$9 -> 0.6806362288 | GP3: =G_A!$W$9 -> 0.6806362288 | GQ3: =G_A!$W$9 -> 0.6806362288 | GR3: =G_A!$W$9 -> 0.6806362288 | GS3: =G_A!$W$9 -> 0.6806362288 | GT3: =G_A!$W$9 -> 0.6806362288 | GU3: =G_A!$W$9 -> 0.6806362288 | GV3: =G_A!$W$9 -> 0.6806362288 | GW3: =G_A!$W$9 -> 0.6806362288 | GX3: =G_A!$W$9 -> 0.6806362288 | GY3: =G_A!$W$9 -> 0.6806362288 | GZ3: =G_A!$X$9 -> 0.6827613556 | HA3: =G_A!$X$9 -> 0.6827613556 | HB3: =G_A!$X$9 -> 0.6827613556 | HC3: =G_A!$X$9 -> 0.6827613556 | HD3: =G_A!$X$9 -> 0.6827613556 | HE3: =G_A!$X$9 -> 0.6827613556 | HF3: =G_A!$X$9 -> 0.6827613556 | HG3: =G_A!$X$9 -> 0.6827613556 | HH3: =G_A!$X$9 -> 0.6827613556 | HI3: =G_A!$X$9 -> 0.6827613556 | HJ3: =G_A!$X$9 -> 0.6827613556 | HK3: =G_A!$X$9 -> 0.6827613556 | HL3: =G_A!$Y$9 -> 0.6845890017 | HM3: =G_A!$Y$9 -> 0.6845890017 | HN3: =G_A!$Y$9 -> 0.6845890017 | HO3: =G_A!$Y$9 -> 0.6845890017 | HP3: =G_A!$Y$9 -> 0.6845890017 | HQ3: =G_A!$Y$9 -> 0.6845890017 | HR3: =G_A!$Y$9 -> 0.6845890017 | HS3: =G_A!$Y$9 -> 0.6845890017 | HT3: =G_A!$Y$9 -> 0.6845890017 | HU3: =G_A!$Y$9 -> 0.6845890017 | HV3: =G_A!$Y$9 -> 0.6845890017 | HW3: =G_A!$Y$9 -> 0.6845890017 | HX3: =G_A!$Z$9 -> 0.684840753 | HY3: =G_A!$Z$9 -> 0.684840753 | HZ3: =G_A!$Z$9 -> 0.684840753 | IA3: =G_A!$Z$9 -> 0.684840753 | IB3: =G_A!$Z$9 -> 0.684840753 | IC3: =G_A!$Z$9 -> 0.684840753 | ID3: =G_A!$Z$9 -> 0.684840753 | IE3: =G_A!$Z$9 -> 0.684840753 | IF3: =G_A!$Z$9 -> 0.684840753 | IG3: =G_A!$Z$9 -> 0.684840753 | IH3: =G_A!$Z$9 -> 0.684840753 | II3: =G_A!$Z$9 -> 0.684840753 | IK3: Renewable Transfers | IL3: =SUM(IL32:IL37) -> 0 | IM3: =SUM(IM32:IM37) -> 0 | IN3: 0 | IO3: 0 | IP3: 0 | IQ3: 0 | IR3: 0 | IS3: =SUM(IS32:IS37) -> 2.015803071 | IT3: 7.761316377 | IU3: 12.39283567 | IV3: 0.895420879 | IW3: 15.54661665 | IX3: 7.670973226 | IY3: 9.864243886 | IZ3: 8.60873012 | JA3: 9.331642232 | JB3: 6.970285276 | JC3: 11.62218188 | JD3: 7.775988751 | JE3: 6.959626412
B4: Compliance Period | D4: 2026 | E4: 2026 | F4: 2026 | G4: 2026 | H4: 2026 | I4: 2026 | J4: 2026 | K4: 2026 | L4: 2026 | M4: 2026 | N4: 2026 | O4: 2026 | P4: =D4+1 -> 2027 | Q4: =E4+1 -> 2027 | R4: =F4+1 -> 2027 | S4: =G4+1 -> 2027 | T4: =H4+1 -> 2027 | U4: =I4+1 -> 2027 | V4: =J4+1 -> 2027 | W4: =K4+1 -> 2027 | X4: =L4+1 -> 2027 | Y4: =M4+1 -> 2027 | Z4: =N4+1 -> 2027 | AA4: =O4+1 -> 2027 | AB4: =P4+1 -> 2028 | AC4: =Q4+1 -> 2028 | AD4: =R4+1 -> 2028 | AE4: =S4+1 -> 2028 | AF4: =T4+1 -> 2028 | AG4: =U4+1 -> 2028 | AH4: =V4+1 -> 2028 | AI4: =W4+1 -> 2028 | AJ4: =X4+1 -> 2028 | AK4: =Y4+1 -> 2028 | AL4: =Z4+1 -> 2028 | AM4: =AA4+1 -> 2028 | AN4: =AB4+1 -> 2029 | AO4: =AC4+1 -> 2029 | AP4: =AD4+1 -> 2029 | AQ4: =AE4+1 -> 2029 | AR4: =AF4+1 -> 2029 | AS4: =AG4+1 -> 2029 | AT4: =AH4+1 -> 2029 | AU4: =AI4+1 -> 2029 | AV4: =AJ4+1 -> 2029 | AW4: =AK4+1 -> 2029 | AX4: =AL4+1 -> 2029 | AY4: =AM4+1 -> 2029 | AZ4: 2030-2033 | BA4: 2030-2033 | BB4: 2030-2033 | BC4: 2030-2033 | BD4: 2030-2033 | BE4: 2030-2033 | BF4: 2030-2033 | BG4: 2030-2033 | BH4: 2030-2033 | BI4: 2030-2033 | BJ4: 2030-2033 | BK4: 2030-2033 | BL4: 2030-2033 | BM4: 2030-2033 | BN4: 2030-2033 | BO4: 2030-2033 | BP4: 2030-2033 | BQ4: 2030-2033 | BR4: 2030-2033 | BS4: 2030-2033 | BT4: 2030-2033 | BU4: 2030-2033 | BV4: 2030-2033 | BW4: 2030-2033 | BX4: 2030-2033 | BY4: 2030-2033 | BZ4: 2030-2033 | CA4: 2030-2033 | CB4: 2030-2033 | CC4: 2030-2033 | CD4: 2030-2033 | CE4: 2030-2033 | CF4: 2030-2033 | CG4: 2030-2033 | CH4: 2030-2033 | CI4: 2030-2033 | CJ4: 2030-2033 | CK4: 2030-2033 | CL4: 2030-2033 | CM4: 2030-2033 | CN4: 2030-2033 | CO4: 2030-2033 | CP4: 2030-2033 | CQ4: 2030-2033 | CR4: 2030-2033 | CS4: 2030-2033 | CT4: 2030-2033 | CU4: 2030-2033 | CV4: 2034-2037 | CW4: 2034-2037 | CX4: 2034-2037 | CY4: 2034-2037 | CZ4: 2034-2037 | DA4: 2034-2037 | DB4: 2034-2037 | DC4: 2034-2037 | DD4: 2034-2037 | DE4: 2034-2037 | DF4: 2034-2037 | DG4: 2034-2037 | DH4: 2034-2037 | DI4: 2034-2037 | DJ4: 2034-2037 | DK4: 2034-2037 | DL4: 2034-2037 | DM4: 2034-2037 | DN4: 2034-2037 | DO4: 2034-2037 | DP4: 2034-2037 | DQ4: 2034-2037 | DR4: 2034-2037 | DS4: 2034-2037 | DT4: 2034-2037 | DU4: 2034-2037 | DV4: 2034-2037 | DW4: 2034-2037 | DX4: 2034-2037 | DY4: 2034-2037 | DZ4: 2034-2037 | EA4: 2034-2037 | EB4: 2034-2037 | EC4: 2034-2037 | ED4: 2034-2037 | EE4: 2034-2037 | EF4: 2034-2037 | EG4: 2034-2037 | EH4: 2034-2037 | EI4: 2034-2037 | EJ4: 2034-2037 | EK4: 2034-2037 | EL4: 2034-2037 | EM4: 2034-2037 | EN4: 2034-2037 | EO4: 2034-2037 | EP4: 2034-2037 | EQ4: 2034-2037 | ER4: 2038-2041 | ES4: 2038-2041 | ET4: 2038-2041 | EU4: 2038-2041 | EV4: 2038-2041 | EW4: 2038-2041 | EX4: 2038-2041 | EY4: 2038-2041 | EZ4: 2038-2041 | FA4: 2038-2041 | FB4: 2038-2041 | FC4: 2038-2041 | FD4: 2038-2041 | FE4: 2038-2041 | FF4: 2038-2041 | FG4: 2038-2041 | FH4: 2038-2041 | FI4: 2038-2041 | FJ4: 2038-2041 | FK4: 2038-2041 | FL4: 2038-2041 | FM4: 2038-2041 | FN4: 2038-2041 | FO4: 2038-2041 | FP4: 2038-2041 | FQ4: 2038-2041 | FR4: 2038-2041 | FS4: 2038-2041 | FT4: 2038-2041 | FU4: 2038-2041 | FV4: 2038-2041 | FW4: 2038-2041 | FX4: 2038-2041 | FY4: 2038-2041 | FZ4: 2038-2041 | GA4: 2038-2041 | GB4: 2038-2041 | GC4: 2038-2041 | GD4: 2038-2041 | GE4: 2038-2041 | GF4: 2038-2041 | GG4: 2038-2041 | GH4: 2038-2041 | GI4: 2038-2041 | GJ4: 2038-2041 | GK4: 2038-2041 | GL4: 2038-2041 | GM4: 2038-2041 | GN4: 2042-2044 | GO4: 2042-2044 | GP4: 2042-2044 | GQ4: 2042-2044 | GR4: 2042-2044 | GS4: 2042-2044 | GT4: 2042-2044 | GU4: 2042-2044 | GV4: 2042-2044 | GW4: 2042-2044 | GX4: 2042-2044 | GY4: 2042-2044 | GZ4: 2042-2044 | HA4: 2042-2044 | HB4: 2042-2044 | HC4: 2042-2044 | HD4: 2042-2044 | HE4: 2042-2044 | HF4: 2042-2044 | HG4: 2042-2044 | HH4: 2042-2044 | HI4: 2042-2044 | HJ4: 2042-2044 | HK4: 2042-2044 | HL4: 2042-2044 | HM4: 2042-2044 | HN4: 2042-2044 | HO4: 2042-2044 | HP4: 2042-2044 | HQ4: 2042-2044 | HR4: 2042-2044 | HS4: 2042-2044 | HT4: 2042-2044 | HU4: 2042-2044 | HV4: 2042-2044 | HW4: 2042-2044 | HX4: 2045 | HY4: 2045 | HZ4: 2045 | IA4: 2045 | IB4: 2045 | IC4: 2045 | ID4: 2045 | IE4: 2045 | IF4: 2045 | IG4: 2045 | IH4: 2045 | II4: 2045 | IK4: Avail Trans. (Excl. Hydro) | IL4: =SUM(IL129:IL132,IL134:IL135)-IL3 -> 114.8679076 | IM4: 118.1050826 | IN4: 116.1283527 | IO4: 116.7421705 | IP4: 116.8605816 | IQ4: 136.1112878 | IR4: 135.9788002 | IS4: 134.2395733 | IT4: 127.9157158 | IU4: 122.2361347 | IV4: 133.033259 | IW4: 117.7796524 | IX4: 124.9183684 | IY4: 122.0524573 | IZ4: 121.8251334 | JA4: 104.1016809 | JB4: 106.0089738 | JC4: 88.68815337 | JD4: 91.59159899 | JE4: 92.76239595
B5: Year | D5: 2026 | E5: 2026 | F5: 2026 | G5: 2026 | H5: 2026 | I5: 2026 | J5: 2026 | K5: 2026 | L5: 2026 | M5: 2026 | N5: 2026 | O5: 2026 | P5: =D5+1 -> 2027 | Q5: 2027 | R5: 2027 | S5: 2027 | T5: 2027 | U5: 2027 | V5: 2027 | W5: 2027 | X5: 2027 | Y5: 2027 | Z5: =N5+1 -> 2027 | AA5: 2027 | AB5: 2028 | AC5: 2028 | AD5: 2028 | AE5: 2028 | AF5: 2028 | AG5: 2028 | AH5: 2028 | AI5: 2028 | AJ5: =X5+1 -> 2028 | AK5: 2028 | AL5: 2028 | AM5: 2028 | AN5: 2029 | AO5: 2029 | AP5: 2029 | AQ5: 2029 | AR5: 2029 | AS5: 2029 | AT5: =AH5+1 -> 2029 | AU5: 2029 | AV5: 2029 | AW5: 2029 | AX5: 2029 | AY5: 2029 | AZ5: 2030 | BA5: 2030 | BB5: 2030 | BC5: 2030 | BD5: =AR5+1 -> 2030 | BE5: 2030 | BF5: 2030 | BG5: 2030 | BH5: 2030 | BI5: 2030 | BJ5: 2030 | BK5: 2030 | BL5: 2031 | BM5: 2031 | BN5: =BB5+1 -> 2031 | BO5: 2031 | BP5: 2031 | BQ5: 2031 | BR5: 2031 | BS5: 2031 | BT5: 2031 | BU5: 2031 | BV5: 2031 | BW5: 2031 | BX5: =BL5+1 -> 2032 | BY5: 2032 | BZ5: 2032 | CA5: 2032 | CB5: 2032 | CC5: 2032 | CD5: 2032 | CE5: 2032 | CF5: 2032 | CG5: 2032 | CH5: =BV5+1 -> 2032 | CI5: 2032 | CJ5: =BX5+1 -> 2033 | CK5: 2033 | CL5: 2033 | CM5: 2033 | CN5: 2033 | CO5: 2033 | CP5: 2033 | CQ5: 2033 | CR5: 2033 | CS5: 2033 | CT5: 2033 | CU5: 2033 | CV5: 2034 | CW5: 2034 | CX5: 2034 | CY5: 2034 | CZ5: 2034 | DA5: 2034 | DB5: 2034 | DC5: 2034 | DD5: 2034 | DE5: 2034 | DF5: 2034 | DG5: 2034 | DH5: 2035 | DI5: 2035 | DJ5: 2035 | DK5: 2035 | DL5: 2035 | DM5: 2035 | DN5: 2035 | DO5: 2035 | DP5: =DD5+1 -> 2035 | DQ5: 2035 | DR5: 2035 | DS5: 2035 | DT5: 2036 | DU5: 2036 | DV5: 2036 | DW5: 2036 | DX5: 2036 | DY5: 2036 | DZ5: 2036 | EA5: 2036 | EB5: 2036 | EC5: 2036 | ED5: 2036 | EE5: 2036 | EF5: 2037 | EG5: 2037 | EH5: 2037 | EI5: 2037 | EJ5: 2037 | EK5: 2037 | EL5: 2037 | EM5: 2037 | EN5: 2037 | EO5: 2037 | EP5: 2037 | EQ5: 2037 | ER5: 2038 | ES5: 2038 | ET5: 2038 | EU5: 2038 | EV5: =EJ5+1 -> 2038 | EW5: 2038 | EX5: 2038 | EY5: 2038 | EZ5: 2038 | FA5: 2038 | FB5: 2038 | FC5: 2038 | FD5: 2039 | FE5: 2039 | FF5: 2039 | FG5: 2039 | FH5: 2039 | FI5: 2039 | FJ5: 2039 | FK5: 2039 | FL5: 2039 | FM5: 2039 | FN5: 2039 | FO5: 2039 | FP5: 2040 | FQ5: 2040 | FR5: 2040 | FS5: 2040 | FT5: 2040 | FU5: 2040 | FV5: 2040 | FW5: 2040 | FX5: 2040 | FY5: 2040 | FZ5: 2040 | GA5: 2040 | GB5: =FP5+1 -> 2041 | GC5: 2041 | GD5: 2041 | GE5: 2041 | GF5: 2041 | GG5: 2041 | GH5: 2041 | GI5: 2041 | GJ5: 2041 | GK5: 2041 | GL5: 2041 | GM5: 2041 | GN5: 2042 | GO5: 2042 | GP5: 2042 | GQ5: 2042 | GR5: 2042 | GS5: 2042 | GT5: 2042 | GU5: 2042 | GV5: 2042 | GW5: 2042 | GX5: 2042 | GY5: 2042 | GZ5: 2043 | HA5: 2043 | HB5: 2043 | HC5: 2043 | HD5: 2043 | HE5: 2043 | HF5: 2043 | HG5: 2043 | HH5: =GV5+1 -> 2043 | HI5: 2043 | HJ5: 2043 | HK5: 2043 | HL5: 2044 | HM5: 2044 | HN5: 2044 | HO5: 2044 | HP5: 2044 | HQ5: 2044 | HR5: 2044 | HS5: 2044 | HT5: 2044 | HU5: 2044 | HV5: 2044 | HW5: 2044 | HX5: 2045 | HY5: 2045 | HZ5: 2045 | IA5: 2045 | IB5: 2045 | IC5: 2045 | ID5: 2045 | IE5: 2045 | IF5: 2045 | IG5: 2045 | IH5: 2045 | II5: 2045 | IL5: 2026 | IM5: 2027 | IN5: 2028 | IO5: 2029 | IP5: 2030 | IQ5: 2031 | IR5: 2032 | IS5: 2033 | IT5: 2034 | IU5: 2035 | IV5: 2036 | IW5: 2037 | IX5: 2038 | IY5: 2039 | IZ5: 2040 | JA5: 2041 | JB5: 2042 | JC5: 2043 | JD5: 2044 | JE5: 2045
B6: Month | D6: 1 | E6: 2 | F6: 3 | G6: 4 | H6: 5 | I6: 6 | J6: 7 | K6: 8 | L6: 9 | M6: 10 | N6: 11 | O6: 12 | P6: =D6 -> 1 | Q6: 2 | R6: 3 | S6: 4 | T6: 5 | U6: 6 | V6: 7 | W6: 8 | X6: 9 | Y6: 10 | Z6: 11 | AA6: 12 | AB6: 1 | AC6: 2 | AD6: 3 | AE6: 4 | AF6: 5 | AG6: 6 | AH6: 7 | AI6: 8 | AJ6: 9 | AK6: 10 | AL6: 11 | AM6: 12 | AN6: 1 | AO6: 2 | AP6: 3 | AQ6: 4 | AR6: 5 | AS6: 6 | AT6: 7 | AU6: 8 | AV6: 9 | AW6: 10 | AX6: 11 | AY6: 12 | AZ6: 1 | BA6: 2 | BB6: 3 | BC6: 4 | BD6: 5 | BE6: 6 | BF6: 7 | BG6: 8 | BH6: 9 | BI6: 10 | BJ6: 11 | BK6: 12 | BL6: 1 | BM6: 2 | BN6: 3 | BO6: 4 | BP6: 5 | BQ6: 6 | BR6: 7 | BS6: 8 | BT6: 9 | BU6: 10 | BV6: 11 | BW6: 12 | BX6: 1 | BY6: 2 | BZ6: 3 | CA6: 4 | CB6: =BP6 -> 5 | CC6: 6 | CD6: 7 | CE6: 8 | CF6: 9 | CG6: 10 | CH6: 11 | CI6: 12 | CJ6: 1 | CK6: 2 | CL6: 3 | CM6: 4 | CN6: 5 | CO6: 6 | CP6: 7 | CQ6: 8 | CR6: 9 | CS6: 10 | CT6: 11 | CU6: 12 | CV6: 1 | CW6: 2 | CX6: 3 | CY6: 4 | CZ6: 5 | DA6: 6 | DB6: 7 | DC6: 8 | DD6: 9 | DE6: 10 | DF6: 11 | DG6: 12 | DH6: 1 | DI6: 2 | DJ6: 3 | DK6: 4 | DL6: 5 | DM6: 6 | DN6: 7 | DO6: 8 | DP6: 9 | DQ6: 10 | DR6: 11 | DS6: 12 | DT6: 1 | DU6: 2 | DV6: 3 | DW6: 4 | DX6: 5 | DY6: 6 | DZ6: 7 | EA6: 8 | EB6: 9 | EC6: 10 | ED6: 11 | EE6: 12 | EF6: 1 | EG6: 2 | EH6: 3 | EI6: 4 | EJ6: 5 | EK6: 6 | EL6: 7 | EM6: 8 | EN6: =EB6 -> 9 | EO6: 10 | EP6: 11 | EQ6: 12 | ER6: 1 | ES6: 2 | ET6: 3 | EU6: 4 | EV6: 5 | EW6: 6 | EX6: 7 | EY6: 8 | EZ6: 9 | FA6: 10 | FB6: 11 | FC6: 12 | FD6: 1 | FE6: 2 | FF6: 3 | FG6: 4 | FH6: 5 | FI6: 6 | FJ6: 7 | FK6: 8 | FL6: 9 | FM6: 10 | FN6: 11 | FO6: 12 | FP6: 1 | FQ6: 2 | FR6: 3 | FS6: 4 | FT6: 5 | FU6: 6 | FV6: 7 | FW6: 8 | FX6: 9 | FY6: 10 | FZ6: 11 | GA6: 12 | GB6: 1 | GC6: 2 | GD6: 3 | GE6: 4 | GF6: 5 | GG6: 6 | GH6: 7 | GI6: 8 | GJ6: 9 | GK6: 10 | GL6: 11 | GM6: 12 | GN6: 1 | GO6: 2 | GP6: 3 | GQ6: 4 | GR6: 5 | GS6: 6 | GT6: 7 | GU6: 8 | GV6: 9 | GW6: 10 | GX6: 11 | GY6: 12 | GZ6: =GN6 -> 1 | HA6: 2 | HB6: 3 | HC6: 4 | HD6: 5 | HE6: 6 | HF6: 7 | HG6: 8 | HH6: 9 | HI6: 10 | HJ6: 11 | HK6: 12 | HL6: 1 | HM6: 2 | HN6: 3 | HO6: 4 | HP6: 5 | HQ6: 6 | HR6: 7 | HS6: 8 | HT6: 9 | HU6: 10 | HV6: 11 | HW6: 12 | HX6: 1 | HY6: 2 | HZ6: 3 | IA6: 4 | IB6: 5 | IC6: 6 | ID6: 7 | IE6: 8 | IF6: 9 | IG6: 10 | IH6: 11 | II6: 12 | IK6: WA Allocated Clean Energy | IL6: =SUM(IL19:IL21,IL24:IL30) -> 570.056055 | IM6: =SUM(IM19:IM21,IM24:IM30) -> 568.1569605 | IN6: 565.3528243 | IO6: 572.9109351 | IP6: 572.5901381 | IQ6: 582.4275632 | IR6: 584.0802297 | IS6: 588.1752982 | IT6: 554.9230966 | IU6: 555.5689993 | IV6: 554.7170218 | IW6: 557.8374812 | IX6: 553.7495772 | IY6: 554.9840782 | IZ6: 556.5624736 | JA6: 521.1517843 | JB6: 520.0664382 | JC6: 495.4889027 | JD6: 493.038644 | JE6: 496.9655568
B7: Primary Compliance | D7: =$D$102 -> 0.66 | E7: =$D$102 -> 0.66 | F7: 0.66 | G7: 0.66 | H7: 0.66 | I7: 0.66 | J7: 0.66 | K7: 0.66 | L7: 0.66 | M7: 0.66 | N7: 0.66 | O7: 0.66 | P7: =$E$102 -> 0.695 | Q7: =$E$102 -> 0.695 | R7: 0.695 | S7: 0.695 | T7: 0.695 | U7: 0.695 | V7: 0.695 | W7: 0.695 | X7: 0.695 | Y7: 0.695 | Z7: 0.695 | AA7: 0.695 | AB7: =$F$102 -> 0.73 | AC7: =$F$102 -> 0.73 | AD7: 0.73 | AE7: 0.73 | AF7: 0.73 | AG7: 0.73 | AH7: 0.73 | AI7: 0.73 | AJ7: 0.73 | AK7: 0.73 | AL7: 0.73 | AM7: 0.73 | AN7: =$G$102 -> 0.765 | AO7: =$G$102 -> 0.765 | AP7: 0.765 | AQ7: 0.765 | AR7: 0.765 | AS7: 0.765 | AT7: 0.765 | AU7: 0.765 | AV7: 0.765 | AW7: 0.765 | AX7: 0.765 | AY7: 0.765 | AZ7: =$H$102 -> 0.8 | BA7: =$H$102 -> 0.8 | BB7: 0.8 | BC7: 0.8 | BD7: 0.8 | BE7: 0.8 | BF7: 0.8 | BG7: 0.8 | BH7: 0.8 | BI7: 0.8 | BJ7: 0.8 | BK7: 0.8 | BL7: 0.8 | BM7: 0.8 | BN7: 0.8 | BO7: 0.8 | BP7: 0.8 | BQ7: 0.8 | BR7: 0.8 | BS7: 0.8 | BT7: 0.8 | BU7: 0.8 | BV7: 0.8 | BW7: 0.8 | BX7: 0.8 | BY7: 0.8 | BZ7: 0.8 | CA7: 0.8 | CB7: 0.8 | CC7: 0.8 | CD7: 0.8 | CE7: 0.8 | CF7: 0.8 | CG7: 0.8 | CH7: 0.8 | CI7: 0.8 | CJ7: 0.8 | CK7: 0.8 | CL7: 0.8 | CM7: 0.8 | CN7: 0.8 | CO7: 0.8 | CP7: 0.8 | CQ7: 0.8 | CR7: 0.8 | CS7: 0.8 | CT7: 0.8 | CU7: 0.8 | CV7: =$I$102 -> 0.85 | CW7: =$I$102 -> 0.85 | CX7: 0.85 | CY7: 0.85 | CZ7: 0.85 | DA7: 0.85 | DB7: 0.85 | DC7: 0.85 | DD7: 0.85 | DE7: 0.85 | DF7: 0.85 | DG7: 0.85 | DH7: 0.85 | DI7: 0.85 | DJ7: 0.85 | DK7: 0.85 | DL7: 0.85 | DM7: 0.85 | DN7: 0.85 | DO7: 0.85 | DP7: 0.85 | DQ7: 0.85 | DR7: 0.85 | DS7: 0.85 | DT7: 0.85 | DU7: 0.85 | DV7: 0.85 | DW7: 0.85 | DX7: 0.85 | DY7: 0.85 | DZ7: 0.85 | EA7: 0.85 | EB7: 0.85 | EC7: 0.85 | ED7: 0.85 | EE7: 0.85 | EF7: 0.85 | EG7: 0.85 | EH7: 0.85 | EI7: 0.85 | EJ7: 0.85 | EK7: 0.85 | EL7: 0.85 | EM7: 0.85 | EN7: 0.85 | EO7: 0.85 | EP7: 0.85 | EQ7: 0.85 | ER7: =$J$102 -> 0.9 | ES7: =$J$102 -> 0.9 | ET7: 0.9 | EU7: 0.9 | EV7: 0.9 | EW7: 0.9 | EX7: 0.9 | EY7: 0.9 | EZ7: 0.9 | FA7: 0.9 | FB7: 0.9 | FC7: 0.9 | FD7: 0.9 | FE7: 0.9 | FF7: 0.9 | FG7: 0.9 | FH7: 0.9 | FI7: 0.9 | FJ7: 0.9 | FK7: 0.9 | FL7: 0.9 | FM7: 0.9 | FN7: 0.9 | FO7: 0.9 | FP7: 0.9 | FQ7: 0.9 | FR7: 0.9 | FS7: 0.9 | FT7: 0.9 | FU7: 0.9 | FV7: 0.9 | FW7: 0.9 | FX7: 0.9 | FY7: 0.9 | FZ7: 0.9 | GA7: 0.9 | GB7: 0.9 | GC7: 0.9 | GD7: 0.9 | GE7: 0.9 | GF7: 0.9 | GG7: 0.9 | GH7: 0.9 | GI7: 0.9 | GJ7: 0.9 | GK7: 0.9 | GL7: 0.9 | GM7: 0.9 | GN7: =$K$102 -> 0.95 | GO7: =$K$102 -> 0.95 | GP7: 0.95 | GQ7: 0.95 | GR7: 0.95 | GS7: 0.95 | GT7: 0.95 | GU7: 0.95 | GV7: 0.95 | GW7: 0.95 | GX7: 0.95 | GY7: 0.95 | GZ7: 0.95 | HA7: 0.95 | HB7: 0.95 | HC7: 0.95 | HD7: 0.95 | HE7: 0.95 | HF7: 0.95 | HG7: 0.95 | HH7: 0.95 | HI7: 0.95 | HJ7: 0.95 | HK7: 0.95 | HL7: 0.95 | HM7: 0.95 | HN7: 0.95 | HO7: 0.95 | HP7: 0.95 | HQ7: 0.95 | HR7: 0.95 | HS7: 0.95 | HT7: 0.95 | HU7: 0.95 | HV7: 0.95 | HW7: 0.95 | HX7: =$L$102 -> 1 | HY7: =$L$102 -> 1 | HZ7: 1 | IA7: 1 | IB7: 1 | IC7: 1 | ID7: 1 | IE7: 1 | IF7: 1 | IG7: 1 | IH7: 1 | II7: 1 | IK7: Hydro Transfers | IL7: =IL38 -> 0 | IM7: =IM38 -> 0 | IN7: 0 | IO7: 0 | IP7: 0 | IQ7: 0 | IR7: 0 | IS7: 0 | IT7: 0 | IU7: 0 | IV7: 0 | IW7: 3.85304287 | IX7: 3.964346791 | IY7: 3.936554909 | IZ7: 2.527013129 | JA7: 2.517968748 | JB7: 5.660496812 | JC7: 0 | JD7: 0 | JE7: 0.5540849345
B8: Alternative Compliance | D8: 0 | E8: 0 | F8: 0 | G8: 0 | H8: 0 | I8: 0 | J8: 0 | K8: 0 | L8: 0 | M8: 0 | N8: 0 | O8: 0 | P8: 0 | Q8: 0 | R8: 0 | S8: 0 | T8: 0 | U8: 0 | V8: 0 | W8: 0 | X8: 0 | Y8: 0 | Z8: 0 | AA8: 0 | AB8: 0 | AC8: 0 | AD8: 0 | AE8: 0 | AF8: 0 | AG8: 0 | AH8: 0 | AI8: 0 | AJ8: 0 | AK8: 0 | AL8: 0 | AM8: 0 | AN8: 0 | AO8: 0 | AP8: 0 | AQ8: 0 | AR8: 0 | AS8: 0 | AT8: 0 | AU8: 0 | AV8: 0 | AW8: 0 | AX8: 0 | AY8: 0 | AZ8: =$H$103 -> 0.2 | BA8: =$H$103 -> 0.2 | BB8: 0.2 | BC8: 0.2 | BD8: 0.2 | BE8: 0.2 | BF8: 0.2 | BG8: 0.2 | BH8: 0.2 | BI8: 0.2 | BJ8: 0.2 | BK8: 0.2 | BL8: 0.2 | BM8: 0.2 | BN8: 0.2 | BO8: 0.2 | BP8: 0.2 | BQ8: 0.2 | BR8: 0.2 | BS8: 0.2 | BT8: 0.2 | BU8: 0.2 | BV8: 0.2 | BW8: 0.2 | BX8: 0.2 | BY8: 0.2 | BZ8: 0.2 | CA8: 0.2 | CB8: 0.2 | CC8: 0.2 | CD8: 0.2 | CE8: 0.2 | CF8: 0.2 | CG8: 0.2 | CH8: 0.2 | CI8: 0.2 | CJ8: 0.2 | CK8: 0.2 | CL8: 0.2 | CM8: 0.2 | CN8: 0.2 | CO8: 0.2 | CP8: 0.2 | CQ8: 0.2 | CR8: 0.2 | CS8: 0.2 | CT8: 0.2 | CU8: 0.2 | CV8: =$I$103 -> 0.15 | CW8: =$I$103 -> 0.15 | CX8: 0.15 | CY8: 0.15 | CZ8: 0.15 | DA8: 0.15 | DB8: 0.15 | DC8: 0.15 | DD8: 0.15 | DE8: 0.15 | DF8: 0.15 | DG8: 0.15 | DH8: 0.15 | DI8: 0.15 | DJ8: 0.15 | DK8: 0.15 | DL8: 0.15 | DM8: 0.15 | DN8: 0.15 | DO8: 0.15 | DP8: 0.15 | DQ8: 0.15 | DR8: 0.15 | DS8: 0.15 | DT8: 0.15 | DU8: 0.15 | DV8: 0.15 | DW8: 0.15 | DX8: 0.15 | DY8: 0.15 | DZ8: 0.15 | EA8: 0.15 | EB8: 0.15 | EC8: 0.15 | ED8: 0.15 | EE8: 0.15 | EF8: 0.15 | EG8: 0.15 | EH8: 0.15 | EI8: 0.15 | EJ8: 0.15 | EK8: 0.15 | EL8: 0.15 | EM8: 0.15 | EN8: 0.15 | EO8: 0.15 | EP8: 0.15 | EQ8: 0.15 | ER8: =$J$103 -> 0.1 | ES8: =$J$103 -> 0.1 | ET8: 0.1 | EU8: 0.1 | EV8: 0.1 | EW8: 0.1 | EX8: 0.1 | EY8: 0.1 | EZ8: 0.1 | FA8: 0.1 | FB8: 0.1 | FC8: 0.1 | FD8: 0.1 | FE8: 0.1 | FF8: 0.1 | FG8: 0.1 | FH8: 0.1 | FI8: 0.1 | FJ8: 0.1 | FK8: 0.1 | FL8: 0.1 | FM8: 0.1 | FN8: 0.1 | FO8: 0.1 | FP8: 0.1 | FQ8: 0.1 | FR8: 0.1 | FS8: 0.1 | FT8: 0.1 | FU8: 0.1 | FV8: 0.1 | FW8: 0.1 | FX8: 0.1 | FY8: 0.1 | FZ8: 0.1 | GA8: 0.1 | GB8: 0.1 | GC8: 0.1 | GD8: 0.1 | GE8: 0.1 | GF8: 0.1 | GG8: 0.1 | GH8: 0.1 | GI8: 0.1 | GJ8: 0.1 | GK8: 0.1 | GL8: 0.1 | GM8: 0.1 | GN8: =$K$103 -> 0.05 | GO8: =$K$103 -> 0.05 | GP8: 0.05 | GQ8: 0.05 | GR8: 0.05 | GS8: 0.05 | GT8: 0.05 | GU8: 0.05 | GV8: 0.05 | GW8: 0.05 | GX8: 0.05 | GY8: 0.05 | GZ8: 0.05 | HA8: 0.05 | HB8: 0.05 | HC8: 0.05 | HD8: 0.05 | HE8: 0.05 | HF8: 0.05 | HG8: 0.05 | HH8: 0.05 | HI8: 0.05 | HJ8: 0.05 | HK8: 0.05 | HL8: 0.05 | HM8: 0.05 | HN8: 0.05 | HO8: 0.05 | HP8: 0.05 | HQ8: 0.05 | HR8: 0.05 | HS8: 0.05 | HT8: 0.05 | HU8: 0.05 | HV8: 0.05 | HW8: 0.05 | HX8: =$L$103 -> 0 | HY8: =$L$103 -> 0 | HZ8: 0 | IA8: 0 | IB8: 0 | IC8: 0 | ID8: 0 | IE8: 0 | IF8: 0 | IG8: 0 | IH8: 0 | II8: 0
A9: WASHINGTON | HX9: Target not adjusted for losses in 2045 due to L&R constraint.
A10: Retail Load | B10: Retail Sales (adjusted as a % of Load) | D10: 627172.2092 | E10: 517980.7775 | F10: 522070.1609 | G10: 469128.9031 | H10: 459641.9338 | I10: 467934.3145 | J10: 521281.3138 | K10: 527258.9701 | L10: 447929.4228 | M10: 475094.2437 | N10: 529553.7026 | O10: 609474.195 | P10: 630640.7116 | Q10: 521266.481 | R10: 524174.7271 | S10: 471252.6422 | T10: 461569.0274 | U10: 469214.9655 | V10: 522953.2123 | W10: 529587.101 | X10: 450283.7728 | Y10: 477222.5722 | Z10: 531419.8165 | AA10: 613074.7634 | AB10: 634244.0654 | AC10: 524866.7279 | AD10: 526735.0489 | AE10: 473245.1998 | AF10: 463567.0261 | AG10: 471102.6381 | AH10: 525536.48 | AI10: 531967.7989 | AJ10: 451888.8191 | AK10: 478457.6555 | AL10: 533092.509 | AM10: 615833.7088 | AN10: 632215.4038 | AO10: 519984.3483 | AP10: 523913.0355 | AQ10: 470809.9981 | AR10: 461569.8567 | AS10: 469527.5751 | AT10: 524513.9047 | AU10: 531006.1996 | AV10: 450263.7725 | AW10: 476113.0649 | AX10: 531347.4746 | AY10: 613908.4518 | AZ10: 631455.8655 | BA10: 519552.1579 | BB10: 523642.9238 | BC10: 471012.0446 | BD10: 462074.6161 | BE10: 470171.5274 | BF10: 525489.6201 | BG10: 531947.3 | BH10: 450922.3401 | BI10: 476640.5345 | BJ10: 531670.2244 | BK10: 613345.6948 | BL10: 631421.286 | BM10: 519705.585 | BN10: 523954.9039 | BO10: 471724.7606 | BP10: 463073.3107 | BQ10: 471319.5114 | BR10: 527034.0781 | BS10: 533465.3397 | BT10: 452061.3959 | BU10: 477681.1225 | BV10: 532578.037 | BW10: 613482.9882 | BX10: 633936.1107 | BY10: 523961.3724 | BZ10: 526331.0133 | CA10: 474270.4785 | CB10: 465860.5405 | CC10: 474299.0894 | CD10: 530657.8435 | CE10: 537090.1984 | CF10: 454948.7446 | CG10: 480579.8646 | CH10: 535590.4813 | CI10: 616090.7004 | CJ10: 637606.7777 | CK10: 525087.9253 | CL10: 529644.0319 | CM10: 477649.5802 | CN10: 469461.9001 | CO10: 478112.7949 | CP10: 535229.3139 | CQ10: 541675.1527 | CR10: 458632.4224 | CS10: 484324.4362 | CT10: 539560.0915 | CU10: 619818.9871 | CV10: 644429.7391 | CW10: 530810.9217 | CX10: 535518.507 | CY10: 483315.1078 | CZ10: 475302.4226 | DA10: 484222.9586 | DB10: 542414.351 | DC10: 548906.9869 | DD10: 464509.286 | DE10: 490395.412 | DF10: 546157.3702 | DG10: 626606.5241 | DH10: 652134.49 | DI10: 537252.7623 | DJ10: 542113.2493 | DK10: 489628.3573 | DL10: 481780.5958 | DM10: 490988.4546 | DN10: 550347.8384 | DO10: 556896.3025 | DP10: 471012.4827 | DQ10: 497128.9154 | DR10: 553500.0203 | DS10: 634251.7086 | DT10: 660719.0737 | DU10: 546446.4264 | DV10: 549428.0733 | DW10: 496590.956 | DX10: 488899.2555 | DY10: 498412.7019 | DZ10: 559034.6496 | EA10: 565647.845 | EB10: 478145.454 | EC10: 504527.9048 | ED10: 561590.2787 | EE10: 642753.3474 | EF10: 669762.6684 | EG10: 551948.6742 | EH10: 557121.6377 | EI10: 503898.9865 | EJ10: 496361.3019 | EK10: 506191.219 | EL10: 568128.6824 | EM10: 574811.0184 | EN10: 485617.487 | EO10: 512283.7103 | EP10: 570079.027 | EQ10: 651703.3438 | ER10: 682272.1886 | ES10: 562309.5145 | ET10: 567644.9673 | EU10: 513750.1316 | EV10: 506325.7972 | EW10: 516541.1153 | EX10: 580158.5848 | EY10: 586945.6578 | EZ10: 495546.9538 | FA10: 522639.5822 | FB10: 581493.9547 | FC10: 664023.7275 | FD10: 692835.6084 | FE10: 571090.0652 | FF10: 576590.2748 | FG10: 522196.9286 | FH10: 514917.9085 | FI10: 525484.7186 | FJ10: 590590.3272 | FK10: 597461.3167 | FL10: 504133.7856 | FM10: 531569.6289 | FN10: 591295.8052 | FO10: 674457.1197 | FP10: 707683.5365 | FQ10: 585398.8454 | FR10: 589038.3309 | FS10: 533797.5597 | FT10: 526617.4862 | FU10: 537623.0481 | FV10: 604672.8394 | FW10: 611671.3927 | FX10: 515774.3491 | FY10: 543728.4005 | FZ10: 604727.745 | GA10: 689059.2534 | GB10: 720390.0949 | GC10: 593900.5736 | GD10: 599748.983 | GE10: 543850.6643 | GF10: 536803.8312 | GG10: 548210.3728 | GH10: 616991.9985 | GI10: 624095.2862 | GJ10: 525933.9841 | GK10: 554315.0044 | GL10: 616381.8745 | GM10: 701584.5322 | GN10: 730796.9063 | GO10: 602565.7084 | GP10: 608589.3224 | GQ10: 552232.2213 | GR10: 545351.758 | GS10: 557116.7702 | GT10: 627396.9914 | GU10: 634580.8332 | GV10: 534488.0812 | GW10: 563199.3407 | GX10: 626114.5627 | GY10: 711877.1353 | GZ10: 745479.1905 | HA10: 614721.0867 | HB10: 620931.0248 | HC10: 563773.9811 | HD10: 557018.6554 | HE10: 569231.8592 | HF10: 641472.8159 | HG10: 648780.3074 | HH10: 546109.9953 | HI10: 575324.4064 | HJ10: 639486.2136 | HK10: 726332.7036 | HL10: 760841.9645 | HM10: 629470.934 | HN10: 633839.6322 | HO10: 575839.601 | HP10: 569210.928 | HQ10: 581890.846 | HR10: 656177.4108 | HS10: 663614.6738 | HT10: 558253.1008 | HU10: 587995.4393 | HV10: 653463.5513 | HW10: 741455.6895 | HX10: 767858.3715 | HY10: 633347.3224 | HZ10: 639927.406 | IA10: 581767.1711 | IB10: 575357.6919 | IC10: 588335.5027 | ID10: 663782.3908 | IE10: 671264.1966 | IF10: 564456.46 | IG10: 594385.0803 | IH10: 660376.6208 | II10: 748459.1519 | IL10: =SUM(D10:O10)/G_A!$G$6 -> 704.8538981 | IM10: =SUM(P10:AA10)/G_A!$H$6 -> 708.0661864 | IN10: =SUM(AB10:AM10)/G_A!$I$6 -> 709.3052912 | IO10: =SUM(AN10:AY10)/G_A!$J$6 -> 708.353092 | IP10: =SUM(AZ10:BK10)/G_A!$K$6 -> 708.6672202 | IQ10: =SUM(BL10:BW10)/G_A!$L$6 -> 709.7605387 | IR10: =SUM(BX10:CI10)/G_A!$M$6 -> 711.9326546 | IS10: =SUM(CJ10:CU10)/G_A!$N$6 -> 718.8131751 | IT10: =SUM(CV10:DG10)/G_A!$O$6 -> 727.4645647 | IU10: =SUM(DH10:DS10)/G_A!$P$6 -> 737.1044723 | IV10: =SUM(DT10:EE10)/G_A!$Q$6 -> 745.9239488 | IW10: =SUM(EF10:EQ10)/G_A!$R$6 -> 758.8935795 | IX10: =SUM(ER10:FC10)/G_A!$S$6 -> 773.9328967 | IY10: =SUM(FD10:FO10)/G_A!$T$6 -> 786.8291652 | IZ10: =SUM(FP10:GA10)/G_A!$U$6 -> 802.5720386 | JA10: =SUM(GB10:GM10)/G_A!$V$6 -> 819.8866666 | JB10: =SUM(GN10:GY10)/G_A!$W$6 -> 832.6837479 | JC10: =SUM(GZ10:HK10)/G_A!$X$6 -> 850.3039087 | JD10: =SUM(HL10:HW10)/G_A!$Y$6 -> 866.5817135 | JE10: =SUM(HX10:II10)/G_A!$Z$6 -> 877.775955
B11: Placeholder | D11: 0 | E11: 0 | F11: 0 | G11: 0 | H11: 0 | I11: 0 | J11: 0 | K11: 0 | L11: 0 | M11: 0 | N11: 0 | O11: 0 | P11: 0 | Q11: 0 | R11: 0 | S11: 0 | T11: 0 | U11: 0 | V11: 0 | W11: 0 | X11: 0 | Y11: 0 | Z11: 0 | AA11: 0 | AB11: 0 | AC11: 0 | AD11: 0 | AE11: 0 | AF11: 0 | AG11: 0 | AH11: 0 | AI11: 0 | AJ11: 0 | AK11: 0 | AL11: 0 | AM11: 0 | AN11: 0 | AO11: 0 | AP11: 0 | AQ11: 0 | AR11: 0 | AS11: 0 | AT11: 0 | AU11: 0 | AV11: 0 | AW11: 0 | AX11: 0 | AY11: 0 | AZ11: 0 | BA11: 0 | BB11: 0 | BC11: 0 | BD11: 0 | BE11: 0 | BF11: 0 | BG11: 0 | BH11: 0 | BI11: 0 | BJ11: 0 | BK11: 0 | BL11: 0 | BM11: 0 | BN11: 0 | BO11: 0 | BP11: 0 | BQ11: 0 | BR11: 0 | BS11: 0 | BT11: 0 | BU11: 0 | BV11: 0 | BW11: 0 | BX11: 0 | BY11: 0 | BZ11: 0 | CA11: 0 | CB11: 0 | CC11: 0 | CD11: 0 | CE11: 0 | CF11: 0 | CG11: 0 | CH11: 0 | CI11: 0 | CJ11: 0 | CK11: 0 | CL11: 0 | CM11: 0 | CN11: 0 | CO11: 0 | CP11: 0 | CQ11: 0 | CR11: 0 | CS11: 0 | CT11: 0 | CU11: 0 | CV11: 0 | CW11: 0 | CX11: 0 | CY11: 0 | CZ11: 0 | DA11: 0 | DB11: 0 | DC11: 0 | DD11: 0 | DE11: 0 | DF11: 0 | DG11: 0 | DH11: 0 | DI11: 0 | DJ11: 0 | DK11: 0 | DL11: 0 | DM11: 0 | DN11: 0 | DO11: 0 | DP11: 0 | DQ11: 0 | DR11: 0 | DS11: 0 | DT11: 0 | DU11: 0 | DV11: 0 | DW11: 0 | DX11: 0 | DY11: 0 | DZ11: 0 | EA11: 0 | EB11: 0 | EC11: 0 | ED11: 0 | EE11: 0 | EF11: 0 | EG11: 0 | EH11: 0 | EI11: 0 | EJ11: 0 | EK11: 0 | EL11: 0 | EM11: 0 | EN11: 0 | EO11: 0 | EP11: 0 | EQ11: 0 | ER11: 0 | ES11: 0 | ET11: 0 | EU11: 0 | EV11: 0 | EW11: 0 | EX11: 0 | EY11: 0 | EZ11: 0 | FA11: 0 | FB11: 0 | FC11: 0 | FD11: 0 | FE11: 0 | FF11: 0 | FG11: 0 | FH11: 0 | FI11: 0 | FJ11: 0 | FK11: 0 | FL11: 0 | FM11: 0 | FN11: 0 | FO11: 0 | FP11: 0 | FQ11: 0 | FR11: 0 | FS11: 0 | FT11: 0 | FU11: 0 | FV11: 0 | FW11: 0 | FX11: 0 | FY11: 0 | FZ11: 0 | GA11: 0 | GB11: 0 | GC11: 0 | GD11: 0 | GE11: 0 | GF11: 0 | GG11: 0 | GH11: 0 | GI11: 0 | GJ11: 0 | GK11: 0 | GL11: 0 | GM11: 0 | GN11: 0 | GO11: 0 | GP11: 0 | GQ11: 0 | GR11: 0 | GS11: 0 | GT11: 0 | GU11: 0 | GV11: 0 | GW11: 0 | GX11: 0 | GY11: 0 | GZ11: 0 | HA11: 0 | HB11: 0 | HC11: 0 | HD11: 0 | HE11: 0 | HF11: 0 | HG11: 0 | HH11: 0 | HI11: 0 | HJ11: 0 | HK11: 0 | HL11: 0 | HM11: 0 | HN11: 0 | HO11: 0 | HP11: 0 | HQ11: 0 | HR11: 0 | HS11: 0 | HT11: 0 | HU11: 0 | HV11: 0 | HW11: 0 | HX11: 0 | HY11: 0 | HZ11: 0 | IA11: 0 | IB11: 0 | IC11: 0 | ID11: 0 | IE11: 0 | IF11: 0 | IG11: 0 | IH11: 0 | II11: 0 | IL11: =SUM(D11:O11)/G_A!$G$6 -> 0 | IM11: =SUM(P11:AA11)/G_A!$H$6 -> 0 | IN11: =SUM(AB11:AM11)/G_A!$I$6 -> 0 | IO11: =SUM(AN11:AY11)/G_A!$J$6 -> 0 | IP11: =SUM(AZ11:BK11)/G_A!$K$6 -> 0 | IQ11: =SUM(BL11:BW11)/G_A!$L$6 -> 0 | IR11: =SUM(BX11:CI11)/G_A!$M$6 -> 0 | IS11: =SUM(CJ11:CU11)/G_A!$N$6 -> 0 | IT11: =SUM(CV11:DG11)/G_A!$O$6 -> 0 | IU11: =SUM(DH11:DS11)/G_A!$P$6 -> 0 | IV11: =SUM(DT11:EE11)/G_A!$Q$6 -> 0 | IW11: =SUM(EF11:EQ11)/G_A!$R$6 -> 0 | IX11: =SUM(ER11:FC11)/G_A!$S$6 -> 0 | IY11: =SUM(FD11:FO11)/G_A!$T$6 -> 0 | IZ11: =SUM(FP11:GA11)/G_A!$U$6 -> 0 | JA11: =SUM(GB11:GM11)/G_A!$V$6 -> 0 | JB11: =SUM(GN11:GY11)/G_A!$W$6 -> 0 | JC11: =SUM(GZ11:HK11)/G_A!$X$6 -> 0 | JD11: =SUM(HL11:HW11)/G_A!$Y$6 -> 0 | JE11: =SUM(HX11:II11)/G_A!$Z$6 -> 0
B12: PURPA | D12: 15784 | E12: 16452 | F12: 20071 | G12: 19803 | H12: 18292 | I12: 13805 | J12: 12349 | K12: 11180 | L12: 11527 | M12: 14344 | N12: 13786 | O12: 15897 | P12: 15784 | Q12: 16452 | R12: 20071 | S12: 19803 | T12: 18292 | U12: 13805 | V12: 12349 | W12: 11180 | X12: 11527 | Y12: 14344 | Z12: 13786 | AA12: 15897 | AB12: 15784 | AC12: 16452 | AD12: 20071 | AE12: 19803 | AF12: 18292 | AG12: 13805 | AH12: 12349 | AI12: 11180 | AJ12: 11527 | AK12: 14344 | AL12: 13786 | AM12: 15897 | AN12: 15784 | AO12: 16452 | AP12: 20071 | AQ12: 19803 | AR12: 18292 | AS12: 13805 | AT12: 12349 | AU12: 11180 | AV12: 11527 | AW12: 14344 | AX12: 13786 | AY12: 15897 | AZ12: 15784 | BA12: 16452 | BB12: 20071 | BC12: 19803 | BD12: 18292 | BE12: 13805 | BF12: 12349 | BG12: 11180 | BH12: 11527 | BI12: 14344 | BJ12: 13786 | BK12: 15897 | BL12: 15784 | BM12: 16452 | BN12: 20071 | BO12: 19803 | BP12: 18292 | BQ12: 13805 | BR12: 12349 | BS12: 11180 | BT12: 11527 | BU12: 14344 | BV12: 13786 | BW12: 15897 | BX12: 15784 | BY12: 16452 | BZ12: 20071 | CA12: 19803 | CB12: 18292 | CC12: 13805 | CD12: 12349 | CE12: 11180 | CF12: 11527 | CG12: 14344 | CH12: 13786 | CI12: 15897 | CJ12: 15784 | CK12: 16452 | CL12: 20071 | CM12: 19803 | CN12: 18292 | CO12: 13805 | CP12: 12349 | CQ12: 11180 | CR12: 11527 | CS12: 14344 | CT12: 13786 | CU12: 15897 | CV12: 15784 | CW12: 16452 | CX12: 20071 | CY12: 19803 | CZ12: 18292 | DA12: 13805 | DB12: 12349 | DC12: 11180 | DD12: 11527 | DE12: 14344 | DF12: 13786 | DG12: 15897 | DH12: 15784 | DI12: 16452 | DJ12: 20071 | DK12: 19803 | DL12: 18292 | DM12: 13805 | DN12: 12349 | DO12: 11180 | DP12: 11527 | DQ12: 14344 | DR12: 13786 | DS12: 15897 | DT12: 15784 | DU12: 16452 | DV12: 20071 | DW12: 19803 | DX12: 18292 | DY12: 13805 | DZ12: 12349 | EA12: 11180 | EB12: 11527 | EC12: 14344 | ED12: 13786 | EE12: 15897 | EF12: 15784 | EG12: 16452 | EH12: 20071 | EI12: 19803 | EJ12: 18292 | EK12: 13805 | EL12: 12349 | EM12: 11180 | EN12: 11527 | EO12: 14344 | EP12: 13786 | EQ12: 15897 | ER12: 15784 | ES12: 16452 | ET12: 20071 | EU12: 19803 | EV12: 18292 | EW12: 13805 | EX12: 12349 | EY12: 11180 | EZ12: 11527 | FA12: 14344 | FB12: 13786 | FC12: 15897 | FD12: 15784 | FE12: 16452 | FF12: 20071 | FG12: 19803 | FH12: 18292 | FI12: 13805 | FJ12: 12349 | FK12: 11180 | FL12: 11527 | FM12: 14344 | FN12: 13786 | FO12: 15897 | FP12: 15784 | FQ12: 16452 | FR12: 20071 | FS12: 19803 | FT12: 18292 | FU12: 13805 | FV12: 12349 | FW12: 11180 | FX12: 11527 | FY12: 14344 | FZ12: 13786 | GA12: 15897 | GB12: 15784 | GC12: 16452 | GD12: 20071 | GE12: 19803 | GF12: 18292 | GG12: 13805 | GH12: 12349 | GI12: 11180 | GJ12: 11527 | GK12: 14344 | GL12: 13786 | GM12: 15897 | GN12: 15784 | GO12: 16452 | GP12: 20071 | GQ12: 19803 | GR12: 18292 | GS12: 13805 | GT12: 12349 | GU12: 11180 | GV12: 11527 | GW12: 14344 | GX12: 13786 | GY12: 15897 | GZ12: 15784 | HA12: 16452 | HB12: 20071 | HC12: 19803 | HD12: 18292 | HE12: 13805 | HF12: 12349 | HG12: 11180 | HH12: 11527 | HI12: 14344 | HJ12: 13786 | HK12: 15897 | HL12: 15784 | HM12: 16452 | HN12: 20071 | HO12: 19803 | HP12: 18292 | HQ12: 13805 | HR12: 12349 | HS12: 11180 | HT12: 11527 | HU12: 14344 | HV12: 13786 | HW12: 15897 | HX12: 15784 | HY12: 16452 | HZ12: 20071 | IA12: 19803 | IB12: 18292 | IC12: 13805 | ID12: 12349 | IE12: 11180 | IF12: 11527 | IG12: 14344 | IH12: 13786 | II12: 15897 | IL12: =SUM(D12:O12)/G_A!$G$6 -> 20.92351598 | IM12: =SUM(P12:AA12)/G_A!$H$6 -> 20.92351598 | IN12: =SUM(AB12:AM12)/G_A!$I$6 -> 20.86634791 | IO12: =SUM(AN12:AY12)/G_A!$J$6 -> 20.92351598 | IP12: =SUM(AZ12:BK12)/G_A!$K$6 -> 20.92351598 | IQ12: =SUM(BL12:BW12)/G_A!$L$6 -> 20.92351598 | IR12: =SUM(BX12:CI12)/G_A!$M$6 -> 20.86634791 | IS12: =SUM(CJ12:CU12)/G_A!$N$6 -> 20.92351598 | IT12: =SUM(CV12:DG12)/G_A!$O$6 -> 20.92351598 | IU12: =SUM(DH12:DS12)/G_A!$P$6 -> 20.92351598 | IV12: =SUM(DT12:EE12)/G_A!$Q$6 -> 20.86634791 | IW12: =SUM(EF12:EQ12)/G_A!$R$6 -> 20.92351598 | IX12: =SUM(ER12:FC12)/G_A!$S$6 -> 20.92351598 | IY12: =SUM(FD12:FO12)/G_A!$T$6 -> 20.92351598 | IZ12: =SUM(FP12:GA12)/G_A!$U$6 -> 20.86634791 | JA12: =SUM(GB12:GM12)/G_A!$V$6 -> 20.92351598 | JB12: =SUM(GN12:GY12)/G_A!$W$6 -> 20.92351598 | JC12: =SUM(GZ12:HK12)/G_A!$X$6 -> 20.92351598 | JD12: =SUM(HL12:HW12)/G_A!$Y$6 -> 20.86634791 | JE12: =SUM(HX12:II12)/G_A!$Z$6 -> 20.92351598
B13: Solar Select | D13: 1298 | E13: 2547 | F13: 3882 | G13: 5169 | H13: 6132 | I13: 6494 | J13: 7154 | K13: 6404 | L13: 4969 | M13: 3365 | N13: 1527 | O13: 1143 | P13: 1285 | Q13: 2522 | R13: 3843 | S13: 5118 | T13: 6071 | U13: 6429 | V13: 7082 | W13: 6340 | X13: 4920 | Y13: 3332 | Z13: 1512 | AA13: 1131 | AB13: 1273 | AC13: 2497 | AD13: 3805 | AE13: 5067 | AF13: 6010 | AG13: 6365 | AH13: 7012 | AI13: 6277 | AJ13: 4870 | AK13: 3298 | AL13: 1497 | AM13: 1120 | AN13: 1260 | AO13: 2472 | AP13: 3767 | AQ13: 5016 | AR13: 5950 | AS13: 6301 | AT13: 6941 | AU13: 6214 | AV13: 4822 | AW13: 3265 | AX13: 1482 | AY13: 1109 | AZ13: 1247 | BA13: 2447 | BB13: 3729 | BC13: 4966 | BD13: 5891 | BE13: 6238 | BF13: 6872 | BG13: 6152 | BH13: 4774 | BI13: 3233 | BJ13: 1467 | BK13: 1098 | BL13: 0 | BM13: 0 | BN13: 0 | BO13: 0 | BP13: 0 | BQ13: 0 | BR13: 0 | BS13: 0 | BT13: 0 | BU13: 0 | BV13: 0 | BW13: 0 | BX13: 0 | BY13: 0 | BZ13: 0 | CA13: 0 | CB13: 0 | CC13: 0 | CD13: 0 | CE13: 0 | CF13: 0 | CG13: 0 | CH13: 0 | CI13: 0 | CJ13: 0 | CK13: 0 | CL13: 0 | CM13: 0 | CN13: 0 | CO13: 0 | CP13: 0 | CQ13: 0 | CR13: 0 | CS13: 0 | CT13: 0 | CU13: 0 | CV13: 0 | CW13: 0 | CX13: 0 | CY13: 0 | CZ13: 0 | DA13: 0 | DB13: 0 | DC13: 0 | DD13: 0 | DE13: 0 | DF13: 0 | DG13: 0 | DH13: 0 | DI13: 0 | DJ13: 0 | DK13: 0 | DL13: 0 | DM13: 0 | DN13: 0 | DO13: 0 | DP13: 0 | DQ13: 0 | DR13: 0 | DS13: 0 | DT13: 0 | DU13: 0 | DV13: 0 | DW13: 0 | DX13: 0 | DY13: 0 | DZ13: 0 | EA13: 0 | EB13: 0 | EC13: 0 | ED13: 0 | EE13: 0 | EF13: 0 | EG13: 0 | EH13: 0 | EI13: 0 | EJ13: 0 | EK13: 0 | EL13: 0 | EM13: 0 | EN13: 0 | EO13: 0 | EP13: 0 | EQ13: 0 | ER13: 0 | ES13: 0 | ET13: 0 | EU13: 0 | EV13: 0 | EW13: 0 | EX13: 0 | EY13: 0 | EZ13: 0 | FA13: 0 | FB13: 0 | FC13: 0 | FD13: 0 | FE13: 0 | FF13: 0 | FG13: 0 | FH13: 0 | FI13: 0 | FJ13: 0 | FK13: 0 | FL13: 0 | FM13: 0 | FN13: 0 | FO13: 0 | FP13: 0 | FQ13: 0 | FR13: 0 | FS13: 0 | FT13: 0 | FU13: 0 | FV13: 0 | FW13: 0 | FX13: 0 | FY13: 0 | FZ13: 0 | GA13: 0 | GB13: 0 | GC13: 0 | GD13: 0 | GE13: 0 | GF13: 0 | GG13: 0 | GH13: 0 | GI13: 0 | GJ13: 0 | GK13: 0 | GL13: 0 | GM13: 0 | GN13: 0 | GO13: 0 | GP13: 0 | GQ13: 0 | GR13: 0 | GS13: 0 | GT13: 0 | GU13: 0 | GV13: 0 | GW13: 0 | GX13: 0 | GY13: 0 | GZ13: 0 | HA13: 0 | HB13: 0 | HC13: 0 | HD13: 0 | HE13: 0 | HF13: 0 | HG13: 0 | HH13: 0 | HI13: 0 | HJ13: 0 | HK13: 0 | HL13: 0 | HM13: 0 | HN13: 0 | HO13: 0 | HP13: 0 | HQ13: 0 | HR13: 0 | HS13: 0 | HT13: 0 | HU13: 0 | HV13: 0 | HW13: 0 | HX13: 0 | HY13: 0 | HZ13: 0 | IA13: 0 | IB13: 0 | IC13: 0 | ID13: 0 | IE13: 0 | IF13: 0 | IG13: 0 | IH13: 0 | II13: 0 | IL13: =SUM(D13:O13)/G_A!$G$6 -> 5.717351598 | IM13: =SUM(P13:AA13)/G_A!$H$6 -> 5.660388128 | IN13: =SUM(AB13:AM13)/G_A!$I$6 -> 5.588683971 | IO13: =SUM(AN13:AY13)/G_A!$J$6 -> 5.54783105 | IP13: =SUM(AZ13:BK13)/G_A!$K$6 -> 5.492465753 | IQ13: =SUM(BL13:BW13)/G_A!$L$6 -> 0 | IR13: =SUM(BX13:CI13)/G_A!$M$6 -> 0 | IS13: =SUM(CJ13:CU13)/G_A!$N$6 -> 0 | IT13: =SUM(CV13:DG13)/G_A!$O$6 -> 0 | IU13: =SUM(DH13:DS13)/G_A!$P$6 -> 0 | IV13: =SUM(DT13:EE13)/G_A!$Q$6 -> 0 | IW13: =SUM(EF13:EQ13)/G_A!$R$6 -> 0 | IX13: =SUM(ER13:FC13)/G_A!$S$6 -> 0 | IY13: =SUM(FD13:FO13)/G_A!$T$6 -> 0 | IZ13: =SUM(FP13:GA13)/G_A!$U$6 -> 0 | JA13: =SUM(GB13:GM13)/G_A!$V$6 -> 0 | JB13: =SUM(GN13:GY13)/G_A!$W$6 -> 0 | JC13: =SUM(GZ13:HK13)/G_A!$X$6 -> 0 | JD13: =SUM(HL13:HW13)/G_A!$Y$6 -> 0 | JE13: =SUM(HX13:II13)/G_A!$Z$6 -> 0
B14: Net Retail Load | D14: =D10-D11-D12-D13 -> 610090.2092 | E14: =E10-E11-E12-E13 -> 498981.7775 | F14: 498117.1609 | G14: =G10-G11-G12-G13 -> 444156.9031 | H14: 435217.9338 | I14: 447635.3145 | J14: 501778.3138 | K14: 509674.9701 | L14: 431433.4228 | M14: 457385.2437 | N14: 514240.7026 | O14: 592434.195 | P14: 613571.7116 | Q14: 502292.481 | R14: 500260.7271 | S14: 446331.6422 | T14: 437206.0274 | U14: 448980.9655 | V14: 503522.2123 | W14: 512067.101 | X14: 433836.7728 | Y14: 459546.5722 | Z14: 516121.8165 | AA14: 596046.7634 | AB14: 617187.0654 | AC14: 505917.7279 | AD14: 502859.0489 | AE14: 448375.1998 | AF14: 439265.0261 | AG14: 450932.6381 | AH14: 506175.48 | AI14: 514510.7989 | AJ14: 435491.8191 | AK14: 460815.6555 | AL14: 517809.509 | AM14: 598816.7088 | AN14: 615171.4038 | AO14: 501060.3483 | AP14: 500075.0355 | AQ14: 445990.9981 | AR14: 437327.8567 | AS14: 449421.5751 | AT14: 505223.9047 | AU14: 513612.1996 | AV14: 433914.7725 | AW14: 458504.0649 | AX14: 516079.4746 | AY14: 596902.4518 | AZ14: 614424.8655 | BA14: 500653.1579 | BB14: 499842.9238 | BC14: 446243.0446 | BD14: 437891.6161 | BE14: 450128.5274 | BF14: 506268.6201 | BG14: 514615.3 | BH14: 434621.3401 | BI14: 459063.5345 | BJ14: 516417.2244 | BK14: 596350.6948 | BL14: 615637.286 | BM14: 503253.585 | BN14: 503883.9039 | BO14: 451921.7606 | BP14: =BP10-BP11-BP12-BP13 -> 444781.3107 | BQ14: 457514.5114 | BR14: 514685.0781 | BS14: 522285.3397 | BT14: 440534.3959 | BU14: 463337.1225 | BV14: 518792.037 | BW14: 597585.9882 | BX14: 618152.1107 | BY14: 507509.3724 | BZ14: 506260.0133 | CA14: 454467.4785 | CB14: 447568.5405 | CC14: 460494.0894 | CD14: 518308.8435 | CE14: 525910.1984 | CF14: 443421.7446 | CG14: 466235.8646 | CH14: 521804.4813 | CI14: 600193.7004 | CJ14: 621822.7777 | CK14: 508635.9253 | CL14: 509573.0319 | CM14: 457846.5802 | CN14: 451169.9001 | CO14: 464307.7949 | CP14: 522880.3139 | CQ14: 530495.1527 | CR14: 447105.4224 | CS14: 469980.4362 | CT14: 525774.0915 | CU14: 603921.9871 | CV14: 628645.7391 | CW14: 514358.9217 | CX14: 515447.507 | CY14: 463512.1078 | CZ14: 457010.4226 | DA14: 470417.9586 | DB14: 530065.351 | DC14: 537726.9869 | DD14: 452982.286 | DE14: 476051.412 | DF14: 532371.3702 | DG14: 610709.5241 | DH14: 636350.49 | DI14: 520800.7623 | DJ14: 522042.2493 | DK14: 469825.3573 | DL14: 463488.5958 | DM14: 477183.4546 | DN14: 537998.8384 | DO14: 545716.3025 | DP14: 459485.4827 | DQ14: 482784.9154 | DR14: 539714.0203 | DS14: 618354.7086 | DT14: 644935.0737 | DU14: 529994.4264 | DV14: 529357.0733 | DW14: 476787.956 | DX14: 470607.2555 | DY14: 484607.7019 | DZ14: 546685.6496 | EA14: 554467.845 | EB14: =EB10-EB11-EB12-EB13 -> 466618.454 | EC14: 490183.9048 | ED14: 547804.2787 | EE14: 626856.3474 | EF14: 653978.6684 | EG14: 535496.6742 | EH14: 537050.6377 | EI14: 484095.9865 | EJ14: 478069.3019 | EK14: 492386.219 | EL14: 555779.6824 | EM14: 563631.0184 | EN14: 474090.487 | EO14: 497939.7103 | EP14: 556293.027 | EQ14: 635806.3438 | ER14: 666488.1886 | ES14: 545857.5145 | ET14: 547573.9673 | EU14: 493947.1316 | EV14: 488033.7972 | EW14: 502736.1153 | EX14: 567809.5848 | EY14: 575765.6578 | EZ14: 484019.9538 | FA14: 508295.5822 | FB14: 567707.9547 | FC14: 648126.7275 | FD14: 677051.6084 | FE14: 554638.0652 | FF14: 556519.2748 | FG14: 502393.9286 | FH14: 496625.9085 | FI14: 511679.7186 | FJ14: 578241.3272 | FK14: 586281.3167 | FL14: 492606.7856 | FM14: 517225.6289 | FN14: 577509.8052 | FO14: 658560.1197 | FP14: 691899.5365 | FQ14: 568946.8454 | FR14: 568967.3309 | FS14: 513994.5597 | FT14: 508325.4862 | FU14: 523818.0481 | FV14: 592323.8394 | FW14: 600491.3927 | FX14: 504247.3491 | FY14: 529384.4005 | FZ14: 590941.745 | GA14: 673162.2534 | GB14: 704606.0949 | GC14: 577448.5736 | GD14: 579677.983 | GE14: 524047.6643 | GF14: 518511.8312 | GG14: 534405.3728 | GH14: 604642.9985 | GI14: 612915.2862 | GJ14: 514406.9841 | GK14: 539971.0044 | GL14: 602595.8745 | GM14: 685687.5322 | GN14: =GN10-GN11-GN12-GN13 -> 715012.9063 | GO14: 586113.7084 | GP14: 588518.3224 | GQ14: 532429.2213 | GR14: 527059.758 | GS14: 543311.7702 | GT14: 615047.9914 | GU14: 623400.8332 | GV14: 522961.0812 | GW14: 548855.3407 | GX14: 612328.5627 | GY14: 695980.1353 | GZ14: 729695.1905 | HA14: 598269.0867 | HB14: 600860.0248 | HC14: 543970.9811 | HD14: 538726.6554 | HE14: 555426.8592 | HF14: 629123.8159 | HG14: 637600.3074 | HH14: 534582.9953 | HI14: 560980.4064 | HJ14: 625700.2136 | HK14: 710435.7036 | HL14: 745057.9645 | HM14: 613018.934 | HN14: 613768.6322 | HO14: 556036.601 | HP14: 550918.928 | HQ14: 568085.846 | HR14: =HR10-HR11-HR12-HR13 -> 643828.4108 | HS14: 652434.6738 | HT14: 546726.1008 | HU14: 573651.4393 | HV14: 639677.5513 | HW14: 725558.6895 | HX14: =HX10-HX11-HX12-HX13 -> 752074.3715 | HY14: 616895.3224 | HZ14: 619856.406 | IA14: 561964.1711 | IB14: 557065.6919 | IC14: 574530.5027 | ID14: 651433.3908 | IE14: 660084.1966 | IF14: 552929.46 | IG14: 580041.0803 | IH14: 646590.6208 | II14: 732562.1519 | IL14: =IL10-IL11-IL12-IL13 -> 678.2130305 | IM14: 681.4822823 | IN14: 682.8502593 | IO14: 681.8817449 | IP14: 682.2512385 | IQ14: 688.8370227 | IR14: 691.0663066 | IS14: 697.8896591 | IT14: 706.5410487 | IU14: 716.1809563 | IV14: 725.0576009 | IW14: 737.9700636 | IX14: 753.0093807 | IY14: 765.9056492 | IZ14: 781.7056907 | JA14: 798.9631506 | JB14: 811.7602319 | JC14: 829.3803927 | JD14: 845.7153656 | JE14: 856.852439
A16: Goal | B16: Primary Compliance Target | D16: =D14*D7 -> 402659.538 | E16: =E14*E7 -> 329327.9731 | F16: 328757.3262 | G16: 293143.5561 | H16: 287243.8363 | I16: 295439.3076 | J16: 331173.6871 | K16: 336385.4803 | L16: 284746.0591 | M16: 301874.2608 | N16: 339398.8637 | O16: 391006.5687 | P16: 426432.3396 | Q16: 349093.2743 | R16: 347681.2053 | S16: 310200.4913 | T16: 303858.189 | U16: 312041.771 | V16: 349947.9376 | W16: 355886.6352 | X16: 301516.5571 | Y16: 319384.8677 | Z16: 358704.6625 | AA16: 414252.5006 | AB16: 450546.5577 | AC16: 369319.9413 | AD16: 367087.1057 | AE16: 327313.8959 | AF16: 320663.4691 | AG16: 329180.8258 | AH16: 369508.1004 | AI16: 375592.8832 | AJ16: 317909.0279 | AK16: 336395.4285 | AL16: 378000.9416 | AM16: 437136.1974 | AN16: 470606.1239 | AO16: 383311.1665 | AP16: 382557.4022 | AQ16: 341183.1135 | AR16: 334555.8104 | AS16: 343807.505 | AT16: 386496.2871 | AU16: 392913.3327 | AV16: 331944.8009 | AW16: 350755.6097 | AX16: =AX14*AX7 -> 394800.798 | AY16: 456630.3757 | AZ16: 491539.8924 | BA16: 400522.5263 | BB16: 399874.339 | BC16: 356994.4356 | BD16: 350313.2929 | BE16: 360102.8219 | BF16: 405014.896 | BG16: 411692.24 | BH16: 347697.0721 | BI16: 367250.8276 | BJ16: 413133.7795 | BK16: 477080.5559 | BL16: 492509.8288 | BM16: 402602.868 | BN16: 403107.1231 | BO16: 361537.4085 | BP16: =BP14*BP7 -> 355825.0486 | BQ16: 366011.6092 | BR16: 411748.0625 | BS16: 417828.2717 | BT16: 352427.5167 | BU16: 370669.698 | BV16: 415033.6296 | BW16: 478068.7906 | BX16: 494521.6886 | BY16: 406007.498 | BZ16: 405008.0106 | CA16: 363573.9828 | CB16: 358054.8324 | CC16: 368395.2715 | CD16: 414647.0748 | CE16: 420728.1587 | CF16: 354737.3957 | CG16: 372988.6917 | CH16: 417443.585 | CI16: 480154.9603 | CJ16: 497458.2221 | CK16: 406908.7403 | CL16: 407658.4255 | CM16: 366277.2642 | CN16: 360935.9201 | CO16: 371446.236 | CP16: 418304.2511 | CQ16: 424396.1222 | CR16: 357684.3379 | CS16: 375984.349 | CT16: 420619.2732 | CU16: 483137.5897 | CV16: 534348.8783 | CW16: 437205.0834 | CX16: 438130.3809 | CY16: 393985.2917 | CZ16: 388458.8592 | DA16: 399855.2648 | DB16: 450555.5484 | DC16: 457067.9389 | DD16: 385034.9431 | DE16: 404643.7002 | DF16: 452515.6646 | DG16: 519103.0955 | DH16: 540897.9165 | DI16: 442680.6479 | DJ16: 443735.9119 | DK16: 399351.5537 | DL16: 393965.3065 | DM16: 405605.9364 | DN16: 457299.0126 | DO16: 463858.8572 | DP16: 390562.6603 | DQ16: 410367.1781 | DR16: 458756.9173 | DS16: 525601.5023 | DT16: 548194.8127 | DU16: 450495.2624 | DV16: 449953.5123 | DW16: 405269.7626 | DX16: 400016.1672 | DY16: 411916.5466 | DZ16: 464682.8022 | EA16: 471297.6683 | EB16: =EB14*EB7 -> 396625.6859 | EC16: 416656.3191 | ED16: 465633.6369 | EE16: 532827.8953 | EF16: 555881.8682 | EG16: 455172.173 | EH16: 456493.0421 | EI16: 411481.5885 | EJ16: 406358.9066 | EK16: 418528.2862 | EL16: 472412.73 | EM16: 479086.3656 | EN16: 402976.9139 | EO16: 423248.7538 | EP16: 472849.073 | EQ16: 540435.3922 | ER16: 599839.3698 | ES16: 491271.763 | ET16: 492816.5706 | EU16: 444552.4184 | EV16: 439230.4175 | EW16: 452462.5038 | EX16: 511028.6264 | EY16: 518189.092 | EZ16: 435617.9584 | FA16: 457466.024 | FB16: 510937.1592 | FC16: 583314.0547 | FD16: 609346.4475 | FE16: 499174.2587 | FF16: 500867.3473 | FG16: 452154.5357 | FH16: 446963.3176 | FI16: 460511.7468 | FJ16: 520417.1945 | FK16: 527653.185 | FL16: 443346.1071 | FM16: 465503.066 | FN16: 519758.8246 | FO16: 592704.1077 | FP16: 622709.5828 | FQ16: 512052.1609 | FR16: 512070.5978 | FS16: 462595.1037 | FT16: 457492.9375 | FU16: 471436.2433 | FV16: 533091.4555 | FW16: 540442.2535 | FX16: 453822.6142 | FY16: 476445.9605 | FZ16: 531847.5705 | GA16: 605846.0281 | GB16: 634145.4854 | GC16: 519703.7162 | GD16: 521710.1847 | GE16: 471642.8979 | GF16: 466660.648 | GG16: 480964.8355 | GH16: 544178.6986 | GI16: 551623.7576 | GJ16: 462966.2857 | GK16: 485973.904 | GL16: 542336.2871 | GM16: 617118.779 | GN16: =GN14*GN7 -> 679262.261 | GO16: 556808.0229 | GP16: 559092.4063 | GQ16: 505807.7603 | GR16: 500706.7701 | GS16: 516146.1817 | GT16: 584295.5919 | GU16: 592230.7915 | GV16: 496813.0271 | GW16: 521412.5737 | GX16: 581712.1346 | GY16: 661181.1286 | GZ16: 693210.431 | HA16: 568355.6323 | HB16: 570817.0235 | HC16: 516772.4321 | HD16: 511790.3226 | HE16: 527655.5162 | HF16: 597667.6251 | HG16: 605720.292 | HH16: 507853.8456 | HI16: 532931.3861 | HJ16: 594415.2029 | HK16: 674913.9184 | HL16: =HL14*HL7 -> 707805.0663 | HM16: 582367.9873 | HN16: 583080.2006 | HO16: 528234.771 | HP16: 523372.9816 | HQ16: 539681.5537 | HR16: 611636.9903 | HS16: 619812.9401 | HT16: 519389.7957 | HU16: 544968.8674 | HV16: 607693.6737 | HW16: 689280.7551 | HX16: =HX14*HX7 -> 752074.3715 | HY16: 616895.3224 | HZ16: 619856.406 | IA16: 561964.1711 | IB16: 557065.6919 | IC16: 574530.5027 | ID16: 651433.3908 | IE16: 660084.1966 | IF16: 552929.46 | IG16: 580041.0803 | IH16: 646590.6208 | II16: 732562.1519 | IL16: =SUM(D16:O16)/G_A!$G$6 -> 447.6206001 | IM16: =SUM(P16:AA16)/G_A!$H$6 -> 473.6301862 | IN16: =SUM(AB16:AM16)/G_A!$I$6 -> 498.4806893 | IO16: =SUM(AN16:AY16)/G_A!$J$6 -> 521.6395349 | IP16: =SUM(AZ16:BK16)/G_A!$K$6 -> 545.8009908 | IQ16: =SUM(BL16:BW16)/G_A!$L$6 -> 551.0696182 | IR16: =SUM(BX16:CI16)/G_A!$M$6 -> 552.8530453 | IS16: =SUM(CJ16:CU16)/G_A!$N$6 -> 558.3117273 | IT16: =SUM(CV16:DG16)/G_A!$O$6 -> 600.5598914 | IU16: =SUM(DH16:DS16)/G_A!$P$6 -> 608.7538129 | IV16: =SUM(DT16:EE16)/G_A!$Q$6 -> 616.2989608 | IW16: =SUM(EF16:EQ16)/G_A!$R$6 -> 627.274554 | IX16: =SUM(ER16:FC16)/G_A!$S$6 -> 677.7084427 | IY16: =SUM(FD16:FO16)/G_A!$T$6 -> 689.3150843 | IZ16: =SUM(FP16:GA16)/G_A!$U$6 -> 703.5351216 | JA16: =SUM(GB16:GM16)/G_A!$V$6 -> 719.0668356 | JB16: =SUM(GN16:GY16)/G_A!$W$6 -> 771.1722203 | JC16: =SUM(GZ16:HK16)/G_A!$X$6 -> 787.911373 | JD16: =SUM(HL16:HW16)/G_A!$Y$6 -> 803.4295973 | JE16: =SUM(HX16:II16)/G_A!$Z$6 -> 856.852439
B17: Alternative Compliance | D17: =D14*D8 -> 0 | E17: 0 | F17: 0 | G17: 0 | H17: 0 | I17: 0 | J17: 0 | K17: 0 | L17: 0 | M17: 0 | N17: 0 | O17: 0 | P17: 0 | Q17: 0 | R17: 0 | S17: 0 | T17: 0 | U17: 0 | V17: 0 | W17: 0 | X17: 0 | Y17: 0 | Z17: 0 | AA17: 0 | AB17: 0 | AC17: 0 | AD17: 0 | AE17: 0 | AF17: 0 | AG17: 0 | AH17: 0 | AI17: 0 | AJ17: 0 | AK17: 0 | AL17: 0 | AM17: 0 | AN17: 0 | AO17: 0 | AP17: 0 | AQ17: 0 | AR17: 0 | AS17: 0 | AT17: 0 | AU17: 0 | AV17: 0 | AW17: 0 | AX17: 0 | AY17: 0 | AZ17: 122884.9731 | BA17: 100130.6316 | BB17: 99968.58475 | BC17: 89248.60891 | BD17: 87578.32322 | BE17: 90025.70548 | BF17: 101253.724 | BG17: 102923.06 | BH17: 86924.26802 | BI17: 91812.7069 | BJ17: 103283.4449 | BK17: 119270.139 | BL17: 123127.4572 | BM17: 100650.717 | BN17: 100776.7808 | BO17: 90384.35213 | BP17: =BP14*BP8 -> 88956.26214 | BQ17: 91502.90229 | BR17: 102937.0156 | BS17: 104457.0679 | BT17: 88106.87918 | BU17: 92667.4245 | BV17: 103758.4074 | BW17: 119517.1976 | BX17: 123630.4221 | BY17: 101501.8745 | BZ17: 101252.0027 | CA17: 90893.4957 | CB17: 89513.70809 | CC17: 92098.81787 | CD17: 103661.7687 | CE17: 105182.0397 | CF17: 88684.34893 | CG17: 93247.17292 | CH17: 104360.8963 | CI17: 120038.7401 | CJ17: 124364.5555 | CK17: 101727.1851 | CL17: 101914.6064 | CM17: 91569.31604 | CN17: 90233.98002 | CO17: 92861.55899 | CP17: 104576.0628 | CQ17: 106099.0305 | CR17: 89421.08448 | CS17: 93996.08725 | CT17: 105154.8183 | CU17: 120784.3974 | CV17: 94296.86087 | CW17: 77153.83825 | CX17: 77317.12604 | CY17: 69526.81617 | CZ17: 68551.56338 | DA17: 70562.69379 | DB17: 79509.80266 | DC17: 80659.04804 | DD17: 67947.34291 | DE17: 71407.7118 | DF17: 79855.70552 | DG17: 91606.42862 | DH17: 95452.5735 | DI17: 78120.11434 | DJ17: 78306.33739 | DK17: 70473.80359 | DL17: 69523.28938 | DM17: 71577.51819 | DN17: 80699.82576 | DO17: 81857.44538 | DP17: 68922.82241 | DQ17: 72417.73731 | DR17: 80957.10305 | DS17: 92753.2063 | DT17: 96740.26106 | DU17: 79499.16396 | DV17: 79403.561 | DW17: 71518.19339 | DX17: 70591.08833 | DY17: 72691.15528 | DZ17: 82002.84745 | EA17: 83170.17676 | EB17: =EB14*EB8 -> 69992.7681 | EC17: 73527.58572 | ED17: 82170.6418 | EE17: 94028.45212 | EF17: 98096.80026 | EG17: 80324.50112 | EH17: 80557.59566 | EI17: 72614.39797 | EJ17: 71710.39529 | EK17: 73857.93285 | EL17: 83366.95236 | EM17: 84544.65276 | EN17: 71113.57305 | EO17: 74690.95655 | EP17: 83443.95406 | EQ17: 95370.95157 | ER17: 66648.81886 | ES17: 54585.75145 | ET17: 54757.39673 | EU17: 49394.71316 | EV17: 48803.37972 | EW17: 50273.61153 | EX17: 56780.95848 | EY17: 57576.56578 | EZ17: 48401.99538 | FA17: 50829.55822 | FB17: 56770.79547 | FC17: 64812.67275 | FD17: 67705.16084 | FE17: 55463.80652 | FF17: 55651.92748 | FG17: 50239.39286 | FH17: 49662.59085 | FI17: 51167.97186 | FJ17: 57824.13272 | FK17: 58628.13167 | FL17: 49260.67856 | FM17: 51722.56289 | FN17: 57750.98052 | FO17: 65856.01197 | FP17: 69189.95365 | FQ17: 56894.68454 | FR17: 56896.73309 | FS17: 51399.45597 | FT17: 50832.54862 | FU17: 52381.80481 | FV17: 59232.38394 | FW17: 60049.13927 | FX17: 50424.73491 | FY17: 52938.44005 | FZ17: 59094.1745 | GA17: 67316.22534 | GB17: 70460.60949 | GC17: 57744.85736 | GD17: 57967.7983 | GE17: 52404.76643 | GF17: 51851.18312 | GG17: 53440.53728 | GH17: 60464.29985 | GI17: 61291.52862 | GJ17: 51440.69841 | GK17: 53997.10044 | GL17: 60259.58745 | GM17: 68568.75322 | GN17: =GN14*GN8 -> 35750.64532 | GO17: 29305.68542 | GP17: 29425.91612 | GQ17: 26621.46107 | GR17: 26352.9879 | GS17: 27165.58851 | GT17: 30752.39957 | GU17: 31170.04166 | GV17: 26148.05406 | GW17: 27442.76703 | GX17: 30616.42814 | GY17: 34799.00677 | GZ17: 36484.75952 | HA17: 29913.45433 | HB17: 30043.00124 | HC17: 27198.54906 | HD17: 26936.33277 | HE17: 27771.34296 | HF17: 31456.1908 | HG17: 31880.01537 | HH17: 26729.14977 | HI17: 28049.02032 | HJ17: 31285.01068 | HK17: 35521.78518 | HL17: 37252.89823 | HM17: 30650.9467 | HN17: 30688.43161 | HO17: 27801.83005 | HP17: 27545.9464 | HQ17: 28404.2923 | HR17: 32191.42054 | HS17: 32621.73369 | HT17: 27336.30504 | HU17: 28682.57197 | HV17: 31983.87756 | HW17: 36277.93448 | HX17: 0 | HY17: 0 | HZ17: 0 | IA17: 0 | IB17: 0 | IC17: 0 | ID17: 0 | IE17: 0 | IF17: 0 | IG17: 0 | IH17: 0 | II17: 0 | IL17: =SUM(D17:O17)/G_A!$G$6 -> 0 | IM17: =SUM(P17:AA17)/G_A!$H$6 -> 0 | IN17: =SUM(AB17:AM17)/G_A!$I$6 -> 0 | IO17: =SUM(AN17:AY17)/G_A!$J$6 -> 0 | IP17: =SUM(AZ17:BK17)/G_A!$K$6 -> 136.4502477 | IQ17: =SUM(BL17:BW17)/G_A!$L$6 -> 137.7674045 | IR17: =SUM(BX17:CI17)/G_A!$M$6 -> 138.2132613 | IS17: =SUM(CJ17:CU17)/G_A!$N$6 -> 139.5779318 | IT17: =SUM(CV17:DG17)/G_A!$O$6 -> 105.9811573 | IU17: =SUM(DH17:DS17)/G_A!$P$6 -> 107.4271434 | IV17: =SUM(DT17:EE17)/G_A!$Q$6 -> 108.7586401 | IW17: =SUM(EF17:EQ17)/G_A!$R$6 -> 110.6955095 | IX17: =SUM(ER17:FC17)/G_A!$S$6 -> 75.30093807 | IY17: =SUM(FD17:FO17)/G_A!$T$6 -> 76.59056492 | IZ17: =SUM(FP17:GA17)/G_A!$U$6 -> 78.17056907 | JA17: =SUM(GB17:GM17)/G_A!$V$6 -> 79.89631506 | JB17: =SUM(GN17:GY17)/G_A!$W$6 -> 40.58801159 | JC17: =SUM(GZ17:HK17)/G_A!$X$6 -> 41.46901963 | JD17: =SUM(HL17:HW17)/G_A!$Y$6 -> 42.28576828 | JE17: =SUM(HX17:II17)/G_A!$Z$6 -> 0
A19: Allocated Hydro Resources | B19: Clark Fork | D19: =WA_LR!C149*D$2 -> 123716.5671 | E19: =WA_LR!D149*E$2 -> 101891.1513 | F19: =WA_LR!E149*F$2 -> 132022.3911 | G19: =WA_LR!F149*G$2 -> 203061.7667 | H19: =WA_LR!G149*H$2 -> 324821.5054 | I19: =WA_LR!H149*I$2 -> 311300.5286 | J19: =WA_LR!I149*J$2 -> 185473.2326 | K19: =WA_LR!J149*K$2 -> 94407.58272 | L19: =WA_LR!K149*L$2 -> 85130.11178 | M19: =WA_LR!L149*M$2 -> 87333.39925 | N19: =WA_LR!M149*N$2 -> 93251.69179 | O19: =WA_LR!N149*O$2 -> 100907.4227 | P19: =WA_LR!O149*P$2 -> 121191.9406 | Q19: =WA_LR!P149*Q$2 -> 103262.749 | R19: =WA_LR!Q149*R$2 -> 130015.7965 | S19: =WA_LR!R149*S$2 -> 199073.7345 | T19: =WA_LR!S149*T$2 -> 323740.108 | U19: =WA_LR!T149*U$2 -> 307393.7492 | V19: =WA_LR!U149*V$2 -> 180289.4728 | W19: =WA_LR!V149*W$2 -> 92721.72603 | X19: =WA_LR!W149*X$2 -> 84421.16902 | Y19: =WA_LR!X149*Y$2 -> 87168.76151 | Z19: =WA_LR!Y149*Z$2 -> 93392.10008 | AA19: =WA_LR!Z149*AA$2 -> 100838.8768 | AB19: =WA_LR!AA149*AB$2 -> 121497.6265 | AC19: =WA_LR!AB149*AC$2 -> 104960.6738 | AD19: =WA_LR!AC149*AD$2 -> 132256.6221 | AE19: =WA_LR!AD149*AE$2 -> 201719.9212 | AF19: =WA_LR!AE149*AF$2 -> 325204.6712 | AG19: =WA_LR!AF149*AG$2 -> 308601.2721 | AH19: =WA_LR!AG149*AH$2 -> 180623.9331 | AI19: =WA_LR!AH149*AI$2 -> 92389.06475 | AJ19: =WA_LR!AI149*AJ$2 -> 84525.93683 | AK19: =WA_LR!AJ149*AK$2 -> 88395.50605 | AL19: =WA_LR!AK149*AL$2 -> 93847.97112 | AM19: =WA_LR!AL149*AM$2 -> 101455.6588 | AN19: =WA_LR!AM149*AN$2 -> 121994.1389 | AO19: =WA_LR!AN149*AO$2 -> 105919.3643 | AP19: =WA_LR!AO149*AP$2 -> 132414.8081 | AQ19: =WA_LR!AP149*AQ$2 -> 203545.2843 | AR19: =WA_LR!AQ149*AR$2 -> 327028.1842 | AS19: =WA_LR!AR149*AS$2 -> 309493.9846 | AT19: =WA_LR!AS149*AT$2 -> 179321.5351 | AU19: =WA_LR!AT149*AU$2 -> 91445.34969 | AV19: =WA_LR!AU149*AV$2 -> 84802.1045 | AW19: =WA_LR!AV149*AW$2 -> 88911.12019 | AX19: =WA_LR!AW149*AX$2 -> 93355.45824 | AY19: =WA_LR!AX149*AY$2 -> 100590.3455 | AZ19: =WA_LR!AY149*AZ$2 -> 123779.6663 | BA19: =WA_LR!AZ149*BA$2 -> 108880.1667 | BB19: =WA_LR!BA149*BB$2 -> 135164.0114 | BC19: =WA_LR!BB149*BC$2 -> 203139.3947 | BD19: =WA_LR!BC149*BD$2 -> 328009.0561 | BE19: =WA_LR!BD149*BE$2 -> 312709.3798 | BF19: =WA_LR!BE149*BF$2 -> 180678.7752 | BG19: =WA_LR!BF149*BG$2 -> 93123.22294 | BH19: =WA_LR!BG149*BH$2 -> 85983.79853 | BI19: =WA_LR!BH149*BI$2 -> 89696.45732 | BJ19: =WA_LR!BI149*BJ$2 -> 94195.87128 | BK19: =WA_LR!BJ149*BK$2 -> 102066.2775 | BL19: =WA_LR!BK149*BL$2 -> 124528.7033 | BM19: =WA_LR!BL149*BM$2 -> 111280.6715 | BN19: =WA_LR!BM149*BN$2 -> 139096.9443 | BO19: =WA_LR!BN149*BO$2 -> 208225.7619 | BP19: =WA_LR!BO149*BP$2 -> 333380.1558 | BQ19: =WA_LR!BP149*BQ$2 -> 318098.3154 | BR19: =WA_LR!BQ149*BR$2 -> 184304.028 | BS19: =WA_LR!BR149*BS$2 -> 94400.61041 | BT19: =WA_LR!BS149*BT$2 -> 88047.88332 | BU19: =WA_LR!BT149*BU$2 -> 91121.17383 | BV19: =WA_LR!BU149*BV$2 -> 96700.74332 | BW19: =WA_LR!BV149*BW$2 -> 103676.0843 | BX19: =WA_LR!BW149*BX$2 -> 125192.5053 | BY19: =WA_LR!BX149*BY$2 -> 114213.518 | BZ19: =WA_LR!BY149*BZ$2 -> 142786.9635 | CA19: =WA_LR!BZ149*CA$2 -> 210377.1807 | CB19: =WA_LR!CA149*CB$2 -> 334634.686 | CC19: =WA_LR!CB149*CC$2 -> 319082.3081 | CD19: =WA_LR!CC149*CD$2 -> 183351.3042 | CE19: =WA_LR!CD149*CE$2 -> 95516.98559 | CF19: =WA_LR!CE149*CF$2 -> 88866.36136 | CG19: =WA_LR!CF149*CG$2 -> 92484.67239 | CH19: =WA_LR!CG149*CH$2 -> 97907.84792 | CI19: =WA_LR!CH149*CI$2 -> 104467.1507 | CJ19: =WA_LR!CI149*CJ$2 -> 126695.3383 | CK19: =WA_LR!CJ149*CK$2 -> 116734.2974 | CL19: =WA_LR!CK149*CL$2 -> 144276.4915 | CM19: =WA_LR!CL149*CM$2 -> 209943.2702 | CN19: =WA_LR!CM149*CN$2 -> 335771.1326 | CO19: =WA_LR!CN149*CO$2 -> 319980.2504 | CP19: =WA_LR!CO149*CP$2 -> 184699.1929 | CQ19: =WA_LR!CP149*CQ$2 -> 96247.94846 | CR19: =WA_LR!CQ149*CR$2 -> 90303.88731 | CS19: =WA_LR!CR149*CS$2 -> 94098.87392 | CT19: =WA_LR!CS149*CT$2 -> 98730.92187 | CU19: =WA_LR!CT149*CU$2 -> 105087.563 | CV19: =WA_LR!CU149*CV$2 -> 128409.5839 | CW19: =WA_LR!CV149*CW$2 -> 118894.6162 | CX19: =WA_LR!CW149*CX$2 -> 146303.9744 | CY19: =WA_LR!CX149*CY$2 -> 210993.9784 | CZ19: =WA_LR!CY149*CZ$2 -> 338968.4075 | DA19: =WA_LR!CZ149*DA$2 -> 324242.3157 | DB19: =WA_LR!DA149*DB$2 -> 186282.9719 | DC19: =WA_LR!DB149*DC$2 -> 96352.4383 | DD19: =WA_LR!DC149*DD$2 -> 89703.34257 | DE19: =WA_LR!DD149*DE$2 -> 94342.63718 | DF19: =WA_LR!DE149*DF$2 -> 98969.99763 | DG19: =WA_LR!DF149*DG$2 -> 103881.5679 | DH19: =WA_LR!DG149*DH$2 -> 127387.3154 | DI19: =WA_LR!DH149*DI$2 -> 121589.074 | DJ19: =WA_LR!DI149*DJ$2 -> 148495.2455 | DK19: =WA_LR!DJ149*DK$2 -> 213552.4708 | DL19: =WA_LR!DK149*DL$2 -> 342852.9472 | DM19: =WA_LR!DL149*DM$2 -> 324881.0233 | DN19: =WA_LR!DM149*DN$2 -> 186084.7707 | DO19: =WA_LR!DN149*DO$2 -> 96241.10724 | DP19: =WA_LR!DO149*DP$2 -> 89739.06344 | DQ19: =WA_LR!DP149*DQ$2 -> 94335.9242 | DR19: =WA_LR!DQ149*DR$2 -> 99341.21259 | DS19: =WA_LR!DR149*DS$2 -> 104443.123 | DT19: =WA_LR!DS149*DT$2 -> 126525.9905 | DU19: =WA_LR!DT149*DU$2 -> 121973.8141 | DV19: =WA_LR!DU149*DV$2 -> 149472.4433 | DW19: =WA_LR!DV149*DW$2 -> 213587.5126 | DX19: =WA_LR!DW149*DX$2 -> 343698.2128 | DY19: =WA_LR!DX149*DY$2 -> 324675.2997 | DZ19: =WA_LR!DY149*DZ$2 -> 187077.6796 | EA19: =WA_LR!DZ149*EA$2 -> 96449.22242 | EB19: =WA_LR!EA149*EB$2 -> 90509.1446 | EC19: =WA_LR!EB149*EC$2 -> 95098.3463 | ED19: =WA_LR!EC149*ED$2 -> 98414.43612 | EE19: =WA_LR!ED149*EE$2 -> 104210.7612 | EF19: =WA_LR!EE149*EF$2 -> 126924.5138 | EG19: =WA_LR!EF149*EG$2 -> 123848.8601 | EH19: =WA_LR!EG149*EH$2 -> 148951.8638 | EI19: =WA_LR!EH149*EI$2 -> 215116.1791 | EJ19: =WA_LR!EI149*EJ$2 -> 345710.989 | EK19: =WA_LR!EJ149*EK$2 -> 327186.0598 | EL19: =WA_LR!EK149*EL$2 -> 189230.1471 | EM19: =WA_LR!EL149*EM$2 -> 97337.8656 | EN19: =WA_LR!EM149*EN$2 -> 91853.04366 | EO19: =WA_LR!EN149*EO$2 -> 95962.0898 | EP19: =WA_LR!EO149*EP$2 -> 99652.22771 | EQ19: =WA_LR!EP149*EQ$2 -> 104873.0862 | ER19: =WA_LR!EQ149*ER$2 -> 127354.7454 | ES19: =WA_LR!ER149*ES$2 -> 125426.2735 | ET19: =WA_LR!ES149*ET$2 -> 152113.6423 | EU19: =WA_LR!ET149*EU$2 -> 219757.031 | EV19: =WA_LR!EU149*EV$2 -> 346502.1365 | EW19: =WA_LR!EV149*EW$2 -> 326396.7789 | EX19: =WA_LR!EW149*EX$2 -> 185023.4506 | EY19: =WA_LR!EX149*EY$2 -> 96736.90533 | EZ19: =WA_LR!EY149*EZ$2 -> 91755.49441 | FA19: =WA_LR!EZ149*FA$2 -> 96469.68435 | FB19: =WA_LR!FA149*FB$2 -> 99797.86127 | FC19: =WA_LR!FB149*FC$2 -> 104932.8012 | FD19: =WA_LR!FC149*FD$2 -> 127376.6853 | FE19: =WA_LR!FD149*FE$2 -> 126464.5981 | FF19: =WA_LR!FE149*FF$2 -> 154355.9746 | FG19: =WA_LR!FF149*FG$2 -> 219471.2415 | FH19: =WA_LR!FG149*FH$2 -> 347144.1361 | FI19: =WA_LR!FH149*FI$2 -> 325424.3002 | FJ19: =WA_LR!FI149*FJ$2 -> 185455.4684 | FK19: =WA_LR!FJ149*FK$2 -> 97062.5164 | FL19: =WA_LR!FK149*FL$2 -> 92740.42245 | FM19: =WA_LR!FL149*FM$2 -> 97457.98598 | FN19: =WA_LR!FM149*FN$2 -> 100553.0238 | FO19: =WA_LR!FN149*FO$2 -> 105691.4335 | FP19: =WA_LR!FO149*FP$2 -> 128647.6021 | FQ19: =WA_LR!FP149*FQ$2 -> 129005.6962 | FR19: =WA_LR!FQ149*FR$2 -> 157771.8287 | FS19: =WA_LR!FR149*FS$2 -> 223489.7907 | FT19: =WA_LR!FS149*FT$2 -> 354467.6105 | FU19: =WA_LR!FT149*FU$2 -> 327618.1149 | FV19: =WA_LR!FU149*FV$2 -> 187690.2376 | FW19: =WA_LR!FV149*FW$2 -> 98301.31361 | FX19: =WA_LR!FW149*FX$2 -> 93488.8533 | FY19: =WA_LR!FX149*FY$2 -> 98777.68764 | FZ19: =WA_LR!FY149*FZ$2 -> 101195.8723 | GA19: =WA_LR!FZ149*GA$2 -> 105733.6055 | GB19: =WA_LR!GA149*GB$2 -> 125633.751 | GC19: =WA_LR!GB149*GC$2 -> 127443.4698 | GD19: =WA_LR!GC149*GD$2 -> 157954.5947 | GE19: =WA_LR!GD149*GE$2 -> 224344.8527 | GF19: =WA_LR!GE149*GF$2 -> 356185.5885 | GG19: =WA_LR!GF149*GG$2 -> 326031.8503 | GH19: =WA_LR!GG149*GH$2 -> 179868.1738 | GI19: =WA_LR!GH149*GI$2 -> 95710.09386 | GJ19: =WA_LR!GI149*GJ$2 -> 93507.24321 | GK19: =WA_LR!GJ149*GK$2 -> 99204.29415 | GL19: =WA_LR!GK149*GL$2 -> 101706.0013 | GM19: =WA_LR!GL149*GM$2 -> 106684.5297 | GN19: =WA_LR!GM149*GN$2 -> 125991.4379 | GO19: =WA_LR!GN149*GO$2 -> 128581.8503 | GP19: =WA_LR!GO149*GP$2 -> 158742.5188 | GQ19: =WA_LR!GP149*GQ$2 -> 221805.9611 | GR19: =WA_LR!GQ149*GR$2 -> 354447.4419 | GS19: =WA_LR!GR149*GS$2 -> 322375.1821 | GT19: =WA_LR!GS149*GT$2 -> 174971.1553 | GU19: =WA_LR!GT149*GU$2 -> 95162.92744 | GV19: =WA_LR!GU149*GV$2 -> 93819.35153 | GW19: =WA_LR!GV149*GW$2 -> 100379.5504 | GX19: =WA_LR!GW149*GX$2 -> 101392.3371 | GY19: =WA_LR!GX149*GY$2 -> 105895.1995 | GZ19: =WA_LR!GY149*GZ$2 -> 125515.889 | HA19: =WA_LR!GZ149*HA$2 -> 129841.3203 | HB19: =WA_LR!HA149*HB$2 -> 160190.152 | HC19: =WA_LR!HB149*HC$2 -> 222877.2031 | HD19: =WA_LR!HC149*HD$2 -> 355677.0178 | HE19: =WA_LR!HD149*HE$2 -> 323590.1927 | HF19: =WA_LR!HE149*HF$2 -> 176130.5814 | HG19: =WA_LR!HF149*HG$2 -> 95569.97592 | HH19: =WA_LR!HG149*HH$2 -> 94470.27496 | HI19: =WA_LR!HH149*HI$2 -> 101023.646 | HJ19: =WA_LR!HI149*HJ$2 -> 101831.5803 | HK19: =WA_LR!HJ149*HK$2 -> 105879.6724 | HL19: =WA_LR!HK149*HL$2 -> 123983.6321 | HM19: =WA_LR!HL149*HM$2 -> 130616.0934 | HN19: =WA_LR!HM149*HN$2 -> 159733.5544 | HO19: =WA_LR!HN149*HO$2 -> 221569.7405 | HP19: =WA_LR!HO149*HP$2 -> 356931.9265 | HQ19: =WA_LR!HP149*HQ$2 -> 322725.9806 | HR19: =WA_LR!HQ149*HR$2 -> 171267.0535 | HS19: =WA_LR!HR149*HS$2 -> 94631.87868 | HT19: =WA_LR!HS149*HT$2 -> 94414.63577 | HU19: =WA_LR!HT149*HU$2 -> 101614.4583 | HV19: =WA_LR!HU149*HV$2 -> 102510.8135 | HW19: =WA_LR!HV149*HW$2 -> 105166.106 | HX19: =WA_LR!HW149*HX$2 -> 123018.8576 | HY19: =WA_LR!HX149*HY$2 -> 129016.8967 | HZ19: =WA_LR!HY149*HZ$2 -> 157575.0089 | IA19: =WA_LR!HZ149*IA$2 -> 221996.1523 | IB19: =WA_LR!IA149*IB$2 -> 360709.9619 | IC19: =WA_LR!IB149*IC$2 -> 327527.6012 | ID19: =WA_LR!IC149*ID$2 -> 174328.2682 | IE19: =WA_LR!ID149*IE$2 -> 96273.08681 | IF19: =WA_LR!IE149*IF$2 -> 96178.35051 | IG19: =WA_LR!IF149*IG$2 -> 103489.2538 | IH19: =WA_LR!IG149*IH$2 -> 103956.3152 | II19: =WA_LR!IH149*II$2 -> 106266.5114 | IL19: =SUM(D19:O19)/G_A!$G$6 -> 210.4243551 | IM19: =SUM(P19:AA19)/G_A!$H$6 -> 208.163263 | IN19: =SUM(AB19:AM19)/G_A!$I$6 -> 208.9570648 | IO19: =SUM(AN19:AY19)/G_A!$J$6 -> 209.9111504 | IP19: =SUM(AZ19:BK19)/G_A!$K$6 -> 212.0349404 | IQ19: =SUM(BL19:BW19)/G_A!$L$6 -> 216.0800314 | IR19: =SUM(BX19:CI19)/G_A!$M$6 -> 217.3134658 | IS19: =SUM(CJ19:CU19)/G_A!$N$6 -> 219.4713662 | IT19: =SUM(CV19:DG19)/G_A!$O$6 -> 221.1582 | IU19: =SUM(DH19:DS19)/G_A!$P$6 -> 222.4821093 | IV19: =SUM(DT19:EE19)/G_A!$Q$6 -> 222.1872568 | IW19: =SUM(EF19:EQ19)/G_A!$R$6 -> 224.5030737 | IX19: =SUM(ER19:FC19)/G_A!$S$6 -> 225.1446124 | IY19: =SUM(FD19:FO19)/G_A!$T$6 -> 225.9358204 | IZ19: =SUM(FP19:GA19)/G_A!$U$6 -> 228.39119 | JA19: =SUM(GB19:GM19)/G_A!$V$6 -> 227.6568999 | JB19: =SUM(GN19:GY19)/G_A!$W$6 -> 226.4343508 | JC19: =SUM(GZ19:HK19)/G_A!$X$6 -> 227.4654687 | JD19: =SUM(HL19:HW19)/G_A!$Y$6 -> 225.9979364 | JE19: =SUM(HX19:II19)/G_A!$Z$6 -> 228.3488886
B20: Spokane River | D20: =WA_LR!C150*D$2 -> 75662.14964 | E20: =WA_LR!D150*E$2 -> 72339.18473 | F20: =WA_LR!E150*F$2 -> 82204.71463 | G20: =WA_LR!F150*G$2 -> 86299.75425 | H20: =WA_LR!G150*H$2 -> 87450.59833 | I20: =WA_LR!H150*I$2 -> 78906.00618 | J20: =WA_LR!I150*J$2 -> 46417.97761 | K20: =WA_LR!J150*K$2 -> 31216.84024 | L20: =WA_LR!K150*L$2 -> 29336.90575 | M20: =WA_LR!L150*M$2 -> 39990.53656 | N20: =WA_LR!M150*N$2 -> 56691.42259 | O20: =WA_LR!N150*O$2 -> 72685.28963 | P20: =WA_LR!O150*P$2 -> 70116.91491 | Q20: =WA_LR!P150*Q$2 -> 68743.79633 | R20: =WA_LR!Q150*R$2 -> 75567.01849 | S20: =WA_LR!R150*S$2 -> 79860.76671 | T20: =WA_LR!S150*T$2 -> 80848.77381 | U20: =WA_LR!T150*U$2 -> 72620.52756 | V20: =WA_LR!U150*V$2 -> 42547.50896 | W20: =WA_LR!V150*W$2 -> 29792.69885 | X20: =WA_LR!W150*X$2 -> 27360.69786 | Y20: =WA_LR!X150*Y$2 -> 36648.18414 | Z20: =WA_LR!Y150*Z$2 -> 52580.74733 | AA20: =WA_LR!Z150*AA$2 -> 67402.58927 | AB20: =WA_LR!AA150*AB$2 -> 70447.7595 | AC20: =WA_LR!AB150*AC$2 -> 68732.10339 | AD20: =WA_LR!AC150*AD$2 -> 75741.00268 | AE20: =WA_LR!AD150*AE$2 -> 80109.57703 | AF20: =WA_LR!AE150*AF$2 -> 81116.05099 | AG20: =WA_LR!AF150*AG$2 -> 72991.68474 | AH20: =WA_LR!AG150*AH$2 -> 42496.54511 | AI20: =WA_LR!AH150*AI$2 -> 30119.85996 | AJ20: =WA_LR!AI150*AJ$2 -> 27206.22195 | AK20: =WA_LR!AJ150*AK$2 -> 36629.39906 | AL20: =WA_LR!AK150*AL$2 -> 52614.61695 | AM20: =WA_LR!AL150*AM$2 -> 67402.73945 | AN20: =WA_LR!AM150*AN$2 -> 76451.22786 | AO20: =WA_LR!AN150*AO$2 -> 74519.09729 | AP20: =WA_LR!AO150*AP$2 -> 82678.5213 | AQ20: =WA_LR!AP150*AQ$2 -> 86800.10317 | AR20: =WA_LR!AQ150*AR$2 -> 87951.07585 | AS20: =WA_LR!AR150*AS$2 -> 79796.61328 | AT20: =WA_LR!AS150*AT$2 -> 45065.15605 | AU20: =WA_LR!AT150*AU$2 -> 31444.09427 | AV20: =WA_LR!AU150*AV$2 -> 28739.47932 | AW20: =WA_LR!AV150*AW$2 -> 39542.5667 | AX20: =WA_LR!AW150*AX$2 -> 56551.09677 | AY20: =WA_LR!AX150*AY$2 -> 71764.41178 | AZ20: =WA_LR!AY150*AZ$2 -> 76531.95217 | BA20: =WA_LR!AZ150*BA$2 -> 74509.90808 | BB20: =WA_LR!BA150*BB$2 -> 82696.5896 | BC20: =WA_LR!BB150*BC$2 -> 86854.66286 | BD20: =WA_LR!BC150*BD$2 -> 88013.76634 | BE20: =WA_LR!BD150*BE$2 -> 79738.92819 | BF20: =WA_LR!BE150*BF$2 -> 45152.30578 | BG20: =WA_LR!BF150*BG$2 -> 31785.68499 | BH20: =WA_LR!BG150*BH$2 -> 28636.84079 | BI20: =WA_LR!BH150*BI$2 -> 39786.8316 | BJ20: =WA_LR!BI150*BJ$2 -> 57135.57213 | BK20: =WA_LR!BJ150*BK$2 -> 72699.32157 | BL20: =WA_LR!BK150*BL$2 -> 77598.50753 | BM20: =WA_LR!BL150*BM$2 -> 75180.72819 | BN20: =WA_LR!BM150*BN$2 -> 83726.85132 | BO20: =WA_LR!BN150*BO$2 -> 87060.49752 | BP20: =WA_LR!BO150*BP$2 -> 88143.99871 | BQ20: =WA_LR!BP150*BQ$2 -> 80330.86403 | BR20: =WA_LR!BQ150*BR$2 -> 46500.36936 | BS20: =WA_LR!BR150*BS$2 -> 32432.45015 | BT20: =WA_LR!BS150*BT$2 -> 28811.05219 | BU20: =WA_LR!BT150*BU$2 -> 40010.19182 | BV20: =WA_LR!BU150*BV$2 -> 57863.20167 | BW20: =WA_LR!BV150*BW$2 -> 73224.49766 | BX20: =WA_LR!BW150*BX$2 -> 78487.3246 | BY20: =WA_LR!BX150*BY$2 -> 75521.89694 | BZ20: =WA_LR!BY150*BZ$2 -> 83869.32548 | CA20: =WA_LR!BZ150*CA$2 -> 87176.68157 | CB20: =WA_LR!CA150*CB$2 -> 88223.9375 | CC20: =WA_LR!CB150*CC$2 -> 80599.31394 | CD20: =WA_LR!CC150*CD$2 -> 47431.50629 | CE20: =WA_LR!CD150*CE$2 -> 32954.32113 | CF20: =WA_LR!CE150*CF$2 -> 28945.30022 | CG20: =WA_LR!CF150*CG$2 -> 40498.27573 | CH20: =WA_LR!CG150*CH$2 -> 58420.75893 | CI20: =WA_LR!CH150*CI$2 -> 73365.81116 | CJ20: =WA_LR!CI150*CJ$2 -> 79329.34476 | CK20: =WA_LR!CJ150*CK$2 -> 75767.10008 | CL20: =WA_LR!CK150*CL$2 -> 83998.89312 | CM20: =WA_LR!CL150*CM$2 -> 87330.59549 | CN20: =WA_LR!CM150*CN$2 -> 88387.31988 | CO20: =WA_LR!CN150*CO$2 -> 81030.76732 | CP20: =WA_LR!CO150*CP$2 -> 47928.25395 | CQ20: =WA_LR!CP150*CQ$2 -> 33533.11136 | CR20: =WA_LR!CQ150*CR$2 -> 29126.47297 | CS20: =WA_LR!CR150*CS$2 -> 41198.87467 | CT20: =WA_LR!CS150*CT$2 -> 59385.37688 | CU20: =WA_LR!CT150*CU$2 -> 74126.21887 | CV20: =WA_LR!CU150*CV$2 -> 80476.99395 | CW20: =WA_LR!CV150*CW$2 -> 76315.60696 | CX20: =WA_LR!CW150*CX$2 -> 84259.68746 | CY20: =WA_LR!CX150*CY$2 -> 87576.35182 | CZ20: =WA_LR!CY150*CZ$2 -> 88608.04564 | DA20: =WA_LR!CZ150*DA$2 -> 81272.47885 | DB20: =WA_LR!DA150*DB$2 -> 49324.90714 | DC20: =WA_LR!DB150*DC$2 -> 34406.14925 | DD20: =WA_LR!DC150*DD$2 -> 29229.78737 | DE20: =WA_LR!DD150*DE$2 -> 41257.2374 | DF20: =WA_LR!DE150*DF$2 -> 59255.15302 | DG20: =WA_LR!DF150*DG$2 -> 73998.59513 | DH20: =WA_LR!DG150*DH$2 -> 81001.53529 | DI20: =WA_LR!DH150*DI$2 -> 76653.37463 | DJ20: =WA_LR!DI150*DJ$2 -> 84568.5835 | DK20: =WA_LR!DJ150*DK$2 -> 87818.45198 | DL20: =WA_LR!DK150*DL$2 -> 88855.73033 | DM20: =WA_LR!DL150*DM$2 -> 82169.76133 | DN20: =WA_LR!DM150*DN$2 -> 51011.82621 | DO20: =WA_LR!DN150*DO$2 -> 34753.19829 | DP20: =WA_LR!DO150*DP$2 -> 29388.60633 | DQ20: =WA_LR!DP150*DQ$2 -> 41443.04027 | DR20: =WA_LR!DQ150*DR$2 -> 59443.10725 | DS20: =WA_LR!DR150*DS$2 -> 74244.95706 | DT20: =WA_LR!DS150*DT$2 -> 81207.82696 | DU20: =WA_LR!DT150*DU$2 -> 76934.63679 | DV20: =WA_LR!DU150*DV$2 -> 84841.03854 | DW20: =WA_LR!DV150*DW$2 -> 88045.30237 | DX20: =WA_LR!DW150*DX$2 -> 89154.27546 | DY20: =WA_LR!DX150*DY$2 -> 82430.78863 | DZ20: =WA_LR!DY150*DZ$2 -> 51304.22158 | EA20: =WA_LR!DZ150*EA$2 -> 35525.17666 | EB20: =WA_LR!EA150*EB$2 -> 29286.30345 | EC20: =WA_LR!EB150*EC$2 -> 41366.99441 | ED20: =WA_LR!EC150*ED$2 -> 59273.93348 | EE20: =WA_LR!ED150*EE$2 -> 74260.52229 | EF20: =WA_LR!EE150*EF$2 -> 81650.71964 | EG20: =WA_LR!EF150*EG$2 -> 77300.2629 | EH20: =WA_LR!EG150*EH$2 -> 85109.82818 | EI20: =WA_LR!EH150*EI$2 -> 88350.43166 | EJ20: =WA_LR!EI150*EJ$2 -> 89456.23217 | EK20: =WA_LR!EJ150*EK$2 -> 83110.67533 | EL20: =WA_LR!EK150*EL$2 -> 51917.83595 | EM20: =WA_LR!EL150*EM$2 -> 36062.01642 | EN20: =WA_LR!EM150*EN$2 -> 29501.93965 | EO20: =WA_LR!EN150*EO$2 -> 41696.73437 | EP20: =WA_LR!EO150*EP$2 -> 60165.80359 | EQ20: =WA_LR!EP150*EQ$2 -> 74728.00862 | ER20: =WA_LR!EQ150*ER$2 -> 82749.94771 | ES20: =WA_LR!ER150*ES$2 -> 78027.12999 | ET20: =WA_LR!ES150*ET$2 -> 85673.78485 | EU20: =WA_LR!ET150*EU$2 -> 88697.85058 | EV20: =WA_LR!EU150*EV$2 -> 89871.01147 | EW20: =WA_LR!EV150*EW$2 -> 83099.10021 | EX20: =WA_LR!EW150*EX$2 -> 51292.52053 | EY20: =WA_LR!EX150*EY$2 -> 36118.4888 | EZ20: =WA_LR!EY150*EZ$2 -> 29546.82564 | FA20: =WA_LR!EZ150*FA$2 -> 41850.7507 | FB20: =WA_LR!FA150*FB$2 -> 60594.61772 | FC20: =WA_LR!FB150*FC$2 -> 74715.39672 | FD20: =WA_LR!FC150*FD$2 -> 83308.21806 | FE20: =WA_LR!FD150*FE$2 -> 78332.82516 | FF20: =WA_LR!FE150*FF$2 -> 85980.82885 | FG20: =WA_LR!FF150*FG$2 -> 89002.39273 | FH20: =WA_LR!FG150*FH$2 -> 90288.05034 | FI20: =WA_LR!FH150*FI$2 -> 83190.68983 | FJ20: =WA_LR!FI150*FJ$2 -> 50972.28694 | FK20: =WA_LR!FJ150*FK$2 -> 36320.44464 | FL20: =WA_LR!FK150*FL$2 -> 29606.62449 | FM20: =WA_LR!FL150*FM$2 -> 42140.71852 | FN20: =WA_LR!FM150*FN$2 -> 61443.08903 | FO20: =WA_LR!FN150*FO$2 -> 75484.37953 | FP20: =WA_LR!FO150*FP$2 -> 84070.38537 | FQ20: =WA_LR!FP150*FQ$2 -> 79258.93039 | FR20: =WA_LR!FQ150*FR$2 -> 87146.66722 | FS20: =WA_LR!FR150*FS$2 -> 89698.69185 | FT20: =WA_LR!FS150*FT$2 -> 90678.57279 | FU20: =WA_LR!FT150*FU$2 -> 83557.98957 | FV20: =WA_LR!FU150*FV$2 -> 51513.68002 | FW20: =WA_LR!FV150*FW$2 -> 36674.50896 | FX20: =WA_LR!FW150*FX$2 -> 29868.54739 | FY20: =WA_LR!FX150*FY$2 -> 42974.46013 | FZ20: =WA_LR!FY150*FZ$2 -> 61854.93476 | GA20: =WA_LR!FZ150*GA$2 -> 75233.79659 | GB20: =WA_LR!GA150*GB$2 -> 84267.47814 | GC20: =WA_LR!GB150*GC$2 -> 79756.39819 | GD20: =WA_LR!GC150*GD$2 -> 87432.73474 | GE20: =WA_LR!GD150*GE$2 -> 89956.06914 | GF20: =WA_LR!GE150*GF$2 -> 90916.38273 | GG20: =WA_LR!GF150*GG$2 -> 83808.64364 | GH20: =WA_LR!GG150*GH$2 -> 50724.37334 | GI20: =WA_LR!GH150*GI$2 -> 36851.2109 | GJ20: =WA_LR!GI150*GJ$2 -> 30021.0758 | GK20: =WA_LR!GJ150*GK$2 -> 43671.6932 | GL20: =WA_LR!GK150*GL$2 -> 62544.02995 | GM20: =WA_LR!GL150*GM$2 -> 75690.07926 | GN20: =WA_LR!GM150*GN$2 -> 84944.50261 | GO20: =WA_LR!GN150*GO$2 -> 80089.29063 | GP20: =WA_LR!GO150*GP$2 -> 87643.28659 | GQ20: =WA_LR!GP150*GQ$2 -> 90225.85669 | GR20: =WA_LR!GQ150*GR$2 -> 91367.90218 | GS20: =WA_LR!GR150*GS$2 -> 83853.14482 | GT20: =WA_LR!GS150*GT$2 -> 49587.28034 | GU20: =WA_LR!GT150*GU$2 -> 36574.50849 | GV20: =WA_LR!GU150*GV$2 -> 30028.89036 | GW20: =WA_LR!GV150*GW$2 -> 43973.82723 | GX20: =WA_LR!GW150*GX$2 -> 62900.32169 | GY20: =WA_LR!GX150*GY$2 -> 75872.13419 | GZ20: =WA_LR!GY150*GZ$2 -> 85457.44734 | HA20: =WA_LR!GZ150*HA$2 -> 80634.4661 | HB20: =WA_LR!HA150*HB$2 -> 87916.81394 | HC20: =WA_LR!HB150*HC$2 -> 90523.11679 | HD20: =WA_LR!HC150*HD$2 -> 91832.20632 | HE20: =WA_LR!HD150*HE$2 -> 84153.85584 | HF20: =WA_LR!HE150*HF$2 -> 49579.45146 | HG20: =WA_LR!HF150*HG$2 -> 36607.45083 | HH20: =WA_LR!HG150*HH$2 -> 30343.99741 | HI20: =WA_LR!HH150*HI$2 -> 44343.04102 | HJ20: =WA_LR!HI150*HJ$2 -> 63303.59323 | HK20: =WA_LR!HJ150*HK$2 -> 75781.55743 | HL20: =WA_LR!HK150*HL$2 -> 85656.53813 | HM20: =WA_LR!HL150*HM$2 -> 81164.64347 | HN20: =WA_LR!HM150*HN$2 -> 88159.47607 | HO20: =WA_LR!HN150*HO$2 -> 90762.66217 | HP20: =WA_LR!HO150*HP$2 -> 92105.26419 | HQ20: =WA_LR!HP150*HQ$2 -> 84953.96739 | HR20: =WA_LR!HQ150*HR$2 -> 50058.91001 | HS20: =WA_LR!HR150*HS$2 -> 37108.22976 | HT20: =WA_LR!HS150*HT$2 -> 30698.07266 | HU20: =WA_LR!HT150*HU$2 -> 44757.8051 | HV20: =WA_LR!HU150*HV$2 -> 64448.93677 | HW20: =WA_LR!HV150*HW$2 -> 75730.08057 | HX20: =WA_LR!HW150*HX$2 -> 85687.44904 | HY20: =WA_LR!HX150*HY$2 -> 81194.49102 | HZ20: =WA_LR!HY150*HZ$2 -> 88201.78063 | IA20: =WA_LR!HZ150*IA$2 -> 90852.00577 | IB20: =WA_LR!IA150*IB$2 -> 92675.13709 | IC20: =WA_LR!IB150*IC$2 -> 86117.0227 | ID20: =WA_LR!IC150*ID$2 -> 50683.90135 | IE20: =WA_LR!ID150*IE$2 -> 37767.34005 | IF20: =WA_LR!IE150*IF$2 -> 31206.32343 | IG20: =WA_LR!IF150*IG$2 -> 45553.28455 | IH20: =WA_LR!IG150*IH$2 -> 65643.0015 | II20: =WA_LR!IH150*II$2 -> 76282.71764 | IL20: =SUM(D20:O20)/G_A!$G$6 -> 86.66682422 | IM20: =SUM(P20:AA20)/G_A!$H$6 -> 80.37559637 | IN20: =SUM(AB20:AM20)/G_A!$I$6 -> 80.3287296 | IO20: =SUM(AN20:AY20)/G_A!$J$6 -> 86.9067858 | IP20: =SUM(AZ20:BK20)/G_A!$K$6 -> 87.16237033 | IQ20: =SUM(BL20:BW20)/G_A!$L$6 -> 88.00036646 | IR20: =SUM(BX20:CI20)/G_A!$M$6 -> 88.28488769 | IS20: =SUM(CJ20:CU20)/G_A!$N$6 -> 89.17149878 | IT20: =SUM(CV20:DG20)/G_A!$O$6 -> 89.72385776 | IU20: =SUM(DH20:DS20)/G_A!$P$6 -> 90.33700599 | IV20: =SUM(DT20:EE20)/G_A!$Q$6 -> 90.34961528 | IW20: =SUM(EF20:EQ20)/G_A!$R$6 -> 91.21580919 | IX20: =SUM(ER20:FC20)/G_A!$S$6 -> 91.57961472 | IY20: =SUM(FD20:FO20)/G_A!$T$6 -> 92.01718586 | IZ20: =SUM(FP20:GA20)/G_A!$U$6 -> 92.50127107 | JA20: =SUM(GB20:GM20)/G_A!$V$6 -> 93.10960834 | JB20: =SUM(GN20:GY20)/G_A!$W$6 -> 93.27179747 | JC20: =SUM(GZ20:HK20)/G_A!$X$6 -> 93.66175773 | JD20: =SUM(HL20:HW20)/G_A!$Y$6 -> 93.98959316 | JE20: =SUM(HX20:II20)/G_A!$Z$6 -> 94.96169575
B21: Mid-Columbia (net Canadian Entitlement) | D21: =WA_LR!C151*D$2 -> 106334.7447 | E21: =WA_LR!D151*E$2 -> 84004.95523 | F21: =WA_LR!E151*F$2 -> 89637.70754 | G21: =WA_LR!F151*G$2 -> 107454.0428 | H21: =WA_LR!G151*H$2 -> 123210.7342 | I21: =WA_LR!H151*I$2 -> 122028.5629 | J21: =WA_LR!I151*J$2 -> 104680.6839 | K21: =WA_LR!J151*K$2 -> 90787.14246 | L21: =WA_LR!K151*L$2 -> 60516.12992 | M21: =WA_LR!L151*M$2 -> 64288.15134 | N21: =WA_LR!M151*N$2 -> 82118.41458 | O21: =WA_LR!N151*O$2 -> 91621.86396 | P21: =WA_LR!O151*P$2 -> 105440.8818 | Q21: =WA_LR!P151*Q$2 -> 86762.57418 | R21: =WA_LR!Q151*R$2 -> 89419.94477 | S21: =WA_LR!R151*S$2 -> 103446.8514 | T21: =WA_LR!S151*T$2 -> 122963.6113 | U21: =WA_LR!T151*U$2 -> 121768.9186 | V21: =WA_LR!U151*V$2 -> 104443.1383 | W21: =WA_LR!V151*W$2 -> 90603.90539 | X21: =WA_LR!W151*X$2 -> 60535.93544 | Y21: =WA_LR!X151*Y$2 -> 64147.07521 | Z21: =WA_LR!Y151*Z$2 -> 81916.75472 | AA21: =WA_LR!Z151*AA$2 -> 91367.15813 | AB21: =WA_LR!AA151*AB$2 -> 104268.9832 | AC21: =WA_LR!AB151*AC$2 -> 86561.58342 | AD21: =WA_LR!AC151*AD$2 -> 89244.94584 | AE21: =WA_LR!AD151*AE$2 -> 99403.00706 | AF21: =WA_LR!AE151*AF$2 -> 120689.848 | AG21: =WA_LR!AF151*AG$2 -> 119948.1964 | AH21: =WA_LR!AG151*AH$2 -> 102504.7212 | AI21: =WA_LR!AH151*AI$2 -> 89058.49287 | AJ21: =WA_LR!AI151*AJ$2 -> 60262.08222 | AK21: =WA_LR!AJ151*AK$2 -> 64032.54791 | AL21: =WA_LR!AK151*AL$2 -> 82815.25777 | AM21: =WA_LR!AL151*AM$2 -> 91156.46917 | AN21: =WA_LR!AM151*AN$2 -> 102933.7023 | AO21: =WA_LR!AN151*AO$2 -> 90143.01296 | AP21: =WA_LR!AO151*AP$2 -> 89866.00724 | AQ21: =WA_LR!AP151*AQ$2 -> 99926.31953 | AR21: =WA_LR!AQ151*AR$2 -> 117490.0395 | AS21: =WA_LR!AR151*AS$2 -> 116715.117 | AT21: =WA_LR!AS151*AT$2 -> 101414.55 | AU21: =WA_LR!AT151*AU$2 -> 86625.84758 | AV21: =WA_LR!AU151*AV$2 -> 59792.33837 | AW21: =WA_LR!AV151*AW$2 -> 63354.14888 | AX21: =WA_LR!AW151*AX$2 -> 82005.69091 | AY21: =WA_LR!AX151*AY$2 -> 92340.42219 | AZ21: =WA_LR!AY151*AZ$2 -> 102528.4944 | BA21: =WA_LR!AZ151*BA$2 -> 87510.79764 | BB21: =WA_LR!BA151*BB$2 -> 87334.0909 | BC21: =WA_LR!BB151*BC$2 -> 97164.57759 | BD21: =WA_LR!BC151*BD$2 -> 114390.7475 | BE21: =WA_LR!BD151*BE$2 -> 113542.0825 | BF21: =WA_LR!BE151*BF$2 -> 98617.64052 | BG21: =WA_LR!BF151*BG$2 -> 84059.33781 | BH21: =WA_LR!BG151*BH$2 -> 58152.46953 | BI21: =WA_LR!BH151*BI$2 -> 62042.01577 | BJ21: =WA_LR!BI151*BJ$2 -> 80227.45428 | BK21: =WA_LR!BJ151*BK$2 -> 90378.28178 | BL21: =WA_LR!BK151*BL$2 -> 102152.1419 | BM21: =WA_LR!BL151*BM$2 -> 89661.07515 | BN21: =WA_LR!BM151*BN$2 -> 87554.84685 | BO21: =WA_LR!BN151*BO$2 -> 92369.57498 | BP21: =WA_LR!BO151*BP$2 -> 114360.1972 | BQ21: =WA_LR!BP151*BQ$2 -> 114776.2892 | BR21: =WA_LR!BQ151*BR$2 -> 98274.22285 | BS21: =WA_LR!BR151*BS$2 -> 83921.49396 | BT21: =WA_LR!BS151*BT$2 -> 58156.38197 | BU21: =WA_LR!BT151*BU$2 -> 61964.97441 | BV21: =WA_LR!BU151*BV$2 -> 79941.579 | BW21: =WA_LR!BV151*BW$2 -> 90035.75961 | BX21: =WA_LR!BW151*BX$2 -> 103912.3584 | BY21: =WA_LR!BX151*BY$2 -> 91054.59895 | BZ21: =WA_LR!BY151*BZ$2 -> 88381.68465 | CA21: =WA_LR!BZ151*CA$2 -> 96535.05288 | CB21: =WA_LR!CA151*CB$2 -> 116162.6881 | CC21: =WA_LR!CB151*CC$2 -> 115928.1705 | CD21: =WA_LR!CC151*CD$2 -> 98957.10751 | CE21: =WA_LR!CD151*CE$2 -> 84677.6536 | CF21: =WA_LR!CE151*CF$2 -> 58340.14057 | CG21: =WA_LR!CF151*CG$2 -> 62113.22189 | CH21: =WA_LR!CG151*CH$2 -> 80244.25808 | CI21: =WA_LR!CH151*CI$2 -> 91707.21629 | CJ21: =WA_LR!CI151*CJ$2 -> 104775.1227 | CK21: =WA_LR!CJ151*CK$2 -> 92277.49899 | CL21: =WA_LR!CK151*CL$2 -> 90143.3508 | CM21: =WA_LR!CL151*CM$2 -> 96282.47491 | CN21: =WA_LR!CM151*CN$2 -> 116528.9462 | CO21: =WA_LR!CN151*CO$2 -> 115672.1103 | CP21: =WA_LR!CO151*CP$2 -> 98688.72543 | CQ21: =WA_LR!CP151*CQ$2 -> 84484.20766 | CR21: =WA_LR!CQ151*CR$2 -> 58357.03144 | CS21: =WA_LR!CR151*CS$2 -> 62321.44568 | CT21: =WA_LR!CS151*CT$2 -> 80474.87361 | CU21: =WA_LR!CT151*CU$2 -> 93163.84573 | CV21: =WA_LR!CU151*CV$2 -> 75828.47824 | CW21: =WA_LR!CV151*CW$2 -> 67820.32913 | CX21: =WA_LR!CW151*CX$2 -> 64722.00477 | CY21: =WA_LR!CX151*CY$2 -> 68956.7658 | CZ21: =WA_LR!CY151*CZ$2 -> 83157.27478 | DA21: =WA_LR!CZ151*DA$2 -> 83531.52845 | DB21: =WA_LR!DA151*DB$2 -> 70788.33779 | DC21: =WA_LR!DB151*DC$2 -> 60185.58591 | DD21: =WA_LR!DC151*DD$2 -> 41667.05421 | DE21: =WA_LR!DD151*DE$2 -> 44971.11872 | DF21: =WA_LR!DE151*DF$2 -> 57566.18785 | DG21: =WA_LR!DF151*DG$2 -> 67735.13493 | DH21: =WA_LR!DG151*DH$2 -> 76106.63533 | DI21: =WA_LR!DH151*DI$2 -> 68638.13619 | DJ21: =WA_LR!DI151*DJ$2 -> 64526.34458 | DK21: =WA_LR!DJ151*DK$2 -> 69825.07215 | DL21: =WA_LR!DK151*DL$2 -> 82915.10066 | DM21: =WA_LR!DL151*DM$2 -> 84260.81418 | DN21: =WA_LR!DM151*DN$2 -> 70579.73004 | DO21: =WA_LR!DN151*DO$2 -> 60040.53044 | DP21: =WA_LR!DO151*DP$2 -> 41452.85918 | DQ21: =WA_LR!DP151*DQ$2 -> 44447.73115 | DR21: =WA_LR!DQ151*DR$2 -> 57362.78544 | DS21: =WA_LR!DR151*DS$2 -> 67533.09798 | DT21: =WA_LR!DS151*DT$2 -> 76230.51386 | DU21: =WA_LR!DT151*DU$2 -> 70365.14014 | DV21: =WA_LR!DU151*DV$2 -> 65786.40033 | DW21: =WA_LR!DV151*DW$2 -> 69628.06917 | DX21: =WA_LR!DW151*DX$2 -> 82921.20227 | DY21: =WA_LR!DX151*DY$2 -> 84749.05643 | DZ21: =WA_LR!DY151*DZ$2 -> 70368.82452 | EA21: =WA_LR!DZ151*EA$2 -> 59892.83577 | EB21: =WA_LR!EA151*EB$2 -> 41328.09793 | EC21: =WA_LR!EB151*EC$2 -> 44333.86657 | ED21: =WA_LR!EC151*ED$2 -> 57409.35704 | EE21: =WA_LR!ED151*EE$2 -> 66409.67736 | EF21: =WA_LR!EE151*EF$2 -> 76372.07308 | EG21: =WA_LR!EF151*EG$2 -> 72919.3213 | EH21: =WA_LR!EG151*EH$2 -> 65629.90882 | EI21: =WA_LR!EH151*EI$2 -> 67493.80602 | EJ21: =WA_LR!EI151*EJ$2 -> 82779.80173 | EK21: =WA_LR!EJ151*EK$2 -> 84017.18259 | EL21: =WA_LR!EK151*EL$2 -> 69461.61933 | EM21: =WA_LR!EL151*EM$2 -> 59801.2504 | EN21: =WA_LR!EM151*EN$2 -> 41258.19694 | EO21: =WA_LR!EN151*EO$2 -> 44252.76738 | EP21: =WA_LR!EO151*EP$2 -> 57336.88096 | EQ21: =WA_LR!EP151*EQ$2 -> 66269.37863 | ER21: =WA_LR!EQ151*ER$2 -> 76529.39301 | ES21: =WA_LR!ER151*ES$2 -> 72799.73188 | ET21: =WA_LR!ES151*ET$2 -> 63928.00661 | EU21: =WA_LR!ET151*EU$2 -> 66755.02892 | EV21: =WA_LR!EU151*EV$2 -> 82684.59883 | EW21: =WA_LR!EV151*EW$2 -> 83888.1959 | EX21: =WA_LR!EW151*EX$2 -> 68079.13713 | EY21: =WA_LR!EX151*EY$2 -> 59742.83567 | EZ21: =WA_LR!EY151*EZ$2 -> 41211.31023 | FA21: =WA_LR!EZ151*FA$2 -> 44196.47064 | FB21: =WA_LR!FA151*FB$2 -> 57253.06645 | FC21: =WA_LR!FB151*FC$2 -> 66874.69702 | FD21: =WA_LR!FC151*FD$2 -> 77015.86064 | FE21: =WA_LR!FD151*FE$2 -> 74357.82409 | FF21: =WA_LR!FE151*FF$2 -> 64214.10642 | FG21: =WA_LR!FF151*FG$2 -> 66647.9559 | FH21: =WA_LR!FG151*FH$2 -> 82562.90606 | FI21: =WA_LR!FH151*FI$2 -> 83057.62686 | FJ21: =WA_LR!FI151*FJ$2 -> 66733.24803 | FK21: =WA_LR!FJ151*FK$2 -> 58858.14127 | FL21: =WA_LR!FK151*FL$2 -> 41151.20971 | FM21: =WA_LR!FL151*FM$2 -> 44126.1185 | FN21: =WA_LR!FM151*FN$2 -> 57715.62334 | FO21: =WA_LR!FN151*FO$2 -> 66750.62156 | FP21: =WA_LR!FO151*FP$2 -> 77336.66936 | FQ21: =WA_LR!FP151*FQ$2 -> 74300.57028 | FR21: =WA_LR!FQ151*FR$2 -> 64597.51766 | FS21: =WA_LR!FR151*FS$2 -> 66223.78666 | FT21: =WA_LR!FS151*FT$2 -> 82991.42796 | FU21: =WA_LR!FT151*FU$2 -> 82880.4608 | FV21: =WA_LR!FU151*FV$2 -> 67728.56091 | FW21: =WA_LR!FV151*FW$2 -> 58842.52037 | FX21: =WA_LR!FW151*FX$2 -> 41134.62884 | FY21: =WA_LR!FX151*FY$2 -> 44671.96448 | FZ21: =WA_LR!FY151*FZ$2 -> 58412.2843 | GA21: =WA_LR!FZ151*GA$2 -> 66697.63579 | GB21: =WA_LR!GA151*GB$2 -> 78188.55651 | GC21: =WA_LR!GB151*GC$2 -> 74857.47989 | GD21: =WA_LR!GC151*GD$2 -> 65403.58627 | GE21: =WA_LR!GD151*GE$2 -> 67826.8312 | GF21: =WA_LR!GE151*GF$2 -> 84743.24901 | GG21: =WA_LR!GF151*GG$2 -> 84016.91294 | GH21: =WA_LR!GG151*GH$2 -> 68561.8522 | GI21: =WA_LR!GH151*GI$2 -> 59578.24123 | GJ21: =WA_LR!GI151*GJ$2 -> 41444.81757 | GK21: =WA_LR!GJ151*GK$2 -> 44828.19928 | GL21: =WA_LR!GK151*GL$2 -> 58700.86876 | GM21: =WA_LR!GL151*GM$2 -> 67446.21117 | GN21: =WA_LR!GM151*GN$2 -> 78984.91769 | GO21: =WA_LR!GN151*GO$2 -> 74074.814 | GP21: =WA_LR!GO151*GP$2 -> 64824.07924 | GQ21: =WA_LR!GP151*GQ$2 -> 67705.11428 | GR21: =WA_LR!GQ151*GR$2 -> 84676.53781 | GS21: =WA_LR!GR151*GS$2 -> 83042.42054 | GT21: =WA_LR!GS151*GT$2 -> 67051.82876 | GU21: =WA_LR!GT151*GU$2 -> 58658.48431 | GV21: =WA_LR!GU151*GV$2 -> 40994.98571 | GW21: =WA_LR!GV151*GW$2 -> 44207.97605 | GX21: =WA_LR!GW151*GX$2 -> 59136.52481 | GY21: =WA_LR!GX151*GY$2 -> 68276.0342 | GZ21: =WA_LR!GY151*GZ$2 -> 79110.63221 | HA21: =WA_LR!GZ151*HA$2 -> 73950.56701 | HB21: =WA_LR!HA151*HB$2 -> 63967.83338 | HC21: =WA_LR!HB151*HC$2 -> 65906.77949 | HD21: =WA_LR!HC151*HD$2 -> 82755.83557 | HE21: =WA_LR!HD151*HE$2 -> 82194.50902 | HF21: =WA_LR!HE151*HF$2 -> 65588.70505 | HG21: =WA_LR!HF151*HG$2 -> 57604.2221 | HH21: =WA_LR!HG151*HH$2 -> 40621.60389 | HI21: =WA_LR!HH151*HI$2 -> 44761.08505 | HJ21: =WA_LR!HI151*HJ$2 -> 59637.07152 | HK21: =WA_LR!HJ151*HK$2 -> 68159.71907 | HL21: =WA_LR!HK151*HL$2 -> 78596.77145 | HM21: =WA_LR!HL151*HM$2 -> 74019.58089 | HN21: =WA_LR!HM151*HN$2 -> 63841.5259 | HO21: =WA_LR!HN151*HO$2 -> 65521.32542 | HP21: =WA_LR!HO151*HP$2 -> 82660.06169 | HQ21: =WA_LR!HP151*HQ$2 -> 83016.49245 | HR21: =WA_LR!HQ151*HR$2 -> 65474.23103 | HS21: =WA_LR!HR151*HS$2 -> 56800.17539 | HT21: =WA_LR!HS151*HT$2 -> 40463.2044 | HU21: =WA_LR!HT151*HU$2 -> 44683.19223 | HV21: =WA_LR!HU151*HV$2 -> 59526.23505 | HW21: =WA_LR!HV151*HW$2 -> 68020.49708 | HX21: =WA_LR!HW151*HX$2 -> 78254.73599 | HY21: =WA_LR!HX151*HY$2 -> 74582.63088 | HZ21: =WA_LR!HY151*HZ$2 -> 64027.02407 | IA21: =WA_LR!HZ151*IA$2 -> 64021.60922 | IB21: =WA_LR!IA151*IB$2 -> 82561.00367 | IC21: =WA_LR!IB151*IC$2 -> 82618.97068 | ID21: =WA_LR!IC151*ID$2 -> 64378.75678 | IE21: =WA_LR!ID151*IE$2 -> 55743.43597 | IF21: =WA_LR!IE151*IF$2 -> 40169.63558 | IG21: =WA_LR!IF151*IG$2 -> 44596.16622 | IH21: =WA_LR!IG151*IH$2 -> 59529.74274 | II21: =WA_LR!IH151*II$2 -> 68224.92259 | IL21: =SUM(D21:O21)/G_A!$G$6 -> 128.6167961 | IM21: =SUM(P21:AA21)/G_A!$H$6 -> 128.175428 | IN21: =SUM(AB21:AM21)/G_A!$I$6 -> 126.3599881 | IO21: =SUM(AN21:AY21)/G_A!$J$6 -> 125.8684014 | IP21: =SUM(AZ21:BK21)/G_A!$K$6 -> 122.825113 | IQ21: =SUM(BL21:BW21)/G_A!$L$6 -> 122.5078239 | IR21: =SUM(BX21:CI21)/G_A!$M$6 -> 123.8631775 | IS21: =SUM(CJ21:CU21)/G_A!$N$6 -> 124.7910541 | IT21: =SUM(CV21:DG21)/G_A!$O$6 -> 89.83216901 | IU21: =SUM(DH21:DS21)/G_A!$P$6 -> 89.91881705 | IV21: =SUM(DT21:EE21)/G_A!$Q$6 -> 89.87056482 | IW21: =SUM(EF21:EQ21)/G_A!$R$6 -> 89.90778393 | IX21: =SUM(ER21:FC21)/G_A!$S$6 -> 89.4911498 | IY21: =SUM(FD21:FO21)/G_A!$T$6 -> 89.40539296 | IZ21: =SUM(FP21:GA21)/G_A!$U$6 -> 89.46015795 | JA21: =SUM(GB21:GM21)/G_A!$V$6 -> 90.8215532 | JB21: =SUM(GN21:GY21)/G_A!$W$6 -> 90.36914582 | JC21: =SUM(GZ21:HK21)/G_A!$X$6 -> 89.52723326 | JD21: =SUM(HL21:HW21)/G_A!$Y$6 -> 89.09645867 | JE21: =SUM(HX21:II21)/G_A!$Z$6 -> 88.89367973
A24: Allocated Other Renewables | B24: Kettle Falls | D24: =D$3*Res_MWh!D10 -> 22277.50298 | E24: =E$3*Res_MWh!E10 -> 20121.61572 | F24: =F$3*Res_MWh!F10 -> 20252.29556 | G24: =G$3*Res_MWh!G10 -> 16176.29884 | H24: =H$3*Res_MWh!H10 -> 6516.179708 | I24: =I$3*Res_MWh!I10 -> 15314.60062 | J24: =J$3*Res_MWh!J10 -> 21816.7685 | K24: =K$3*Res_MWh!K10 -> 22277.50298 | L24: =L$3*Res_MWh!L10 -> 21421.13858 | M24: =M$3*Res_MWh!M10 -> 21800.19401 | N24: =N$3*Res_MWh!N10 -> 21501.57692 | O24: =O$3*Res_MWh!O10 -> 22277.50298 | P24: =P$3*Res_MWh!P10 -> 22334.99272 | Q24: =Q$3*Res_MWh!Q10 -> 19375.97364 | R24: =R$3*Res_MWh!R10 -> 18423.12024 | S24: =S$3*Res_MWh!S10 -> 15031.92154 | T24: =T$3*Res_MWh!T10 -> 5714.136235 | U24: =U$3*Res_MWh!U10 -> 14197.864 | V24: =V$3*Res_MWh!V10 -> 20719.44169 | W24: =W$3*Res_MWh!W10 -> 21737.76386 | X24: =X$3*Res_MWh!X10 -> 20702.04986 | Y24: =Y$3*Res_MWh!Y10 -> 21005.23346 | Z24: =Z$3*Res_MWh!Z10 -> 20915.21325 | AA24: =AA$3*Res_MWh!AA10 -> 22334.99272 | AB24: =AB$3*Res_MWh!AB10 -> 22058.50106 | AC24: =AC$3*Res_MWh!AC10 -> 18882.37288 | AD24: =AD$3*Res_MWh!AD10 -> 14657.28027 | AE24: =AE$3*Res_MWh!AE10 -> 11832.87882 | AF24: =AF$3*Res_MWh!AF10 -> 3581.635266 | AG24: =AG$3*Res_MWh!AG10 -> 12580.6514 | AH24: =AH$3*Res_MWh!AH10 -> 18892.7792 | AI24: =AI$3*Res_MWh!AI10 -> 20821.33562 | AJ24: =AJ$3*Res_MWh!AJ10 -> 20359.76324 | AK24: =AK$3*Res_MWh!AK10 -> 21308.77657 | AL24: =AL$3*Res_MWh!AL10 -> 20541.6122 | AM24: =AM$3*Res_MWh!AM10 -> 22395.04971 | AN24: =AN$3*Res_MWh!AN10 -> 22276.18632 | AO24: =AO$3*Res_MWh!AO10 -> 19797.59256 | AP24: =AP$3*Res_MWh!AP10 -> 15070.454 | AQ24: =AQ$3*Res_MWh!AQ10 -> 10492.95949 | AR24: =AR$3*Res_MWh!AR10 -> 3139.249888 | AS24: =AS$3*Res_MWh!AS10 -> 11475.78063 | AT24: =AT$3*Res_MWh!AT10 -> 20064.12493 | AU24: =AU$3*Res_MWh!AU10 -> 21639.22229 | AV24: =AV$3*Res_MWh!AV10 -> 20658.37943 | AW24: =AW$3*Res_MWh!AW10 -> 21211.81203 | AX24: =AX$3*Res_MWh!AX10 -> 20626.47877 | AY24: =AY$3*Res_MWh!AY10 -> 22395.19177 | AZ24: =AZ$3*Res_MWh!AZ10 -> 22408.27455 | BA24: =BA$3*Res_MWh!BA10 -> 19731.52305 | BB24: =BB$3*Res_MWh!BB10 -> 14087.52214 | BC24: =BC$3*Res_MWh!BC10 -> 12502.66697 | BD24: =BD$3*Res_MWh!BD10 -> 3249.433637 | BE24: =BE$3*Res_MWh!BE10 -> 10131.55219 | BF24: =BF$3*Res_MWh!BF10 -> 20681.21131 | BG24: =BG$3*Res_MWh!BG10 -> 22240.62007 | BH24: =BH$3*Res_MWh!BH10 -> 20689.69258 | BI24: =BI$3*Res_MWh!BI10 -> 20417.21738 | BJ24: =BJ$3*Res_MWh!BJ10 -> 20863.3362 | BK24: =BK$3*Res_MWh!BK10 -> 22408.27455 | BL24: =BL$3*Res_MWh!BL10 -> 22427.85914 | BM24: =BM$3*Res_MWh!BM10 -> 18765.65371 | BN24: =BN$3*Res_MWh!BN10 -> 12695.20218 | BO24: =BO$3*Res_MWh!BO10 -> 7310.214972 | BP24: =BP$3*Res_MWh!BP10 -> 2365.582927 | BQ24: =BQ$3*Res_MWh!BQ10 -> 7949.063612 | BR24: =BR$3*Res_MWh!BR10 -> 21067.32888 | BS24: =BS$3*Res_MWh!BS10 -> 22239.5601 | BT24: =BT$3*Res_MWh!BT10 -> 18176.21254 | BU24: =BU$3*Res_MWh!BU10 -> 20447.93649 | BV24: =BV$3*Res_MWh!BV10 -> 20720.91382 | BW24: =BW$3*Res_MWh!BW10 -> 22427.85914 | BX24: =BX$3*Res_MWh!BX10 -> 22456.41667 | BY24: =BY$3*Res_MWh!BY10 -> 19109.81756 | BZ24: =BZ$3*Res_MWh!BZ10 -> 11005.68314 | CA24: =CA$3*Res_MWh!CA10 -> 6280.981544 | CB24: =CB$3*Res_MWh!CB10 -> 1808.197353 | CC24: =CC$3*Res_MWh!CC10 -> 6846.403242 | CD24: =CD$3*Res_MWh!CD10 -> 20181.99352 | CE24: =CE$3*Res_MWh!CE10 -> 20378.98282 | CF24: =CF$3*Res_MWh!CF10 -> 18033.75673 | CG24: =CG$3*Res_MWh!CG10 -> 19410.50668 | CH24: =CH$3*Res_MWh!CH10 -> 20446.11365 | CI24: =CI$3*Res_MWh!CI10 -> 22456.41667 | CJ24: =CJ$3*Res_MWh!CJ10 -> 22351.39935 | CK24: =CK$3*Res_MWh!CK10 -> 18127.59796 | CL24: =CL$3*Res_MWh!CL10 -> 9881.973257 | CM24: =CM$3*Res_MWh!CM10 -> 7401.413 | CN24: =CN$3*Res_MWh!CN10 -> 1892.037986 | CO24: =CO$3*Res_MWh!CO10 -> 6274.872341 | CP24: =CP$3*Res_MWh!CP10 -> 19730.16276 | CQ24: =CQ$3*Res_MWh!CQ10 -> 21130.90831 | CR24: =CR$3*Res_MWh!CR10 -> 17464.75135 | CS24: =CS$3*Res_MWh!CS10 -> 18253.16129 | CT24: =CT$3*Res_MWh!CT10 -> 19256.81435 | CU24: =CU$3*Res_MWh!CU10 -> 22491.4752 | CV24: =CV$3*Res_MWh!CV10 -> 22058.76868 | CW24: =CW$3*Res_MWh!CW10 -> 18192.44366 | CX24: =CX$3*Res_MWh!CX10 -> 8747.654587 | CY24: =CY$3*Res_MWh!CY10 -> 4421.359985 | CZ24: =CZ$3*Res_MWh!CZ10 -> 380.9371648 | DA24: =DA$3*Res_MWh!DA10 -> 5549.151801 | DB24: =DB$3*Res_MWh!DB10 -> 18310.53047 | DC24: =DC$3*Res_MWh!DC10 -> 20940.36323 | DD24: =DD$3*Res_MWh!DD10 -> 17799.45935 | DE24: =DE$3*Res_MWh!DE10 -> 19527.97418 | DF24: =DF$3*Res_MWh!DF10 -> 18237.38582 | DG24: =DG$3*Res_MWh!DG10 -> 22553.4899 | DH24: =DH$3*Res_MWh!DH10 -> 19280.0903 | DI24: =DI$3*Res_MWh!DI10 -> 17569.94199 | DJ24: =DJ$3*Res_MWh!DJ10 -> 7780.643006 | DK24: =DK$3*Res_MWh!DK10 -> 4922.137706 | DL24: =DL$3*Res_MWh!DL10 -> 0 | DM24: =DM$3*Res_MWh!DM10 -> 3637.941334 | DN24: =DN$3*Res_MWh!DN10 -> 15700.48493 | DO24: =DO$3*Res_MWh!DO10 -> 20277.98942 | DP24: =DP$3*Res_MWh!DP10 -> 17232.53264 | DQ24: =DQ$3*Res_MWh!DQ10 -> 16287.60182 | DR24: =DR$3*Res_MWh!DR10 -> 16614.8699 | DS24: =DS$3*Res_MWh!DS10 -> 22474.61068 | DT24: =DT$3*Res_MWh!DT10 -> 19135.75332 | DU24: =DU$3*Res_MWh!DU10 -> 16724.62847 | DV24: =DV$3*Res_MWh!DV10 -> 7652.868634 | DW24: =DW$3*Res_MWh!DW10 -> 4702.745422 | DX24: =DX$3*Res_MWh!DX10 -> 626.1887617 | DY24: =DY$3*Res_MWh!DY10 -> 4380.502324 | DZ24: =DZ$3*Res_MWh!DZ10 -> 16434.34173 | EA24: =EA$3*Res_MWh!EA10 -> 20102.79734 | EB24: =EB$3*Res_MWh!EB10 -> 15855.15602 | EC24: =EC$3*Res_MWh!EC10 -> 13893.72508 | ED24: =ED$3*Res_MWh!ED10 -> 15984.12577 | EE24: =EE$3*Res_MWh!EE10 -> 22673.96987 | EF24: =EF$3*Res_MWh!EF10 -> 18843.71341 | EG24: =EG$3*Res_MWh!EG10 -> 14664.65648 | EH24: =EH$3*Res_MWh!EH10 -> 6672.120214 | EI24: =EI$3*Res_MWh!EI10 -> 4430.573852 | EJ24: =EJ$3*Res_MWh!EJ10 -> 576.097478 | EK24: =EK$3*Res_MWh!EK10 -> 3939.943025 | EL24: =EL$3*Res_MWh!EL10 -> 14904.79649 | EM24: =EM$3*Res_MWh!EM10 -> 19013.45945 | EN24: =EN$3*Res_MWh!EN10 -> 14735.99621 | EO24: =EO$3*Res_MWh!EO10 -> 13547.29062 | EP24: =EP$3*Res_MWh!EP10 -> 16082.7055 | EQ24: =EQ$3*Res_MWh!EQ10 -> 22588.89146 | ER24: =ER$3*Res_MWh!ER10 -> 18730.35162 | ES24: =ES$3*Res_MWh!ES10 -> 14215.39284 | ET24: =ET$3*Res_MWh!ET10 -> 6841.555985 | EU24: =EU$3*Res_MWh!EU10 -> 3259.760355 | EV24: =EV$3*Res_MWh!EV10 -> 0 | EW24: =EW$3*Res_MWh!EW10 -> 3942.880842 | EX24: =EX$3*Res_MWh!EX10 -> 14441.09134 | EY24: =EY$3*Res_MWh!EY10 -> 17832.05029 | EZ24: =EZ$3*Res_MWh!EZ10 -> 17603.18882 | FA24: =FA$3*Res_MWh!FA10 -> 13995.00267 | FB24: =FB$3*Res_MWh!FB10 -> 16561.34879 | FC24: =FC$3*Res_MWh!FC10 -> 22348.08307 | FD24: =FD$3*Res_MWh!FD10 -> 16667.65358 | FE24: =FE$3*Res_MWh!FE10 -> 13974.01975 | FF24: =FF$3*Res_MWh!FF10 -> 5661.15307 | FG24: =FG$3*Res_MWh!FG10 -> 4773.509119 | FH24: =FH$3*Res_MWh!FH10 -> 337.4049162 | FI24: =FI$3*Res_MWh!FI10 -> 4085.782286 | FJ24: =FJ$3*Res_MWh!FJ10 -> 15094.00589 | FK24: =FK$3*Res_MWh!FK10 -> 16846.66914 | FL24: =FL$3*Res_MWh!FL10 -> 16171.70075 | FM24: =FM$3*Res_MWh!FM10 -> 14004.425 | FN24: =FN$3*Res_MWh!FN10 -> 16117.88397 | FO24: =FO$3*Res_MWh!FO10 -> 22917.61082 | FP24: =FP$3*Res_MWh!FP10 -> 15408.96466 | FQ24: =FQ$3*Res_MWh!FQ10 -> 11979.36059 | FR24: =FR$3*Res_MWh!FR10 -> 4966.460351 | FS24: =FS$3*Res_MWh!FS10 -> 3513.995558 | FT24: =FT$3*Res_MWh!FT10 -> 0 | FU24: =FU$3*Res_MWh!FU10 -> 3938.510011 | FV24: =FV$3*Res_MWh!FV10 -> 13581.28666 | FW24: =FW$3*Res_MWh!FW10 -> 16436.0761 | FX24: =FX$3*Res_MWh!FX10 -> 13365.28298 | FY24: =FY$3*Res_MWh!FY10 -> 14104.6045 | FZ24: =FZ$3*Res_MWh!FZ10 -> 15538.70643 | GA24: =GA$3*Res_MWh!GA10 -> 19896.8571 | GB24: =GB$3*Res_MWh!GB10 -> 17765.02484 | GC24: =GC$3*Res_MWh!GC10 -> 11310.59597 | GD24: =GD$3*Res_MWh!GD10 -> 5508.016648 | GE24: =GE$3*Res_MWh!GE10 -> 2015.004972 | GF24: =GF$3*Res_MWh!GF10 -> 0 | GG24: =GG$3*Res_MWh!GG10 -> 3521.267086 | GH24: =GH$3*Res_MWh!GH10 -> 10778.49644 | GI24: =GI$3*Res_MWh!GI10 -> 14595.12851 | GJ24: =GJ$3*Res_MWh!GJ10 -> 13118.22901 | GK24: =GK$3*Res_MWh!GK10 -> 13454.05152 | GL24: =GL$3*Res_MWh!GL10 -> 12688.79424 | GM24: =GM$3*Res_MWh!GM10 -> 22876.41158 | GN24: =GN$3*Res_MWh!GN10 -> 17720.04384 | GO24: =GO$3*Res_MWh!GO10 -> 11072.65863 | GP24: =GP$3*Res_MWh!GP10 -> 5135.69613 | GQ24: =GQ$3*Res_MWh!GQ10 -> 5212.876556 | GR24: =GR$3*Res_MWh!GR10 -> 700.8173588 | GS24: =GS$3*Res_MWh!GS10 -> 2966.820206 | GT24: =GT$3*Res_MWh!GT10 -> 11420.31552 | GU24: =GU$3*Res_MWh!GU10 -> 15262.15608 | GV24: =GV$3*Res_MWh!GV10 -> 13155.9964 | GW24: =GW$3*Res_MWh!GW10 -> 13352.07147 | GX24: =GX$3*Res_MWh!GX10 -> 14111.38101 | GY24: =GY$3*Res_MWh!GY10 -> 18896.77215 | GZ24: =GZ$3*Res_MWh!GZ10 -> 14998.28404 | HA24: =HA$3*Res_MWh!HA10 -> 11054.98716 | HB24: =HB$3*Res_MWh!HB10 -> 5740.546795 | HC24: =HC$3*Res_MWh!HC10 -> 3768.575312 | HD24: =HD$3*Res_MWh!HD10 -> 571.6931187 | HE24: =HE$3*Res_MWh!HE10 -> 3377.563085 | HF24: =HF$3*Res_MWh!HF10 -> 11814.38381 | HG24: =HG$3*Res_MWh!HG10 -> 13359.19939 | HH24: =HH$3*Res_MWh!HH10 -> 13292.24344 | HI24: =HI$3*Res_MWh!HI10 -> 13960.52812 | HJ24: =HJ$3*Res_MWh!HJ10 -> 12592.71309 | HK24: =HK$3*Res_MWh!HK10 -> 18076.30158 | HL24: =HL$3*Res_MWh!HL10 -> 13168.76206 | HM24: =HM$3*Res_MWh!HM10 -> 8762.055301 | HN24: =HN$3*Res_MWh!HN10 -> 5394.928029 | HO24: =HO$3*Res_MWh!HO10 -> 1645.397465 | HP24: =HP$3*Res_MWh!HP10 -> 561.9552695 | HQ24: =HQ$3*Res_MWh!HQ10 -> 3579.365238 | HR24: =HR$3*Res_MWh!HR10 -> 11586.92156 | HS24: =HS$3*Res_MWh!HS10 -> 14020.72772 | HT24: =HT$3*Res_MWh!HT10 -> 13113.86123 | HU24: =HU$3*Res_MWh!HU10 -> 12827.18959 | HV24: =HV$3*Res_MWh!HV10 -> 12499.38912 | HW24: =HW$3*Res_MWh!HW10 -> 18093.38781 | HX24: =HX$3*Res_MWh!HX10 -> 12873.19775 | HY24: =HY$3*Res_MWh!HY10 -> 9817.91315 | HZ24: =HZ$3*Res_MWh!HZ10 -> 5577.109685 | IA24: =IA$3*Res_MWh!IA10 -> 4973.64694 | IB24: =IB$3*Res_MWh!IB10 -> 1280.682053 | IC24: =IC$3*Res_MWh!IC10 -> 4220.052255 | ID24: =ID$3*Res_MWh!ID10 -> 11469.36917 | IE24: =IE$3*Res_MWh!IE10 -> 12415.97559 | IF24: =IF$3*Res_MWh!IF10 -> 12615.38864 | IG24: =IG$3*Res_MWh!IG10 -> 11996.70458 | IH24: =IH$3*Res_MWh!IH10 -> 14689.73918 | II24: =II$3*Res_MWh!II10 -> 18146.58524 | IL24: =SUM(D24:O24)/G_A!$G$6 -> 26.45584217 | IM24: =SUM(P24:AA24)/G_A!$H$6 -> 25.39871041 | IN24: =SUM(AB24:AM24)/G_A!$I$6 -> 23.66947134 | IO24: =SUM(AN24:AY24)/G_A!$J$6 -> 23.84103106 | IP24: =SUM(AZ24:BK24)/G_A!$K$6 -> 23.90540235 | IQ24: =SUM(BL24:BW24)/G_A!$L$6 -> 22.44216752 | IR24: =SUM(BX24:CI24)/G_A!$M$6 -> 21.44982577 | IS24: =SUM(CJ24:CU24)/G_A!$N$6 -> 21.0338547 | IT24: =SUM(CV24:DG24)/G_A!$O$6 -> 20.17346105 | IU24: =SUM(DH24:DS24)/G_A!$P$6 -> 18.46790453 | IV24: =SUM(DT24:EE24)/G_A!$Q$6 -> 18.00623893 | IW24: =SUM(EF24:EQ24)/G_A!$R$6 -> 17.12331555 | IX24: =SUM(ER24:FC24)/G_A!$S$6 -> 17.09711263 | IY24: =SUM(FD24:FO24)/G_A!$T$6 -> 16.74107515 | IZ24: =SUM(FP24:GA24)/G_A!$U$6 -> 15.11044 | JA24: =SUM(GB24:GM24)/G_A!$V$6 -> 14.56975123 | JB24: =SUM(GN24:GY24)/G_A!$W$6 -> 14.72689559 | JC24: =SUM(GZ24:HK24)/G_A!$X$6 -> 13.99623504 | JD24: =SUM(HL24:HW24)/G_A!$Y$6 -> 13.12089485 | JE24: =SUM(HX24:II24)/G_A!$Z$6 -> 13.70734752
B25: Palouse Wind | D25: =WA_LR!C153*D$2 -> 17887.96072 | E25: =WA_LR!D153*E$2 -> 18959.42003 | F25: =WA_LR!E153*F$2 -> 23392.76565 | G25: =WA_LR!F153*G$2 -> 21123.55201 | H25: =WA_LR!G153*H$2 -> 13867.19838 | I25: =WA_LR!H153*I$2 -> 13819.25016 | J25: =WA_LR!I153*J$2 -> 12834.43876 | K25: =WA_LR!J153*K$2 -> 11641.20786 | L25: =WA_LR!K153*L$2 -> 13868.8927 | M25: =WA_LR!L153*M$2 -> 16142.30608 | N25: =WA_LR!M153*N$2 -> 21297.84229 | O25: =WA_LR!N153*O$2 -> 22226.4679 | P25: =WA_LR!O153*P$2 -> 17934.12272 | Q25: =WA_LR!P153*Q$2 -> 19687.2166 | R25: =WA_LR!Q153*R$2 -> 23453.13346 | S25: =WA_LR!R153*S$2 -> 21178.06384 | T25: =WA_LR!S153*T$2 -> 13902.98433 | U25: =WA_LR!T153*U$2 -> 13854.91237 | V25: =WA_LR!U153*V$2 -> 12867.55955 | W25: =WA_LR!V153*W$2 -> 11671.24938 | X25: =WA_LR!W153*X$2 -> 13904.68302 | Y25: =WA_LR!X153*Y$2 -> 16183.96322 | Z25: =WA_LR!Y153*Z$2 -> 21352.8039 | AA25: =WA_LR!Z153*AA$2 -> 22283.82594 | AB25: =WA_LR!AA153*AB$2 -> 17982.34613 | AC25: =WA_LR!AB153*AC$2 -> 19740.15393 | AD25: =WA_LR!AC153*AD$2 -> 23516.19703 | AE25: =WA_LR!AD153*AE$2 -> 21235.00994 | AF25: =WA_LR!AE153*AF$2 -> 13940.36833 | AG25: =WA_LR!AF153*AG$2 -> 13892.16711 | AH25: =WA_LR!AG153*AH$2 -> 12902.15938 | AI25: =WA_LR!AH153*AI$2 -> 11702.63242 | AJ25: =WA_LR!AI153*AJ$2 -> 13942.07159 | AK25: =WA_LR!AJ153*AK$2 -> 16227.48059 | AL25: =WA_LR!AK153*AL$2 -> 21410.21986 | AM25: =WA_LR!AL153*AM$2 -> 22343.74534 | AN25: =WA_LR!AM153*AN$2 -> 17982.4602 | AO25: =WA_LR!AN153*AO$2 -> 19740.27915 | AP25: =WA_LR!AO153*AP$2 -> 23516.34621 | AQ25: =WA_LR!AP153*AQ$2 -> 21235.14465 | AR25: =WA_LR!AQ153*AR$2 -> 13940.45677 | AS25: =WA_LR!AR153*AS$2 -> 13892.25524 | AT25: =WA_LR!AS153*AT$2 -> 12902.24123 | AU25: =WA_LR!AT153*AU$2 -> 11702.70666 | AV25: =WA_LR!AU153*AV$2 -> 13942.16003 | AW25: =WA_LR!AV153*AW$2 -> 16227.58353 | AX25: =WA_LR!AW153*AX$2 -> 21410.35568 | AY25: =WA_LR!AX153*AY$2 -> 22343.88708 | AZ25: =WA_LR!AY153*AZ$2 -> 17992.96515 | BA25: =WA_LR!AZ153*BA$2 -> 19751.81099 | BB25: =WA_LR!BA153*BB$2 -> 23530.08394 | BC25: =WA_LR!BB153*BC$2 -> 21247.54975 | BD25: =WA_LR!BC153*BD$2 -> 13948.60047 | BE25: =WA_LR!BD153*BE$2 -> 13900.37078 | BF25: =WA_LR!BE153*BF$2 -> 12909.77843 | BG25: =WA_LR!BF153*BG$2 -> 11709.54312 | BH25: =WA_LR!BG153*BH$2 -> 13950.30473 | BI25: =WA_LR!BH153*BI$2 -> 16237.06332 | BJ25: =WA_LR!BI153*BJ$2 -> 21422.86314 | BK25: =WA_LR!BJ153*BK$2 -> 22356.93988 | BL25: =WA_LR!BK153*BL$2 -> 18008.69081 | BM25: =WA_LR!BL153*BM$2 -> 19769.07386 | BN25: =WA_LR!BM153*BN$2 -> 23550.64898 | BO25: =WA_LR!BN153*BO$2 -> 21266.11988 | BP25: =WA_LR!BO153*BP$2 -> 13960.7914 | BQ25: =WA_LR!BP153*BQ$2 -> 13912.51956 | BR25: =WA_LR!BQ153*BR$2 -> 12921.06144 | BS25: =WA_LR!BR153*BS$2 -> 11719.77714 | BT25: =WA_LR!BS153*BT$2 -> 13962.49714 | BU25: =WA_LR!BT153*BU$2 -> 16251.25434 | BV25: =WA_LR!BU153*BV$2 -> 21441.58649 | BW25: =WA_LR!BV153*BW$2 -> 22376.47961 | BX25: =WA_LR!BW153*BX$2 -> 18031.62139 | BY25: =WA_LR!BX153*BY$2 -> 19794.24594 | BZ25: =WA_LR!BY153*BZ$2 -> 23580.63616 | CA25: =WA_LR!BZ153*CA$2 -> 21293.19816 | CB25: =WA_LR!CA153*CB$2 -> 13978.56776 | CC25: =WA_LR!CB153*CC$2 -> 13930.23445 | CD25: =WA_LR!CC153*CD$2 -> 12937.5139 | CE25: =WA_LR!CD153*CE$2 -> 11734.7 | CF25: =WA_LR!CE153*CF$2 -> 13980.27568 | CG25: =WA_LR!CF153*CG$2 -> 16271.94716 | CH25: =WA_LR!CG153*CH$2 -> 21468.88819 | CI25: =WA_LR!CH153*CI$2 -> 22404.97172 | CJ25: =WA_LR!CI153*CJ$2 -> 18059.77201 | CK25: =WA_LR!CJ153*CK$2 -> 19825.14834 | CL25: =WA_LR!CK153*CL$2 -> 23617.4498 | CM25: =WA_LR!CL153*CM$2 -> 21326.44069 | CN25: =WA_LR!CM153*CN$2 -> 14000.39083 | CO25: =WA_LR!CN153*CO$2 -> 13951.98207 | CP25: =WA_LR!CO153*CP$2 -> 12957.7117 | CQ25: =WA_LR!CP153*CQ$2 -> 11753.01999 | CR25: =WA_LR!CQ153*CR$2 -> 14002.10142 | CS25: =WA_LR!CR153*CS$2 -> 16297.35061 | CT25: =WA_LR!CS153*CT$2 -> 21502.40501 | CU25: =WA_LR!CT153*CU$2 -> 22439.94993 | CV25: =WA_LR!CU153*CV$2 -> 18109.56738 | CW25: =WA_LR!CV153*CW$2 -> 19879.8113 | CX25: =WA_LR!CW153*CX$2 -> 23682.5691 | CY25: =WA_LR!CX153*CY$2 -> 21385.2431 | CZ25: =WA_LR!CY153*CZ$2 -> 14038.99346 | DA25: =WA_LR!CZ153*DA$2 -> 13990.45122 | DB25: =WA_LR!DA153*DB$2 -> 12993.4394 | DC25: =WA_LR!DB153*DC$2 -> 11785.42605 | DD25: =WA_LR!DC153*DD$2 -> 14040.70876 | DE25: =WA_LR!DD153*DE$2 -> 16342.28654 | DF25: =WA_LR!DE153*DF$2 -> 21561.69259 | DG25: =WA_LR!DF153*DG$2 -> 22501.82256 | DH25: =WA_LR!DG153*DH$2 -> 18159.32589 | DI25: =WA_LR!DH153*DI$2 -> 19934.4338 | DJ25: =WA_LR!DI153*DJ$2 -> 23747.6402 | DK25: =WA_LR!DJ153*DK$2 -> 21444.00198 | DL25: =WA_LR!DK153*DL$2 -> 14077.56751 | DM25: =WA_LR!DL153*DM$2 -> 14028.8919 | DN25: =WA_LR!DM153*DN$2 -> 13029.14065 | DO25: =WA_LR!DN153*DO$2 -> 11817.80811 | DP25: =WA_LR!DO153*DP$2 -> 14079.28753 | DQ25: =WA_LR!DP153*DQ$2 -> 16387.18921 | DR25: =WA_LR!DQ153*DR$2 -> 21620.93629 | DS25: =WA_LR!DR153*DS$2 -> 22563.64939 | DT25: =WA_LR!DS153*DT$2 -> 18206.30807 | DU25: =WA_LR!DT153*DU$2 -> 19986.00857 | DV25: =WA_LR!DU153*DV$2 -> 23809.08057 | DW25: =WA_LR!DV153*DW$2 -> 21499.48233 | DX25: =WA_LR!DW153*DX$2 -> 14113.98928 | DY25: =WA_LR!DX153*DY$2 -> 14065.18773 | DZ25: =WA_LR!DY153*DZ$2 -> 13062.84991 | EA25: =WA_LR!DZ153*EA$2 -> 11848.38339 | EB25: =WA_LR!EA153*EB$2 -> 14115.71375 | EC25: =WA_LR!EB153*EC$2 -> 16429.58648 | ED25: =WA_LR!EC153*ED$2 -> 21676.87442 | EE25: =WA_LR!ED153*EE$2 -> 22622.02653 | EF25: =WA_LR!EE153*EF$2 -> 18268.46512 | EG25: =WA_LR!EF153*EG$2 -> 20054.24158 | EH25: =WA_LR!EG153*EH$2 -> 23890.3657 | EI25: =WA_LR!EH153*EI$2 -> 21572.88241 | EJ25: =WA_LR!EI153*EJ$2 -> 14162.17499 | EK25: =WA_LR!EJ153*EK$2 -> 14113.20683 | EL25: =WA_LR!EK153*EL$2 -> 13107.44699 | EM25: =WA_LR!EL153*EM$2 -> 11888.83423 | EN25: =WA_LR!EM153*EN$2 -> 14163.90534 | EO25: =WA_LR!EN153*EO$2 -> 16485.67773 | EP25: =WA_LR!EO153*EP$2 -> 21750.88011 | EQ25: =WA_LR!EP153*EQ$2 -> 22699.25901 | ER25: =WA_LR!EQ153*ER$2 -> 18339.02201 | ES25: =WA_LR!ER153*ES$2 -> 20131.69554 | ET25: =WA_LR!ES153*ET$2 -> 23982.63563 | EU25: =WA_LR!ET153*EU$2 -> 21656.20169 | EV25: =WA_LR!EU153*EV$2 -> 14216.87247 | EW25: =WA_LR!EV153*EW$2 -> 14167.71519 | EX25: =WA_LR!EW153*EX$2 -> 13158.07087 | EY25: =WA_LR!EX153*EY$2 -> 11934.75156 | EZ25: =WA_LR!EY153*EZ$2 -> 14218.60951 | FA25: =WA_LR!EZ153*FA$2 -> 16549.34909 | FB25: =WA_LR!FA153*FB$2 -> 21834.88687 | FC25: =WA_LR!FB153*FC$2 -> 22786.92862 | FD25: =WA_LR!FC153*FD$2 -> 18401.94219 | FE25: =WA_LR!FD153*FE$2 -> 20200.76629 | FF25: =WA_LR!FE153*FF$2 -> 24064.91875 | FG25: =WA_LR!FF153*FG$2 -> 21730.50294 | FH25: =WA_LR!FG153*FH$2 -> 14265.64979 | FI25: =WA_LR!FH153*FI$2 -> 14216.32385 | FJ25: =WA_LR!FI153*FJ$2 -> 13203.2155 | FK25: =WA_LR!FJ153*FK$2 -> 11975.69905 | FL25: =WA_LR!FK153*FL$2 -> 14267.39278 | FM25: =WA_LR!FL153*FM$2 -> 16606.12901 | FN25: =WA_LR!FM153*FN$2 -> 21909.80117 | FO25: =WA_LR!FN153*FO$2 -> 22865.10933 | FP25: =WA_LR!FO153*FP$2 -> 18482.64402 | FQ25: =WA_LR!FP153*FQ$2 -> 20289.35688 | FR25: =WA_LR!FQ153*FR$2 -> 24170.45559 | FS25: =WA_LR!FR153*FS$2 -> 21825.8022 | FT25: =WA_LR!FS153*FT$2 -> 14328.21188 | FU25: =WA_LR!FT153*FU$2 -> 14278.66962 | FV25: =WA_LR!FU153*FV$2 -> 13261.11828 | FW25: =WA_LR!FV153*FW$2 -> 12028.21855 | FX25: =WA_LR!FW153*FX$2 -> 14329.96252 | FY25: =WA_LR!FX153*FY$2 -> 16678.95529 | FZ25: =WA_LR!FY153*FZ$2 -> 22005.88674 | GA25: =WA_LR!FZ153*GA$2 -> 22965.3844 | GB25: =WA_LR!GA153*GB$2 -> 18538.29651 | GC25: =WA_LR!GB153*GC$2 -> 20350.4495 | GD25: =WA_LR!GC153*GD$2 -> 24243.23447 | GE25: =WA_LR!GD153*GE$2 -> 21891.52116 | GF25: =WA_LR!GE153*GF$2 -> 14371.3551 | GG25: =WA_LR!GF153*GG$2 -> 14321.66366 | GH25: =WA_LR!GG153*GH$2 -> 13301.0484 | GI25: =WA_LR!GH153*GI$2 -> 12064.43633 | GJ25: =WA_LR!GI153*GJ$2 -> 14373.11101 | GK25: =WA_LR!GJ153*GK$2 -> 16729.17675 | GL25: =WA_LR!GK153*GL$2 -> 22072.14795 | GM25: =WA_LR!GL153*GM$2 -> 23034.53473 | GN25: =WA_LR!GM153*GN$2 -> 18591.04269 | GO25: =WA_LR!GN153*GO$2 -> 20408.35172 | GP25: =WA_LR!GO153*GP$2 -> 24312.21265 | GQ25: =WA_LR!GP153*GQ$2 -> 21953.80812 | GR25: =WA_LR!GQ153*GR$2 -> 14412.24527 | GS25: =WA_LR!GR153*GS$2 -> 14362.41245 | GT25: =WA_LR!GS153*GT$2 -> 13338.89328 | GU25: =WA_LR!GT153*GU$2 -> 12098.76272 | GV25: =WA_LR!GU153*GV$2 -> 14414.00617 | GW25: =WA_LR!GV153*GW$2 -> 16776.77552 | GX25: =WA_LR!GW153*GX$2 -> 22134.94884 | GY25: =WA_LR!GX153*GY$2 -> 23100.07385 | GZ25: =WA_LR!GY153*GZ$2 -> 0 | HA25: =WA_LR!GZ153*HA$2 -> 0 | HB25: =WA_LR!HA153*HB$2 -> 0 | HC25: =WA_LR!HB153*HC$2 -> 0 | HD25: =WA_LR!HC153*HD$2 -> 0 | HE25: =WA_LR!HD153*HE$2 -> 0 | HF25: =WA_LR!HE153*HF$2 -> 0 | HG25: =WA_LR!HF153*HG$2 -> 0 | HH25: =WA_LR!HG153*HH$2 -> 0 | HI25: =WA_LR!HH153*HI$2 -> 0 | HJ25: =WA_LR!HI153*HJ$2 -> 0 | HK25: =WA_LR!HJ153*HK$2 -> 0 | HL25: =WA_LR!HK153*HL$2 -> 0 | HM25: =WA_LR!HL153*HM$2 -> 0 | HN25: =WA_LR!HM153*HN$2 -> 0 | HO25: =WA_LR!HN153*HO$2 -> 0 | HP25: =WA_LR!HO153*HP$2 -> 0 | HQ25: =WA_LR!HP153*HQ$2 -> 0 | HR25: =WA_LR!HQ153*HR$2 -> 0 | HS25: =WA_LR!HR153*HS$2 -> 0 | HT25: =WA_LR!HS153*HT$2 -> 0 | HU25: =WA_LR!HT153*HU$2 -> 0 | HV25: =WA_LR!HU153*HV$2 -> 0 | HW25: =WA_LR!HV153*HW$2 -> 0 | HX25: =WA_LR!HW153*HX$2 -> 0 | HY25: =WA_LR!HX153*HY$2 -> 0 | HZ25: =WA_LR!HY153*HZ$2 -> 0 | IA25: =WA_LR!HZ153*IA$2 -> 0 | IB25: =WA_LR!IA153*IB$2 -> 0 | IC25: =WA_LR!IB153*IC$2 -> 0 | ID25: =WA_LR!IC153*ID$2 -> 0 | IE25: =WA_LR!ID153*IE$2 -> 0 | IF25: =WA_LR!IE153*IF$2 -> 0 | IG25: =WA_LR!IF153*IG$2 -> 0 | IH25: =WA_LR!IG153*IH$2 -> 0 | II25: =WA_LR!IH153*II$2 -> 0 | IL25: =SUM(D25:O25)/G_A!$G$6 -> 23.63713499 | IM25: =SUM(P25:AA25)/G_A!$H$6 -> 23.77562995 | IN25: =SUM(AB25:AM25)/G_A!$I$6 -> 23.77442528 | IO25: =SUM(AN25:AY25)/G_A!$J$6 -> 23.83971192 | IP25: =SUM(AZ25:BK25)/G_A!$K$6 -> 23.85363855 | IQ25: =SUM(BL25:BW25)/G_A!$L$6 -> 23.87448637 | IR25: =SUM(BX25:CI25)/G_A!$M$6 -> 23.83957201 | IS25: =SUM(CJ25:CU25)/G_A!$N$6 -> 23.94220575 | IT25: =SUM(CV25:DG25)/G_A!$O$6 -> 24.00822049 | IU25: =SUM(DH25:DS25)/G_A!$P$6 -> 24.07418635 | IV25: =SUM(DT25:EE25)/G_A!$Q$6 -> 24.07052493 | IW25: =SUM(EF25:EQ25)/G_A!$R$6 -> 24.21887443 | IX25: =SUM(ER25:FC25)/G_A!$S$6 -> 24.31241313 | IY25: =SUM(FD25:FO25)/G_A!$T$6 -> 24.3958277 | IZ25: =SUM(FP25:GA25)/G_A!$U$6 -> 24.43586817 | JA25: =SUM(GB25:GM25)/G_A!$V$6 -> 24.57659539 | JB25: =SUM(GN25:GY25)/G_A!$W$6 -> 24.64652206 | JC25: =SUM(GZ25:HK25)/G_A!$X$6 -> 0 | JD25: =SUM(HL25:HW25)/G_A!$Y$6 -> 0 | JE25: =SUM(HX25:II25)/G_A!$Z$6 -> 0
B26: Rattlesnake Wind | D26: =WA_LR!C154*D$2 -> 26019.45231 | E26: =WA_LR!D154*E$2 -> 24576.2503 | F26: =WA_LR!E154*F$2 -> 26019.45231 | G26: =WA_LR!F154*G$2 -> 28167.84448 | H26: =WA_LR!G154*H$2 -> 26019.45231 | I26: =WA_LR!H154*I$2 -> 26584.37471 | J26: =WA_LR!I154*J$2 -> 26019.45231 | K26: =WA_LR!J154*K$2 -> 26019.45231 | L26: =WA_LR!K154*L$2 -> 22047.71261 | M26: =WA_LR!L154*M$2 -> 26019.45231 | N26: =WA_LR!M154*N$2 -> 27179.96455 | O26: =WA_LR!N154*O$2 -> 26019.45231 | P26: =WA_LR!O154*P$2 -> 26086.59859 | Q26: =WA_LR!P154*Q$2 -> 25519.66052 | R26: =WA_LR!Q154*R$2 -> 26086.59859 | S26: =WA_LR!R154*S$2 -> 28240.53494 | T26: =WA_LR!S154*T$2 -> 26086.59859 | U26: =WA_LR!T154*U$2 -> 26652.97884 | V26: =WA_LR!U154*V$2 -> 26086.59859 | W26: =WA_LR!V154*W$2 -> 26086.59859 | X26: =WA_LR!W154*X$2 -> 22104.60934 | Y26: =WA_LR!X154*Y$2 -> 26086.59859 | Z26: =WA_LR!Y154*Z$2 -> 27250.10567 | AA26: =WA_LR!Z154*AA$2 -> 26086.59859 | AB26: =WA_LR!AA154*AB$2 -> 26156.74335 | AC26: =WA_LR!AB154*AC$2 -> 25588.28082 | AD26: =WA_LR!AC154*AD$2 -> 26156.74335 | AE26: =WA_LR!AD154*AE$2 -> 28316.47146 | AF26: =WA_LR!AE154*AF$2 -> 26156.74335 | AG26: =WA_LR!AF154*AG$2 -> 26724.64654 | AH26: =WA_LR!AG154*AH$2 -> 26156.74335 | AI26: =WA_LR!AH154*AI$2 -> 26156.74335 | AJ26: =WA_LR!AI154*AJ$2 -> 22164.04685 | AK26: =WA_LR!AJ154*AK$2 -> 26156.74335 | AL26: =WA_LR!AK154*AL$2 -> 27323.379 | AM26: =WA_LR!AL154*AM$2 -> 26156.74335 | AN26: =WA_LR!AM154*AN$2 -> 26156.90927 | AO26: =WA_LR!AN154*AO$2 -> 25588.44314 | AP26: =WA_LR!AO154*AP$2 -> 26156.90927 | AQ26: =WA_LR!AP154*AQ$2 -> 28316.65108 | AR26: =WA_LR!AQ154*AR$2 -> 26156.90927 | AS26: =WA_LR!AR154*AS$2 -> 26724.81607 | AT26: =WA_LR!AS154*AT$2 -> 26156.90927 | AU26: =WA_LR!AT154*AU$2 -> 26156.90927 | AV26: =WA_LR!AU154*AV$2 -> 22164.18745 | AW26: =WA_LR!AV154*AW$2 -> 26156.90927 | AX26: =WA_LR!AW154*AX$2 -> 27323.55233 | AY26: =WA_LR!AX154*AY$2 -> 26156.90927 | AZ26: =WA_LR!AY154*AZ$2 -> 26172.18956 | BA26: =WA_LR!AZ154*BA$2 -> 25603.39134 | BB26: =WA_LR!BA154*BB$2 -> 26172.18956 | BC26: =WA_LR!BB154*BC$2 -> 28333.19304 | BD26: =WA_LR!BC154*BD$2 -> 26172.18956 | BE26: =WA_LR!BD154*BE$2 -> 26740.42812 | BF26: =WA_LR!BE154*BF$2 -> 26172.18956 | BG26: =WA_LR!BF154*BG$2 -> 26172.18956 | BH26: =WA_LR!BG154*BH$2 -> 22177.13528 | BI26: =WA_LR!BH154*BI$2 -> 26172.18956 | BJ26: =WA_LR!BI154*BJ$2 -> 27339.51414 | BK26: =WA_LR!BJ154*BK$2 -> 26172.18956 | BL26: =WA_LR!BK154*BL$2 -> 26195.06377 | BM26: =WA_LR!BL154*BM$2 -> 25625.76843 | BN26: =WA_LR!BM154*BN$2 -> 26195.06377 | BO26: =WA_LR!BN154*BO$2 -> 28357.95595 | BP26: =WA_LR!BO154*BP$2 -> 26195.06377 | BQ26: =WA_LR!BP154*BQ$2 -> 26763.79896 | BR26: =WA_LR!BQ154*BR$2 -> 26195.06377 | BS26: =WA_LR!BR154*BS$2 -> 26195.06377 | BT26: =WA_LR!BS154*BT$2 -> 22196.51785 | BU26: =WA_LR!BT154*BU$2 -> 26195.06377 | BV26: =WA_LR!BU154*BV$2 -> 27363.40858 | BW26: =WA_LR!BV154*BW$2 -> 26195.06377 | BX26: =WA_LR!BW154*BX$2 -> 26228.41811 | BY26: =WA_LR!BX154*BY$2 -> 25658.39788 | BZ26: =WA_LR!BY154*BZ$2 -> 26228.41811 | CA26: =WA_LR!BZ154*CA$2 -> 28394.06431 | CB26: =WA_LR!CA154*CB$2 -> 26228.41811 | CC26: =WA_LR!CB154*CC$2 -> 26797.87747 | CD26: =WA_LR!CC154*CD$2 -> 26228.41811 | CE26: =WA_LR!CD154*CE$2 -> 26228.41811 | CF26: =WA_LR!CE154*CF$2 -> 22224.78082 | CG26: =WA_LR!CF154*CG$2 -> 26228.41811 | CH26: =WA_LR!CG154*CH$2 -> 27398.25058 | CI26: =WA_LR!CH154*CI$2 -> 26228.41811 | CJ26: =WA_LR!CI154*CJ$2 -> 26269.36541 | CK26: =WA_LR!CJ154*CK$2 -> 25698.45528 | CL26: =WA_LR!CK154*CL$2 -> 26269.36541 | CM26: =WA_LR!CL154*CM$2 -> 28438.39258 | CN26: =WA_LR!CM154*CN$2 -> 26269.36541 | CO26: =WA_LR!CN154*CO$2 -> 26839.7138 | CP26: =WA_LR!CO154*CP$2 -> 26269.36541 | CQ26: =WA_LR!CP154*CQ$2 -> 26269.36541 | CR26: =WA_LR!CQ154*CR$2 -> 22259.47772 | CS26: =WA_LR!CR154*CS$2 -> 26269.36541 | CT26: =WA_LR!CS154*CT$2 -> 27441.0242 | CU26: =WA_LR!CT154*CU$2 -> 26269.36541 | CV26: =WA_LR!CU154*CV$2 -> 26341.79672 | CW26: =WA_LR!CV154*CW$2 -> 25769.31244 | CX26: =WA_LR!CW154*CX$2 -> 26341.79672 | CY26: =WA_LR!CX154*CY$2 -> 28516.80444 | CZ26: =WA_LR!CY154*CZ$2 -> 26341.79672 | DA26: =WA_LR!CZ154*DA$2 -> 26913.7177 | DB26: =WA_LR!DA154*DB$2 -> 26341.79672 | DC26: =WA_LR!DB154*DC$2 -> 26341.79672 | DD26: =WA_LR!DC154*DD$2 -> 22320.85275 | DE26: =WA_LR!DD154*DE$2 -> 26341.79672 | DF26: =WA_LR!DE154*DF$2 -> 27516.68607 | DG26: =WA_LR!DF154*DG$2 -> 26341.79672 | DH26: =WA_LR!DG154*DH$2 -> 26414.1744 | DI26: =WA_LR!DH154*DI$2 -> 25840.11714 | DJ26: =WA_LR!DI154*DJ$2 -> 26414.1744 | DK26: =WA_LR!DJ154*DK$2 -> 28595.15825 | DL26: =WA_LR!DK154*DL$2 -> 26414.1744 | DM26: =WA_LR!DL154*DM$2 -> 26987.66682 | DN26: =WA_LR!DM154*DN$2 -> 26414.1744 | DO26: =WA_LR!DN154*DO$2 -> 26414.1744 | DP26: =WA_LR!DO154*DP$2 -> 22382.18234 | DQ26: =WA_LR!DP154*DQ$2 -> 26414.1744 | DR26: =WA_LR!DQ154*DR$2 -> 27592.29192 | DS26: =WA_LR!DR154*DS$2 -> 26414.1744 | DT26: =WA_LR!DS154*DT$2 -> 26482.51369 | DU26: =WA_LR!DT154*DU$2 -> 25906.97122 | DV26: =WA_LR!DU154*DV$2 -> 26482.51369 | DW26: =WA_LR!DV154*DW$2 -> 28669.14023 | DX26: =WA_LR!DW154*DX$2 -> 26482.51369 | DY26: =WA_LR!DX154*DY$2 -> 27057.48986 | DZ26: =WA_LR!DY154*DZ$2 -> 26482.51369 | EA26: =WA_LR!DZ154*EA$2 -> 26482.51369 | EB26: =WA_LR!EA154*EB$2 -> 22440.08998 | EC26: =WA_LR!EB154*EC$2 -> 26482.51369 | ED26: =WA_LR!EC154*ED$2 -> 27663.67926 | EE26: =WA_LR!ED154*EE$2 -> 26482.51369 | EF26: =WA_LR!EE154*EF$2 -> 26572.92603 | EG26: =WA_LR!EF154*EG$2 -> 25995.41863 | EH26: =WA_LR!EG154*EH$2 -> 26572.92603 | EI26: =WA_LR!EH154*EI$2 -> 28767.01779 | EJ26: =WA_LR!EI154*EJ$2 -> 26572.92603 | EK26: =WA_LR!EJ154*EK$2 -> 27149.86519 | EL26: =WA_LR!EK154*EL$2 -> 26572.92603 | EM26: =WA_LR!EL154*EM$2 -> 26572.92603 | EN26: =WA_LR!EM154*EN$2 -> 22516.70132 | EO26: =WA_LR!EN154*EO$2 -> 26572.92603 | EP26: =WA_LR!EO154*EP$2 -> 27758.12414 | EQ26: =WA_LR!EP154*EQ$2 -> 26572.92603 | ER26: =WA_LR!EQ154*ER$2 -> 26675.5566 | ES26: =WA_LR!ER154*ES$2 -> 26095.81874 | ET26: =WA_LR!ES154*ET$2 -> 26675.5566 | EU26: =WA_LR!ET154*EU$2 -> 28878.12244 | EV26: =WA_LR!EU154*EV$2 -> 26675.5566 | EW26: =WA_LR!EV154*EW$2 -> 27254.72403 | EX26: =WA_LR!EW154*EX$2 -> 26675.5566 | EY26: =WA_LR!EX154*EY$2 -> 26675.5566 | EZ26: =WA_LR!EY154*EZ$2 -> 22603.66584 | FA26: =WA_LR!EZ154*FA$2 -> 26675.5566 | FB26: =WA_LR!FA154*FB$2 -> 27865.33221 | FC26: =WA_LR!FB154*FC$2 -> 26675.5566 | FD26: =WA_LR!FC154*FD$2 -> 26767.07898 | FE26: =WA_LR!FD154*FE$2 -> 26185.35207 | FF26: =WA_LR!FE154*FF$2 -> 26767.07898 | FG26: =WA_LR!FF154*FG$2 -> 28977.2017 | FH26: =WA_LR!FG154*FH$2 -> 26767.07898 | FI26: =WA_LR!FH154*FI$2 -> 27348.2335 | FJ26: =WA_LR!FI154*FJ$2 -> 26767.07898 | FK26: =WA_LR!FJ154*FK$2 -> 26767.07898 | FL26: =WA_LR!FK154*FL$2 -> 22681.21779 | FM26: =WA_LR!FL154*FM$2 -> 26767.07898 | FN26: =WA_LR!FM154*FN$2 -> 27960.93665 | FO26: =WA_LR!FN154*FO$2 -> 26767.07898 | FP26: =WA_LR!FO154*FP$2 -> 26884.46617 | FQ26: =WA_LR!FP154*FQ$2 -> 26300.1881 | FR26: =WA_LR!FQ154*FR$2 -> 26884.46617 | FS26: =WA_LR!FR154*FS$2 -> 29104.2814 | FT26: =WA_LR!FS154*FT$2 -> 26884.46617 | FU26: =WA_LR!FT154*FU$2 -> 27468.16935 | FV26: =WA_LR!FU154*FV$2 -> 26884.46617 | FW26: =WA_LR!FV154*FW$2 -> 26884.46617 | FX26: =WA_LR!FW154*FX$2 -> 22780.68641 | FY26: =WA_LR!FX154*FY$2 -> 26884.46617 | FZ26: =WA_LR!FY154*FZ$2 -> 28083.55951 | GA26: =WA_LR!FZ154*GA$2 -> 26884.46617 | GB26: =WA_LR!GA154*GB$2 -> 0 | GC26: =WA_LR!GB154*GC$2 -> 0 | GD26: =WA_LR!GC154*GD$2 -> 0 | GE26: =WA_LR!GD154*GE$2 -> 0 | GF26: =WA_LR!GE154*GF$2 -> 0 | GG26: =WA_LR!GF154*GG$2 -> 0 | GH26: =WA_LR!GG154*GH$2 -> 0 | GI26: =WA_LR!GH154*GI$2 -> 0 | GJ26: =WA_LR!GI154*GJ$2 -> 0 | GK26: =WA_LR!GJ154*GK$2 -> 0 | GL26: =WA_LR!GK154*GL$2 -> 0 | GM26: =WA_LR!GL154*GM$2 -> 0 | GN26: =WA_LR!GM154*GN$2 -> 0 | GO26: =WA_LR!GN154*GO$2 -> 0 | GP26: =WA_LR!GO154*GP$2 -> 0 | GQ26: =WA_LR!GP154*GQ$2 -> 0 | GR26: =WA_LR!GQ154*GR$2 -> 0 | GS26: =WA_LR!GR154*GS$2 -> 0 | GT26: =WA_LR!GS154*GT$2 -> 0 | GU26: =WA_LR!GT154*GU$2 -> 0 | GV26: =WA_LR!GU154*GV$2 -> 0 | GW26: =WA_LR!GV154*GW$2 -> 0 | GX26: =WA_LR!GW154*GX$2 -> 0 | GY26: =WA_LR!GX154*GY$2 -> 0 | GZ26: =WA_LR!GY154*GZ$2 -> 0 | HA26: =WA_LR!GZ154*HA$2 -> 0 | HB26: =WA_LR!HA154*HB$2 -> 0 | HC26: =WA_LR!HB154*HC$2 -> 0 | HD26: =WA_LR!HC154*HD$2 -> 0 | HE26: =WA_LR!HD154*HE$2 -> 0 | HF26: =WA_LR!HE154*HF$2 -> 0 | HG26: =WA_LR!HF154*HG$2 -> 0 | HH26: =WA_LR!HG154*HH$2 -> 0 | HI26: =WA_LR!HH154*HI$2 -> 0 | HJ26: =WA_LR!HI154*HJ$2 -> 0 | HK26: =WA_LR!HJ154*HK$2 -> 0 | HL26: =WA_LR!HK154*HL$2 -> 0 | HM26: =WA_LR!HL154*HM$2 -> 0 | HN26: =WA_LR!HM154*HN$2 -> 0 | HO26: =WA_LR!HN154*HO$2 -> 0 | HP26: =WA_LR!HO154*HP$2 -> 0 | HQ26: =WA_LR!HP154*HQ$2 -> 0 | HR26: =WA_LR!HQ154*HR$2 -> 0 | HS26: =WA_LR!HR154*HS$2 -> 0 | HT26: =WA_LR!HS154*HT$2 -> 0 | HU26: =WA_LR!HT154*HU$2 -> 0 | HV26: =WA_LR!HU154*HV$2 -> 0 | HW26: =WA_LR!HV154*HW$2 -> 0 | HX26: =WA_LR!HW154*HX$2 -> 0 | HY26: =WA_LR!HX154*HY$2 -> 0 | HZ26: =WA_LR!HY154*HZ$2 -> 0 | IA26: =WA_LR!HZ154*IA$2 -> 0 | IB26: =WA_LR!IA154*IB$2 -> 0 | IC26: =WA_LR!IB154*IC$2 -> 0 | ID26: =WA_LR!IC154*ID$2 -> 0 | IE26: =WA_LR!ID154*IE$2 -> 0 | IF26: =WA_LR!IE154*IF$2 -> 0 | IG26: =WA_LR!IF154*IG$2 -> 0 | IH26: =WA_LR!IG154*IH$2 -> 0 | II26: =WA_LR!IH154*II$2 -> 0 | IL26: =SUM(D26:O26)/G_A!$G$6 -> 35.467159 | IM26: =SUM(P26:AA26)/G_A!$H$6 -> 35.65914149 | IN26: =SUM(AB26:AM26)/G_A!$I$6 -> 35.65733471 | IO26: =SUM(AN26:AY26)/G_A!$J$6 -> 35.75525285 | IP26: =SUM(AZ26:BK26)/G_A!$K$6 -> 35.77614028 | IQ26: =SUM(BL26:BW26)/G_A!$L$6 -> 35.80740824 | IR26: =SUM(BX26:CI26)/G_A!$M$6 -> 35.75504301 | IS26: =SUM(CJ26:CU26)/G_A!$N$6 -> 35.90897505 | IT26: =SUM(CV26:DG26)/G_A!$O$6 -> 36.00798521 | IU26: =SUM(DH26:DS26)/G_A!$P$6 -> 36.10692206 | IV26: =SUM(DT26:EE26)/G_A!$Q$6 -> 36.1014306 | IW26: =SUM(EF26:EQ26)/G_A!$R$6 -> 36.323928 | IX26: =SUM(ER26:FC26)/G_A!$S$6 -> 36.46421911 | IY26: =SUM(FD26:FO26)/G_A!$T$6 -> 36.58932586 | IZ26: =SUM(FP26:GA26)/G_A!$U$6 -> 36.64937932 | JA26: =SUM(GB26:GM26)/G_A!$V$6 -> 0 | JB26: =SUM(GN26:GY26)/G_A!$W$6 -> 0 | JC26: =SUM(GZ26:HK26)/G_A!$X$6 -> 0 | JD26: =SUM(HL26:HW26)/G_A!$Y$6 -> 0 | JE26: =SUM(HX26:II26)/G_A!$Z$6 -> 0
